Workbook

Sheet Pracovní dny (hidden)
B1: 2019 | C1: 2020 | D1: 2021 | E1: 2022 | F1: průměr
A2: Počet pracovních dnů v roce | B2: 251 | C2: 251 | D2: 252 | E2: 252 | F2: =ROUND(AVERAGE(B2:E2),0) -> 252
A3: Počet dnů pracovního volna, svátků | B3: =B4-B2 -> 114 | C3: =C4-C2 -> 115 | D3: 113 | E3: 113 | F3: =ROUND(AVERAGE(B3:E3),0) -> 114
A4: Počet dnů v roce | B4: 365 | C4: 366 | D4: 365 | E4: 365 | F4: 365

Sheet Příloha _7_Rekapitulace
A2: REKAPITULACE CENY | E2: Příloha č. 7
B4: Komplexní úklid Pardubické nemocnice společnosti Nemocnice Pardubického kraje, a.s.
A7: Typ služby, dodávky | B7: Služba pravidelného denního úklidu | D7: Služba pravidelného úklidu - úklid po malování a stavebních úpravách
B8: za 4 kalendářní roky vypočtená dle ceníku pravidelného úklidu na příloze č. 8 a kalkulace nabídkové ceny na příloze č. 6_2 až 6_47 | D8: (při frekvenci 1x za rok / 1 den ) za 4 kalendářní roky vypočtená dle ocenění zhotovitele na příloze č. 6_2 až 6_47
A9: Budova | B9: Nabídková cena | D9: Nabídková cena
B10: bez DPH | C10: s DPH | D10: bez DPH | E10: s DPH
A11: ='Budova č.2'!A1 -> BUDOVA Č.2 STARÁ CHIRURGIE | B11: ='Budova č.2'!AG387*4 -> 0 | C11: =B11*1.21 -> 0 | D11: ='Budova č.2'!AI387*4 -> 0 | E11: =D11*1.21 -> 0
A12: ='Budova č.3'!A1 -> BUDOVA Č.3 PG + UROLOGIE | B12: ='Budova č.3'!AG553*4 -> 0 | C12: =B12*1.21 -> 0 | D12: ='Budova č.3'!AI553*4 -> 0 | E12: 0
A13: ='Budova č.4'!A1 -> BUDOVA Č.4 KARDIOLOGIE | B13: ='Budova č.4'!AG281*4 -> 0 | C13: 0 | D13: ='Budova č.4'!AI281*4 -> 0 | E13: 0
A14: ='Budova č.5'!A1 -> BUDOVA Č.5 OČNÍ + HEMATOLOGIE | B14: ='Budova č.5'!AG132*4 -> 0 | C14: 0 | D14: ='Budova č.5'!AI132*4 -> 0 | E14: 0
A15: ='Budova č.6'!A1 -> BUDOVA Č.6 ORL + PSYCHIATRIE L. | B15: ='Budova č.6'!AG145*4 -> 0 | C15: 0 | D15: ='Budova č.6'!AI145*4 -> 0 | E15: 0
A16: ='Budova č.7'!A1 -> BUDOVA Č.7 DĚTSKÉ ODDĚLENÍ | B16: ='Budova č.7'!AG116*4 -> 0 | C16: 0 | D16: ='Budova č.7'!AI116*4 -> 0 | E16: 0
A17: ='Budova č.8'!A1 -> BUDOVA Č.8 PSYCHIATRICkÝ STACIONÁŘ | B17: ='Budova č.8'!AG173*4 -> 0 | C17: 0 | D17: ='Budova č.8'!AI173*4 -> 0 | E17: 0
A18: ='[1]Budova č.9'!A1 -> BUDOVA Č.9 PATOLOGIE, SOUDNÍ LÉKAŘSTVÍ, PTÚ | B18: ='Budova č.8'!AG147*4 -> 0 | C18: 0 | D18: ='[1]Budova č.9'!AI147*4 -> 0 | E18: 0
A19: ='[2]Budova č.10'!A1 -> BUDOVA Č.10 PTÚ, ICT, ERGO | B19: ='Budova č.8'!AG175*4 -> 0 | C19: 0 | D19: ='[2]Budova č.10'!AI117*4 -> 0 | E19: 0
A20: ='Budova č.11'!A1 -> BUDOVA Č.11 ŘEDITELSTVÍ | B20: ='Budova č.11'!AG201*4 -> 0 | C20: 0 | D20: ='Budova č.11'!AI201*4 -> 0 | E20: 0
A21: ='Budova č.13'!A1 -> BUDOVA Č.13 CPL + KLIN. PSYCH. A SOCIÁLNÍ + OAZA + ORL AMB. | B21: ='Budova č.13'!AG207*4 -> 0 | C21: 0 | D21: ='Budova č.13'!AI207*4 -> 0 | E21: 0
A22: ='[3]Budova č.14 '!A1 -> BUDOVA Č.14 RDG | B22: ='[3]Budova č.14 '!AG244*4 -> 0 | C22: 0 | D22: ='Budova č.13'!AI208*4 -> 0 | E22: 0
A23: ='Budova č.17'!A1 -> BUDOVA Č.17 MOP | B23: ='Budova č.17'!AG324*4 -> 0 | C23: 0 | D23: ='Budova č.17'!AI324*4 -> 0 | E23: 0
A24: ='Budova č.18'!A1 -> BUDOVA Č.18 KOŽNÍ | B24: ='Budova č.18'!AG97*4 -> 0 | C24: 0 | D24: ='Budova č.18'!AI97*4 -> 0 | E24: 0
A25: ='Budova č.19'!A1 -> BUDOVA Č.19 NEUROLOGIE | B25: ='Budova č.19'!AG167*4 -> 0 | C25: 0 | D25: ='Budova č.19'!AI167*4 -> 0 | E25: 0
A26: BUDOVA Č. 25b Psychiatrie | B26: ='[4]Psychiatrie 25b.stala.služba'!AG316*4 -> 0 | C26: 0 | D26: ='[4]Psychiatrie 25b.stala.služba'!AI316*4 -> 0 | E26: 0
A27: ='[5]Budova č.27'!A1 -> BUDOVA Č.27 CHIRURGICKÁ KLINIKA | B27: ='Budova č.27'!AG596*4 -> 0 | C27: 0 | D27: ='[5]Budova č.27'!AI596*4 -> 0 | E27: 0
A28: ='Budova č.28'!A1 -> BUDOVA Č.28 INTERNA | B28: ='Budova č.28'!AG464*4 -> 0 | C28: 0 | D28: ='Budova č.28'!AI464*4 -> 0 | E28: 0
A29: ='Budova č.30'!A1 -> BUDOVA Č.30 ONKOLOGIE | B29: ='Budova č.30'!AG121*4 -> 0 | C29: 0 | D29: ='Budova č.30'!AI121*4 -> 0 | E29: 0
A30: ='Budova č.40'!A1 -> BUDOVA Č.40 FMCE + DIETNÍ SESTRY + CENTUM DOMÁCÍ PÉČE | B30: ='Budova č.40'!AG124*4 -> 0 | C30: 0 | D30: ='Budova č.40'!AI124*4 -> 0 | E30: 0
A31: ='Budova č.47'!A1 -> BUDOVA Č.47 UBYTOVNA | B31: ='Budova č.47'!AG220*4 -> 0 | C31: 0 | D31: ='Budova č.47'!AI220*4 -> 0 | E31: 0
A32: Celkem (je předmětem hodnocení) | B32: =SUM(B11:B31) -> 0 | C32: =SUM(C11:C31) -> 0 | D32: =SUM(D11:D31) -> 0 | E32: =SUM(E11:E31) -> 0

Sheet Příloha_9_ceník_mimořádný_úklid
B2: Nabídková cena za plnění služby mimořádného úklidu v jednotkovém vyjádření | O2: Příloha č. 9
D4: Komplexní úklid Pardubická nemocnice společnosti Nemocnice Pardubického kraje, a.s.
B7: Číslo | C7: Název služby | H7: Jednotková cena v Kč/m2 **) | J7: Maximální jedn. cena v Kč/m2 ****) | L7: Jednotková cena v Kč/60 min. ***) | N7: Maximální jedn. cena v Kč/60 min ****)
H8: bez DPH | I8: s DPH | J8: bez DPH | K8: s DPH | L8: bez DPH | M8: s DPH | N8: bez DPH | O8: s DPH
B9: 1 | C9: Úklid po havárii (mimořádné události) | M9: =ROUND(L9*1.21,2) -> 0 | O9: =ROUND(N9*1.21,2) -> 0
B10: 2 | C10: Voskování podlah (vč. materiálu) | I10: =ROUND(H10*1.21,2) -> 0 | K10: 0
B11: 3 | C11: Mytí oken vč. rámů - obě strany rámů i všech křídel, bez šroubování *) | I11: 0 | K11: 0
B12: 4 | C12: Čištění koberců včetně čalouněného nábytku | I12: 0 | K12: 0
C15: *) U oken se rozumí sazba za umytí plochy z jedné strany, včetně rámů a parapetů
C16: **) U služby, kde je stanovena sazba za časovou jednotku, bude skutečně účtovaný čas zaokrouhlován na skutečně započaté čtvrthodiny.
C17: ***) Sazba je stanovena za hodinu práce, bez ohledu na počet pracovníků, kteří budou tuto službu vykonávat.
C18: ****) Maximální hodnotu jednotkové ceny určuje zadavatel. Nabídková cena nesmí být vyšší než tato hodnota, v opačném případě bude nabídka posuzována jako nepřijatelná.
B20: Dodavatel vyplní šedě podbarvená pole jednotkovými cenami za úklid m2 vymezené plochy a cenami za úklid po havárii za hodinu práce v členění podle názvu typu služby mimořádného úklidu. Nabídnuté ceny jsou závazné.
B21: Jednotkové ceny jsou v tomto jejich samostatném vyjádření předmětem hodnocení. Tyto ceny nemají vliv na hodnocení nabídkové ceny za službu pravidelného úklidu vypočtené na přílohách 6_2 až 6_47.

Sheet Příloha_8_Ceník pravid_úklidu
A2: Cena za plnění služby pravidelného úklidu v jednotkovém vyjádření podle charakteru předmětných prostor | J2: Příloha č. 8
D4: Komplexní úklid Pardubická nemocnice společnosti Nemocnice Pardubického kraje, a.s.
A6: Číslo | B6: Kód | C6: Druh prostoru | H6: Jednotková cena
H7: Kč/m2 *) | J7: Kč/hod **)
H8: bez DPH | I8: s DPH | J8: bez DPH | K8: s DPH
A9: 1 | B9: ZDR0 | C9: pokoje pacientů | I9: =ROUND(H9*1.21,2) -> 0
A10: 2 | B10: ZDR1 | C10: vyšetřovny, ordinace, sesterny, převazovny, inspekční pokoje, ambulance, čisté přípravny, ambulantní a lůžkové složky | I10: =ROUND(H10*1.21,2) -> 0
A11: 3 | B11: ZDR2 | C11: laboratoře, odběrové místnosti, ambulance chirurgických oborů, RDG vyšetřovny | I11: =ROUND(H11*1.21,2) -> 0
A12: 4 | B12: KANC | C12: kanceláře, konferenční místnosti, příjem, informace, lékařské pokoje, recepce, administrativa, tělocvičny, kartotéky, vrátnice, denní místnosti zaměstnanců, pohotovostní místnosti, učebny, studovny | I12: =ROUND(H12*1.21,2) -> 0
A13: 5 | B13: STSL1 | C13: stálá služba (operační sály a porodní sály) | K13: =ROUND(J13*1.21,2) -> 0
A14: 6 | B14: CHOD | C14: čekárny, chodby, čisté předávací místnosti, průchody, koridory, zádveří, haly, vestibuly – způsob mytí (ruční vs. strojní) určeno v kalkulaci | I14: =ROUND(H14*1.21,2) -> 0
A15: 7 | B15: TOAL | C15: toalety, koupelny, sprchy, čistící místnosti, nečisté předávací místnosti, úklidové místnosti, výlevky, umývárny | I15: 0
A16: 8 | B16: SCHO | C16: schodiště, podesty | I16: 0
A17: 9 | B17: ZAKR | C17: zákrokové sálky | I17: 0
A18: 10 | B18: SATN | C18: šatny pacientů, šatny personálu | I18: 0
A19: 11 | B19: VYTA | C19: výtahy, zdviže | I19: 0
A20: 12 | B20: JIP1 | C20: pokoje intenzivní péče (ARO, JIP) | I20: 0
A21: 13 | B21: JIP2 | C21: dialýza, novorozenecké boxy, mléčné kuchyně | I21: 0
A22: 14 | B22: INF1 | C22: infekční oddělení a plicní oddělení | I22: 0
A23: 15 | B23: PROSK | C23: pokoje pacientů s prosklenými příčkami a stěnami | I23: 0
A24: 16 | B24: KUCH | C24: čajové kuchyňky, kuřárny, jídelny | I24: 0
A25: 17 | B25: SKLA | C25: sklady, logistické zázemí, archivy, spisovny | I25: 0
A26: 18 | B26: VENK | C26: venkovní terasy a schodiště, balkony | I26: 0
A27: 19 | B27: INF2 | C27: pokoje pacientů se zvýšeným hygienickým režimem, izolační pokoje, na jakémkoliv oddělení | I27: 0
A28: 20 | B28: STER | C28: centrální starilizace | I28: 0
A29: 21 | B29: TEL | C29: příslužba (pohotovost) na telefonu | K29: =ROUND(J29*1.21,2) -> 0
A30: 22 | B30: STSL2 | C30: stálá služba – ARO, JIP, RTG, Centrální sterilizace (bez rozlišení) | K30: =ROUND(J30*1.21,2) -> 0
A32: POKYNY K VYPLNĚNÍ:
A34: Dodavatel vyplní šedě podbarvená pole jednotkovými cenami za úklid m2 podlahové plochy místnosti, prostoru a cenami za stálé služby a pohotovosti za hodinu práce jedné osoby v členění podle kódu místnosti a k němu náležejícímu informativnímu popisu ve sloupci druh prostoru. Nabídnuté ceny jsou závazné. Jednotkové ceny nejsou v tomto jejich samostatném vyjádření předmětem hodnocení, nicméně definují celkovou nabídkovou cenu za službu pravidelného denního úklidu.
A37: Zadavatel upozorňuje uchazeče, že uvedená tabulka musí být oceněna kompletně, tj. pokud některá položka k ocenění nebude vyplněna (mimo ocenění typu prostor, které se na přílohách 6_2 až 6_47 nevyskytují), nebo bude mít nulovou hodnotu, bude nabídka tohoto uchazeče považována za nepřijatelnou a bude vyřazena.
A40: Pro potřeby ocenění stálé služby STSL1, STSL2 a TEL uvádí zadavatel obvyklé počty pracovníků, kteří jsou schopní v daném čase, frekvenci a při dodržení pracovního postupů a specifikce úklidových služeb zajistit tuto službu v požadované kvalitě. Počty pracovníků uvedené v tabulkové části přílohy č. 6_2 až 6_47 - Kalkulace nabídkové ceny jsou pouze orientační, ovšem zadavatel doporučuje dodavateli, aby uvedené počty pracovníků byly maximálně respektovány.
A43: Pro ilustraci jsou za zkratkami kódu prostoru uvedeny obvyklé, příznačné názvy místností, kterým je přiřazen daný typ místnosti nebo provozu. Pro potřeby zpracování nabídkové ceny a následného výpočtu ceny smluvní s vybraným uchazečem bude ale vždy rozhodné určení typu místnosti nebo prostoru tak, jak je stanoveno v tabulce přílohy č. 6_2 až 6_47- Kalkulace nabídkových cen a to podle konkrétně uvedené zkratky kódu příslušné místnosti.
A46: Pro potřeby výpočtu nabídkové ceny, je zavedeno zjednodušení a to konkrétně ve výpočtu koeficientu, který zohledňuje frekvenci úklidu během dne, týdne nebo měsíce. Přepočet frekvence úklidu v daném roce, nebere v potaz anomálie v některých týdnech, kdy je méně než 5 pracovních dní a vše je zjednodušeno do principu, že každý týden má 5 pracovních dní a 2 dny pracovního volna. Dále je kalkulováno s 9 dny pracovního volna (So a Ne) v jednom měsíci a 21 pracovními dny v jedom měsíci. Následně při měsíční fakturaci již dodavatel bude při výpočtu smluvní ceny vycházet z reálného počtu pracovních dnů a dnů pracovního volna a svátků a nebude nutné používat toto zjednodušení pro potřeby výpočtu celkové nabídkové ceny.
A49: Výpočty v tabulkách na přílohách 6_2 až 6_47 jsou zaokrouhlovány na 2 desetinná místa. Uchazeč bude veškeré závazné ceny uvádět v tomto formátu.
A51: Pro větší přehlednost tabulkové části na příloze č. 6_2 až 6_47 jsou u místností, které nejsou aktuálně předmětem zakázky, zvýrazněn celý řádek červenou barvou a dále v textu je uvedena informace o tom, že tato místnost, případně služba se neoceňuje.
A53: Služby oceňované hodinovou sazbou jsou pro odlišení od ostatních pravidelně uklízených prostor zvýrazněny žlutou barvou.
A55: *) Cena jednoho pravidelného ručního/strojního úklidu plochy místnosti o výměře 1m2.
A56: **) Cena hodinového pravidelného ručního/strojního úklidu jedné osoby, která tuto službu vykonává.
A58: Vysvětlivky :
A60: 2xPo-Pá | C60: = úklid 2x týdně v uvedeném období (zde konkrétně od pondělí do pátku)
A61: 2x(7xPo-Ne) | C61: = údaj před závorkou udává četnost úklidu denně, údaj v závorce udává četnost úklidů v uvedeném období (zde konkrétně každý den od pondělí do neděle)
C62: - je-li někde uvedeno Ne, je tím myšlen úklid nejen v den pracovního volna (neděle), ale i v den státního svátku
A63: zhotovitel | C63: -je-li v kolonce četnost úklidu uvedeno, je tím myšleno, že místnost uklízí zhotovitel na své náklady, protože ji používá výhradně pro své potřeby

Sheet Budova č.2
A1: BUDOVA Č.2 STARÁ CHIRURGIE | AH1: Příloha č. | AI1: 6_2
A2: Číslo místnosti dle PD | B2: NS | C2: čárový kód místnosti | D2: Název místnosti | E2: Podlaha | H2: Kód místnosti | I2: Číslo kódu místnosti | J2: Četnost úklidu | K2: Počet stěrů v pracovní den | L2: Frekvence úklidu v pracovních dnech v týdnu (Po-Pá) | M2: Počet stěrů v den pracovního volna | N2: Frekvence úklidu ve dnech pracovního klidu (So, Ne) | O2: Počet pracovních dnů v roce | P2: Počet dnů pracovního volna, svátků | Q2: Počet dnů v roce | R2: Počet stěrů v roce | S2: Stěny | V2: Dveře | X2: San. Zař. Počet | Y2: Okna | AD2: Strop typ | AE2: Neoceňuje se | AF2: Sazba za m2 nebo za hodinu | AG2: Celkem v Kč za rok bez DPH | AH2: Celkem v Kč za rok s DPH | AI2: Cena úklidu po malování a stavebních úpravách za den úklidu v Kč bez DPH
E3: Plocha celkem | F3: Úklidová plocha | S3: Omyvatelná plocha | Y3: Plocha 1 okna | Z3: Počet | AA3: Úklid. plocha | AB3: typ | AC3: Žaluzie typ
F4: Koberec | G4: Omyv.plocha | S4: Obklad | T4: Nátěr | U4: Jiné | V4: Plocha | W4: Počet
D5: Měrná jednotka: | E5: m2 | F5: m2 | G5: m2 | I5: ---- | J5: ---- | S5: m2 | T5: m2 | U5: m2 | V5: m2 | W5: ks | X5: ks | Y5: m2 | Z5: ks | AA5: m2 | AB5: ---- | AC5: ---- | AD5: ----
A7: 1.PODZEMNÍ PODLAŽÍ | D7: DCH AMB
A8: .001 | B8: 137400 | D8: Chodba + čekárna | E8: 67.57 | H8: =IF(ISBLANK(I8)," ",VLOOKUP(I8,'[6]Příloha_8_Ceník pravid_úklidu'!$A$9:$B$30,2,0)) -> KANC | I8: 4 | J8: 1x (5x;Po-Pá) | K8: 1 | L8: 1 | M8: 0 | N8: 0 | O8: =IF(ISBLANK($K8),"",'[6]Pracovní dny'!$F$2) -> 252 | P8: =IF(ISBLANK($M8),"",'[6]Pracovní dny'!$F$3) -> 114 | Q8: =IF(ISBLANK($K8),"",'[6]Pracovní dny'!$F$4) -> 365 | R8: =IF(AND(ISBLANK($K8),ISBLANK($M8)),"",$K8*$L8*$O8+$M8*$N8*$P8) -> 252 | S8: XX | T8: XX | U8: X | V8: 6.4 | W8: 2 | X8: 0 | Y8: 0 | Z8: 0 | AA8: 0 | AB8: 0 | AC8: 0 | AD8: OM | AF8: =IF(ISBLANK($AE8),VLOOKUP($I8,'Příloha_8_Ceník pravid_úklidu'!$A$9:$K$30,8,0)+VLOOKUP($I8,'Příloha_8_Ceník pravid_úklidu'!$A$9:$K$30,10,0),"neoceňuje se") -> 0 | AG8: =IF(AF8="neoceňuje se",0,$E8*$R8*$AF8) -> 0 | AH8: =$AG8*1.21 -> 0
A9: .002 | B9: 137400 | D9: sklad/spisovna | E9: 17.15 | H9: =IF(ISBLANK(I9)," ",VLOOKUP(I9,'[6]Příloha_8_Ceník pravid_úklidu'!$A$9:$B$30,2,0)) -> SKLA | I9: 17 | J9: 1xměsíčně, vždy první pátek v měsíci | K9: 1 | L9: 0.05 | M9: 0 | N9: 0 | O9: =IF(ISBLANK($K9),"",'[6]Pracovní dny'!$F$2) -> 252 | P9: =IF(ISBLANK($M9),"",'[6]Pracovní dny'!$F$3) -> 114 | Q9: =IF(ISBLANK($K9),"",'[6]Pracovní dny'!$F$4) -> 365 | R9: =IF(AND(ISBLANK($K9),ISBLANK($M9)),"",$K9*$L9*$O9+$M9*$N9*$P9) -> 12.6 | S9: 0 | T9: 0 | U9: R | V9: 3.6 | W9: 1 | X9: 0 | Y9: 2.2 | Z9: 2 | AA9: 17.6 | AB9: PL | AC9: 0 | AD9: OM | AF9: =IF(ISBLANK($AE9),VLOOKUP($I9,'Příloha_8_Ceník pravid_úklidu'!$A$9:$K$30,8,0)+VLOOKUP($I9,'Příloha_8_Ceník pravid_úklidu'!$A$9:$K$30,10,0),"neoceňuje se") -> 0 | AG9: 0 | AH9: 0
A10: .003 | B10: 137400 | D10: ambulance | E10: 34.26 | H10: =IF(ISBLANK(I10)," ",VLOOKUP(I10,'[6]Příloha_8_Ceník pravid_úklidu'!$A$9:$B$30,2,0)) -> ZDR1 | I10: 2 | J10: 1x (5x;Po-Pá) | K10: 1 | L10: 1 | M10: 0 | N10: 0 | O10: =IF(ISBLANK($K10),"",'[6]Pracovní dny'!$F$2) -> 252 | P10: =IF(ISBLANK($M10),"",'[6]Pracovní dny'!$F$3) -> 114 | Q10: =IF(ISBLANK($K10),"",'[6]Pracovní dny'!$F$4) -> 365 | R10: 252 | S10: 0 | T10: XX | U10: N | V10: 3.2 | W10: 1 | X10: 0 | Y10: 1 | Z10: 1 | AA10: 4 | AB10: PL | AC10: 0 | AD10: OM | AF10: =IF(ISBLANK($AE10),VLOOKUP($I10,'Příloha_8_Ceník pravid_úklidu'!$A$9:$K$30,8,0)+VLOOKUP($I10,'Příloha_8_Ceník pravid_úklidu'!$A$9:$K$30,10,0),"neoceňuje se") -> 0 | AG10: 0 | AH10: 0
A11: .004 | B11: 137400 | D11: připravna sestry | E11: 23.91 | H11: =IF(ISBLANK(I11)," ",VLOOKUP(I11,'[6]Příloha_8_Ceník pravid_úklidu'!$A$9:$B$30,2,0)) -> ZDR1 | I11: 2 | J11: 1x (5x;Po-Pá) | K11: 1 | L11: 1 | M11: 0 | N11: 0 | O11: =IF(ISBLANK($K11),"",'[6]Pracovní dny'!$F$2) -> 252 | P11: =IF(ISBLANK($M11),"",'[6]Pracovní dny'!$F$3) -> 114 | Q11: =IF(ISBLANK($K11),"",'[6]Pracovní dny'!$F$4) -> 365 | R11: 252 | S11: XX | T11: XX | U11: 0 | V11: 3.2 | W11: 1 | X11: 0 | Y11: 1 | Z11: 1 | AA11: 4 | AB11: PL | AC11: 0 | AD11: OM | AF11: =IF(ISBLANK($AE11),VLOOKUP($I11,'Příloha_8_Ceník pravid_úklidu'!$A$9:$K$30,8,0)+VLOOKUP($I11,'Příloha_8_Ceník pravid_úklidu'!$A$9:$K$30,10,0),"neoceňuje se") -> 0 | AG11: 0 | AH11: 0
A12: .005 | B12: 137400 | D12: ambulance | E12: 26.03 | H12: =IF(ISBLANK(I12)," ",VLOOKUP(I12,'[6]Příloha_8_Ceník pravid_úklidu'!$A$9:$B$30,2,0)) -> ZDR1 | I12: 2 | J12: 1x (5x;Po-Pá) | K12: 1 | L12: 1 | M12: 0 | N12: 0 | O12: =IF(ISBLANK($K12),"",'[6]Pracovní dny'!$F$2) -> 252 | P12: =IF(ISBLANK($M12),"",'[6]Pracovní dny'!$F$3) -> 114 | Q12: =IF(ISBLANK($K12),"",'[6]Pracovní dny'!$F$4) -> 365 | R12: 252 | S12: 0 | T12: XX | U12: N | V12: 3.2 | W12: 1 | X12: 0 | Y12: 0 | Z12: 0 | AA12: 0 | AB12: 0 | AC12: 0 | AD12: OM | AF12: =IF(ISBLANK($AE12),VLOOKUP($I12,'Příloha_8_Ceník pravid_úklidu'!$A$9:$K$30,8,0)+VLOOKUP($I12,'Příloha_8_Ceník pravid_úklidu'!$A$9:$K$30,10,0),"neoceňuje se") -> 0 | AG12: 0 | AH12: 0
A13: .006 | B13: 137400 | D13: převazovna, sádrovna | E13: 28.83 | H13: =IF(ISBLANK(I13)," ",VLOOKUP(I13,'[6]Příloha_8_Ceník pravid_úklidu'!$A$9:$B$30,2,0)) -> ZDR1 | I13: 2 | J13: 1x (5x;Po-Pá) | K13: 1 | L13: 1 | M13: 0 | N13: 0 | O13: =IF(ISBLANK($K13),"",'[6]Pracovní dny'!$F$2) -> 252 | P13: =IF(ISBLANK($M13),"",'[6]Pracovní dny'!$F$3) -> 114 | Q13: =IF(ISBLANK($K13),"",'[6]Pracovní dny'!$F$4) -> 365 | R13: 252 | S13: 34 | T13: 0 | U13: 0 | V13: 3.2 | W13: 1 | X13: 5 | Y13: 2,2/1 | Z13: 2 | AA13: 25.6 | AB13: PL | AC13: 0 | AD13: OM | AF13: =IF(ISBLANK($AE13),VLOOKUP($I13,'Příloha_8_Ceník pravid_úklidu'!$A$9:$K$30,8,0)+VLOOKUP($I13,'Příloha_8_Ceník pravid_úklidu'!$A$9:$K$30,10,0),"neoceňuje se") -> 0 | AG13: 0 | AH13: 0
A14: .007 | B14: 137400 | D14: sklad | E14: 18.13 | H14: =IF(ISBLANK(I14)," ",VLOOKUP(I14,'[6]Příloha_8_Ceník pravid_úklidu'!$A$9:$B$30,2,0)) -> CHOD | I14: 6 | J14: 1x;Po-Pá | K14: 1 | L14: 0.2 | M14: 0 | N14: 0 | O14: =IF(ISBLANK($K14),"",'[6]Pracovní dny'!$F$2) -> 252 | P14: =IF(ISBLANK($M14),"",'[6]Pracovní dny'!$F$3) -> 114 | Q14: =IF(ISBLANK($K14),"",'[6]Pracovní dny'!$F$4) -> 365 | R14: 50.4 | S14: 8 | T14: 0 | U14: 0 | V14: 11.8 | W14: 1 | X14: 0 | Y14: 0 | Z14: 0 | AA14: 0 | AB14: 0 | AC14: 0 | AD14: OM | AF14: =IF(ISBLANK($AE14),VLOOKUP($I14,'Příloha_8_Ceník pravid_úklidu'!$A$9:$K$30,8,0)+VLOOKUP($I14,'Příloha_8_Ceník pravid_úklidu'!$A$9:$K$30,10,0),"neoceňuje se") -> 0 | AG14: 0 | AH14: 0
A15: .008 | B15: 137400 | D15: denní místnost | E15: 15.03 | H15: =IF(ISBLANK(I15)," ",VLOOKUP(I15,'[6]Příloha_8_Ceník pravid_úklidu'!$A$9:$B$30,2,0)) -> KANC | I15: 4 | J15: 2x;Po-Pá | K15: 1 | L15: 0.4 | M15: 0 | N15: 0 | O15: =IF(ISBLANK($K15),"",'[6]Pracovní dny'!$F$2) -> 252 | P15: =IF(ISBLANK($M15),"",'[6]Pracovní dny'!$F$3) -> 114 | Q15: =IF(ISBLANK($K15),"",'[6]Pracovní dny'!$F$4) -> 365 | R15: 100.8 | S15: 27 | T15: XX | U15: N | V15: 8 | W15: 2 | X15: 0 | Y15: 0 | Z15: 0 | AA15: 0 | AB15: 0 | AC15: 0 | AD15: OM | AF15: =IF(ISBLANK($AE15),VLOOKUP($I15,'Příloha_8_Ceník pravid_úklidu'!$A$9:$K$30,8,0)+VLOOKUP($I15,'Příloha_8_Ceník pravid_úklidu'!$A$9:$K$30,10,0),"neoceňuje se") -> 0 | AG15: 0 | AH15: 0
A16: .009 | B16: 137400 | D16: chodba | E16: 3.35 | H16: =IF(ISBLANK(I16)," ",VLOOKUP(I16,'[6]Příloha_8_Ceník pravid_úklidu'!$A$9:$B$30,2,0)) -> CHOD | I16: 6 | J16: 1x (7x;Po-Ne) | K16: 1 | L16: 1 | M16: 1 | N16: 1 | O16: =IF(ISBLANK($K16),"",'[6]Pracovní dny'!$F$2) -> 252 | P16: =IF(ISBLANK($M16),"",'[6]Pracovní dny'!$F$3) -> 114 | Q16: =IF(ISBLANK($K16),"",'[6]Pracovní dny'!$F$4) -> 365 | R16: 366 | S16: 28.5 | T16: 0 | U16: X | V16: 8 | W16: 2 | X16: 0 | Y16: 2.2 | Z16: 1 | AA16: 8.8 | AB16: PL | AC16: 0 | AD16: OM | AF16: =IF(ISBLANK($AE16),VLOOKUP($I16,'Příloha_8_Ceník pravid_úklidu'!$A$9:$K$30,8,0)+VLOOKUP($I16,'Příloha_8_Ceník pravid_úklidu'!$A$9:$K$30,10,0),"neoceňuje se") -> 0 | AG16: 0 | AH16: 0
A17: .010 | D17: úklidová komora | G17: 1.66 | H17: =IF(ISBLANK(I17)," ",VLOOKUP(I17,'[6]Příloha_8_Ceník pravid_úklidu'!$A$9:$B$30,2,0)) -> TOAL | I17: 7 | J17: provádí zhotovitel na své náklady | O17: =IF(ISBLANK($K17),"",'[6]Pracovní dny'!$F$2) ->  | P17: =IF(ISBLANK($M17),"",'[6]Pracovní dny'!$F$3) ->  | Q17: =IF(ISBLANK($K17),"",'[6]Pracovní dny'!$F$4) ->  | S17: 30.5 | T17: 0 | U17: R | V17: 8 | W17: 2 | X17: 0 | Y17: 2.2 | Z17: 1 | AA17: 8.8 | AB17: PL | AC17: 0 | AD17: OM | AE17: X | AF17: =IF(ISBLANK($AE17),VLOOKUP($I17,'Příloha_8_Ceník pravid_úklidu'!$A$9:$K$30,8,0)+VLOOKUP($I17,'Příloha_8_Ceník pravid_úklidu'!$A$9:$K$30,10,0),"neoceňuje se") -> neoceňuje se | AG17: 0 | AH17: 0
A18: .011 | B18: 137400 | D18: sociální zařízení | E18: 3.24 | H18: =IF(ISBLANK(I18)," ",VLOOKUP(I18,'[6]Příloha_8_Ceník pravid_úklidu'!$A$9:$B$30,2,0)) -> TOAL | I18: 7 | J18: 1x (5x;Po-Pá) | K18: 1 | L18: 1 | M18: 0 | N18: 0 | O18: =IF(ISBLANK($K18),"",'[6]Pracovní dny'!$F$2) -> 252 | P18: =IF(ISBLANK($M18),"",'[6]Pracovní dny'!$F$3) -> 114 | Q18: =IF(ISBLANK($K18),"",'[6]Pracovní dny'!$F$4) -> 365 | R18: 252 | S18: 27 | T18: XX | U18: N | V18: 7.2 | W18: 2 | X18: 0 | Y18: 2.2 | Z18: 1 | AA18: 8.8 | AB18: PL | AC18: 0 | AD18: OM | AF18: =IF(ISBLANK($AE18),VLOOKUP($I18,'Příloha_8_Ceník pravid_úklidu'!$A$9:$K$30,8,0)+VLOOKUP($I18,'Příloha_8_Ceník pravid_úklidu'!$A$9:$K$30,10,0),"neoceňuje se") -> 0 | AG18: 0 | AH18: 0
A19: .012 | B19: 137400 | D19: šatna sester | E19: 17.89 | H19: =IF(ISBLANK(I19)," ",VLOOKUP(I19,'[6]Příloha_8_Ceník pravid_úklidu'!$A$9:$B$30,2,0)) -> KANC | I19: 4 | J19: 2x;Po-Pá | K19: 1 | L19: 0.4 | M19: 0 | N19: 0 | O19: =IF(ISBLANK($K19),"",'[6]Pracovní dny'!$F$2) -> 252 | P19: =IF(ISBLANK($M19),"",'[6]Pracovní dny'!$F$3) -> 114 | Q19: =IF(ISBLANK($K19),"",'[6]Pracovní dny'!$F$4) -> 365 | R19: 100.8 | S19: 24 | T19: XX | U19: N | V19: 4.4 | W19: 1 | X19: 0 | Y19: 2.2 | Z19: 1 | AA19: 8.8 | AB19: PL | AC19: 0 | AD19: OM | AF19: =IF(ISBLANK($AE19),VLOOKUP($I19,'Příloha_8_Ceník pravid_úklidu'!$A$9:$K$30,8,0)+VLOOKUP($I19,'Příloha_8_Ceník pravid_úklidu'!$A$9:$K$30,10,0),"neoceňuje se") -> 0 | AG19: 0 | AH19: 0
A20: .013 | B20: 137400 | D20: předsín wc - pacientky | E20: 3.29 | H20: =IF(ISBLANK(I20)," ",VLOOKUP(I20,'[6]Příloha_8_Ceník pravid_úklidu'!$A$9:$B$30,2,0)) -> TOAL | I20: 7 | J20: 1x (5x;Po-Pá) | K20: 1 | L20: 1 | M20: 0 | N20: 0 | O20: =IF(ISBLANK($K20),"",'[6]Pracovní dny'!$F$2) -> 252 | P20: =IF(ISBLANK($M20),"",'[6]Pracovní dny'!$F$3) -> 114 | Q20: =IF(ISBLANK($K20),"",'[6]Pracovní dny'!$F$4) -> 365 | R20: 252 | S20: 4.6 | T20: 0 | U20: X | V20: 4.8 | W20: 2 | X20: 0 | Y20: 0 | Z20: 0 | AA20: 0 | AB20: 0 | AC20: 0 | AD20: OM | AF20: =IF(ISBLANK($AE20),VLOOKUP($I20,'Příloha_8_Ceník pravid_úklidu'!$A$9:$K$30,8,0)+VLOOKUP($I20,'Příloha_8_Ceník pravid_úklidu'!$A$9:$K$30,10,0),"neoceňuje se") -> 0 | AG20: 0 | AH20: 0
A21: .014 | B21: 137400 | D21: box wc- pacientky | E21: 1.21 | H21: =IF(ISBLANK(I21)," ",VLOOKUP(I21,'[6]Příloha_8_Ceník pravid_úklidu'!$A$9:$B$30,2,0)) -> TOAL | I21: 7 | J21: 1x (5x;Po-Pá) | K21: 1 | L21: 1 | M21: 0 | N21: 0 | O21: =IF(ISBLANK($K21),"",'[6]Pracovní dny'!$F$2) -> 252 | P21: =IF(ISBLANK($M21),"",'[6]Pracovní dny'!$F$3) -> 114 | Q21: =IF(ISBLANK($K21),"",'[6]Pracovní dny'!$F$4) -> 365 | R21: 252 | S21: 4.6 | T21: 0 | U21: X | V21: 4.8 | W21: 2 | X21: 0 | Y21: 0 | Z21: 0 | AA21: 0 | AB21: 0 | AC21: 0 | AD21: OM | AF21: =IF(ISBLANK($AE21),VLOOKUP($I21,'Příloha_8_Ceník pravid_úklidu'!$A$9:$K$30,8,0)+VLOOKUP($I21,'Příloha_8_Ceník pravid_úklidu'!$A$9:$K$30,10,0),"neoceňuje se") -> 0 | AG21: 0 | AH21: 0
A22: .015 | B22: 137400 | D22: box wc- pacientky | E22: 0.93 | H22: =IF(ISBLANK(I22)," ",VLOOKUP(I22,'[6]Příloha_8_Ceník pravid_úklidu'!$A$9:$B$30,2,0)) -> TOAL | I22: 7 | J22: 1x (5x;Po-Pá) | K22: 1 | L22: 1 | M22: 0 | N22: 0 | O22: =IF(ISBLANK($K22),"",'[6]Pracovní dny'!$F$2) -> 252 | P22: =IF(ISBLANK($M22),"",'[6]Pracovní dny'!$F$3) -> 114 | Q22: =IF(ISBLANK($K22),"",'[6]Pracovní dny'!$F$4) -> 365 | R22: 252 | S22: 0 | T22: XX | U22: X | V22: 3.6 | W22: 1 | X22: 0 | Y22: 0 | Z22: 0 | AA22: 0 | AB22: 0 | AC22: 0 | AD22: OM | AF22: =IF(ISBLANK($AE22),VLOOKUP($I22,'Příloha_8_Ceník pravid_úklidu'!$A$9:$K$30,8,0)+VLOOKUP($I22,'Příloha_8_Ceník pravid_úklidu'!$A$9:$K$30,10,0),"neoceňuje se") -> 0 | AG22: 0 | AH22: 0
A23: .016 | B23: 137400 | D23: předsín wc pacienti | E23: 3.21 | H23: =IF(ISBLANK(I23)," ",VLOOKUP(I23,'[6]Příloha_8_Ceník pravid_úklidu'!$A$9:$B$30,2,0)) -> TOAL | I23: 7 | J23: 1x (5x;Po-Pá) | K23: 1 | L23: 1 | M23: 0 | N23: 0 | O23: =IF(ISBLANK($K23),"",'[6]Pracovní dny'!$F$2) -> 252 | P23: =IF(ISBLANK($M23),"",'[6]Pracovní dny'!$F$3) -> 114 | Q23: =IF(ISBLANK($K23),"",'[6]Pracovní dny'!$F$4) -> 365 | R23: 252 | S23: XX | T23: XX | U23: X | V23: 3.6 | W23: 1 | X23: 0 | Y23: 2.2 | Z23: 1 | AA23: 8.8 | AB23: PL | AC23: 0 | AD23: OM | AF23: =IF(ISBLANK($AE23),VLOOKUP($I23,'Příloha_8_Ceník pravid_úklidu'!$A$9:$K$30,8,0)+VLOOKUP($I23,'Příloha_8_Ceník pravid_úklidu'!$A$9:$K$30,10,0),"neoceňuje se") -> 0 | AG23: 0 | AH23: 0
A24: .017 | B24: 137400 | D24: box wc - pacienti | E24: 1.09 | H24: =IF(ISBLANK(I24)," ",VLOOKUP(I24,'[6]Příloha_8_Ceník pravid_úklidu'!$A$9:$B$30,2,0)) -> TOAL | I24: 7 | J24: 1x (5x;Po-Pá) | K24: 1 | L24: 1 | M24: 0 | N24: 0 | O24: =IF(ISBLANK($K24),"",'[6]Pracovní dny'!$F$2) -> 252 | P24: =IF(ISBLANK($M24),"",'[6]Pracovní dny'!$F$3) -> 114 | Q24: =IF(ISBLANK($K24),"",'[6]Pracovní dny'!$F$4) -> 365 | R24: 252 | S24: 12.5 | T24: 0 | U24: X | V24: 8 | W24: 2 | X24: 2 | Y24: 0 | Z24: 0 | AA24: 0 | AB24: 0 | AC24: 0 | AD24: OM | AF24: =IF(ISBLANK($AE24),VLOOKUP($I24,'Příloha_8_Ceník pravid_úklidu'!$A$9:$K$30,8,0)+VLOOKUP($I24,'Příloha_8_Ceník pravid_úklidu'!$A$9:$K$30,10,0),"neoceňuje se") -> 0 | AG24: 0 | AH24: 0
A25: .018 | B25: 137400 | D25: box wc - pacienti | E25: 0.99 | H25: =IF(ISBLANK(I25)," ",VLOOKUP(I25,'[6]Příloha_8_Ceník pravid_úklidu'!$A$9:$B$30,2,0)) -> TOAL | I25: 7 | J25: 1x (5x;Po-Pá) | K25: 1 | L25: 1 | M25: 0 | N25: 0 | O25: =IF(ISBLANK($K25),"",'[6]Pracovní dny'!$F$2) -> 252 | P25: =IF(ISBLANK($M25),"",'[6]Pracovní dny'!$F$3) -> 114 | Q25: =IF(ISBLANK($K25),"",'[6]Pracovní dny'!$F$4) -> 365 | R25: 252 | T25: 0 | U25: X | V25: 6.4 | W25: 2 | X25: 1 | Y25: 2.2 | Z25: 2 | AA25: 17.6 | AB25: PL | AC25: 0 | AD25: OM | AF25: =IF(ISBLANK($AE25),VLOOKUP($I25,'Příloha_8_Ceník pravid_úklidu'!$A$9:$K$30,8,0)+VLOOKUP($I25,'Příloha_8_Ceník pravid_úklidu'!$A$9:$K$30,10,0),"neoceňuje se") -> 0 | AG25: 0 | AH25: 0
A26: .019 | D26: denní místnost DZS | G26: 18 | H26: =IF(ISBLANK(I26)," ",VLOOKUP(I26,'[6]Příloha_8_Ceník pravid_úklidu'!$A$9:$B$30,2,0)) -> KANC | I26: 4 | J26: není předmětem | O26: =IF(ISBLANK($K26),"",'[6]Pracovní dny'!$F$2) ->  | P26: =IF(ISBLANK($M26),"",'[6]Pracovní dny'!$F$3) ->  | Q26: =IF(ISBLANK($K26),"",'[6]Pracovní dny'!$F$4) ->  | S26: XX | T26: XX | U26: N | V26: 4.4 | W26: 1 | X26: 1 | Z26: 1 | AB26: PL | AC26: 0 | AD26: OM | AE26: X | AF26: =IF(ISBLANK($AE26),VLOOKUP($I26,'Příloha_8_Ceník pravid_úklidu'!$A$9:$K$30,8,0)+VLOOKUP($I26,'Příloha_8_Ceník pravid_úklidu'!$A$9:$K$30,10,0),"neoceňuje se") -> neoceňuje se | AG26: 0 | AH26: 0
A27: .020 | D27: ZDS | G27: 1.4 | H27: =IF(ISBLANK(I27)," ",VLOOKUP(I27,'[6]Příloha_8_Ceník pravid_úklidu'!$A$9:$B$30,2,0)) ->  | J27: není předmětem | O27: =IF(ISBLANK($K27),"",'[6]Pracovní dny'!$F$2) ->  | P27: =IF(ISBLANK($M27),"",'[6]Pracovní dny'!$F$3) ->  | Q27: =IF(ISBLANK($K27),"",'[6]Pracovní dny'!$F$4) ->  | S27: 4.6 | T27: 0 | U27: X | V27: 4.8 | W27: 2 | X27: 0 | Y27: 0 | Z27: 0 | AA27: 0 | AB27: 0 | AC27: 0 | AD27: OM | AE27: X | AF27: =IF(ISBLANK($AE27),VLOOKUP($I27,'Příloha_8_Ceník pravid_úklidu'!$A$9:$K$30,8,0)+VLOOKUP($I27,'Příloha_8_Ceník pravid_úklidu'!$A$9:$K$30,10,0),"neoceňuje se") -> neoceňuje se | AG27: 0 | AH27: 0
A28: .021 | D28: ZDS | G28: 2 | H28: =IF(ISBLANK(I28)," ",VLOOKUP(I28,'[6]Příloha_8_Ceník pravid_úklidu'!$A$9:$B$30,2,0)) ->  | J28: není předmětem | O28: =IF(ISBLANK($K28),"",'[6]Pracovní dny'!$F$2) ->  | P28: =IF(ISBLANK($M28),"",'[6]Pracovní dny'!$F$3) ->  | Q28: =IF(ISBLANK($K28),"",'[6]Pracovní dny'!$F$4) ->  | S28: 4.6 | T28: 0 | U28: X | V28: 4.8 | W28: 2 | X28: 0 | Y28: 0 | Z28: 0 | AA28: 0 | AB28: 0 | AC28: 0 | AD28: OM | AE28: X | AF28: =IF(ISBLANK($AE28),VLOOKUP($I28,'Příloha_8_Ceník pravid_úklidu'!$A$9:$K$30,8,0)+VLOOKUP($I28,'Příloha_8_Ceník pravid_úklidu'!$A$9:$K$30,10,0),"neoceňuje se") -> neoceňuje se | AG28: 0 | AH28: 0
A29: .022 | B29: 141400 | D29: šatna KACHT | E29: 26 | H29: =IF(ISBLANK(I29)," ",VLOOKUP(I29,'[6]Příloha_8_Ceník pravid_úklidu'!$A$9:$B$30,2,0)) -> SATN | I29: 10 | J29: 2x;Po-Pá | K29: 1 | L29: 0.4 | M29: 0 | N29: 0 | O29: =IF(ISBLANK($K29),"",'[6]Pracovní dny'!$F$2) -> 252 | P29: =IF(ISBLANK($M29),"",'[6]Pracovní dny'!$F$3) -> 114 | Q29: =IF(ISBLANK($K29),"",'[6]Pracovní dny'!$F$4) -> 365 | R29: 100.8 | S29: 31 | T29: 0 | U29: ZN | V29: 4.4 | W29: 4 | X29: 1 | Y29: 2.2 | Z29: 1 | AA29: 8.8 | AB29: ŠPAL | AC29: 0 | AD29: OM | AF29: =IF(ISBLANK($AE29),VLOOKUP($I29,'Příloha_8_Ceník pravid_úklidu'!$A$9:$K$30,8,0)+VLOOKUP($I29,'Příloha_8_Ceník pravid_úklidu'!$A$9:$K$30,10,0),"neoceňuje se") -> 0 | AG29: 0 | AH29: 0
A30: .023 | B30: 141400 | D30: očista | E30: 27.5 | H30: =IF(ISBLANK(I30)," ",VLOOKUP(I30,'[6]Příloha_8_Ceník pravid_úklidu'!$A$9:$B$30,2,0)) -> TOAL | I30: 7 | J30: 2x;Po-Pá | K30: 1 | L30: 0.4 | M30: 0 | N30: 0 | O30: =IF(ISBLANK($K30),"",'[6]Pracovní dny'!$F$2) -> 252 | P30: =IF(ISBLANK($M30),"",'[6]Pracovní dny'!$F$3) -> 114 | Q30: =IF(ISBLANK($K30),"",'[6]Pracovní dny'!$F$4) -> 365 | R30: 100.8 | S30: 16 | T30: 0 | U30: ZN | V30: 4.4 | W30: 1 | X30: 2 | Y30: 2.2 | Z30: 1 | AA30: 8.8 | AB30: ŠPAL | AC30: 0 | AD30: OM | AF30: =IF(ISBLANK($AE30),VLOOKUP($I30,'Příloha_8_Ceník pravid_úklidu'!$A$9:$K$30,8,0)+VLOOKUP($I30,'Příloha_8_Ceník pravid_úklidu'!$A$9:$K$30,10,0),"neoceňuje se") -> 0 | AG30: 0 | AH30: 0
A31: .024 | B31: 141400 | D31: DM sanitáři | E31: 17.4 | H31: =IF(ISBLANK(I31)," ",VLOOKUP(I31,'[6]Příloha_8_Ceník pravid_úklidu'!$A$9:$B$30,2,0)) -> KANC | I31: 4 | J31: 2x;Po-Pá | K31: 1 | L31: 0.4 | M31: 0 | N31: 0 | O31: =IF(ISBLANK($K31),"",'[6]Pracovní dny'!$F$2) -> 252 | P31: =IF(ISBLANK($M31),"",'[6]Pracovní dny'!$F$3) -> 114 | Q31: =IF(ISBLANK($K31),"",'[6]Pracovní dny'!$F$4) -> 365 | R31: 100.8 | S31: 21 | T31: 0 | U31: N | V31: 3.2 | W31: 1 | X31: 0 | Y31: 2.2 | Z31: 1 | AA31: 8.8 | AB31: ŠPAL | AC31: 0 | AD31: OM | AF31: =IF(ISBLANK($AE31),VLOOKUP($I31,'Příloha_8_Ceník pravid_úklidu'!$A$9:$K$30,8,0)+VLOOKUP($I31,'Příloha_8_Ceník pravid_úklidu'!$A$9:$K$30,10,0),"neoceňuje se") -> 0 | AG31: 0 | AH31: 0
A32: .025 | B32: 160600 | D32: DM sanitáři OS | E32: 25 | H32: =IF(ISBLANK(I32)," ",VLOOKUP(I32,'[6]Příloha_8_Ceník pravid_úklidu'!$A$9:$B$30,2,0)) -> KANC | I32: 4 | J32: 2x;Po-Pá | K32: 1 | L32: 0.4 | M32: 0 | N32: 0 | O32: =IF(ISBLANK($K32),"",'[6]Pracovní dny'!$F$2) -> 252 | P32: =IF(ISBLANK($M32),"",'[6]Pracovní dny'!$F$3) -> 114 | Q32: =IF(ISBLANK($K32),"",'[6]Pracovní dny'!$F$4) -> 365 | R32: 100.8 | S32: 0 | T32: 0 | U32: N | V32: 3.2 | W32: 1 | X32: 0 | Y32: 0.9 | Z32: 1 | AA32: 3.6 | AB32: ŠPAL | AC32: 0 | AD32: OM | AF32: =IF(ISBLANK($AE32),VLOOKUP($I32,'Příloha_8_Ceník pravid_úklidu'!$A$9:$K$30,8,0)+VLOOKUP($I32,'Příloha_8_Ceník pravid_úklidu'!$A$9:$K$30,10,0),"neoceňuje se") -> 0 | AG32: 0 | AH32: 0
A33: .026 | D33: sklad | G33: 17 | H33: =IF(ISBLANK(I33)," ",VLOOKUP(I33,'[6]Příloha_8_Ceník pravid_úklidu'!$A$9:$B$30,2,0)) -> SKLA | I33: 17 | J33: není předmětem | O33: =IF(ISBLANK($K33),"",'[6]Pracovní dny'!$F$2) ->  | P33: =IF(ISBLANK($M33),"",'[6]Pracovní dny'!$F$3) ->  | Q33: =IF(ISBLANK($K33),"",'[6]Pracovní dny'!$F$4) ->  | S33: 1 | T33: 0 | U33: N | V33: 3.2 | W33: 2 | X33: 1 | Y33: 0.9 | Z33: 2 | AA33: 7.2 | AB33: ŠPAL | AC33: 0 | AD33: OM | AE33: X | AF33: =IF(ISBLANK($AE33),VLOOKUP($I33,'Příloha_8_Ceník pravid_úklidu'!$A$9:$K$30,8,0)+VLOOKUP($I33,'Příloha_8_Ceník pravid_úklidu'!$A$9:$K$30,10,0),"neoceňuje se") -> neoceňuje se | AG33: 0 | AH33: 0
A34: .027 | D34: šatna úklid | G34: 20 | H34: =IF(ISBLANK(I34)," ",VLOOKUP(I34,'[6]Příloha_8_Ceník pravid_úklidu'!$A$9:$B$30,2,0)) -> SATN | I34: 10 | J34: není předmětem | K34: 0 | L34: 0 | M34: 0 | N34: 0 | O34: =IF(ISBLANK($K34),"",'[6]Pracovní dny'!$F$2) -> 252 | P34: =IF(ISBLANK($M34),"",'[6]Pracovní dny'!$F$3) -> 114 | Q34: =IF(ISBLANK($K34),"",'[6]Pracovní dny'!$F$4) -> 365 | R34: 0 | S34: 0 | T34: 0 | U34: X | V34: 3.2 | W34: 1 | X34: 0 | Y34: 0.5 | Z34: 2 | AA34: 4 | AB34: ŠPAL | AC34: 0 | AF34: =IF(ISBLANK($AE34),VLOOKUP($I34,'Příloha_8_Ceník pravid_úklidu'!$A$9:$K$30,8,0)+VLOOKUP($I34,'Příloha_8_Ceník pravid_úklidu'!$A$9:$K$30,10,0),"neoceňuje se") -> 0 | AG34: 0 | AH34: 0
A35: .028 | B35: 160600 | D35: wc sanitáři OS | E35: 2.3 | H35: =IF(ISBLANK(I35)," ",VLOOKUP(I35,'[6]Příloha_8_Ceník pravid_úklidu'!$A$9:$B$30,2,0)) -> TOAL | I35: 7 | J35: 2x;Po-Pá | K35: 1 | L35: 0.4 | M35: 0 | N35: 0 | O35: =IF(ISBLANK($K35),"",'[6]Pracovní dny'!$F$2) -> 252 | P35: =IF(ISBLANK($M35),"",'[6]Pracovní dny'!$F$3) -> 114 | Q35: =IF(ISBLANK($K35),"",'[6]Pracovní dny'!$F$4) -> 365 | R35: 100.8 | S35: 18.5 | T35: 0 | U35: 0 | V35: 7.2 | W35: 3 | X35: 4 | Y35: 0.5 | Z35: 1 | AA35: 2 | AB35: ŠPAL | AC35: 0 | AD35: OM | AF35: =IF(ISBLANK($AE35),VLOOKUP($I35,'Příloha_8_Ceník pravid_úklidu'!$A$9:$K$30,8,0)+VLOOKUP($I35,'Příloha_8_Ceník pravid_úklidu'!$A$9:$K$30,10,0),"neoceňuje se") -> 0 | AG35: 0 | AH35: 0
B36: 160600 | D36: WC úklid OS | E36: 2.3 | H36: =IF(ISBLANK(I36)," ",VLOOKUP(I36,'[6]Příloha_8_Ceník pravid_úklidu'!$A$9:$B$30,2,0)) -> TOAL | I36: 7 | J36: 2xpo-pá | K36: 1 | L36: 0.4 | M36: 0 | N36: 0 | O36: =IF(ISBLANK($K36),"",'[6]Pracovní dny'!$F$2) -> 252 | P36: =IF(ISBLANK($M36),"",'[6]Pracovní dny'!$F$3) -> 114 | Q36: =IF(ISBLANK($K36),"",'[6]Pracovní dny'!$F$4) -> 365 | R36: 100.8 | S36: 0 | T36: 0 | U36: 0 | V36: 5.2 | W36: 3 | X36: 4 | Y36: 0.5 | Z36: 1 | AA36: 1 | AB36: SPAL | AF36: =IF(ISBLANK($AE36),VLOOKUP($I36,'Příloha_8_Ceník pravid_úklidu'!$A$9:$K$30,8,0)+VLOOKUP($I36,'Příloha_8_Ceník pravid_úklidu'!$A$9:$K$30,10,0),"neoceňuje se") -> 0 | AG36: 0 | AH36: 0
A37: .029 | B37: 160600 | D37: wc sprcha OS | E37: 5.3 | H37: =IF(ISBLANK(I37)," ",VLOOKUP(I37,'[6]Příloha_8_Ceník pravid_úklidu'!$A$9:$B$30,2,0)) -> TOAL | I37: 7 | J37: 2x;Po-Pá | K37: 1 | L37: 0.4 | M37: 0 | N37: 0 | O37: =IF(ISBLANK($K37),"",'[6]Pracovní dny'!$F$2) -> 252 | P37: =IF(ISBLANK($M37),"",'[6]Pracovní dny'!$F$3) -> 114 | Q37: =IF(ISBLANK($K37),"",'[6]Pracovní dny'!$F$4) -> 365 | R37: 100.8 | S37: 18.5 | T37: 0 | U37: 0 | V37: 7.2 | W37: 3 | X37: 4 | Y37: 0 | Z37: 0 | AA37: 0 | AB37: 0 | AC37: 0 | AD37: OM | AF37: =IF(ISBLANK($AE37),VLOOKUP($I37,'Příloha_8_Ceník pravid_úklidu'!$A$9:$K$30,8,0)+VLOOKUP($I37,'Příloha_8_Ceník pravid_úklidu'!$A$9:$K$30,10,0),"neoceňuje se") -> 0 | AG37: 0 | AH37: 0
A38: .030 | B38: 162600/131100/160600/132100/137100/132400/131400/137400 | D38: chodba | E38: 168 | H38: =IF(ISBLANK(I38)," ",VLOOKUP(I38,'[6]Příloha_8_Ceník pravid_úklidu'!$A$9:$B$30,2,0)) -> CHOD | I38: 6 | J38: 1x(7xpo-ne) | K38: 1 | L38: 1 | M38: 1 | N38: 1 | O38: =IF(ISBLANK($K38),"",'[6]Pracovní dny'!$F$2) -> 252 | P38: =IF(ISBLANK($M38),"",'[6]Pracovní dny'!$F$3) -> 114 | Q38: =IF(ISBLANK($K38),"",'[6]Pracovní dny'!$F$4) -> 365 | R38: 366 | S38: 156 | T38: 0 | U38: N | V38: 10.4 | W38: 2 | X38: 0 | Y38: 1,2/1,9 | Z38: 5 | AA38: 29.6 | AB38: ŠPAL | AC38: 0 | AD38: OM | AF38: =IF(ISBLANK($AE38),VLOOKUP($I38,'Příloha_8_Ceník pravid_úklidu'!$A$9:$K$30,8,0)+VLOOKUP($I38,'Příloha_8_Ceník pravid_úklidu'!$A$9:$K$30,10,0),"neoceňuje se") -> 0 | AG38: 0 | AH38: 0
A39: .031 | B39: 162600/131100/160600/132100/137100/132400/131400/137400 | D39: schodiště | E39: 24.1 | H39: =IF(ISBLANK(I39)," ",VLOOKUP(I39,'[6]Příloha_8_Ceník pravid_úklidu'!$A$9:$B$30,2,0)) -> SCHO | I39: 8 | J39: 1x(7xpo-ne) | K39: 1 | L39: 1 | M39: 1 | N39: 1 | O39: =IF(ISBLANK($K39),"",'[6]Pracovní dny'!$F$2) -> 252 | P39: =IF(ISBLANK($M39),"",'[6]Pracovní dny'!$F$3) -> 114 | Q39: =IF(ISBLANK($K39),"",'[6]Pracovní dny'!$F$4) -> 365 | R39: 366 | S39: 0 | T39: 0 | U39: 0 | V39: 0 | W39: 0 | X39: 0 | Y39: 0 | Z39: 0 | AA39: 0 | AB39: 0 | AC39: 0 | AD39: OM | AF39: =IF(ISBLANK($AE39),VLOOKUP($I39,'Příloha_8_Ceník pravid_úklidu'!$A$9:$K$30,8,0)+VLOOKUP($I39,'Příloha_8_Ceník pravid_úklidu'!$A$9:$K$30,10,0),"neoceňuje se") -> 0 | AG39: 0 | AH39: 0
A40: .032 | B40: 162600/131100/160600/132100/137100/132400/131400/137400 | D40: chodba | E40: 2.8 | H40: =IF(ISBLANK(I40)," ",VLOOKUP(I40,'[6]Příloha_8_Ceník pravid_úklidu'!$A$9:$B$30,2,0)) -> CHOD | I40: 6 | J40: 1x(5xpo-pá) | K40: 1 | L40: 1 | M40: 0 | N40: 0 | O40: =IF(ISBLANK($K40),"",'[6]Pracovní dny'!$F$2) -> 252 | P40: =IF(ISBLANK($M40),"",'[6]Pracovní dny'!$F$3) -> 114 | Q40: =IF(ISBLANK($K40),"",'[6]Pracovní dny'!$F$4) -> 365 | R40: 252 | S40: XX | T40: XX | U40: X | V40: 2.8 | W40: 1 | X40: 0 | Y40: 0.5 | Z40: 1 | AA40: 2 | AB40: ŠPAL | AC40: 0 | AD40: OM | AF40: =IF(ISBLANK($AE40),VLOOKUP($I40,'Příloha_8_Ceník pravid_úklidu'!$A$9:$K$30,8,0)+VLOOKUP($I40,'Příloha_8_Ceník pravid_úklidu'!$A$9:$K$30,10,0),"neoceňuje se") -> 0 | AG40: 0 | AH40: 0
A41: .033 | B41: 160600 | D41: sklad COS spisovna | E41: 13 | H41: =IF(ISBLANK(I41)," ",VLOOKUP(I41,'[6]Příloha_8_Ceník pravid_úklidu'!$A$9:$B$30,2,0)) -> SKLA | I41: 17 | J41: 1xpo-pá | K41: 1 | L41: 0.2 | M41: 0 | N41: 0 | O41: =IF(ISBLANK($K41),"",'[6]Pracovní dny'!$F$2) -> 252 | P41: =IF(ISBLANK($M41),"",'[6]Pracovní dny'!$F$3) -> 114 | Q41: =IF(ISBLANK($K41),"",'[6]Pracovní dny'!$F$4) -> 365 | R41: 50.4 | S41: XX | T41: XX | U41: X | V41: 2.8 | W41: 1 | X41: 0 | Y41: 0.5 | Z41: 1 | AA41: 2 | AB41: ŠPAL | AC41: 0 | AD41: OM | AF41: =IF(ISBLANK($AE41),VLOOKUP($I41,'Příloha_8_Ceník pravid_úklidu'!$A$9:$K$30,8,0)+VLOOKUP($I41,'Příloha_8_Ceník pravid_úklidu'!$A$9:$K$30,10,0),"neoceňuje se") -> 0 | AG41: 0 | AH41: 0
A42: .034 | B42: 160600 | D42: sklad COS | E42: 18.9 | H42: =IF(ISBLANK(I42)," ",VLOOKUP(I42,'[6]Příloha_8_Ceník pravid_úklidu'!$A$9:$B$30,2,0)) -> SKLA | I42: 17 | J42: 1xpo-pá | K42: 1 | L42: 0.2 | M42: 0 | N42: 0 | O42: =IF(ISBLANK($K42),"",'[6]Pracovní dny'!$F$2) -> 252 | P42: =IF(ISBLANK($M42),"",'[6]Pracovní dny'!$F$3) -> 114 | Q42: =IF(ISBLANK($K42),"",'[6]Pracovní dny'!$F$4) -> 365 | R42: 50.4 | S42: XX | T42: XX | U42: X | V42: 9.6 | W42: 1 | X42: 0 | Y42: 0 | Z42: 0 | AA42: 0 | AB42: 0 | AC42: 0 | AD42: OM | AF42: =IF(ISBLANK($AE42),VLOOKUP($I42,'Příloha_8_Ceník pravid_úklidu'!$A$9:$K$30,8,0)+VLOOKUP($I42,'Příloha_8_Ceník pravid_úklidu'!$A$9:$K$30,10,0),"neoceňuje se") -> 0 | AG42: 0 | AH42: 0
A43: .035 | B43: 156500 | D43: šatna Trnasfuzní oddělení | E43: 8 | H43: =IF(ISBLANK(I43)," ",VLOOKUP(I43,'[6]Příloha_8_Ceník pravid_úklidu'!$A$9:$B$30,2,0)) -> SATN | I43: 10 | J43: 2x;Po-Pá | K43: 1 | L43: 0.4 | M43: 0 | N43: 0 | O43: =IF(ISBLANK($K43),"",'[6]Pracovní dny'!$F$2) -> 252 | P43: =IF(ISBLANK($M43),"",'[6]Pracovní dny'!$F$3) -> 114 | Q43: =IF(ISBLANK($K43),"",'[6]Pracovní dny'!$F$4) -> 365 | R43: 100.8 | S43: XX | T43: XX | U43: X | V43: 6.4 | W43: 2 | X43: 0 | Y43: 0 | Z43: 0 | AA43: 0 | AB43: 0 | AC43: 0 | AD43: OM | AF43: =IF(ISBLANK($AE43),VLOOKUP($I43,'Příloha_8_Ceník pravid_úklidu'!$A$9:$K$30,8,0)+VLOOKUP($I43,'Příloha_8_Ceník pravid_úklidu'!$A$9:$K$30,10,0),"neoceňuje se") -> 0 | AG43: 0 | AH43: 0
A44: .036 | D44: technické zázemí | G44: 1.7 | H44: =IF(ISBLANK(I44)," ",VLOOKUP(I44,'[6]Příloha_8_Ceník pravid_úklidu'!$A$9:$B$30,2,0)) ->  | J44: není předmětem | O44: =IF(ISBLANK($K44),"",'[6]Pracovní dny'!$F$2) ->  | P44: =IF(ISBLANK($M44),"",'[6]Pracovní dny'!$F$3) ->  | Q44: =IF(ISBLANK($K44),"",'[6]Pracovní dny'!$F$4) ->  | S44: 0 | T44: 0 | U44: X | V44: 2.8 | W44: 1 | X44: 0 | Y44: 0 | Z44: 0 | AA44: 0 | AB44: 0 | AC44: 0 | AD44: OM | AE44: X | AF44: =IF(ISBLANK($AE44),VLOOKUP($I44,'Příloha_8_Ceník pravid_úklidu'!$A$9:$K$30,8,0)+VLOOKUP($I44,'Příloha_8_Ceník pravid_úklidu'!$A$9:$K$30,10,0),"neoceňuje se") -> neoceňuje se | AG44: 0 | AH44: 0
A45: .037 | D45: výtah | G45: 1.4 | H45: =IF(ISBLANK(I45)," ",VLOOKUP(I45,'[6]Příloha_8_Ceník pravid_úklidu'!$A$9:$B$30,2,0)) ->  | J45: započítat v 1.NP | O45: =IF(ISBLANK($K45),"",'[6]Pracovní dny'!$F$2) ->  | P45: =IF(ISBLANK($M45),"",'[6]Pracovní dny'!$F$3) ->  | Q45: =IF(ISBLANK($K45),"",'[6]Pracovní dny'!$F$4) ->  | S45: 0 | T45: 0 | U45: 10.5 | V45: 2.1 | W45: 1 | X45: 0 | Y45: 0 | Z45: 0 | AA45: 0 | AB45: 0 | AC45: 0 | AD45: VÝT | AE45: X | AF45: =IF(ISBLANK($AE45),VLOOKUP($I45,'Příloha_8_Ceník pravid_úklidu'!$A$9:$K$30,8,0)+VLOOKUP($I45,'Příloha_8_Ceník pravid_úklidu'!$A$9:$K$30,10,0),"neoceňuje se") -> neoceňuje se | AG45: 0 | AH45: 0
A46: .038 | B46: 162600/131100/160600/132100/137100/132400/131400/137400 | D46: chodba | E46: 102.6 | H46: =IF(ISBLANK(I46)," ",VLOOKUP(I46,'[6]Příloha_8_Ceník pravid_úklidu'!$A$9:$B$30,2,0)) -> CHOD | I46: 6 | J46: 1x(7xpo-ne) | K46: 1 | L46: 1 | M46: 1 | N46: 1 | O46: =IF(ISBLANK($K46),"",'[6]Pracovní dny'!$F$2) -> 252 | P46: =IF(ISBLANK($M46),"",'[6]Pracovní dny'!$F$3) -> 114 | Q46: =IF(ISBLANK($K46),"",'[6]Pracovní dny'!$F$4) -> 365 | R46: 366 | S46: 0 | T46: 0 | U46: 0 | V46: 0 | W46: 0 | X46: 0 | Y46: 0 | Z46: 0 | AA46: 0 | AB46: 0 | AC46: 0 | AD46: OM | AF46: =IF(ISBLANK($AE46),VLOOKUP($I46,'Příloha_8_Ceník pravid_úklidu'!$A$9:$K$30,8,0)+VLOOKUP($I46,'Příloha_8_Ceník pravid_úklidu'!$A$9:$K$30,10,0),"neoceňuje se") -> 0 | AG46: 0 | AH46: 0
A47: .039 | D47: technické zázemí | G47: 15 | H47: =IF(ISBLANK(I47)," ",VLOOKUP(I47,'[6]Příloha_8_Ceník pravid_úklidu'!$A$9:$B$30,2,0)) ->  | J47: není předmětem | O47: =IF(ISBLANK($K47),"",'[6]Pracovní dny'!$F$2) ->  | P47: =IF(ISBLANK($M47),"",'[6]Pracovní dny'!$F$3) ->  | Q47: =IF(ISBLANK($K47),"",'[6]Pracovní dny'!$F$4) ->  | S47: 0 | T47: 0 | U47: X | V47: 4.4 | W47: 1 | X47: 0 | Y47: 2.4 | Z47: 1 | AA47: 2.4 | AB47: SKLB | AC47: 0 | AD47: OM | AE47: X | AF47: =IF(ISBLANK($AE47),VLOOKUP($I47,'Příloha_8_Ceník pravid_úklidu'!$A$9:$K$30,8,0)+VLOOKUP($I47,'Příloha_8_Ceník pravid_úklidu'!$A$9:$K$30,10,0),"neoceňuje se") -> neoceňuje se | AG47: 0 | AH47: 0
A48: .040 | B48: 162600 | D48: denní místnost sterilizace | E48: 18.7 | H48: =IF(ISBLANK(I48)," ",VLOOKUP(I48,'[6]Příloha_8_Ceník pravid_úklidu'!$A$9:$B$30,2,0)) -> KANC | I48: 4 | J48: 2x;Po-Pá | K48: 1 | L48: 0.4 | M48: 0 | N48: 0 | O48: =IF(ISBLANK($K48),"",'[6]Pracovní dny'!$F$2) -> 252 | P48: =IF(ISBLANK($M48),"",'[6]Pracovní dny'!$F$3) -> 114 | Q48: =IF(ISBLANK($K48),"",'[6]Pracovní dny'!$F$4) -> 365 | R48: 100.8 | S48: 51 | T48: 0 | U48: R | V48: 4.4 | W48: 1 | X48: 0 | Y48: 6.9 | Z48: 1 | AA48: 27.6 | AB48: ŠPAL | AC48: 0 | AD48: OM | AF48: =IF(ISBLANK($AE48),VLOOKUP($I48,'Příloha_8_Ceník pravid_úklidu'!$A$9:$K$30,8,0)+VLOOKUP($I48,'Příloha_8_Ceník pravid_úklidu'!$A$9:$K$30,10,0),"neoceňuje se") -> 0 | AG48: 0 | AH48: 0
A49: .041 | B49: 160600 | D49: sklad CS rouškování | E49: 42.6 | H49: =IF(ISBLANK(I49)," ",VLOOKUP(I49,'[6]Příloha_8_Ceník pravid_úklidu'!$A$9:$B$30,2,0)) -> SKLA | I49: 17 | J49: 1xpo-pá | K49: 1 | L49: 0.2 | M49: 0 | N49: 0 | O49: =IF(ISBLANK($K49),"",'[6]Pracovní dny'!$F$2) -> 252 | P49: =IF(ISBLANK($M49),"",'[6]Pracovní dny'!$F$3) -> 114 | Q49: =IF(ISBLANK($K49),"",'[6]Pracovní dny'!$F$4) -> 365 | R49: 50.4 | S49: 46 | T49: 0 | U49: X | V49: 3.2 | W49: 1 | X49: 0 | Y49: 1.1 | Z49: 1 | AA49: 4.4 | AB49: ŠPAL | AC49: 0 | AD49: OM | AF49: =IF(ISBLANK($AE49),VLOOKUP($I49,'Příloha_8_Ceník pravid_úklidu'!$A$9:$K$30,8,0)+VLOOKUP($I49,'Příloha_8_Ceník pravid_úklidu'!$A$9:$K$30,10,0),"neoceňuje se") -> 0 | AG49: 0 | AH49: 0
D50: Sterilizační centrum | O50: =IF(ISBLANK($K50),"",'[6]Pracovní dny'!$F$2) ->  | P50: =IF(ISBLANK($M50),"",'[6]Pracovní dny'!$F$3) ->  | Q50: =IF(ISBLANK($K50),"",'[6]Pracovní dny'!$F$4) -> 
B51: 162600 | D51: filtr | E51: 11 | H51: =IF(ISBLANK(I51)," ",VLOOKUP(I51,'[6]Příloha_8_Ceník pravid_úklidu'!$A$9:$B$30,2,0)) -> STER | I51: 20 | J51: 1x(5xpo-pá) | K51: 1 | L51: 1 | M51: 0 | N51: 0 | O51: =IF(ISBLANK($K51),"",'[6]Pracovní dny'!$F$2) -> 252 | P51: =IF(ISBLANK($M51),"",'[6]Pracovní dny'!$F$3) -> 114 | Q51: =IF(ISBLANK($K51),"",'[6]Pracovní dny'!$F$4) -> 365 | R51: 252
A52: 110 | B52: 162600 | D52: sprcha | E52: 0.5 | H52: =IF(ISBLANK(I52)," ",VLOOKUP(I52,'[6]Příloha_8_Ceník pravid_úklidu'!$A$9:$B$30,2,0)) -> STER | I52: 20 | J52: 1x(5xpo-pá) | K52: 1 | L52: 1 | M52: 0 | N52: 0 | O52: =IF(ISBLANK($K52),"",'[6]Pracovní dny'!$F$2) -> 252 | P52: =IF(ISBLANK($M52),"",'[6]Pracovní dny'!$F$3) -> 114 | Q52: =IF(ISBLANK($K52),"",'[6]Pracovní dny'!$F$4) -> 365 | R52: 252
A53: 111.112 | B53: 162600 | D53: WC | E53: 5.5 | H53: =IF(ISBLANK(I53)," ",VLOOKUP(I53,'[6]Příloha_8_Ceník pravid_úklidu'!$A$9:$B$30,2,0)) -> STER | I53: 20 | J53: 1x(5xpo-pá) | K53: 1 | L53: 1 | M53: 0 | N53: 0 | O53: =IF(ISBLANK($K53),"",'[6]Pracovní dny'!$F$2) -> 252 | P53: =IF(ISBLANK($M53),"",'[6]Pracovní dny'!$F$3) -> 114 | Q53: =IF(ISBLANK($K53),"",'[6]Pracovní dny'!$F$4) -> 365 | R53: 252
B54: 162600 | D54: aseptická část rouškování | E54: 17.7 | H54: =IF(ISBLANK(I54)," ",VLOOKUP(I54,'[6]Příloha_8_Ceník pravid_úklidu'!$A$9:$B$30,2,0)) -> STER | I54: 20 | J54: 1x(5xpo-pá) | K54: 1 | L54: 1 | M54: 0 | N54: 0 | O54: =IF(ISBLANK($K54),"",'[6]Pracovní dny'!$F$2) -> 252 | P54: =IF(ISBLANK($M54),"",'[6]Pracovní dny'!$F$3) -> 114 | Q54: =IF(ISBLANK($K54),"",'[6]Pracovní dny'!$F$4) -> 365 | R54: 252
A55: 122 | B55: 162600 | D55: sterilizátor | E55: 38.5 | H55: =IF(ISBLANK(I55)," ",VLOOKUP(I55,'[6]Příloha_8_Ceník pravid_úklidu'!$A$9:$B$30,2,0)) -> STER | I55: 20 | J55: 1x(5xpo-pá) | K55: 1 | L55: 1 | M55: 0 | N55: 0 | O55: =IF(ISBLANK($K55),"",'[6]Pracovní dny'!$F$2) -> 252 | P55: =IF(ISBLANK($M55),"",'[6]Pracovní dny'!$F$3) -> 114 | Q55: =IF(ISBLANK($K55),"",'[6]Pracovní dny'!$F$4) -> 365 | R55: 252
A56: 113 | B56: 162600 | D56: u výtahu | E56: 5 | H56: =IF(ISBLANK(I56)," ",VLOOKUP(I56,'[6]Příloha_8_Ceník pravid_úklidu'!$A$9:$B$30,2,0)) -> STER | I56: 20 | J56: 1x(5xpo-pá) | K56: 1 | L56: 1 | M56: 0 | N56: 0 | O56: =IF(ISBLANK($K56),"",'[6]Pracovní dny'!$F$2) -> 252 | P56: =IF(ISBLANK($M56),"",'[6]Pracovní dny'!$F$3) -> 114 | Q56: =IF(ISBLANK($K56),"",'[6]Pracovní dny'!$F$4) -> 365 | R56: 252
A57: 116 | B57: 162600 | D57: GORO | E57: 6.2 | H57: =IF(ISBLANK(I57)," ",VLOOKUP(I57,'[6]Příloha_8_Ceník pravid_úklidu'!$A$9:$B$30,2,0)) -> STER | I57: 20 | J57: 1x(5xpo-pá) | K57: 1 | L57: 1 | M57: 0 | N57: 0 | O57: =IF(ISBLANK($K57),"",'[6]Pracovní dny'!$F$2) -> 252 | P57: =IF(ISBLANK($M57),"",'[6]Pracovní dny'!$F$3) -> 114 | Q57: =IF(ISBLANK($K57),"",'[6]Pracovní dny'!$F$4) -> 365 | R57: 252
A58: 119 | B58: 162600 | D58: mezoseptická část východ | E58: 14.2 | H58: =IF(ISBLANK(I58)," ",VLOOKUP(I58,'[6]Příloha_8_Ceník pravid_úklidu'!$A$9:$B$30,2,0)) -> STER | I58: 20 | J58: 1x(5xpo-pá) | K58: 1 | L58: 1 | M58: 0 | N58: 0 | O58: =IF(ISBLANK($K58),"",'[6]Pracovní dny'!$F$2) -> 252 | P58: =IF(ISBLANK($M58),"",'[6]Pracovní dny'!$F$3) -> 114 | Q58: =IF(ISBLANK($K58),"",'[6]Pracovní dny'!$F$4) -> 365 | R58: 252
A59: 121 | B59: 162600 | D59: přípravna | E59: 23.6 | H59: =IF(ISBLANK(I59)," ",VLOOKUP(I59,'[6]Příloha_8_Ceník pravid_úklidu'!$A$9:$B$30,2,0)) -> STER | I59: 20 | J59: 1x(5xpo-pá) | K59: 1 | L59: 1 | M59: 0 | N59: 0 | O59: =IF(ISBLANK($K59),"",'[6]Pracovní dny'!$F$2) -> 252 | P59: =IF(ISBLANK($M59),"",'[6]Pracovní dny'!$F$3) -> 114 | Q59: =IF(ISBLANK($K59),"",'[6]Pracovní dny'!$F$4) -> 365 | R59: 252
A60: 123 | B60: 162600 | D60: sterilizátor | E60: 17 | H60: =IF(ISBLANK(I60)," ",VLOOKUP(I60,'[6]Příloha_8_Ceník pravid_úklidu'!$A$9:$B$30,2,0)) -> STER | I60: 20 | J60: 1x(5xpo-pá) | K60: 1 | L60: 1 | M60: 0 | N60: 0 | O60: =IF(ISBLANK($K60),"",'[6]Pracovní dny'!$F$2) -> 252 | P60: =IF(ISBLANK($M60),"",'[6]Pracovní dny'!$F$3) -> 114 | Q60: =IF(ISBLANK($K60),"",'[6]Pracovní dny'!$F$4) -> 365 | R60: 252
A61: 108 | D61: úklidová místnost | G61: 3 | H61: =IF(ISBLANK(I61)," ",VLOOKUP(I61,'[6]Příloha_8_Ceník pravid_úklidu'!$A$9:$B$30,2,0)) ->  | J61: provádí zhotovitel na vlastní náklady | O61: =IF(ISBLANK($K61),"",'[6]Pracovní dny'!$F$2) ->  | P61: =IF(ISBLANK($M61),"",'[6]Pracovní dny'!$F$3) ->  | Q61: =IF(ISBLANK($K61),"",'[6]Pracovní dny'!$F$4) -> 
A62: 1.NADZEMNÍ PODLAŽÍ | O62: =IF(ISBLANK($K62),"",'[6]Pracovní dny'!$F$2) ->  | P62: =IF(ISBLANK($M62),"",'[6]Pracovní dny'!$F$3) ->  | Q62: =IF(ISBLANK($K62),"",'[6]Pracovní dny'!$F$4) -> 
D63: Režim operačních sálů | E63: STSL1:16 hod./pr. den, Po-Pá od 6,00 hod. do 18,00 hod. - doporučený počet pracovníků: 1 prac. od 6,00 hod. do 14,00 hod. a 1. prac. od 10,00 hod. do 18,00 hod.. | O63: =IF(ISBLANK($K63),"",'[6]Pracovní dny'!$F$2) ->  | P63: =IF(ISBLANK($M63),"",'[6]Pracovní dny'!$F$3) ->  | Q63: =IF(ISBLANK($K63),"",'[6]Pracovní dny'!$F$4) -> 
E64: STSL1: 12 hod./den, So-Ne od 6,00 hod. do 18,00 hod. - doporučený počet pracovníků 1 (úklid se provádí na všech operačních sálech PKN, kromě OS PG, porodních sálech a OS Urolog.) | O64: =IF(ISBLANK($K64),"",'[6]Pracovní dny'!$F$2) ->  | P64: =IF(ISBLANK($M64),"",'[6]Pracovní dny'!$F$3) ->  | Q64: =IF(ISBLANK($K64),"",'[6]Pracovní dny'!$F$4) -> 
B65: 160600 | E65: 16 | H65: =IF(ISBLANK(I65)," ",VLOOKUP(I65,'[6]Příloha_8_Ceník pravid_úklidu'!$A$9:$B$30,2,0)) -> STSL1 | I65: 5 | J65: Po-Pá, 6,00 - 18,00 hod. | K65: 1 | L65: 1 | M65: 0 | N65: 0 | O65: 252 | P65: 114 | Q65: 365 | R65: 252 | AF65: =IF(ISBLANK($AE65),VLOOKUP($I65,'Příloha_8_Ceník pravid_úklidu'!$A$9:$K$30,8,0)+VLOOKUP($I65,'Příloha_8_Ceník pravid_úklidu'!$A$9:$K$30,10,0),"neoceňuje se") -> 0 | AG65: =IF(AF65="neoceňuje se",0,$E65*$R65*$AF65) -> 0 | AH65: =$AG65*1.21 -> 0
B66: 160600/135600/134600/136600 | E66: 12 | H66: =IF(ISBLANK(I66)," ",VLOOKUP(I66,'[6]Příloha_8_Ceník pravid_úklidu'!$A$9:$B$30,2,0)) -> STSL1 | I66: 5 | J66: So-Ne, 6,00 - 18,00 hod. | K66: 0 | L66: 0 | M66: 1 | N66: 1 | O66: 252 | P66: 114 | Q66: 365 | R66: 114 | AF66: =IF(ISBLANK($AE66),VLOOKUP($I66,'Příloha_8_Ceník pravid_úklidu'!$A$9:$K$30,8,0)+VLOOKUP($I66,'Příloha_8_Ceník pravid_úklidu'!$A$9:$K$30,10,0),"neoceňuje se") -> 0 | AG66: 0 | AH66: 0
D67: výtah do CS aseptický | E67: 7.5 | H67: =IF(ISBLANK(I67)," ",VLOOKUP(I67,'[6]Příloha_8_Ceník pravid_úklidu'!$A$9:$B$30,2,0)) -> STSL1 | I67: 5 | J67: není předmětem | O67: =IF(ISBLANK($K67),"",'[6]Pracovní dny'!$F$2) ->  | P67: =IF(ISBLANK($M67),"",'[6]Pracovní dny'!$F$3) ->  | Q67: =IF(ISBLANK($K67),"",'[6]Pracovní dny'!$F$4) -> 
D68: výtahy 2x operanti | E68: 12.6 | H68: =IF(ISBLANK(I68)," ",VLOOKUP(I68,'[6]Příloha_8_Ceník pravid_úklidu'!$A$9:$B$30,2,0)) -> STSL1 | I68: 5 | J68: není předmětem | O68: =IF(ISBLANK($K68),"",'[6]Pracovní dny'!$F$2) ->  | P68: =IF(ISBLANK($M68),"",'[6]Pracovní dny'!$F$3) ->  | Q68: =IF(ISBLANK($K68),"",'[6]Pracovní dny'!$F$4) -> 
D69: chodba | E69: 31.33 | H69: =IF(ISBLANK(I69)," ",VLOOKUP(I69,'[6]Příloha_8_Ceník pravid_úklidu'!$A$9:$B$30,2,0)) -> STSL1 | I69: 5 | J69: není předmětem | O69: =IF(ISBLANK($K69),"",'[6]Pracovní dny'!$F$2) ->  | P69: =IF(ISBLANK($M69),"",'[6]Pracovní dny'!$F$3) ->  | Q69: =IF(ISBLANK($K69),"",'[6]Pracovní dny'!$F$4) -> 
D70: výtahy 2x operanti | E70: 16.27 | H70: =IF(ISBLANK(I70)," ",VLOOKUP(I70,'[6]Příloha_8_Ceník pravid_úklidu'!$A$9:$B$30,2,0)) -> STSL1 | I70: 5 | J70: není předmětem | O70: =IF(ISBLANK($K70),"",'[6]Pracovní dny'!$F$2) ->  | P70: =IF(ISBLANK($M70),"",'[6]Pracovní dny'!$F$3) ->  | Q70: =IF(ISBLANK($K70),"",'[6]Pracovní dny'!$F$4) -> 
A71: 107 | D71: sklad bomby | E71: 5.44 | H71: =IF(ISBLANK(I71)," ",VLOOKUP(I71,'[6]Příloha_8_Ceník pravid_úklidu'!$A$9:$B$30,2,0)) -> STSL1 | I71: 5 | J71: není předmětem | O71: =IF(ISBLANK($K71),"",'[6]Pracovní dny'!$F$2) ->  | P71: =IF(ISBLANK($M71),"",'[6]Pracovní dny'!$F$3) ->  | Q71: =IF(ISBLANK($K71),"",'[6]Pracovní dny'!$F$4) -> 
A72: 108 | D72: přesíň/filtr | E72: 3.51 | H72: =IF(ISBLANK(I72)," ",VLOOKUP(I72,'[6]Příloha_8_Ceník pravid_úklidu'!$A$9:$B$30,2,0)) -> STSL1 | I72: 5 | J72: není předmětem | O72: =IF(ISBLANK($K72),"",'[6]Pracovní dny'!$F$2) ->  | P72: =IF(ISBLANK($M72),"",'[6]Pracovní dny'!$F$3) ->  | Q72: =IF(ISBLANK($K72),"",'[6]Pracovní dny'!$F$4) -> 
A73: 110 | D73: filtr ženy | E73: 17.42 | H73: =IF(ISBLANK(I73)," ",VLOOKUP(I73,'[6]Příloha_8_Ceník pravid_úklidu'!$A$9:$B$30,2,0)) -> STSL1 | I73: 5 | J73: není předmětem | O73: =IF(ISBLANK($K73),"",'[6]Pracovní dny'!$F$2) ->  | P73: =IF(ISBLANK($M73),"",'[6]Pracovní dny'!$F$3) ->  | Q73: =IF(ISBLANK($K73),"",'[6]Pracovní dny'!$F$4) ->  | R73: =IF(AND(ISBLANK($K73),ISBLANK($M73)),"",$K73*$L73*$O73+$M73*$N73*$P73) -> 
A74: 109 | D74: filtr muži | E74: 11.19 | H74: =IF(ISBLANK(I74)," ",VLOOKUP(I74,'[6]Příloha_8_Ceník pravid_úklidu'!$A$9:$B$30,2,0)) -> STSL1 | I74: 5 | J74: není předmětem | O74: =IF(ISBLANK($K74),"",'[6]Pracovní dny'!$F$2) ->  | P74: =IF(ISBLANK($M74),"",'[6]Pracovní dny'!$F$3) ->  | Q74: =IF(ISBLANK($K74),"",'[6]Pracovní dny'!$F$4) -> 
A75: 111 | D75: filtr/návoz | E75: 8.84 | H75: =IF(ISBLANK(I75)," ",VLOOKUP(I75,'[6]Příloha_8_Ceník pravid_úklidu'!$A$9:$B$30,2,0)) -> STSL1 | I75: 5 | J75: není předmětem | O75: =IF(ISBLANK($K75),"",'[6]Pracovní dny'!$F$2) ->  | P75: =IF(ISBLANK($M75),"",'[6]Pracovní dny'!$F$3) ->  | Q75: =IF(ISBLANK($K75),"",'[6]Pracovní dny'!$F$4) -> 
A76: 112 | D76: odpad | E76: 6.41 | H76: =IF(ISBLANK(I76)," ",VLOOKUP(I76,'[6]Příloha_8_Ceník pravid_úklidu'!$A$9:$B$30,2,0)) -> STSL1 | I76: 5 | J76: není předmětem | O76: =IF(ISBLANK($K76),"",'[6]Pracovní dny'!$F$2) ->  | P76: =IF(ISBLANK($M76),"",'[6]Pracovní dny'!$F$3) ->  | Q76: =IF(ISBLANK($K76),"",'[6]Pracovní dny'!$F$4) -> 
D77: filtr u výtahu na CS | E77: 5.24 | H77: =IF(ISBLANK(I77)," ",VLOOKUP(I77,'[6]Příloha_8_Ceník pravid_úklidu'!$A$9:$B$30,2,0)) -> STSL1 | I77: 5 | J77: není předmětem | O77: =IF(ISBLANK($K77),"",'[6]Pracovní dny'!$F$2) ->  | P77: =IF(ISBLANK($M77),"",'[6]Pracovní dny'!$F$3) ->  | Q77: =IF(ISBLANK($K77),"",'[6]Pracovní dny'!$F$4) -> 
A78: 114 | D78: požární schodiště | E78: 18.5 | H78: =IF(ISBLANK(I78)," ",VLOOKUP(I78,'[6]Příloha_8_Ceník pravid_úklidu'!$A$9:$B$30,2,0)) -> STSL1 | I78: 5 | J78: není předmětem | O78: =IF(ISBLANK($K78),"",'[6]Pracovní dny'!$F$2) ->  | P78: =IF(ISBLANK($M78),"",'[6]Pracovní dny'!$F$3) ->  | Q78: =IF(ISBLANK($K78),"",'[6]Pracovní dny'!$F$4) -> 
A79: 115 | D79: chodba | E79: 106.67 | H79: =IF(ISBLANK(I79)," ",VLOOKUP(I79,'[6]Příloha_8_Ceník pravid_úklidu'!$A$9:$B$30,2,0)) -> STSL1 | I79: 5 | J79: není předmětem | O79: =IF(ISBLANK($K79),"",'[6]Pracovní dny'!$F$2) ->  | P79: =IF(ISBLANK($M79),"",'[6]Pracovní dny'!$F$3) ->  | Q79: =IF(ISBLANK($K79),"",'[6]Pracovní dny'!$F$4) -> 
A80: 116 | D80: el. rozvodna | E80: 6.69 | H80: =IF(ISBLANK(I80)," ",VLOOKUP(I80,'[6]Příloha_8_Ceník pravid_úklidu'!$A$9:$B$30,2,0)) -> STSL1 | I80: 5 | J80: není předmětem | O80: =IF(ISBLANK($K80),"",'[6]Pracovní dny'!$F$2) ->  | P80: =IF(ISBLANK($M80),"",'[6]Pracovní dny'!$F$3) ->  | Q80: =IF(ISBLANK($K80),"",'[6]Pracovní dny'!$F$4) -> 
A81: 117 | D81: přípravna anesteziloga | E81: 17.1 | H81: =IF(ISBLANK(I81)," ",VLOOKUP(I81,'[6]Příloha_8_Ceník pravid_úklidu'!$A$9:$B$30,2,0)) -> STSL1 | I81: 5 | J81: není předmětem | O81: =IF(ISBLANK($K81),"",'[6]Pracovní dny'!$F$2) ->  | P81: =IF(ISBLANK($M81),"",'[6]Pracovní dny'!$F$3) ->  | Q81: =IF(ISBLANK($K81),"",'[6]Pracovní dny'!$F$4) -> 
A82: 118 | D82: operační sál č. 1 | E82: 32.78 | H82: =IF(ISBLANK(I82)," ",VLOOKUP(I82,'[6]Příloha_8_Ceník pravid_úklidu'!$A$9:$B$30,2,0)) -> STSL1 | I82: 5 | J82: není předmětem | O82: =IF(ISBLANK($K82),"",'[6]Pracovní dny'!$F$2) ->  | P82: =IF(ISBLANK($M82),"",'[6]Pracovní dny'!$F$3) ->  | Q82: =IF(ISBLANK($K82),"",'[6]Pracovní dny'!$F$4) -> 
A83: 119 | D83: umývárna zdrav. Personálu | E83: 12.82 | H83: =IF(ISBLANK(I83)," ",VLOOKUP(I83,'[6]Příloha_8_Ceník pravid_úklidu'!$A$9:$B$30,2,0)) -> STSL1 | I83: 5 | J83: není předmětem | O83: =IF(ISBLANK($K83),"",'[6]Pracovní dny'!$F$2) ->  | P83: =IF(ISBLANK($M83),"",'[6]Pracovní dny'!$F$3) ->  | Q83: =IF(ISBLANK($K83),"",'[6]Pracovní dny'!$F$4) -> 
A84: 120 | D84: umývárna nástrojů | E84: 26.17 | H84: =IF(ISBLANK(I84)," ",VLOOKUP(I84,'[6]Příloha_8_Ceník pravid_úklidu'!$A$9:$B$30,2,0)) -> STSL1 | I84: 5 | J84: není předmětem | O84: =IF(ISBLANK($K84),"",'[6]Pracovní dny'!$F$2) ->  | P84: =IF(ISBLANK($M84),"",'[6]Pracovní dny'!$F$3) ->  | Q84: =IF(ISBLANK($K84),"",'[6]Pracovní dny'!$F$4) -> 
A85: 121 | D85: přípravna nástrojů/asept. sklad | E85: 12.83 | H85: =IF(ISBLANK(I85)," ",VLOOKUP(I85,'[6]Příloha_8_Ceník pravid_úklidu'!$A$9:$B$30,2,0)) -> STSL1 | I85: 5 | J85: není předmětem | O85: =IF(ISBLANK($K85),"",'[6]Pracovní dny'!$F$2) ->  | P85: =IF(ISBLANK($M85),"",'[6]Pracovní dny'!$F$3) ->  | Q85: =IF(ISBLANK($K85),"",'[6]Pracovní dny'!$F$4) -> 
A86: 122 | D86: sádrovna | E86: 20.91 | H86: =IF(ISBLANK(I86)," ",VLOOKUP(I86,'[6]Příloha_8_Ceník pravid_úklidu'!$A$9:$B$30,2,0)) -> STSL1 | I86: 5 | J86: není předmětem | O86: =IF(ISBLANK($K86),"",'[6]Pracovní dny'!$F$2) ->  | P86: =IF(ISBLANK($M86),"",'[6]Pracovní dny'!$F$3) ->  | Q86: =IF(ISBLANK($K86),"",'[6]Pracovní dny'!$F$4) -> 
A87: 123 | D87: sklad/rouškování | E87: 4.53 | H87: =IF(ISBLANK(I87)," ",VLOOKUP(I87,'[6]Příloha_8_Ceník pravid_úklidu'!$A$9:$B$30,2,0)) -> STSL1 | I87: 5 | J87: není předmětem | O87: =IF(ISBLANK($K87),"",'[6]Pracovní dny'!$F$2) ->  | P87: =IF(ISBLANK($M87),"",'[6]Pracovní dny'!$F$3) ->  | Q87: =IF(ISBLANK($K87),"",'[6]Pracovní dny'!$F$4) -> 
A88: 124 | D88: sklad/ARO | E88: 5.72 | H88: =IF(ISBLANK(I88)," ",VLOOKUP(I88,'[6]Příloha_8_Ceník pravid_úklidu'!$A$9:$B$30,2,0)) -> STSL1 | I88: 5 | J88: není předmětem | O88: =IF(ISBLANK($K88),"",'[6]Pracovní dny'!$F$2) ->  | P88: =IF(ISBLANK($M88),"",'[6]Pracovní dny'!$F$3) ->  | Q88: =IF(ISBLANK($K88),"",'[6]Pracovní dny'!$F$4) -> 
A89: 125 | D89: sklad/chodbička ARO | E89: 6.95 | H89: =IF(ISBLANK(I89)," ",VLOOKUP(I89,'[6]Příloha_8_Ceník pravid_úklidu'!$A$9:$B$30,2,0)) -> STSL1 | I89: 5 | J89: není předmětem | O89: =IF(ISBLANK($K89),"",'[6]Pracovní dny'!$F$2) ->  | P89: =IF(ISBLANK($M89),"",'[6]Pracovní dny'!$F$3) ->  | Q89: =IF(ISBLANK($K89),"",'[6]Pracovní dny'!$F$4) -> 
A90: 126 | D90: přípravna anesteziloga | E90: 16.79 | H90: =IF(ISBLANK(I90)," ",VLOOKUP(I90,'[6]Příloha_8_Ceník pravid_úklidu'!$A$9:$B$30,2,0)) -> STSL1 | I90: 5 | J90: není předmětem | O90: =IF(ISBLANK($K90),"",'[6]Pracovní dny'!$F$2) ->  | P90: =IF(ISBLANK($M90),"",'[6]Pracovní dny'!$F$3) ->  | Q90: =IF(ISBLANK($K90),"",'[6]Pracovní dny'!$F$4) -> 
A91: 127 | D91: operační sál č. 2 | E91: 32.38 | H91: =IF(ISBLANK(I91)," ",VLOOKUP(I91,'[6]Příloha_8_Ceník pravid_úklidu'!$A$9:$B$30,2,0)) -> STSL1 | I91: 5 | J91: není předmětem | O91: =IF(ISBLANK($K91),"",'[6]Pracovní dny'!$F$2) ->  | P91: =IF(ISBLANK($M91),"",'[6]Pracovní dny'!$F$3) ->  | Q91: =IF(ISBLANK($K91),"",'[6]Pracovní dny'!$F$4) -> 
A92: 128 | D92: umývárna zdrav. personálu | E92: 13 | H92: =IF(ISBLANK(I92)," ",VLOOKUP(I92,'[6]Příloha_8_Ceník pravid_úklidu'!$A$9:$B$30,2,0)) -> STSL1 | I92: 5 | J92: není předmětem | O92: =IF(ISBLANK($K92),"",'[6]Pracovní dny'!$F$2) ->  | P92: =IF(ISBLANK($M92),"",'[6]Pracovní dny'!$F$3) ->  | Q92: =IF(ISBLANK($K92),"",'[6]Pracovní dny'!$F$4) -> 
A93: 129 | D93: sklad odoperovaných tkání | E93: 5.91 | H93: =IF(ISBLANK(I93)," ",VLOOKUP(I93,'[6]Příloha_8_Ceník pravid_úklidu'!$A$9:$B$30,2,0)) -> STSL1 | I93: 5 | J93: není předmětem | O93: =IF(ISBLANK($K93),"",'[6]Pracovní dny'!$F$2) ->  | P93: =IF(ISBLANK($M93),"",'[6]Pracovní dny'!$F$3) ->  | Q93: =IF(ISBLANK($K93),"",'[6]Pracovní dny'!$F$4) -> 
A94: 130 | D94: sklad cévní | E94: 6.53 | H94: =IF(ISBLANK(I94)," ",VLOOKUP(I94,'[6]Příloha_8_Ceník pravid_úklidu'!$A$9:$B$30,2,0)) -> STSL1 | I94: 5 | J94: není předmětem | O94: =IF(ISBLANK($K94),"",'[6]Pracovní dny'!$F$2) ->  | P94: =IF(ISBLANK($M94),"",'[6]Pracovní dny'!$F$3) ->  | Q94: =IF(ISBLANK($K94),"",'[6]Pracovní dny'!$F$4) -> 
A95: 131 | D95: sklad CH | E95: 6.29 | H95: =IF(ISBLANK(I95)," ",VLOOKUP(I95,'[6]Příloha_8_Ceník pravid_úklidu'!$A$9:$B$30,2,0)) -> STSL1 | I95: 5 | J95: není předmětem | O95: =IF(ISBLANK($K95),"",'[6]Pracovní dny'!$F$2) ->  | P95: =IF(ISBLANK($M95),"",'[6]Pracovní dny'!$F$3) ->  | Q95: =IF(ISBLANK($K95),"",'[6]Pracovní dny'!$F$4) -> 
A96: 132 | D96: přesíň WC ženy | E96: 3.04 | H96: =IF(ISBLANK(I96)," ",VLOOKUP(I96,'[6]Příloha_8_Ceník pravid_úklidu'!$A$9:$B$30,2,0)) -> STSL1 | I96: 5 | J96: není předmětem | O96: =IF(ISBLANK($K96),"",'[6]Pracovní dny'!$F$2) ->  | P96: =IF(ISBLANK($M96),"",'[6]Pracovní dny'!$F$3) ->  | Q96: =IF(ISBLANK($K96),"",'[6]Pracovní dny'!$F$4) -> 
A97: 133 | D97: WC ženy | E97: 1.09 | H97: =IF(ISBLANK(I97)," ",VLOOKUP(I97,'[6]Příloha_8_Ceník pravid_úklidu'!$A$9:$B$30,2,0)) -> STSL1 | I97: 5 | J97: není předmětem | O97: =IF(ISBLANK($K97),"",'[6]Pracovní dny'!$F$2) ->  | P97: =IF(ISBLANK($M97),"",'[6]Pracovní dny'!$F$3) ->  | Q97: =IF(ISBLANK($K97),"",'[6]Pracovní dny'!$F$4) -> 
A98: 134 | D98: uklidová komora | E98: 2.32 | H98: =IF(ISBLANK(I98)," ",VLOOKUP(I98,'[6]Příloha_8_Ceník pravid_úklidu'!$A$9:$B$30,2,0)) -> STSL1 | I98: 5 | J98: není předmětem | O98: =IF(ISBLANK($K98),"",'[6]Pracovní dny'!$F$2) ->  | P98: =IF(ISBLANK($M98),"",'[6]Pracovní dny'!$F$3) ->  | Q98: =IF(ISBLANK($K98),"",'[6]Pracovní dny'!$F$4) -> 
A99: 135 | D99: předsíň WC muži | E99: 1.82 | H99: =IF(ISBLANK(I99)," ",VLOOKUP(I99,'[6]Příloha_8_Ceník pravid_úklidu'!$A$9:$B$30,2,0)) -> STSL1 | I99: 5 | J99: není předmětem | O99: =IF(ISBLANK($K99),"",'[6]Pracovní dny'!$F$2) ->  | P99: =IF(ISBLANK($M99),"",'[6]Pracovní dny'!$F$3) ->  | Q99: =IF(ISBLANK($K99),"",'[6]Pracovní dny'!$F$4) -> 
A100: 136 | D100: WC muži | E100: 0.93 | H100: =IF(ISBLANK(I100)," ",VLOOKUP(I100,'[6]Příloha_8_Ceník pravid_úklidu'!$A$9:$B$30,2,0)) -> STSL1 | I100: 5 | J100: není předmětem | O100: =IF(ISBLANK($K100),"",'[6]Pracovní dny'!$F$2) ->  | P100: =IF(ISBLANK($M100),"",'[6]Pracovní dny'!$F$3) ->  | Q100: =IF(ISBLANK($K100),"",'[6]Pracovní dny'!$F$4) -> 
A101: 137 | D101: koupelna | E101: 11.46 | H101: =IF(ISBLANK(I101)," ",VLOOKUP(I101,'[6]Příloha_8_Ceník pravid_úklidu'!$A$9:$B$30,2,0)) -> STSL1 | I101: 5 | J101: není předmětem | O101: =IF(ISBLANK($K101),"",'[6]Pracovní dny'!$F$2) ->  | P101: =IF(ISBLANK($M101),"",'[6]Pracovní dny'!$F$3) ->  | Q101: =IF(ISBLANK($K101),"",'[6]Pracovní dny'!$F$4) -> 
A102: 138 | D102: denní místnot lékařů | E102: 14.1 | H102: =IF(ISBLANK(I102)," ",VLOOKUP(I102,'[6]Příloha_8_Ceník pravid_úklidu'!$A$9:$B$30,2,0)) -> STSL1 | I102: 5 | J102: není předmětem | O102: =IF(ISBLANK($K102),"",'[6]Pracovní dny'!$F$2) ->  | P102: =IF(ISBLANK($M102),"",'[6]Pracovní dny'!$F$3) ->  | Q102: =IF(ISBLANK($K102),"",'[6]Pracovní dny'!$F$4) -> 
A103: 139 | D103: protokol kancl./vedoucí lékař | E103: 8.73 | H103: =IF(ISBLANK(I103)," ",VLOOKUP(I103,'[6]Příloha_8_Ceník pravid_úklidu'!$A$9:$B$30,2,0)) -> STSL1 | I103: 5 | J103: není předmětem | O103: =IF(ISBLANK($K103),"",'[6]Pracovní dny'!$F$2) ->  | P103: =IF(ISBLANK($M103),"",'[6]Pracovní dny'!$F$3) ->  | Q103: =IF(ISBLANK($K103),"",'[6]Pracovní dny'!$F$4) -> 
A104: 140 | D104: denní místnost sester | E104: 13.77 | H104: =IF(ISBLANK(I104)," ",VLOOKUP(I104,'[6]Příloha_8_Ceník pravid_úklidu'!$A$9:$B$30,2,0)) -> STSL1 | I104: 5 | J104: není předmětem | O104: =IF(ISBLANK($K104),"",'[6]Pracovní dny'!$F$2) ->  | P104: =IF(ISBLANK($M104),"",'[6]Pracovní dny'!$F$3) ->  | Q104: =IF(ISBLANK($K104),"",'[6]Pracovní dny'!$F$4) -> 
A105: 141 | D105: protokol kancl./vedoucí lékař | E105: 8.67 | H105: =IF(ISBLANK(I105)," ",VLOOKUP(I105,'[6]Příloha_8_Ceník pravid_úklidu'!$A$9:$B$30,2,0)) -> STSL1 | I105: 5 | J105: není předmětem | O105: =IF(ISBLANK($K105),"",'[6]Pracovní dny'!$F$2) ->  | P105: =IF(ISBLANK($M105),"",'[6]Pracovní dny'!$F$3) ->  | Q105: =IF(ISBLANK($K105),"",'[6]Pracovní dny'!$F$4) -> 
A106: 142 | D106: sklad infuze | E106: 5.55 | H106: =IF(ISBLANK(I106)," ",VLOOKUP(I106,'[6]Příloha_8_Ceník pravid_úklidu'!$A$9:$B$30,2,0)) -> STSL1 | I106: 5 | J106: není předmětem | O106: =IF(ISBLANK($K106),"",'[6]Pracovní dny'!$F$2) ->  | P106: =IF(ISBLANK($M106),"",'[6]Pracovní dny'!$F$3) ->  | Q106: =IF(ISBLANK($K106),"",'[6]Pracovní dny'!$F$4) -> 
A107: 101 | B107: 132400 | C107: 1.02.1NP.001 | D107: denní místnost | E107: 50 | H107: =IF(ISBLANK(I107)," ",VLOOKUP(I107,'[6]Příloha_8_Ceník pravid_úklidu'!$A$9:$B$30,2,0)) -> KANC | I107: 4 | J107: 2x;Po-Pá | K107: 1 | L107: 0.4 | M107: 0 | N107: 0 | O107: =IF(ISBLANK($K107),"",'[6]Pracovní dny'!$F$2) -> 252 | P107: =IF(ISBLANK($M107),"",'[6]Pracovní dny'!$F$3) -> 114 | Q107: =IF(ISBLANK($K107),"",'[6]Pracovní dny'!$F$4) -> 365 | R107: 100.8 | S107: 2 | T107: 0 | U107: ZN | V107: 0 | W107: 0 | X107: 1 | Y107: 3.8 | Z107: 4 | AA107: 60.8 | AB107: ŠPAL | AC107: VNI-H | AD107: OM | AF107: =IF(ISBLANK($AE107),VLOOKUP($I107,'Příloha_8_Ceník pravid_úklidu'!$A$9:$K$30,8,0)+VLOOKUP($I107,'Příloha_8_Ceník pravid_úklidu'!$A$9:$K$30,10,0),"neoceňuje se") -> 0 | AG107: =IF(AF107="neoceňuje se",0,$E107*$R107*$AF107) -> 0 | AH107: =$AG107*1.21 -> 0
A108: 102 | B108: 132400 | C108: 1.02.1NP.002 | D108: sklad+ denní místnost | E108: 13.9 | H108: =IF(ISBLANK(I108)," ",VLOOKUP(I108,'[6]Příloha_8_Ceník pravid_úklidu'!$A$9:$B$30,2,0)) -> KANC | I108: 4 | J108: 2x;Po-Pá | K108: 1 | L108: 0.4 | M108: 0 | N108: 0 | O108: =IF(ISBLANK($K108),"",'[6]Pracovní dny'!$F$2) -> 252 | P108: =IF(ISBLANK($M108),"",'[6]Pracovní dny'!$F$3) -> 114 | Q108: =IF(ISBLANK($K108),"",'[6]Pracovní dny'!$F$4) -> 365 | R108: 100.8 | S108: 3.2 | T108: 0 | U108: ZN | V108: 4.4 | W108: 1 | X108: 1 | Y108: 3.8 | Z108: 1 | AA108: 15.2 | AB108: ŠPAL | AC108: VNI-H | AD108: OM | AF108: =IF(ISBLANK($AE108),VLOOKUP($I108,'Příloha_8_Ceník pravid_úklidu'!$A$9:$K$30,8,0)+VLOOKUP($I108,'Příloha_8_Ceník pravid_úklidu'!$A$9:$K$30,10,0),"neoceňuje se") -> 0 | AG108: 0 | AH108: 0
A109: 103 | B109: 132400 | C109: 1.02.1NP.003 | D109: inspekční pokoj | E109: 8.2 | H109: =IF(ISBLANK(I109)," ",VLOOKUP(I109,'[6]Příloha_8_Ceník pravid_úklidu'!$A$9:$B$30,2,0)) -> ZDR1 | I109: 2 | J109: 1x(5xpo-pá) | K109: 1 | L109: 1 | M109: 0 | N109: 0 | O109: =IF(ISBLANK($K109),"",'[6]Pracovní dny'!$F$2) -> 252 | P109: =IF(ISBLANK($M109),"",'[6]Pracovní dny'!$F$3) -> 114 | Q109: =IF(ISBLANK($K109),"",'[6]Pracovní dny'!$F$4) -> 365 | R109: 252 | S109: 3 | T109: 0 | U109: N | V109: 3.2 | W109: 1 | X109: 0 | Y109: 3.8 | Z109: 1 | AA109: 15.2 | AB109: ŠPAL | AC109: VNI-H | AD109: OM | AF109: =IF(ISBLANK($AE109),VLOOKUP($I109,'Příloha_8_Ceník pravid_úklidu'!$A$9:$K$30,8,0)+VLOOKUP($I109,'Příloha_8_Ceník pravid_úklidu'!$A$9:$K$30,10,0),"neoceňuje se") -> 0 | AG109: 0 | AH109: 0
A110: 104 | B110: 132400 | C110: 1.02.1NP.004 | D110: šatna | E110: 12.4 | H110: =IF(ISBLANK(I110)," ",VLOOKUP(I110,'[6]Příloha_8_Ceník pravid_úklidu'!$A$9:$B$30,2,0)) -> SATN | I110: 10 | J110: 2x;Po-Pá | K110: 1 | L110: 0.4 | M110: 0 | N110: 0 | O110: =IF(ISBLANK($K110),"",'[6]Pracovní dny'!$F$2) -> 252 | P110: =IF(ISBLANK($M110),"",'[6]Pracovní dny'!$F$3) -> 114 | Q110: =IF(ISBLANK($K110),"",'[6]Pracovní dny'!$F$4) -> 365 | R110: 100.8 | S110: 24 | T110: 0 | U110: ZN | V110: 3.2 | W110: 1 | X110: 2 | Y110: 1.9 | Z110: 2 | AA110: 15.2 | AB110: ŠPAL | AC110: 0 | AD110: OM | AF110: =IF(ISBLANK($AE110),VLOOKUP($I110,'Příloha_8_Ceník pravid_úklidu'!$A$9:$K$30,8,0)+VLOOKUP($I110,'Příloha_8_Ceník pravid_úklidu'!$A$9:$K$30,10,0),"neoceňuje se") -> 0 | AG110: 0 | AH110: 0
A111: 105 | B111: 132400 | C111: 1.02.1NP.005 | D111: sádrovna | E111: 4 | H111: =IF(ISBLANK(I111)," ",VLOOKUP(I111,'[6]Příloha_8_Ceník pravid_úklidu'!$A$9:$B$30,2,0)) -> ZDR1 | I111: 2 | J111: 1x(5xpo-pá) | K111: 1 | L111: 1 | M111: 0 | N111: 0 | O111: =IF(ISBLANK($K111),"",'[6]Pracovní dny'!$F$2) -> 252 | P111: =IF(ISBLANK($M111),"",'[6]Pracovní dny'!$F$3) -> 114 | Q111: =IF(ISBLANK($K111),"",'[6]Pracovní dny'!$F$4) -> 365 | R111: 252 | S111: 11.5 | T111: 0 | U111: 0 | V111: 3.2 | W111: 1 | X111: 1 | Y111: 0 | Z111: 0 | AA111: 0 | AB111: 0 | AC111: 0 | AD111: OM | AF111: =IF(ISBLANK($AE111),VLOOKUP($I111,'Příloha_8_Ceník pravid_úklidu'!$A$9:$K$30,8,0)+VLOOKUP($I111,'Příloha_8_Ceník pravid_úklidu'!$A$9:$K$30,10,0),"neoceňuje se") -> 0 | AG111: 0 | AH111: 0
A112: 106 | B112: 132400 | C112: 1.02.1NP.006 | D112: sociální zařízení | E112: 3 | H112: =IF(ISBLANK(I112)," ",VLOOKUP(I112,'[6]Příloha_8_Ceník pravid_úklidu'!$A$9:$B$30,2,0)) -> TOAL | I112: 7 | J112: 1x(5xpo-pá) | K112: 1 | L112: 1 | M112: 0 | N112: 0 | O112: =IF(ISBLANK($K112),"",'[6]Pracovní dny'!$F$2) -> 252 | P112: =IF(ISBLANK($M112),"",'[6]Pracovní dny'!$F$3) -> 114 | Q112: =IF(ISBLANK($K112),"",'[6]Pracovní dny'!$F$4) -> 365 | R112: 252 | S112: 11.2 | T112: 0 | U112: 0 | V112: 3.2 | W112: 1 | X112: 1 | Y112: 1.7 | Z112: 1 | AA112: 6.8 | AB112: ŠPAL | AC112: 0 | AD112: OM | AF112: =IF(ISBLANK($AE112),VLOOKUP($I112,'Příloha_8_Ceník pravid_úklidu'!$A$9:$K$30,8,0)+VLOOKUP($I112,'Příloha_8_Ceník pravid_úklidu'!$A$9:$K$30,10,0),"neoceňuje se") -> 0 | AG112: 0 | AH112: 0
A113: 107 | B113: 132400 | C113: 1.02.1NP.007 | D113: sociální zařízení | E113: 3.8 | H113: =IF(ISBLANK(I113)," ",VLOOKUP(I113,'[6]Příloha_8_Ceník pravid_úklidu'!$A$9:$B$30,2,0)) -> TOAL | I113: 7 | J113: 1x(5xpo-pá) | K113: 1 | L113: 1 | M113: 0 | N113: 0 | O113: =IF(ISBLANK($K113),"",'[6]Pracovní dny'!$F$2) -> 252 | P113: =IF(ISBLANK($M113),"",'[6]Pracovní dny'!$F$3) -> 114 | Q113: =IF(ISBLANK($K113),"",'[6]Pracovní dny'!$F$4) -> 365 | R113: 252 | S113: 8.5 | T113: 0 | U113: 0 | V113: 3.2 | W113: 1 | X113: 1 | Y113: 1.7 | Z113: 1 | AA113: 6.8 | AB113: ŠPAL | AC113: 0 | AD113: OM | AF113: =IF(ISBLANK($AE113),VLOOKUP($I113,'Příloha_8_Ceník pravid_úklidu'!$A$9:$K$30,8,0)+VLOOKUP($I113,'Příloha_8_Ceník pravid_úklidu'!$A$9:$K$30,10,0),"neoceňuje se") -> 0 | AG113: 0 | AH113: 0
A114: 108 | B114: 132400 | C114: 1.02.1NP.008 | D114: sociální zařízení | E114: 2.6 | H114: =IF(ISBLANK(I114)," ",VLOOKUP(I114,'[6]Příloha_8_Ceník pravid_úklidu'!$A$9:$B$30,2,0)) -> TOAL | I114: 7 | J114: 1x(5xpo-pá) | K114: 1 | L114: 1 | M114: 0 | N114: 0 | O114: =IF(ISBLANK($K114),"",'[6]Pracovní dny'!$F$2) -> 252 | P114: =IF(ISBLANK($M114),"",'[6]Pracovní dny'!$F$3) -> 114 | Q114: =IF(ISBLANK($K114),"",'[6]Pracovní dny'!$F$4) -> 365 | R114: 252 | S114: 14 | T114: 0 | U114: 0 | V114: 4.8 | W114: 2 | X114: 2 | Y114: 1.7 | Z114: 1 | AA114: 6.8 | AB114: ŠPAL | AC114: 0 | AD114: OM | AF114: =IF(ISBLANK($AE114),VLOOKUP($I114,'Příloha_8_Ceník pravid_úklidu'!$A$9:$K$30,8,0)+VLOOKUP($I114,'Příloha_8_Ceník pravid_úklidu'!$A$9:$K$30,10,0),"neoceňuje se") -> 0 | AG114: 0 | AH114: 0
A115: 109 | B115: 132400 | C115: 1.02.1NP.009 | D115: sociální zařízení | E115: 16.7 | H115: =IF(ISBLANK(I115)," ",VLOOKUP(I115,'[6]Příloha_8_Ceník pravid_úklidu'!$A$9:$B$30,2,0)) -> TOAL | I115: 7 | J115: 1x(5xpo-pá) | K115: 1 | L115: 1 | M115: 0 | N115: 0 | O115: =IF(ISBLANK($K115),"",'[6]Pracovní dny'!$F$2) -> 252 | P115: =IF(ISBLANK($M115),"",'[6]Pracovní dny'!$F$3) -> 114 | Q115: =IF(ISBLANK($K115),"",'[6]Pracovní dny'!$F$4) -> 365 | R115: 252 | S115: 0 | T115: 28 | U115: ZN | V115: 4.4 | W115: 1 | X115: 0 | Y115: 3.8 | Z115: 1 | AA115: 15.2 | AB115: ŠPAL | AC115: VNI-H | AD115: OM | AF115: =IF(ISBLANK($AE115),VLOOKUP($I115,'Příloha_8_Ceník pravid_úklidu'!$A$9:$K$30,8,0)+VLOOKUP($I115,'Příloha_8_Ceník pravid_úklidu'!$A$9:$K$30,10,0),"neoceňuje se") -> 0 | AG115: 0 | AH115: 0
A116: 110 | B116: 132400 | C116: 1.02.1NP.010 | D116: kartotéka | E116: 31.4 | H116: =IF(ISBLANK(I116)," ",VLOOKUP(I116,'[6]Příloha_8_Ceník pravid_úklidu'!$A$9:$B$30,2,0)) -> KANC | I116: 4 | J116: 1x(5xpo-pá) | K116: 1 | L116: 1 | M116: 0 | N116: 0 | O116: =IF(ISBLANK($K116),"",'[6]Pracovní dny'!$F$2) -> 252 | P116: =IF(ISBLANK($M116),"",'[6]Pracovní dny'!$F$3) -> 114 | Q116: =IF(ISBLANK($K116),"",'[6]Pracovní dny'!$F$4) -> 365 | R116: 252 | S116: 1 | T116: 0 | U116: ZN | V116: 4.4 | W116: 1 | X116: 1 | Y116: 3.8 | Z116: 2 | AA116: 30.4 | AB116: ŠPAL | AC116: VNI-H | AD116: OM | AF116: =IF(ISBLANK($AE116),VLOOKUP($I116,'Příloha_8_Ceník pravid_úklidu'!$A$9:$K$30,8,0)+VLOOKUP($I116,'Příloha_8_Ceník pravid_úklidu'!$A$9:$K$30,10,0),"neoceňuje se") -> 0 | AG116: 0 | AH116: 0
A117: 111 | B117: 132400 | C117: 1.02.1NP.011 | D117: ambulance | E117: 30.7 | H117: =IF(ISBLANK(I117)," ",VLOOKUP(I117,'[6]Příloha_8_Ceník pravid_úklidu'!$A$9:$B$30,2,0)) -> ZDR1 | I117: 2 | J117: 1x(5xpo-pá) | K117: 1 | L117: 1 | M117: 0 | N117: 0 | O117: =IF(ISBLANK($K117),"",'[6]Pracovní dny'!$F$2) -> 252 | P117: =IF(ISBLANK($M117),"",'[6]Pracovní dny'!$F$3) -> 114 | Q117: =IF(ISBLANK($K117),"",'[6]Pracovní dny'!$F$4) -> 365 | R117: 252 | S117: 1 | T117: 0 | U117: ZN | V117: 7.6 | W117: 2 | X117: 1 | Y117: 3.8 | Z117: 2 | AA117: 30.4 | AB117: ŠPAL | AC117: VNI-H | AD117: OM | AF117: =IF(ISBLANK($AE117),VLOOKUP($I117,'Příloha_8_Ceník pravid_úklidu'!$A$9:$K$30,8,0)+VLOOKUP($I117,'Příloha_8_Ceník pravid_úklidu'!$A$9:$K$30,10,0),"neoceňuje se") -> 0 | AG117: 0 | AH117: 0
A118: 112 | B118: 132400 | C118: 1.02.1NP.012 | D118: ambulance | E118: 16.4 | H118: =IF(ISBLANK(I118)," ",VLOOKUP(I118,'[6]Příloha_8_Ceník pravid_úklidu'!$A$9:$B$30,2,0)) -> ZDR1 | I118: 2 | J118: 1x(5xpo-pá) | K118: 1 | L118: 1 | M118: 0 | N118: 0 | O118: =IF(ISBLANK($K118),"",'[6]Pracovní dny'!$F$2) -> 252 | P118: =IF(ISBLANK($M118),"",'[6]Pracovní dny'!$F$3) -> 114 | Q118: =IF(ISBLANK($K118),"",'[6]Pracovní dny'!$F$4) -> 365 | R118: 252 | S118: 2.8 | T118: 0 | U118: ZN | V118: 4.4 | W118: 1 | X118: 1 | Y118: 3.8 | Z118: 1 | AA118: 15.2 | AB118: ŠPAL | AC118: VNI-H | AD118: OM | AF118: =IF(ISBLANK($AE118),VLOOKUP($I118,'Příloha_8_Ceník pravid_úklidu'!$A$9:$K$30,8,0)+VLOOKUP($I118,'Příloha_8_Ceník pravid_úklidu'!$A$9:$K$30,10,0),"neoceňuje se") -> 0 | AG118: 0 | AH118: 0
A119: 113 | B119: 132400 | C119: 1.02.1NP.013 | D119: ambulance | E119: 20.5 | H119: =IF(ISBLANK(I119)," ",VLOOKUP(I119,'[6]Příloha_8_Ceník pravid_úklidu'!$A$9:$B$30,2,0)) -> ZDR1 | I119: 2 | J119: 1x(5xpo-pá) | K119: 1 | L119: 1 | M119: 0 | N119: 0 | O119: =IF(ISBLANK($K119),"",'[6]Pracovní dny'!$F$2) -> 252 | P119: =IF(ISBLANK($M119),"",'[6]Pracovní dny'!$F$3) -> 114 | Q119: =IF(ISBLANK($K119),"",'[6]Pracovní dny'!$F$4) -> 365 | R119: 252 | S119: 1.8 | T119: 0 | U119: ZN | V119: 4.4 | W119: 1 | X119: 1 | Y119: 3.8 | Z119: 1 | AA119: 15.2 | AB119: ŠPAL | AC119: VNI-H | AD119: OM | AF119: =IF(ISBLANK($AE119),VLOOKUP($I119,'Příloha_8_Ceník pravid_úklidu'!$A$9:$K$30,8,0)+VLOOKUP($I119,'Příloha_8_Ceník pravid_úklidu'!$A$9:$K$30,10,0),"neoceňuje se") -> 0 | AG119: 0 | AH119: 0
A120: 114 | B120: 130400 | C120: 1.02.1NP.014 | D120: chodba | E120: 37.1 | H120: =IF(ISBLANK(I120)," ",VLOOKUP(I120,'[6]Příloha_8_Ceník pravid_úklidu'!$A$9:$B$30,2,0)) -> CHOD | I120: 6 | J120: 1x(5xpo-pá) | K120: 1 | L120: 1 | M120: 0 | N120: 0 | O120: =IF(ISBLANK($K120),"",'[6]Pracovní dny'!$F$2) -> 252 | P120: =IF(ISBLANK($M120),"",'[6]Pracovní dny'!$F$3) -> 114 | Q120: =IF(ISBLANK($K120),"",'[6]Pracovní dny'!$F$4) -> 365 | R120: 252 | S120: 0 | T120: 35 | U120: 0 | V120: 0 | W120: 0 | X120: 0 | Y120: 0 | Z120: 0 | AA120: 0 | AB120: 0 | AC120: 0 | AD120: OM | AF120: =IF(ISBLANK($AE120),VLOOKUP($I120,'Příloha_8_Ceník pravid_úklidu'!$A$9:$K$30,8,0)+VLOOKUP($I120,'Příloha_8_Ceník pravid_úklidu'!$A$9:$K$30,10,0),"neoceňuje se") -> 0 | AG120: 0 | AH120: 0
A121: 115 | B121: 130400 | C121: 1.02.1NP.015 | D121: poradna | E121: 16.5 | H121: =IF(ISBLANK(I121)," ",VLOOKUP(I121,'[6]Příloha_8_Ceník pravid_úklidu'!$A$9:$B$30,2,0)) -> ZDR1 | I121: 2 | J121: 1x(5xpo-pá) | K121: 1 | L121: 1 | M121: 0 | N121: 0 | O121: =IF(ISBLANK($K121),"",'[6]Pracovní dny'!$F$2) -> 252 | P121: =IF(ISBLANK($M121),"",'[6]Pracovní dny'!$F$3) -> 114 | Q121: =IF(ISBLANK($K121),"",'[6]Pracovní dny'!$F$4) -> 365 | R121: 252 | S121: 2.5 | T121: 0 | U121: ZN | V121: 4.4 | W121: 1 | X121: 1 | Y121: 3.8 | Z121: 1 | AA121: 15.2 | AB121: ŠPAL | AC121: VNI-H | AD121: OM | AF121: =IF(ISBLANK($AE121),VLOOKUP($I121,'Příloha_8_Ceník pravid_úklidu'!$A$9:$K$30,8,0)+VLOOKUP($I121,'Příloha_8_Ceník pravid_úklidu'!$A$9:$K$30,10,0),"neoceňuje se") -> 0 | AG121: 0 | AH121: 0
A122: 116 | B122: 130400 | C122: 1.02.1NP.016 | D122: ambulance | E122: 19.8 | H122: =IF(ISBLANK(I122)," ",VLOOKUP(I122,'[6]Příloha_8_Ceník pravid_úklidu'!$A$9:$B$30,2,0)) -> ZDR1 | I122: 2 | J122: 1x(5xpo-pá) | K122: 1 | L122: 1 | M122: 0 | N122: 0 | O122: =IF(ISBLANK($K122),"",'[6]Pracovní dny'!$F$2) -> 252 | P122: =IF(ISBLANK($M122),"",'[6]Pracovní dny'!$F$3) -> 114 | Q122: =IF(ISBLANK($K122),"",'[6]Pracovní dny'!$F$4) -> 365 | R122: 252 | S122: 2.5 | T122: 0 | U122: N | V122: 4.4 | W122: 1 | X122: 1 | Y122: 3.8 | Z122: 1 | AA122: 15.2 | AB122: ŠPAL | AC122: VNI-H | AD122: OM | AF122: =IF(ISBLANK($AE122),VLOOKUP($I122,'Příloha_8_Ceník pravid_úklidu'!$A$9:$K$30,8,0)+VLOOKUP($I122,'Příloha_8_Ceník pravid_úklidu'!$A$9:$K$30,10,0),"neoceňuje se") -> 0 | AG122: 0 | AH122: 0
A123: 117 | B123: 130100 | C123: 1.02.1NP.017 | D123: poradna | E123: 19.8 | H123: =IF(ISBLANK(I123)," ",VLOOKUP(I123,'[6]Příloha_8_Ceník pravid_úklidu'!$A$9:$B$30,2,0)) -> ZDR1 | I123: 2 | J123: 1x(5xpo-pá) | K123: 1 | L123: 1 | M123: 0 | N123: 0 | O123: =IF(ISBLANK($K123),"",'[6]Pracovní dny'!$F$2) -> 252 | P123: =IF(ISBLANK($M123),"",'[6]Pracovní dny'!$F$3) -> 114 | Q123: =IF(ISBLANK($K123),"",'[6]Pracovní dny'!$F$4) -> 365 | R123: 252 | S123: 0 | T123: 0 | U123: ZN | V123: 4.4 | W123: 1 | X123: 1 | Y123: 3.8 | Z123: 1 | AA123: 15.2 | AB123: ŠPAL | AC123: VNI-H | AD123: OM | AF123: =IF(ISBLANK($AE123),VLOOKUP($I123,'Příloha_8_Ceník pravid_úklidu'!$A$9:$K$30,8,0)+VLOOKUP($I123,'Příloha_8_Ceník pravid_úklidu'!$A$9:$K$30,10,0),"neoceňuje se") -> 0 | AG123: 0 | AH123: 0
A124: 118 | B124: 130400 | C124: 1.02.1NP.018 | D124: poradna | E124: 16.4 | H124: =IF(ISBLANK(I124)," ",VLOOKUP(I124,'[6]Příloha_8_Ceník pravid_úklidu'!$A$9:$B$30,2,0)) -> ZDR1 | I124: 2 | J124: 1x(5xpo-pá) | K124: 1 | L124: 1 | M124: 0 | N124: 0 | O124: =IF(ISBLANK($K124),"",'[6]Pracovní dny'!$F$2) -> 252 | P124: =IF(ISBLANK($M124),"",'[6]Pracovní dny'!$F$3) -> 114 | Q124: =IF(ISBLANK($K124),"",'[6]Pracovní dny'!$F$4) -> 365 | R124: 252 | S124: 2.8 | T124: 0 | U124: ZN | V124: 4.4 | W124: 1 | X124: 1 | Y124: 3.8 | Z124: 1 | AA124: 15.2 | AB124: ŠPAL | AC124: VNI-H | AD124: OM | AF124: =IF(ISBLANK($AE124),VLOOKUP($I124,'Příloha_8_Ceník pravid_úklidu'!$A$9:$K$30,8,0)+VLOOKUP($I124,'Příloha_8_Ceník pravid_úklidu'!$A$9:$K$30,10,0),"neoceňuje se") -> 0 | AG124: 0 | AH124: 0
A125: 119 | B125: 130400 | C125: 1.02.1NP.019 | D125: poradna | E125: 32.9 | H125: =IF(ISBLANK(I125)," ",VLOOKUP(I125,'[6]Příloha_8_Ceník pravid_úklidu'!$A$9:$B$30,2,0)) -> ZDR1 | I125: 2 | J125: 1x(5xpo-pá) | K125: 1 | L125: 1 | M125: 0 | N125: 0 | O125: =IF(ISBLANK($K125),"",'[6]Pracovní dny'!$F$2) -> 252 | P125: =IF(ISBLANK($M125),"",'[6]Pracovní dny'!$F$3) -> 114 | Q125: =IF(ISBLANK($K125),"",'[6]Pracovní dny'!$F$4) -> 365 | R125: 252 | S125: 2 | T125: 48 | U125: ZN | V125: 4.4 | W125: 1 | X125: 1 | Y125: 3.8 | Z125: 2 | AA125: 30.4 | AB125: ŠPAL | AC125: VNI-H | AD125: OM | AF125: =IF(ISBLANK($AE125),VLOOKUP($I125,'Příloha_8_Ceník pravid_úklidu'!$A$9:$K$30,8,0)+VLOOKUP($I125,'Příloha_8_Ceník pravid_úklidu'!$A$9:$K$30,10,0),"neoceňuje se") -> 0 | AG125: 0 | AH125: 0
A126: 120 | B126: 130400 | C126: 1.02.1NP.020 | D126: ambulance | E126: 33.1 | H126: =IF(ISBLANK(I126)," ",VLOOKUP(I126,'[6]Příloha_8_Ceník pravid_úklidu'!$A$9:$B$30,2,0)) -> ZDR1 | I126: 2 | J126: 1x(5xpo-pá) | K126: 1 | L126: 1 | M126: 0 | N126: 0 | O126: =IF(ISBLANK($K126),"",'[6]Pracovní dny'!$F$2) -> 252 | P126: =IF(ISBLANK($M126),"",'[6]Pracovní dny'!$F$3) -> 114 | Q126: =IF(ISBLANK($K126),"",'[6]Pracovní dny'!$F$4) -> 365 | R126: 252 | S126: 1 | T126: 41 | U126: ZN | V126: 4.4 | W126: 1 | X126: 1 | Y126: 3.8 | Z126: 2 | AA126: 30.4 | AB126: ŠPAL | AC126: VNI-H | AD126: OM | AF126: =IF(ISBLANK($AE126),VLOOKUP($I126,'Příloha_8_Ceník pravid_úklidu'!$A$9:$K$30,8,0)+VLOOKUP($I126,'Příloha_8_Ceník pravid_úklidu'!$A$9:$K$30,10,0),"neoceňuje se") -> 0 | AG126: 0 | AH126: 0
A127: 121 | B127: 130400 | C127: 1.02.1NP.021 | D127: poradna | E127: 16.4 | H127: =IF(ISBLANK(I127)," ",VLOOKUP(I127,'[6]Příloha_8_Ceník pravid_úklidu'!$A$9:$B$30,2,0)) -> ZDR1 | I127: 2 | J127: 1x(5xpo-pá) | K127: 1 | L127: 1 | M127: 0 | N127: 0 | O127: =IF(ISBLANK($K127),"",'[6]Pracovní dny'!$F$2) -> 252 | P127: =IF(ISBLANK($M127),"",'[6]Pracovní dny'!$F$3) -> 114 | Q127: =IF(ISBLANK($K127),"",'[6]Pracovní dny'!$F$4) -> 365 | R127: 252 | S127: 3.5 | T127: 0 | U127: N | V127: 4.4 | W127: 1 | X127: 1 | Y127: 3.8 | Z127: 1 | AA127: 15.2 | AB127: ŠPAL | AC127: VNI-H | AD127: OM | AF127: =IF(ISBLANK($AE127),VLOOKUP($I127,'Příloha_8_Ceník pravid_úklidu'!$A$9:$K$30,8,0)+VLOOKUP($I127,'Příloha_8_Ceník pravid_úklidu'!$A$9:$K$30,10,0),"neoceňuje se") -> 0 | AG127: 0 | AH127: 0
A128: 122 | B128: 131400 | C128: 1.02.1NP.022 | D128: archiv | E128: 47.3 | H128: =IF(ISBLANK(I128)," ",VLOOKUP(I128,'[6]Příloha_8_Ceník pravid_úklidu'!$A$9:$B$30,2,0)) -> SKLA | I128: 17 | J128: 2x;Po-Pá | K128: 1 | L128: 0.4 | M128: 0 | N128: 0 | O128: =IF(ISBLANK($K128),"",'[6]Pracovní dny'!$F$2) -> 252 | P128: =IF(ISBLANK($M128),"",'[6]Pracovní dny'!$F$3) -> 114 | Q128: =IF(ISBLANK($K128),"",'[6]Pracovní dny'!$F$4) -> 365 | R128: 100.8 | S128: 3.6 | T128: 23 | U128: ZN | V128: 0 | W128: 1 | X128: 1 | Y128: 3.8 | Z128: 4 | AA128: 60.8 | AB128: ŠPAL | AC128: VNI-H | AD128: OM | AF128: =IF(ISBLANK($AE128),VLOOKUP($I128,'Příloha_8_Ceník pravid_úklidu'!$A$9:$K$30,8,0)+VLOOKUP($I128,'Příloha_8_Ceník pravid_úklidu'!$A$9:$K$30,10,0),"neoceňuje se") -> 0 | AG128: 0 | AH128: 0
A129: 123 | B129: 131400/115400 | C129: 1.02.1NP.023 | D129: ambulance | E129: 16.8 | H129: =IF(ISBLANK(I129)," ",VLOOKUP(I129,'[6]Příloha_8_Ceník pravid_úklidu'!$A$9:$B$30,2,0)) -> ZDR1 | I129: 2 | J129: 2x (5x;po-ne), 1x(2xso-ne) | K129: 2 | L129: 1 | M129: 1 | N129: 1 | O129: =IF(ISBLANK($K129),"",'[6]Pracovní dny'!$F$2) -> 252 | P129: =IF(ISBLANK($M129),"",'[6]Pracovní dny'!$F$3) -> 114 | Q129: =IF(ISBLANK($K129),"",'[6]Pracovní dny'!$F$4) -> 365 | R129: 618 | S129: 4.5 | T129: 68 | U129: ZN | V129: 4.4 | W129: 1 | X129: 1 | Y129: 3.8 | Z129: 1 | AA129: 15.2 | AB129: ŠPAL | AC129: VNI-H | AD129: OM | AF129: =IF(ISBLANK($AE129),VLOOKUP($I129,'Příloha_8_Ceník pravid_úklidu'!$A$9:$K$30,8,0)+VLOOKUP($I129,'Příloha_8_Ceník pravid_úklidu'!$A$9:$K$30,10,0),"neoceňuje se") -> 0 | AG129: 0 | AH129: 0
A130: 124 | B130: 131400/115400 | C130: 1.02.1NP.024 | D130: inspekční pokoj | E130: 9.4 | H130: =IF(ISBLANK(I130)," ",VLOOKUP(I130,'[6]Příloha_8_Ceník pravid_úklidu'!$A$9:$B$30,2,0)) -> ZDR1 | I130: 2 | J130: 2x (5x;po-ne), 1x(2xso-ne) | K130: 2 | L130: 1 | M130: 1 | N130: 1 | O130: =IF(ISBLANK($K130),"",'[6]Pracovní dny'!$F$2) -> 252 | P130: =IF(ISBLANK($M130),"",'[6]Pracovní dny'!$F$3) -> 114 | Q130: =IF(ISBLANK($K130),"",'[6]Pracovní dny'!$F$4) -> 365 | R130: 618 | S130: 0 | T130: 0 | U130: N | V130: 3.2 | W130: 1 | X130: 0 | Y130: 3.8 | Z130: 1 | AA130: 15.2 | AB130: ŠPAL | AC130: VNI-H | AD130: OM | AF130: =IF(ISBLANK($AE130),VLOOKUP($I130,'Příloha_8_Ceník pravid_úklidu'!$A$9:$K$30,8,0)+VLOOKUP($I130,'Příloha_8_Ceník pravid_úklidu'!$A$9:$K$30,10,0),"neoceňuje se") -> 0 | AG130: 0 | AH130: 0
A131: 125 | B131: 131400/115400 | C131: 1.02.1NP.025 | D131: denní místnost | E131: 12.2 | H131: =IF(ISBLANK(I131)," ",VLOOKUP(I131,'[6]Příloha_8_Ceník pravid_úklidu'!$A$9:$B$30,2,0)) -> KANC | I131: 4 | J131: 2xpo-pá | K131: 1 | L131: 0.4 | M131: 0 | N131: 0 | O131: =IF(ISBLANK($K131),"",'[6]Pracovní dny'!$F$2) -> 252 | P131: =IF(ISBLANK($M131),"",'[6]Pracovní dny'!$F$3) -> 114 | Q131: =IF(ISBLANK($K131),"",'[6]Pracovní dny'!$F$4) -> 365 | R131: 100.8 | S131: 22 | T131: 0 | U131: 0 | V131: 3.2 | W131: 1 | X131: 2 | Y131: 1.7 | Z131: 2 | AA131: 13.6 | AB131: ŠPAL | AC131: 0 | AD131: OM | AF131: =IF(ISBLANK($AE131),VLOOKUP($I131,'Příloha_8_Ceník pravid_úklidu'!$A$9:$K$30,8,0)+VLOOKUP($I131,'Příloha_8_Ceník pravid_úklidu'!$A$9:$K$30,10,0),"neoceňuje se") -> 0 | AG131: 0 | AH131: 0
A132: 126 | B132: 131400 | C132: 1.02.1NP.026 | D132: uklidová komora | H132: =IF(ISBLANK(I132)," ",VLOOKUP(I132,'[6]Příloha_8_Ceník pravid_úklidu'!$A$9:$B$30,2,0)) -> TOAL | I132: 7 | J132: není předmětem | K132: 0 | L132: 0 | M132: 0 | N132: 0 | O132: =IF(ISBLANK($K132),"",'[6]Pracovní dny'!$F$2) -> 252 | P132: =IF(ISBLANK($M132),"",'[6]Pracovní dny'!$F$3) -> 114 | Q132: =IF(ISBLANK($K132),"",'[6]Pracovní dny'!$F$4) -> 365 | R132: 0 | S132: 7.5 | T132: 0 | U132: 0 | V132: 3.2 | W132: 1 | X132: 1 | Y132: 0 | Z132: 0 | AA132: 0 | AB132: 0 | AC132: 0 | AD132: OM | AF132: =IF(ISBLANK($AE132),VLOOKUP($I132,'Příloha_8_Ceník pravid_úklidu'!$A$9:$K$30,8,0)+VLOOKUP($I132,'Příloha_8_Ceník pravid_úklidu'!$A$9:$K$30,10,0),"neoceňuje se") -> 0 | AG132: 0 | AH132: 0
A133: 127 | B133: 131400 | C133: 1.02.1NP.027 | D133: neobsazeno | H133: =IF(ISBLANK(I133)," ",VLOOKUP(I133,'[6]Příloha_8_Ceník pravid_úklidu'!$A$9:$B$30,2,0)) -> TOAL | I133: 7 | J133: není předmětem | K133: 0 | L133: 0 | M133: 0 | N133: 0 | O133: =IF(ISBLANK($K133),"",'[6]Pracovní dny'!$F$2) -> 252 | P133: =IF(ISBLANK($M133),"",'[6]Pracovní dny'!$F$3) -> 114 | Q133: =IF(ISBLANK($K133),"",'[6]Pracovní dny'!$F$4) -> 365 | R133: 0 | S133: 12 | T133: 0 | U133: 0 | V133: 3.2 | W133: 1 | X133: 2 | Y133: 0,9/1,7 | Z133: 2 | AA133: 10.4 | AB133: ŠPAL | AC133: 0 | AD133: OM | AF133: =IF(ISBLANK($AE133),VLOOKUP($I133,'Příloha_8_Ceník pravid_úklidu'!$A$9:$K$30,8,0)+VLOOKUP($I133,'Příloha_8_Ceník pravid_úklidu'!$A$9:$K$30,10,0),"neoceňuje se") -> 0 | AG133: 0 | AH133: 0
A134: 128 | B134: 131400/115400 | C134: 1.02.1NP.028 | D134: přípravna | E134: 1.2 | H134: =IF(ISBLANK(I134)," ",VLOOKUP(I134,'[6]Příloha_8_Ceník pravid_úklidu'!$A$9:$B$30,2,0)) -> TOAL | I134: 7 | J134: 2x (5x;po-ne), 1x(2xso-ne) | K134: 2 | L134: 1 | M134: 1 | N134: 1 | O134: =IF(ISBLANK($K134),"",'[6]Pracovní dny'!$F$2) -> 252 | P134: =IF(ISBLANK($M134),"",'[6]Pracovní dny'!$F$3) -> 114 | Q134: =IF(ISBLANK($K134),"",'[6]Pracovní dny'!$F$4) -> 365 | R134: 618 | S134: 6.8 | T134: 0 | U134: 0 | V134: 2.8 | W134: 1 | X134: 1 | Y134: 0.9 | Z134: 1 | AA134: 3.6 | AB134: ŠPAL | AC134: 0 | AD134: OM | AF134: =IF(ISBLANK($AE134),VLOOKUP($I134,'Příloha_8_Ceník pravid_úklidu'!$A$9:$K$30,8,0)+VLOOKUP($I134,'Příloha_8_Ceník pravid_úklidu'!$A$9:$K$30,10,0),"neoceňuje se") -> 0 | AG134: 0 | AH134: 0
A135: 129 | B135: 131400/115400 | C135: 1.02.1NP.029 | D135: WC | E135: 1.5 | H135: =IF(ISBLANK(I135)," ",VLOOKUP(I135,'[6]Příloha_8_Ceník pravid_úklidu'!$A$9:$B$30,2,0)) -> TOAL | I135: 7 | J135: 2x (5x;po-ne), 1x(2xso-ne) | K135: 2 | L135: 1 | M135: 1 | N135: 1 | O135: =IF(ISBLANK($K135),"",'[6]Pracovní dny'!$F$2) -> 252 | P135: =IF(ISBLANK($M135),"",'[6]Pracovní dny'!$F$3) -> 114 | Q135: =IF(ISBLANK($K135),"",'[6]Pracovní dny'!$F$4) -> 365 | R135: 618 | S135: 6.8 | T135: 0 | U135: 0 | V135: 2.8 | W135: 1 | X135: 1 | Y135: 0.9 | Z135: 1 | AA135: 3.6 | AB135: ŠPAL | AC135: 0 | AD135: OM | AF135: =IF(ISBLANK($AE135),VLOOKUP($I135,'Příloha_8_Ceník pravid_úklidu'!$A$9:$K$30,8,0)+VLOOKUP($I135,'Příloha_8_Ceník pravid_úklidu'!$A$9:$K$30,10,0),"neoceňuje se") -> 0 | AG135: 0 | AH135: 0
A136: 130 | B136: 131400/115400 | C136: 1.02.1NP.030 | D136: WC | E136: 2 | H136: =IF(ISBLANK(I136)," ",VLOOKUP(I136,'[6]Příloha_8_Ceník pravid_úklidu'!$A$9:$B$30,2,0)) -> TOAL | I136: 7 | J136: 2x (5x;po-ne), 1x(2xso-ne) | K136: 2 | L136: 1 | M136: 1 | N136: 1 | O136: =IF(ISBLANK($K136),"",'[6]Pracovní dny'!$F$2) -> 252 | P136: =IF(ISBLANK($M136),"",'[6]Pracovní dny'!$F$3) -> 114 | Q136: =IF(ISBLANK($K136),"",'[6]Pracovní dny'!$F$4) -> 365 | R136: 618 | S136: 7.2 | T136: 0 | U136: 0 | V136: 3.2 | W136: 1 | X136: 1 | Y136: 0.9 | Z136: 1 | AA136: 3.6 | AB136: ŠPAL | AC136: 0 | AD136: OM | AF136: =IF(ISBLANK($AE136),VLOOKUP($I136,'Příloha_8_Ceník pravid_úklidu'!$A$9:$K$30,8,0)+VLOOKUP($I136,'Příloha_8_Ceník pravid_úklidu'!$A$9:$K$30,10,0),"neoceňuje se") -> 0 | AG136: 0 | AH136: 0
A137: 131 | B137: 131400 | C137: 1.02.1NP.031 | D137: neobsazeno | H137: =IF(ISBLANK(I137)," ",VLOOKUP(I137,'[6]Příloha_8_Ceník pravid_úklidu'!$A$9:$B$30,2,0)) -> TOAL | I137: 7 | J137: není předmětem | K137: 0 | L137: 0 | M137: 0 | N137: 0 | O137: =IF(ISBLANK($K137),"",'[6]Pracovní dny'!$F$2) -> 252 | P137: =IF(ISBLANK($M137),"",'[6]Pracovní dny'!$F$3) -> 114 | Q137: =IF(ISBLANK($K137),"",'[6]Pracovní dny'!$F$4) -> 365 | R137: =IF(AND(ISBLANK($K137),ISBLANK($M137)),"",$K137*$L137*$O137+$M137*$N137*$P137) -> 0 | S137: 3 | T137: 0 | U137: 0 | V137: 3.2 | W137: 1 | X137: 0 | Y137: 0 | Z137: 0 | AA137: 0 | AB137: 0 | AC137: 0 | AD137: OM | AF137: =IF(ISBLANK($AE137),VLOOKUP($I137,'Příloha_8_Ceník pravid_úklidu'!$A$9:$K$30,8,0)+VLOOKUP($I137,'Příloha_8_Ceník pravid_úklidu'!$A$9:$K$30,10,0),"neoceňuje se") -> 0 | AG137: 0 | AH137: 0
A138: 132 | B138: 131400/115400 | C138: 1.02.1NP.032 | D138: předsíň | E138: 69 | H138: =IF(ISBLANK(I138)," ",VLOOKUP(I138,'[6]Příloha_8_Ceník pravid_úklidu'!$A$9:$B$30,2,0)) -> CHOD | I138: 6 | J138: 2x (5x;po-ne), 1x(2xso-ne) | K138: 2 | L138: 1 | M138: 1 | N138: 1 | O138: =IF(ISBLANK($K138),"",'[6]Pracovní dny'!$F$2) -> 252 | P138: =IF(ISBLANK($M138),"",'[6]Pracovní dny'!$F$3) -> 114 | Q138: =IF(ISBLANK($K138),"",'[6]Pracovní dny'!$F$4) -> 365 | R138: 618 | S138: 0 | T138: 74.5 | U138: N | V138: 22.2 | W138: 1 | X138: 0 | Y138: 3.8 | Z138: 5 | AA138: 76 | AB138: ŠPAL | AC138: 0 | AD138: OM | AF138: =IF(ISBLANK($AE138),VLOOKUP($I138,'Příloha_8_Ceník pravid_úklidu'!$A$9:$K$30,8,0)+VLOOKUP($I138,'Příloha_8_Ceník pravid_úklidu'!$A$9:$K$30,10,0),"neoceňuje se") -> 0 | AG138: 0 | AH138: 0
A139: 133 | B139: 131400/115400 | C139: 1.02.1NP.033 | D139: chodba | E139: 49.6 | H139: =IF(ISBLANK(I139)," ",VLOOKUP(I139,'[6]Příloha_8_Ceník pravid_úklidu'!$A$9:$B$30,2,0)) -> CHOD | I139: 6 | J139: 2x (5x;po-ne), 1x(2xso-ne) | K139: 2 | L139: 1 | M139: 1 | N139: 1 | O139: =IF(ISBLANK($K139),"",'[6]Pracovní dny'!$F$2) -> 252 | P139: =IF(ISBLANK($M139),"",'[6]Pracovní dny'!$F$3) -> 114 | Q139: =IF(ISBLANK($K139),"",'[6]Pracovní dny'!$F$4) -> 365 | R139: 618 | S139: 0 | T139: 37 | U139: N | V139: 33.4 | W139: 1 | X139: 0 | Y139: 0 | Z139: 0 | AA139: 0 | AB139: 0 | AC139: 0 | AD139: OM | AF139: =IF(ISBLANK($AE139),VLOOKUP($I139,'Příloha_8_Ceník pravid_úklidu'!$A$9:$K$30,8,0)+VLOOKUP($I139,'Příloha_8_Ceník pravid_úklidu'!$A$9:$K$30,10,0),"neoceňuje se") -> 0 | AG139: 0 | AH139: 0
A140: 134 | B140: 131400/115400 | C140: 1.02.1NP.034 | D140: chodba | E140: 60 | H140: =IF(ISBLANK(I140)," ",VLOOKUP(I140,'[6]Příloha_8_Ceník pravid_úklidu'!$A$9:$B$30,2,0)) -> CHOD | I140: 6 | J140: 2x (5x;po-ne), 1x(2xso-ne) | K140: 2 | L140: 1 | M140: 1 | N140: 1 | O140: =IF(ISBLANK($K140),"",'[6]Pracovní dny'!$F$2) -> 252 | P140: =IF(ISBLANK($M140),"",'[6]Pracovní dny'!$F$3) -> 114 | Q140: =IF(ISBLANK($K140),"",'[6]Pracovní dny'!$F$4) -> 365 | R140: 618 | S140: 0 | T140: 61 | U140: N | V140: 22.2 | W140: 1 | X140: 0 | Y140: 3.8 | Z140: 4 | AA140: 60.8 | AB140: ŠPAL | AC140: 0 | AD140: OM | AF140: =IF(ISBLANK($AE140),VLOOKUP($I140,'Příloha_8_Ceník pravid_úklidu'!$A$9:$K$30,8,0)+VLOOKUP($I140,'Příloha_8_Ceník pravid_úklidu'!$A$9:$K$30,10,0),"neoceňuje se") -> 0 | AG140: 0 | AH140: 0
A141: 135 | B141: 131400/115400 | C141: 1.02.1NP.035 | D141: chodba | E141: 34.5 | H141: =IF(ISBLANK(I141)," ",VLOOKUP(I141,'[6]Příloha_8_Ceník pravid_úklidu'!$A$9:$B$30,2,0)) -> SCHO | I141: 8 | J141: 2x (5x;po-ne), 1x(2xso-ne) | K141: 2 | L141: 1 | M141: 1 | N141: 1 | O141: =IF(ISBLANK($K141),"",'[6]Pracovní dny'!$F$2) -> 252 | P141: =IF(ISBLANK($M141),"",'[6]Pracovní dny'!$F$3) -> 114 | Q141: =IF(ISBLANK($K141),"",'[6]Pracovní dny'!$F$4) -> 365 | R141: 618 | S141: 0 | T141: 0 | U141: 0 | V141: 12 | W141: 1 | X141: 0 | Y141: 4,5/8,2 | Z141: 2 | AA141: 50.8 | AB141: ŠPAL | AC141: 0 | AD141: OM | AF141: =IF(ISBLANK($AE141),VLOOKUP($I141,'Příloha_8_Ceník pravid_úklidu'!$A$9:$K$30,8,0)+VLOOKUP($I141,'Příloha_8_Ceník pravid_úklidu'!$A$9:$K$30,10,0),"neoceňuje se") -> 0 | AG141: 0 | AH141: 0
A142: 136 | C142: 1.02.1NP.036 | D142: úklidová komora | G142: 1 | H142: =IF(ISBLANK(I142)," ",VLOOKUP(I142,'[6]Příloha_8_Ceník pravid_úklidu'!$A$9:$B$30,2,0)) ->  | J142: není předmětem | O142: =IF(ISBLANK($K142),"",'[6]Pracovní dny'!$F$2) ->  | P142: =IF(ISBLANK($M142),"",'[6]Pracovní dny'!$F$3) ->  | Q142: =IF(ISBLANK($K142),"",'[6]Pracovní dny'!$F$4) ->  | S142: 0 | T142: 0 | U142: X | V142: 2.4 | W142: 1 | X142: 0 | Y142: 0 | Z142: 0 | AA142: 0 | AB142: 0 | AC142: 0 | AE142: X | AF142: =IF(ISBLANK($AE142),VLOOKUP($I142,'Příloha_8_Ceník pravid_úklidu'!$A$9:$K$30,8,0)+VLOOKUP($I142,'Příloha_8_Ceník pravid_úklidu'!$A$9:$K$30,10,0),"neoceňuje se") -> neoceňuje se | AG142: 0 | AH142: 0
A143: 137 | D143: výtah | G143: 1.4 | H143: =IF(ISBLANK(I143)," ",VLOOKUP(I143,'[6]Příloha_8_Ceník pravid_úklidu'!$A$9:$B$30,2,0)) -> VYTA | I143: 11 | J143: započítat v 2.NP | O143: =IF(ISBLANK($K143),"",'[6]Pracovní dny'!$F$2) ->  | P143: =IF(ISBLANK($M143),"",'[6]Pracovní dny'!$F$3) ->  | Q143: =IF(ISBLANK($K143),"",'[6]Pracovní dny'!$F$4) ->  | S143: 0 | T143: 0 | U143: 10.5 | V143: 2.1 | W143: 1 | X143: 0 | Y143: 0 | Z143: 0 | AA143: 0 | AB143: 0 | AC143: 0 | AD143: VÝT | AE143: X | AF143: =IF(ISBLANK($AE143),VLOOKUP($I143,'Příloha_8_Ceník pravid_úklidu'!$A$9:$K$30,8,0)+VLOOKUP($I143,'Příloha_8_Ceník pravid_úklidu'!$A$9:$K$30,10,0),"neoceňuje se") -> neoceňuje se | AG143: 0 | AH143: 0
A144: 138 | B144: 162600/131100/160600/132100/137100/132400/131400/137400 | C144: 1.02.1NP.038 | D144: chodba | E144: 42.9 | H144: =IF(ISBLANK(I144)," ",VLOOKUP(I144,'[6]Příloha_8_Ceník pravid_úklidu'!$A$9:$B$30,2,0)) -> CHOD | I144: 6 | J144: 2x (5x;po-ne), 1x(2xso-ne) | K144: 2 | L144: 1 | M144: 1 | N144: 1 | O144: =IF(ISBLANK($K144),"",'[6]Pracovní dny'!$F$2) -> 252 | P144: =IF(ISBLANK($M144),"",'[6]Pracovní dny'!$F$3) -> 114 | Q144: =IF(ISBLANK($K144),"",'[6]Pracovní dny'!$F$4) -> 365 | R144: 618 | S144: 0 | T144: 17 | U144: 8 | V144: 13.8 | W144: 1 | X144: 0 | Y144: 0 | Z144: 0 | AA144: 0 | AB144: 0 | AC144: 0 | AD144: OM | AF144: =IF(ISBLANK($AE144),VLOOKUP($I144,'Příloha_8_Ceník pravid_úklidu'!$A$9:$K$30,8,0)+VLOOKUP($I144,'Příloha_8_Ceník pravid_úklidu'!$A$9:$K$30,10,0),"neoceňuje se") -> 0 | AG144: 0 | AH144: 0
A145: 139 | B145: 162600/131100/160600/132100/137100/132400/131400/137400 | C145: 1.02.1NP.039 | D145: chodba | E145: 3.2 | H145: =IF(ISBLANK(I145)," ",VLOOKUP(I145,'[6]Příloha_8_Ceník pravid_úklidu'!$A$9:$B$30,2,0)) -> CHOD | I145: 6 | J145: 2x (5x;po-ne), 1x(2xso-ne) | K145: 2 | L145: 1 | M145: 1 | N145: 1 | O145: =IF(ISBLANK($K145),"",'[6]Pracovní dny'!$F$2) -> 252 | P145: =IF(ISBLANK($M145),"",'[6]Pracovní dny'!$F$3) -> 114 | Q145: =IF(ISBLANK($K145),"",'[6]Pracovní dny'!$F$4) -> 365 | R145: 618 | S145: 8 | T145: 0 | U145: 0 | V145: 2.4 | W145: 1 | X145: 1 | Y145: 0 | Z145: 0 | AA145: 0 | AB145: 0 | AC145: 0 | AD145: OM | AF145: =IF(ISBLANK($AE145),VLOOKUP($I145,'Příloha_8_Ceník pravid_úklidu'!$A$9:$K$30,8,0)+VLOOKUP($I145,'Příloha_8_Ceník pravid_úklidu'!$A$9:$K$30,10,0),"neoceňuje se") -> 0 | AG145: 0 | AH145: 0
A146: 140 | B146: 132400 | C146: 1.02.1NP.040 | D146: předsíň WC | E146: 1.5 | H146: =IF(ISBLANK(I146)," ",VLOOKUP(I146,'[6]Příloha_8_Ceník pravid_úklidu'!$A$9:$B$30,2,0)) -> TOAL | I146: 7 | J146: 1x(5xpo-pá) | K146: 1 | L146: 1 | M146: 0 | N146: 0 | O146: =IF(ISBLANK($K146),"",'[6]Pracovní dny'!$F$2) -> 252 | P146: =IF(ISBLANK($M146),"",'[6]Pracovní dny'!$F$3) -> 114 | Q146: =IF(ISBLANK($K146),"",'[6]Pracovní dny'!$F$4) -> 365 | R146: 252 | S146: 8.4 | T146: 0 | U146: 0 | V146: 0 | W146: 0 | X146: 1 | Y146: 0 | Z146: 0 | AA146: 0 | AB146: 0 | AC146: 0 | AD146: OM | AF146: =IF(ISBLANK($AE146),VLOOKUP($I146,'Příloha_8_Ceník pravid_úklidu'!$A$9:$K$30,8,0)+VLOOKUP($I146,'Příloha_8_Ceník pravid_úklidu'!$A$9:$K$30,10,0),"neoceňuje se") -> 0 | AG146: 0 | AH146: 0
A147: 141 | B147: 132400 | C147: 1.02.1NP.041 | D147: sprcha | E147: 1.5 | H147: =IF(ISBLANK(I147)," ",VLOOKUP(I147,'[6]Příloha_8_Ceník pravid_úklidu'!$A$9:$B$30,2,0)) -> TOAL | I147: 7 | J147: 1x(5xpo-pá) | K147: 1 | L147: 1 | M147: 0 | N147: 0 | O147: =IF(ISBLANK($K147),"",'[6]Pracovní dny'!$F$2) -> 252 | P147: =IF(ISBLANK($M147),"",'[6]Pracovní dny'!$F$3) -> 114 | Q147: =IF(ISBLANK($K147),"",'[6]Pracovní dny'!$F$4) -> 365 | R147: 252 | S147: 8.4 | T147: 0 | U147: 0 | V147: 2.4 | W147: 1 | X147: 1 | Y147: 0 | Z147: 0 | AA147: 0 | AB147: 0 | AC147: 0 | AD147: OM | AF147: =IF(ISBLANK($AE147),VLOOKUP($I147,'Příloha_8_Ceník pravid_úklidu'!$A$9:$K$30,8,0)+VLOOKUP($I147,'Příloha_8_Ceník pravid_úklidu'!$A$9:$K$30,10,0),"neoceňuje se") -> 0 | AG147: 0 | AH147: 0
A148: 142 | B148: 132400 | C148: 1.02.1NP.042 | D148: WC | E148: 5.3 | H148: =IF(ISBLANK(I148)," ",VLOOKUP(I148,'[6]Příloha_8_Ceník pravid_úklidu'!$A$9:$B$30,2,0)) -> TOAL | I148: 7 | J148: 1x(5xpo-pá) | K148: 1 | L148: 1 | M148: 0 | N148: 0 | O148: =IF(ISBLANK($K148),"",'[6]Pracovní dny'!$F$2) -> 252 | P148: =IF(ISBLANK($M148),"",'[6]Pracovní dny'!$F$3) -> 114 | Q148: =IF(ISBLANK($K148),"",'[6]Pracovní dny'!$F$4) -> 365 | R148: 252 | S148: 0 | T148: 0 | U148: X | V148: 7.2 | W148: 3 | X148: 2 | Y148: 3.4 | Z148: 1 | AA148: 6.8 | AB148: SKLB | AC148: 0 | AD148: OM | AF148: =IF(ISBLANK($AE148),VLOOKUP($I148,'Příloha_8_Ceník pravid_úklidu'!$A$9:$K$30,8,0)+VLOOKUP($I148,'Příloha_8_Ceník pravid_úklidu'!$A$9:$K$30,10,0),"neoceňuje se") -> 0 | AG148: 0 | AH148: 0
A149: 143 | C149: 1.02.1NP.043 | D149: technické zázemí | G149: 14 | H149: =IF(ISBLANK(I149)," ",VLOOKUP(I149,'[6]Příloha_8_Ceník pravid_úklidu'!$A$9:$B$30,2,0)) -> KANC | I149: 4 | J149: není předmětem | O149: =IF(ISBLANK($K149),"",'[6]Pracovní dny'!$F$2) ->  | P149: =IF(ISBLANK($M149),"",'[6]Pracovní dny'!$F$3) ->  | Q149: =IF(ISBLANK($K149),"",'[6]Pracovní dny'!$F$4) ->  | S149: 0 | T149: 0 | U149: N | V149: 3.2 | W149: 1 | X149: 0 | Y149: 3.8 | Z149: 1 | AA149: 15.2 | AB149: ŠPAL | AC149: VNI-H | AD149: OM | AE149: X | AF149: =IF(ISBLANK($AE149),VLOOKUP($I149,'Příloha_8_Ceník pravid_úklidu'!$A$9:$K$30,8,0)+VLOOKUP($I149,'Příloha_8_Ceník pravid_úklidu'!$A$9:$K$30,10,0),"neoceňuje se") -> neoceňuje se | AG149: 0 | AH149: 0
A150: 144 | B150: 132400 | C150: 1.02.1NP.044 | D150: zřízenci Ortop. | E150: 18.3 | H150: =IF(ISBLANK(I150)," ",VLOOKUP(I150,'[6]Příloha_8_Ceník pravid_úklidu'!$A$9:$B$30,2,0)) -> KANC | I150: 4 | J150: 2x;Po-Pá | K150: 1 | L150: 0.4 | M150: 0 | N150: 0 | O150: =IF(ISBLANK($K150),"",'[6]Pracovní dny'!$F$2) -> 252 | P150: =IF(ISBLANK($M150),"",'[6]Pracovní dny'!$F$3) -> 114 | Q150: =IF(ISBLANK($K150),"",'[6]Pracovní dny'!$F$4) -> 365 | R150: 100.8 | S150: 24 | T150: 0 | U150: ZN | V150: 8.8 | W150: 2 | X150: 1 | Y150: 3.8 | Z150: 1 | AA150: 15.2 | AB150: PL | AC150: VNI-H | AD150: OM | AF150: =IF(ISBLANK($AE150),VLOOKUP($I150,'Příloha_8_Ceník pravid_úklidu'!$A$9:$K$30,8,0)+VLOOKUP($I150,'Příloha_8_Ceník pravid_úklidu'!$A$9:$K$30,10,0),"neoceňuje se") -> 0 | AG150: 0 | AH150: 0
A151: 145 | B151: 132400 | C151: 1.02.1NP.044 | D151: sádrovna | E151: 18.3 | H151: =IF(ISBLANK(I151)," ",VLOOKUP(I151,'[6]Příloha_8_Ceník pravid_úklidu'!$A$9:$B$30,2,0)) -> ZDR1 | I151: 2 | J151: 2x (5x;Po-Pá) | K151: 2 | L151: 1 | M151: 0 | N151: 0 | O151: =IF(ISBLANK($K151),"",'[6]Pracovní dny'!$F$2) -> 252 | P151: =IF(ISBLANK($M151),"",'[6]Pracovní dny'!$F$3) -> 114 | Q151: =IF(ISBLANK($K151),"",'[6]Pracovní dny'!$F$4) -> 365 | R151: 504 | S151: 24 | T151: 0 | U151: ZN | V151: 8.8 | W151: 2 | X151: 1 | Y151: 3.8 | Z151: 1 | AA151: 15.2 | AB151: ŠPAL | AC151: VNI-H | AD151: OM | AF151: =IF(ISBLANK($AE151),VLOOKUP($I151,'Příloha_8_Ceník pravid_úklidu'!$A$9:$K$30,8,0)+VLOOKUP($I151,'Příloha_8_Ceník pravid_úklidu'!$A$9:$K$30,10,0),"neoceňuje se") -> 0 | AG151: 0 | AH151: 0
A152: 2.NADZEMNÍ PODLAŽÍ | O152: =IF(ISBLANK($K152),"",'[6]Pracovní dny'!$F$2) ->  | P152: =IF(ISBLANK($M152),"",'[6]Pracovní dny'!$F$3) ->  | Q152: =IF(ISBLANK($K152),"",'[6]Pracovní dny'!$F$4) -> 
D153: Režim operačních sálů | E153: STSL1:16 hod./pr. den, Po-Pá od 6,00 hod. do 18,00 hod. - doporučený počet pracovníků: 1 prac. od 6,00 hod. do 14,00 hod. a 1. prac. od 10,00 hod. do 18,00 hod.. | O153: =IF(ISBLANK($K153),"",'[6]Pracovní dny'!$F$2) ->  | P153: =IF(ISBLANK($M153),"",'[6]Pracovní dny'!$F$3) ->  | Q153: =IF(ISBLANK($K153),"",'[6]Pracovní dny'!$F$4) -> 
B154: 160600 | E154: 16 | H154: =IF(ISBLANK(I154)," ",VLOOKUP(I154,'[6]Příloha_8_Ceník pravid_úklidu'!$A$9:$B$30,2,0)) -> STSL1 | I154: 5 | J154: Po-Pá, 6,00 - 18,00 hod. | K154: 1 | L154: 1 | M154: 0 | N154: 0 | O154: 252 | P154: 114 | Q154: 365 | R154: 252 | AF154: =IF(ISBLANK($AE154),VLOOKUP($I154,'Příloha_8_Ceník pravid_úklidu'!$A$9:$K$30,8,0)+VLOOKUP($I154,'Příloha_8_Ceník pravid_úklidu'!$A$9:$K$30,10,0),"neoceňuje se") -> 0 | AG154: =IF(AF154="neoceňuje se",0,$E154*$R154*$AF154) -> 0 | AH154: =$AG154*1.21 -> 0
D155: denní místnost zdr. pers. | E155: 19.57 | H155: =IF(ISBLANK(I155)," ",VLOOKUP(I155,'[6]Příloha_8_Ceník pravid_úklidu'!$A$9:$B$30,2,0)) -> STSL1 | I155: 5 | J155: není předmětem | O155: =IF(ISBLANK($K155),"",'[6]Pracovní dny'!$F$2) ->  | P155: =IF(ISBLANK($M155),"",'[6]Pracovní dny'!$F$3) ->  | Q155: =IF(ISBLANK($K155),"",'[6]Pracovní dny'!$F$4) -> 
D156: výtah do CS aseptický | E156: 7.5 | H156: =IF(ISBLANK(I156)," ",VLOOKUP(I156,'[6]Příloha_8_Ceník pravid_úklidu'!$A$9:$B$30,2,0)) -> STSL1 | I156: 5 | J156: není předmětem | O156: =IF(ISBLANK($K156),"",'[6]Pracovní dny'!$F$2) ->  | P156: =IF(ISBLANK($M156),"",'[6]Pracovní dny'!$F$3) ->  | Q156: =IF(ISBLANK($K156),"",'[6]Pracovní dny'!$F$4) -> 
D157: výtahy 2x operanti | E157: 12.69 | H157: =IF(ISBLANK(I157)," ",VLOOKUP(I157,'[6]Příloha_8_Ceník pravid_úklidu'!$A$9:$B$30,2,0)) -> STSL1 | I157: 5 | J157: není předmětem | O157: =IF(ISBLANK($K157),"",'[6]Pracovní dny'!$F$2) ->  | P157: =IF(ISBLANK($M157),"",'[6]Pracovní dny'!$F$3) ->  | Q157: =IF(ISBLANK($K157),"",'[6]Pracovní dny'!$F$4) -> 
A158: 106 | D158: chodba | E158: 30.28 | H158: =IF(ISBLANK(I158)," ",VLOOKUP(I158,'[6]Příloha_8_Ceník pravid_úklidu'!$A$9:$B$30,2,0)) -> STSL1 | I158: 5 | J158: není předmětem | O158: =IF(ISBLANK($K158),"",'[6]Pracovní dny'!$F$2) ->  | P158: =IF(ISBLANK($M158),"",'[6]Pracovní dny'!$F$3) ->  | Q158: =IF(ISBLANK($K158),"",'[6]Pracovní dny'!$F$4) -> 
A159: 107 | D159: výtahy 2x operanti | E159: 16.27 | H159: =IF(ISBLANK(I159)," ",VLOOKUP(I159,'[6]Příloha_8_Ceník pravid_úklidu'!$A$9:$B$30,2,0)) -> STSL1 | I159: 5 | J159: není předmětem | O159: =IF(ISBLANK($K159),"",'[6]Pracovní dny'!$F$2) ->  | P159: =IF(ISBLANK($M159),"",'[6]Pracovní dny'!$F$3) ->  | Q159: =IF(ISBLANK($K159),"",'[6]Pracovní dny'!$F$4) -> 
A160: 109 | D160: sklad Dana KS | E160: 5.44 | H160: =IF(ISBLANK(I160)," ",VLOOKUP(I160,'[6]Příloha_8_Ceník pravid_úklidu'!$A$9:$B$30,2,0)) -> STSL1 | I160: 5 | J160: není předmětem | O160: =IF(ISBLANK($K160),"",'[6]Pracovní dny'!$F$2) ->  | P160: =IF(ISBLANK($M160),"",'[6]Pracovní dny'!$F$3) ->  | Q160: =IF(ISBLANK($K160),"",'[6]Pracovní dny'!$F$4) -> 
A161: 108 | D161: přesíň | E161: 3.51 | H161: =IF(ISBLANK(I161)," ",VLOOKUP(I161,'[6]Příloha_8_Ceník pravid_úklidu'!$A$9:$B$30,2,0)) -> STSL1 | I161: 5 | J161: není předmětem | O161: =IF(ISBLANK($K161),"",'[6]Pracovní dny'!$F$2) ->  | P161: =IF(ISBLANK($M161),"",'[6]Pracovní dny'!$F$3) ->  | Q161: =IF(ISBLANK($K161),"",'[6]Pracovní dny'!$F$4) -> 
D162: filtr ženy | E162: 17.18 | H162: =IF(ISBLANK(I162)," ",VLOOKUP(I162,'[6]Příloha_8_Ceník pravid_úklidu'!$A$9:$B$30,2,0)) -> STSL1 | I162: 5 | J162: není předmětem | O162: =IF(ISBLANK($K162),"",'[6]Pracovní dny'!$F$2) ->  | P162: =IF(ISBLANK($M162),"",'[6]Pracovní dny'!$F$3) ->  | Q162: =IF(ISBLANK($K162),"",'[6]Pracovní dny'!$F$4) -> 
A163: 111 | D163: filtr muži | E163: 11.36 | H163: =IF(ISBLANK(I163)," ",VLOOKUP(I163,'[6]Příloha_8_Ceník pravid_úklidu'!$A$9:$B$30,2,0)) -> STSL1 | I163: 5 | J163: není předmětem | O163: =IF(ISBLANK($K163),"",'[6]Pracovní dny'!$F$2) ->  | P163: =IF(ISBLANK($M163),"",'[6]Pracovní dny'!$F$3) ->  | Q163: =IF(ISBLANK($K163),"",'[6]Pracovní dny'!$F$4) -> 
D164: filtr/návoz | E164: 8.85 | H164: =IF(ISBLANK(I164)," ",VLOOKUP(I164,'[6]Příloha_8_Ceník pravid_úklidu'!$A$9:$B$30,2,0)) -> STSL1 | I164: 5 | J164: není předmětem | O164: =IF(ISBLANK($K164),"",'[6]Pracovní dny'!$F$2) ->  | P164: =IF(ISBLANK($M164),"",'[6]Pracovní dny'!$F$3) ->  | Q164: =IF(ISBLANK($K164),"",'[6]Pracovní dny'!$F$4) -> 
A165: 113 | D165: odpad | E165: 5.67 | H165: =IF(ISBLANK(I165)," ",VLOOKUP(I165,'[6]Příloha_8_Ceník pravid_úklidu'!$A$9:$B$30,2,0)) -> STSL1 | I165: 5 | J165: není předmětem | O165: =IF(ISBLANK($K165),"",'[6]Pracovní dny'!$F$2) ->  | P165: =IF(ISBLANK($M165),"",'[6]Pracovní dny'!$F$3) ->  | Q165: =IF(ISBLANK($K165),"",'[6]Pracovní dny'!$F$4) -> 
A166: 114 | D166: filtr u výtahu do CS | E166: 4.5 | H166: =IF(ISBLANK(I166)," ",VLOOKUP(I166,'[6]Příloha_8_Ceník pravid_úklidu'!$A$9:$B$30,2,0)) -> STSL1 | I166: 5 | J166: není předmětem | O166: =IF(ISBLANK($K166),"",'[6]Pracovní dny'!$F$2) ->  | P166: =IF(ISBLANK($M166),"",'[6]Pracovní dny'!$F$3) ->  | Q166: =IF(ISBLANK($K166),"",'[6]Pracovní dny'!$F$4) -> 
A167: 115 | D167: požární schodiště | E167: 18.5 | H167: =IF(ISBLANK(I167)," ",VLOOKUP(I167,'[6]Příloha_8_Ceník pravid_úklidu'!$A$9:$B$30,2,0)) -> STSL1 | I167: 5 | J167: není předmětem | O167: =IF(ISBLANK($K167),"",'[6]Pracovní dny'!$F$2) ->  | P167: =IF(ISBLANK($M167),"",'[6]Pracovní dny'!$F$3) ->  | Q167: =IF(ISBLANK($K167),"",'[6]Pracovní dny'!$F$4) -> 
A168: 116 | D168: chodba | E168: 105.48 | H168: =IF(ISBLANK(I168)," ",VLOOKUP(I168,'[6]Příloha_8_Ceník pravid_úklidu'!$A$9:$B$30,2,0)) -> STSL1 | I168: 5 | J168: není předmětem | O168: =IF(ISBLANK($K168),"",'[6]Pracovní dny'!$F$2) ->  | P168: =IF(ISBLANK($M168),"",'[6]Pracovní dny'!$F$3) ->  | Q168: =IF(ISBLANK($K168),"",'[6]Pracovní dny'!$F$4) -> 
A169: 117 | D169: el. rozvodna | E169: 6.92 | H169: =IF(ISBLANK(I169)," ",VLOOKUP(I169,'[6]Příloha_8_Ceník pravid_úklidu'!$A$9:$B$30,2,0)) -> STSL1 | I169: 5 | J169: není předmětem | O169: =IF(ISBLANK($K169),"",'[6]Pracovní dny'!$F$2) ->  | P169: =IF(ISBLANK($M169),"",'[6]Pracovní dny'!$F$3) ->  | Q169: =IF(ISBLANK($K169),"",'[6]Pracovní dny'!$F$4) -> 
A170: 118 | D170: přípravna anesteziloga | E170: 16.72 | H170: =IF(ISBLANK(I170)," ",VLOOKUP(I170,'[6]Příloha_8_Ceník pravid_úklidu'!$A$9:$B$30,2,0)) -> STSL1 | I170: 5 | J170: není předmětem | O170: =IF(ISBLANK($K170),"",'[6]Pracovní dny'!$F$2) ->  | P170: =IF(ISBLANK($M170),"",'[6]Pracovní dny'!$F$3) ->  | Q170: =IF(ISBLANK($K170),"",'[6]Pracovní dny'!$F$4) -> 
A171: 119 | D171: operační sál č. 3 | E171: 32.82 | H171: =IF(ISBLANK(I171)," ",VLOOKUP(I171,'[6]Příloha_8_Ceník pravid_úklidu'!$A$9:$B$30,2,0)) -> STSL1 | I171: 5 | J171: není předmětem | O171: =IF(ISBLANK($K171),"",'[6]Pracovní dny'!$F$2) ->  | P171: =IF(ISBLANK($M171),"",'[6]Pracovní dny'!$F$3) ->  | Q171: =IF(ISBLANK($K171),"",'[6]Pracovní dny'!$F$4) -> 
A172: 120 | D172: umývárna zdrav. Personálu | E172: 12.55 | H172: =IF(ISBLANK(I172)," ",VLOOKUP(I172,'[6]Příloha_8_Ceník pravid_úklidu'!$A$9:$B$30,2,0)) -> STSL1 | I172: 5 | J172: není předmětem | O172: =IF(ISBLANK($K172),"",'[6]Pracovní dny'!$F$2) ->  | P172: =IF(ISBLANK($M172),"",'[6]Pracovní dny'!$F$3) ->  | Q172: =IF(ISBLANK($K172),"",'[6]Pracovní dny'!$F$4) -> 
A173: 121 | D173: umývárna nástrojů | E173: 27.35 | H173: =IF(ISBLANK(I173)," ",VLOOKUP(I173,'[6]Příloha_8_Ceník pravid_úklidu'!$A$9:$B$30,2,0)) -> STSL1 | I173: 5 | J173: není předmětem | O173: =IF(ISBLANK($K173),"",'[6]Pracovní dny'!$F$2) ->  | P173: =IF(ISBLANK($M173),"",'[6]Pracovní dny'!$F$3) ->  | Q173: =IF(ISBLANK($K173),"",'[6]Pracovní dny'!$F$4) -> 
A174: 122 | D174: přípravna nástrojů/asept. Sklad | E174: 13.64 | H174: =IF(ISBLANK(I174)," ",VLOOKUP(I174,'[6]Příloha_8_Ceník pravid_úklidu'!$A$9:$B$30,2,0)) -> STSL1 | I174: 5 | J174: není předmětem | O174: =IF(ISBLANK($K174),"",'[6]Pracovní dny'!$F$2) ->  | P174: =IF(ISBLANK($M174),"",'[6]Pracovní dny'!$F$3) ->  | Q174: =IF(ISBLANK($K174),"",'[6]Pracovní dny'!$F$4) -> 
A175: 123 | D175: sádrovna | E175: 24.4 | H175: =IF(ISBLANK(I175)," ",VLOOKUP(I175,'[6]Příloha_8_Ceník pravid_úklidu'!$A$9:$B$30,2,0)) -> STSL1 | I175: 5 | J175: není předmětem | O175: =IF(ISBLANK($K175),"",'[6]Pracovní dny'!$F$2) ->  | P175: =IF(ISBLANK($M175),"",'[6]Pracovní dny'!$F$3) ->  | Q175: =IF(ISBLANK($K175),"",'[6]Pracovní dny'!$F$4) -> 
A176: 124 | D176: sklad | E176: 10.9 | H176: =IF(ISBLANK(I176)," ",VLOOKUP(I176,'[6]Příloha_8_Ceník pravid_úklidu'!$A$9:$B$30,2,0)) -> STSL1 | I176: 5 | J176: není předmětem | O176: =IF(ISBLANK($K176),"",'[6]Pracovní dny'!$F$2) ->  | P176: =IF(ISBLANK($M176),"",'[6]Pracovní dny'!$F$3) ->  | Q176: =IF(ISBLANK($K176),"",'[6]Pracovní dny'!$F$4) -> 
A177: 125 | D177: sklad | E177: 7.13 | H177: =IF(ISBLANK(I177)," ",VLOOKUP(I177,'[6]Příloha_8_Ceník pravid_úklidu'!$A$9:$B$30,2,0)) -> STSL1 | I177: 5 | J177: není předmětem | O177: =IF(ISBLANK($K177),"",'[6]Pracovní dny'!$F$2) ->  | P177: =IF(ISBLANK($M177),"",'[6]Pracovní dny'!$F$3) ->  | Q177: =IF(ISBLANK($K177),"",'[6]Pracovní dny'!$F$4) -> 
A178: 126 | D178: přípravna anesteziloga | E178: 16.33 | H178: =IF(ISBLANK(I178)," ",VLOOKUP(I178,'[6]Příloha_8_Ceník pravid_úklidu'!$A$9:$B$30,2,0)) -> STSL1 | I178: 5 | J178: není předmětem | O178: =IF(ISBLANK($K178),"",'[6]Pracovní dny'!$F$2) ->  | P178: =IF(ISBLANK($M178),"",'[6]Pracovní dny'!$F$3) ->  | Q178: =IF(ISBLANK($K178),"",'[6]Pracovní dny'!$F$4) -> 
A179: 127 | D179: operační sál č. 4 | E179: 32.37 | H179: =IF(ISBLANK(I179)," ",VLOOKUP(I179,'[6]Příloha_8_Ceník pravid_úklidu'!$A$9:$B$30,2,0)) -> STSL1 | I179: 5 | J179: není předmětem | O179: =IF(ISBLANK($K179),"",'[6]Pracovní dny'!$F$2) ->  | P179: =IF(ISBLANK($M179),"",'[6]Pracovní dny'!$F$3) ->  | Q179: =IF(ISBLANK($K179),"",'[6]Pracovní dny'!$F$4) -> 
A180: 128 | D180: umývárna zdrav. personálu | E180: 13.33 | H180: =IF(ISBLANK(I180)," ",VLOOKUP(I180,'[6]Příloha_8_Ceník pravid_úklidu'!$A$9:$B$30,2,0)) -> STSL1 | I180: 5 | J180: není předmětem | O180: =IF(ISBLANK($K180),"",'[6]Pracovní dny'!$F$2) ->  | P180: =IF(ISBLANK($M180),"",'[6]Pracovní dny'!$F$3) ->  | Q180: =IF(ISBLANK($K180),"",'[6]Pracovní dny'!$F$4) -> 
A181: 129 | D181: sklad odoperovaných tkání | E181: 5.93 | H181: =IF(ISBLANK(I181)," ",VLOOKUP(I181,'[6]Příloha_8_Ceník pravid_úklidu'!$A$9:$B$30,2,0)) -> STSL1 | I181: 5 | J181: není předmětem | O181: =IF(ISBLANK($K181),"",'[6]Pracovní dny'!$F$2) ->  | P181: =IF(ISBLANK($M181),"",'[6]Pracovní dny'!$F$3) ->  | Q181: =IF(ISBLANK($K181),"",'[6]Pracovní dny'!$F$4) -> 
A182: 130 | D182: sklad | E182: 6.53 | H182: =IF(ISBLANK(I182)," ",VLOOKUP(I182,'[6]Příloha_8_Ceník pravid_úklidu'!$A$9:$B$30,2,0)) -> STSL1 | I182: 5 | J182: není předmětem | O182: =IF(ISBLANK($K182),"",'[6]Pracovní dny'!$F$2) ->  | P182: =IF(ISBLANK($M182),"",'[6]Pracovní dny'!$F$3) ->  | Q182: =IF(ISBLANK($K182),"",'[6]Pracovní dny'!$F$4) -> 
A183: 131 | D183: sklad | E183: 6.34 | H183: =IF(ISBLANK(I183)," ",VLOOKUP(I183,'[6]Příloha_8_Ceník pravid_úklidu'!$A$9:$B$30,2,0)) -> STSL1 | I183: 5 | J183: není předmětem | O183: =IF(ISBLANK($K183),"",'[6]Pracovní dny'!$F$2) ->  | P183: =IF(ISBLANK($M183),"",'[6]Pracovní dny'!$F$3) ->  | Q183: =IF(ISBLANK($K183),"",'[6]Pracovní dny'!$F$4) -> 
A184: 132 | D184: přesíň WC ženy | E184: 3.04 | H184: =IF(ISBLANK(I184)," ",VLOOKUP(I184,'[6]Příloha_8_Ceník pravid_úklidu'!$A$9:$B$30,2,0)) -> STSL1 | I184: 5 | J184: není předmětem | O184: =IF(ISBLANK($K184),"",'[6]Pracovní dny'!$F$2) ->  | P184: =IF(ISBLANK($M184),"",'[6]Pracovní dny'!$F$3) ->  | Q184: =IF(ISBLANK($K184),"",'[6]Pracovní dny'!$F$4) -> 
A185: 133 | D185: WC ženy | E185: 1.11 | H185: =IF(ISBLANK(I185)," ",VLOOKUP(I185,'[6]Příloha_8_Ceník pravid_úklidu'!$A$9:$B$30,2,0)) -> STSL1 | I185: 5 | J185: není předmětem | O185: =IF(ISBLANK($K185),"",'[6]Pracovní dny'!$F$2) ->  | P185: =IF(ISBLANK($M185),"",'[6]Pracovní dny'!$F$3) ->  | Q185: =IF(ISBLANK($K185),"",'[6]Pracovní dny'!$F$4) -> 
A186: 134 | D186: uklidová komora | E186: 2.32 | H186: =IF(ISBLANK(I186)," ",VLOOKUP(I186,'[6]Příloha_8_Ceník pravid_úklidu'!$A$9:$B$30,2,0)) -> STSL1 | I186: 5 | J186: není předmětem | O186: =IF(ISBLANK($K186),"",'[6]Pracovní dny'!$F$2) ->  | P186: =IF(ISBLANK($M186),"",'[6]Pracovní dny'!$F$3) ->  | Q186: =IF(ISBLANK($K186),"",'[6]Pracovní dny'!$F$4) -> 
A187: 135 | D187: předsíň WC muži | E187: 1.82 | H187: =IF(ISBLANK(I187)," ",VLOOKUP(I187,'[6]Příloha_8_Ceník pravid_úklidu'!$A$9:$B$30,2,0)) -> STSL1 | I187: 5 | J187: není předmětem | O187: =IF(ISBLANK($K187),"",'[6]Pracovní dny'!$F$2) ->  | P187: =IF(ISBLANK($M187),"",'[6]Pracovní dny'!$F$3) ->  | Q187: =IF(ISBLANK($K187),"",'[6]Pracovní dny'!$F$4) -> 
A188: 136 | D188: WC muži | E188: 0.93 | H188: =IF(ISBLANK(I188)," ",VLOOKUP(I188,'[6]Příloha_8_Ceník pravid_úklidu'!$A$9:$B$30,2,0)) -> STSL1 | I188: 5 | J188: není předmětem | O188: =IF(ISBLANK($K188),"",'[6]Pracovní dny'!$F$2) ->  | P188: =IF(ISBLANK($M188),"",'[6]Pracovní dny'!$F$3) ->  | Q188: =IF(ISBLANK($K188),"",'[6]Pracovní dny'!$F$4) -> 
A189: 137 | D189: koupelna | E189: 11.37 | H189: =IF(ISBLANK(I189)," ",VLOOKUP(I189,'[6]Příloha_8_Ceník pravid_úklidu'!$A$9:$B$30,2,0)) -> STSL1 | I189: 5 | J189: není předmětem | O189: =IF(ISBLANK($K189),"",'[6]Pracovní dny'!$F$2) ->  | P189: =IF(ISBLANK($M189),"",'[6]Pracovní dny'!$F$3) ->  | Q189: =IF(ISBLANK($K189),"",'[6]Pracovní dny'!$F$4) -> 
A190: 138 | D190: denní místnot lékařů | E190: 14.73 | H190: =IF(ISBLANK(I190)," ",VLOOKUP(I190,'[6]Příloha_8_Ceník pravid_úklidu'!$A$9:$B$30,2,0)) -> STSL1 | I190: 5 | J190: není předmětem | O190: =IF(ISBLANK($K190),"",'[6]Pracovní dny'!$F$2) ->  | P190: =IF(ISBLANK($M190),"",'[6]Pracovní dny'!$F$3) ->  | Q190: =IF(ISBLANK($K190),"",'[6]Pracovní dny'!$F$4) -> 
A191: 139 | D191: protokol kancl. | E191: 8.89 | H191: =IF(ISBLANK(I191)," ",VLOOKUP(I191,'[6]Příloha_8_Ceník pravid_úklidu'!$A$9:$B$30,2,0)) -> STSL1 | I191: 5 | J191: není předmětem | O191: =IF(ISBLANK($K191),"",'[6]Pracovní dny'!$F$2) ->  | P191: =IF(ISBLANK($M191),"",'[6]Pracovní dny'!$F$3) ->  | Q191: =IF(ISBLANK($K191),"",'[6]Pracovní dny'!$F$4) -> 
A192: 140 | D192: denní místnost sester | E192: 14.05 | H192: =IF(ISBLANK(I192)," ",VLOOKUP(I192,'[6]Příloha_8_Ceník pravid_úklidu'!$A$9:$B$30,2,0)) -> STSL1 | I192: 5 | J192: není předmětem | O192: =IF(ISBLANK($K192),"",'[6]Pracovní dny'!$F$2) ->  | P192: =IF(ISBLANK($M192),"",'[6]Pracovní dny'!$F$3) ->  | Q192: =IF(ISBLANK($K192),"",'[6]Pracovní dny'!$F$4) -> 
A193: 141 | D193: kancelář Dana | E193: 8.75 | H193: =IF(ISBLANK(I193)," ",VLOOKUP(I193,'[6]Příloha_8_Ceník pravid_úklidu'!$A$9:$B$30,2,0)) -> STSL1 | I193: 5 | J193: není předmětem | O193: =IF(ISBLANK($K193),"",'[6]Pracovní dny'!$F$2) ->  | P193: =IF(ISBLANK($M193),"",'[6]Pracovní dny'!$F$3) ->  | Q193: =IF(ISBLANK($K193),"",'[6]Pracovní dny'!$F$4) -> 
D194: sklad | E194: 5.65 | H194: =IF(ISBLANK(I194)," ",VLOOKUP(I194,'[6]Příloha_8_Ceník pravid_úklidu'!$A$9:$B$30,2,0)) -> STSL1 | I194: 5 | J194: není předmětem | O194: =IF(ISBLANK($K194),"",'[6]Pracovní dny'!$F$2) ->  | P194: =IF(ISBLANK($M194),"",'[6]Pracovní dny'!$F$3) ->  | Q194: =IF(ISBLANK($K194),"",'[6]Pracovní dny'!$F$4) -> 
A195: 201 | B195: 137100 | C195: 1.02.2NP.001 | D195: chodba | E195: 79.76 | H195: =IF(ISBLANK(I195)," ",VLOOKUP(I195,'[6]Příloha_8_Ceník pravid_úklidu'!$A$9:$B$30,2,0)) -> CHOD | I195: 6 | J195: 2x(7x;Po-Ne) | K195: 2 | L195: 1 | M195: 2 | N195: 1 | O195: =IF(ISBLANK($K195),"",'[6]Pracovní dny'!$F$2) -> 252 | P195: =IF(ISBLANK($M195),"",'[6]Pracovní dny'!$F$3) -> 114 | Q195: =IF(ISBLANK($K195),"",'[6]Pracovní dny'!$F$4) -> 365 | R195: 732 | S195: 2 | T195: 49 | U195: ZN | V195: 0 | W195: 0 | X195: 1 | Y195: 3.8 | Z195: 4 | AA195: 60.8 | AB195: PL | AC195: 0 | AD195: OM | AF195: =IF(ISBLANK($AE195),VLOOKUP($I195,'Příloha_8_Ceník pravid_úklidu'!$A$9:$K$30,8,0)+VLOOKUP($I195,'Příloha_8_Ceník pravid_úklidu'!$A$9:$K$30,10,0),"neoceňuje se") -> 0 | AG195: =IF(AF195="neoceňuje se",0,$E195*$R195*$AF195) -> 0 | AH195: =$AG195*1.21 -> 0
A196: 202 | B196: 137100 | C196: 1.02.2NP.002 | D196: místnost učitelek + herna | E196: 17.28 | H196: =IF(ISBLANK(I196)," ",VLOOKUP(I196,'[6]Příloha_8_Ceník pravid_úklidu'!$A$9:$B$30,2,0)) -> KANC | I196: 4 | J196: 2x(7x;Po-Ne) | K196: 2 | L196: 1 | M196: 2 | N196: 1 | O196: =IF(ISBLANK($K196),"",'[6]Pracovní dny'!$F$2) -> 252 | P196: =IF(ISBLANK($M196),"",'[6]Pracovní dny'!$F$3) -> 114 | Q196: =IF(ISBLANK($K196),"",'[6]Pracovní dny'!$F$4) -> 365 | R196: 732 | S196: 3.2 | T196: 18 | U196: N | V196: 4.4 | W196: 1 | X196: 1 | Y196: 3.8 | Z196: 1 | AA196: 15.2 | AB196: PL | AC196: 0 | AD196: OM | AF196: =IF(ISBLANK($AE196),VLOOKUP($I196,'Příloha_8_Ceník pravid_úklidu'!$A$9:$K$30,8,0)+VLOOKUP($I196,'Příloha_8_Ceník pravid_úklidu'!$A$9:$K$30,10,0),"neoceňuje se") -> 0 | AG196: 0 | AH196: 0
A197: 203 | B197: 137100 | C197: 1.02.2NP.003 | D197: pokoj 2L + 1L | E197: 19 | H197: =IF(ISBLANK(I197)," ",VLOOKUP(I197,'[6]Příloha_8_Ceník pravid_úklidu'!$A$9:$B$30,2,0)) -> ZDR0 | I197: 1 | J197: 2x(7x;Po-Ne) | K197: 2 | L197: 1 | M197: 2 | N197: 1 | O197: =IF(ISBLANK($K197),"",'[6]Pracovní dny'!$F$2) -> 252 | P197: =IF(ISBLANK($M197),"",'[6]Pracovní dny'!$F$3) -> 114 | Q197: =IF(ISBLANK($K197),"",'[6]Pracovní dny'!$F$4) -> 365 | R197: 732 | S197: 0 | T197: 0 | U197: X | V197: 3.2 | W197: 1 | X197: 0 | Y197: 3.8 | Z197: 1 | AA197: 15.2 | AB197: PL | AC197: 0 | AD197: OM | AF197: =IF(ISBLANK($AE197),VLOOKUP($I197,'Příloha_8_Ceník pravid_úklidu'!$A$9:$K$30,8,0)+VLOOKUP($I197,'Příloha_8_Ceník pravid_úklidu'!$A$9:$K$30,10,0),"neoceňuje se") -> 0 | AG197: 0 | AH197: 0
A198: 204 | B198: 137100 | C198: 1.02.2NP.004 | D198: pokoj 2L + 1L | E198: 19.03 | H198: =IF(ISBLANK(I198)," ",VLOOKUP(I198,'[6]Příloha_8_Ceník pravid_úklidu'!$A$9:$B$30,2,0)) -> ZDR0 | I198: 1 | J198: 2x(7x;Po-Ne) | K198: 2 | L198: 1 | M198: 2 | N198: 1 | O198: =IF(ISBLANK($K198),"",'[6]Pracovní dny'!$F$2) -> 252 | P198: =IF(ISBLANK($M198),"",'[6]Pracovní dny'!$F$3) -> 114 | Q198: =IF(ISBLANK($K198),"",'[6]Pracovní dny'!$F$4) -> 365 | R198: 732 | S198: 24 | T198: 0 | U198: 0 | V198: 3.2 | W198: 1 | X198: 2 | Y198: 1.7 | Z198: 2 | AA198: 13.6 | AB198: PL | AC198: 0 | AD198: OM | AF198: =IF(ISBLANK($AE198),VLOOKUP($I198,'Příloha_8_Ceník pravid_úklidu'!$A$9:$K$30,8,0)+VLOOKUP($I198,'Příloha_8_Ceník pravid_úklidu'!$A$9:$K$30,10,0),"neoceňuje se") -> 0 | AG198: 0 | AH198: 0
A199: 205 | B199: 137100 | C199: 1.02.2NP.005 | D199: pokoj 2L | E199: 15.22 | H199: =IF(ISBLANK(I199)," ",VLOOKUP(I199,'[6]Příloha_8_Ceník pravid_úklidu'!$A$9:$B$30,2,0)) -> ZDR0 | I199: 1 | J199: 2x(7x;Po-Ne) | K199: 2 | L199: 1 | M199: 2 | N199: 1 | O199: =IF(ISBLANK($K199),"",'[6]Pracovní dny'!$F$2) -> 252 | P199: =IF(ISBLANK($M199),"",'[6]Pracovní dny'!$F$3) -> 114 | Q199: =IF(ISBLANK($K199),"",'[6]Pracovní dny'!$F$4) -> 365 | R199: 732 | S199: 10 | T199: 0 | U199: 0 | V199: 2.4 | W199: 1 | X199: 1 | Y199: 0 | Z199: 0 | AA199: 0 | AB199: 0 | AC199: 0 | AD199: OM | AF199: =IF(ISBLANK($AE199),VLOOKUP($I199,'Příloha_8_Ceník pravid_úklidu'!$A$9:$K$30,8,0)+VLOOKUP($I199,'Příloha_8_Ceník pravid_úklidu'!$A$9:$K$30,10,0),"neoceňuje se") -> 0 | AG199: 0 | AH199: 0
A200: 206 | B200: 137100 | C200: 1.02.2NP.006 | D200: pokoj 2L | E200: 15.22 | H200: =IF(ISBLANK(I200)," ",VLOOKUP(I200,'[6]Příloha_8_Ceník pravid_úklidu'!$A$9:$B$30,2,0)) -> ZDR0 | I200: 1 | J200: 2x(7x;Po-Ne) | K200: 2 | L200: 1 | M200: 2 | N200: 1 | O200: =IF(ISBLANK($K200),"",'[6]Pracovní dny'!$F$2) -> 252 | P200: =IF(ISBLANK($M200),"",'[6]Pracovní dny'!$F$3) -> 114 | Q200: =IF(ISBLANK($K200),"",'[6]Pracovní dny'!$F$4) -> 365 | R200: 732 | S200: 37 | T200: 0 | U200: 0 | V200: 9.6 | W200: 4 | X200: 4 | Y200: 1.7 | Z200: 3 | AA200: 20.4 | AB200: PL | AC200: 0 | AD200: OM | AF200: =IF(ISBLANK($AE200),VLOOKUP($I200,'Příloha_8_Ceník pravid_úklidu'!$A$9:$K$30,8,0)+VLOOKUP($I200,'Příloha_8_Ceník pravid_úklidu'!$A$9:$K$30,10,0),"neoceňuje se") -> 0 | AG200: 0 | AH200: 0
A201: 207 | B201: 137100 | C201: 1.02.2NP.007 | D201: pokoj 2L + 1L intermediár | E201: 16.32 | H201: =IF(ISBLANK(I201)," ",VLOOKUP(I201,'[6]Příloha_8_Ceník pravid_úklidu'!$A$9:$B$30,2,0)) -> ZDR0 | I201: 1 | J201: 2x(7x;Po-Ne) | K201: 2 | L201: 1 | M201: 2 | N201: 1 | O201: =IF(ISBLANK($K201),"",'[6]Pracovní dny'!$F$2) -> 252 | P201: =IF(ISBLANK($M201),"",'[6]Pracovní dny'!$F$3) -> 114 | Q201: =IF(ISBLANK($K201),"",'[6]Pracovní dny'!$F$4) -> 365 | R201: =IF(AND(ISBLANK($K201),ISBLANK($M201)),"",$K201*$L201*$O201+$M201*$N201*$P201) -> 732 | S201: 1.5 | T201: 22 | U201: 3,N | V201: 4.4 | W201: 1 | X201: 1 | Y201: 3.8 | Z201: 1 | AA201: 15.2 | AB201: PL | AC201: 0 | AD201: OM | AF201: =IF(ISBLANK($AE201),VLOOKUP($I201,'Příloha_8_Ceník pravid_úklidu'!$A$9:$K$30,8,0)+VLOOKUP($I201,'Příloha_8_Ceník pravid_úklidu'!$A$9:$K$30,10,0),"neoceňuje se") -> 0 | AG201: 0 | AH201: 0
... 186 more rows

Sheet Budova č.3
A1: BUDOVA Č.3 PG + UROLOGIE | AH1: Příloha č. | AI1: 6_3
A2: Číslo místnosti dle PD | B2: NS | C2: čárový kód místnosti | D2: Název místnosti | E2: Podlaha | H2: Kód místnosti | I2: Číslo kódu místnosti | J2: Četnost úklidu | K2: Počet stěrů v pracovní den | L2: Frekvence úklidu v pracovních dnech v týdnu (Po-Pá) | M2: Počet stěrů v den pracovního volna | N2: Frekvence úklidu ve dnech pracovního klidu (So, Ne) | O2: Počet pracovních dnů v roce | P2: Počet dnů pracovního volna, svátků | Q2: Počet dnů v roce | R2: Počet stěrů v roce | S2: Stěny | V2: Dveře | X2: San. Zař. Počet | Y2: Okna | AD2: Strop typ | AE2: Neoceňuje se | AF2: Sazba za m2 nebo za hodinu | AG2: Celkem v Kč za rok bez DPH | AH2: Celkem v Kč za rok s DPH | AI2: Cena úklidu po malování a stavebních úpravách za den úklidu v Kč bez DPH
E3: Plocha celkem | F3: Úklidová plocha | S3: Omyvatelná plocha | Y3: Plocha 1 okna | Z3: Počet | AA3: Úklid. plocha | AB3: typ | AC3: Žaluzie typ
F4: Koberec | G4: Omyv.plocha | S4: Obklad | T4: Nátěr | U4: Jiné | V4: Plocha | W4: Počet
D5: Měrná jednotka: | E5: m2 | F5: m2 | G5: m2 | I5: ---- | J5: ---- | S5: m2 | T5: m2 | U5: m2 | V5: m2 | W5: ks | X5: ks | Y5: m2 | Z5: ks | AA5: m2 | AB5: ---- | AC5: ---- | AD5: ----
A7: 1.PODZEMNÍ PODLAŽÍ
A8: 1 | B8: 133100/138100/103102 | C8: 1.03.1PP.001 | D8: chodba | E8: 77.3 | H8: =IF(ISBLANK(I8)," ",VLOOKUP(I8,'[6]Příloha_8_Ceník pravid_úklidu'!$A$9:$B$30,2,0)) -> CHOD | I8: 6 | J8: 1x (5x;po-pá) | K8: 1 | L8: 1 | M8: 0 | N8: 0 | O8: =IF(ISBLANK($K8),"",'[6]Pracovní dny'!$F$2) -> 252 | P8: =IF(ISBLANK($M8),"",'[6]Pracovní dny'!$F$3) -> 114 | Q8: =IF(ISBLANK($K8),"",'[6]Pracovní dny'!$F$4) -> 365 | R8: =IF(AND(ISBLANK($K8),ISBLANK($M8)),"",$K8*$L8*$O8+$M8*$N8*$P8) -> 252 | S8: 0 | T8: X | U8: 0 | V8: 11.6 | W8: 1 | X8: 0 | Y8: 0 | Z8: 0 | AA8: 0 | AB8: 0 | AC8: 0 | AD8: MIN | AF8: =IF(ISBLANK($AE8),VLOOKUP($I8,'Příloha_8_Ceník pravid_úklidu'!$A$9:$K$30,8,0)+VLOOKUP($I8,'Příloha_8_Ceník pravid_úklidu'!$A$9:$K$30,10,0),"neoceňuje se") -> 0 | AG8: =IF(AF8="neoceňuje se",0,$E8*$R8*$AF8) -> 0 | AH8: =$AG8*1.21 -> 0
A9: 2 | B9: 133100/138100/103102 | C9: 1.03.1PP.002 | D9: zádveří | E9: 4.69 | H9: =IF(ISBLANK(I9)," ",VLOOKUP(I9,'[6]Příloha_8_Ceník pravid_úklidu'!$A$9:$B$30,2,0)) -> CHOD | I9: 6 | J9: 1x (5x;po-pá) | K9: 1 | L9: 1 | M9: 0 | N9: 0 | O9: =IF(ISBLANK($K9),"",'[6]Pracovní dny'!$F$2) -> 252 | P9: =IF(ISBLANK($M9),"",'[6]Pracovní dny'!$F$3) -> 114 | Q9: =IF(ISBLANK($K9),"",'[6]Pracovní dny'!$F$4) -> 365 | R9: 252 | S9: 0 | T9: X | U9: 0 | V9: 0 | W9: 0 | X9: 0 | Y9: 0 | Z9: 0 | AA9: 0 | AB9: 0 | AC9: 0 | AD9: MIN | AF9: =IF(ISBLANK($AE9),VLOOKUP($I9,'Příloha_8_Ceník pravid_úklidu'!$A$9:$K$30,8,0)+VLOOKUP($I9,'Příloha_8_Ceník pravid_úklidu'!$A$9:$K$30,10,0),"neoceňuje se") -> 0 | AG9: 0 | AH9: 0
A10: 3 | B10: 133100 | C10: 1.03.1PP.003 | D10: sklad | E10: 38.45 | H10: =IF(ISBLANK(I10)," ",VLOOKUP(I10,'[6]Příloha_8_Ceník pravid_úklidu'!$A$9:$B$30,2,0)) -> SKLA | I10: 17 | J10: 1xměsíčně | K10: 1 | L10: 0.05 | M10: 0 | N10: 0 | O10: =IF(ISBLANK($K10),"",'[6]Pracovní dny'!$F$2) -> 252 | P10: =IF(ISBLANK($M10),"",'[6]Pracovní dny'!$F$3) -> 114 | Q10: =IF(ISBLANK($K10),"",'[6]Pracovní dny'!$F$4) -> 365 | R10: 12.6 | S10: 0 | T10: 0 | U10: X | V10: 3.6 | W10: 1 | Y10: 1.2 | Z10: 2 | AA10: 4.8 | AB10: PL | AC10: 0 | AD10: OM | AF10: =IF(ISBLANK($AE10),VLOOKUP($I10,'Příloha_8_Ceník pravid_úklidu'!$A$9:$K$30,8,0)+VLOOKUP($I10,'Příloha_8_Ceník pravid_úklidu'!$A$9:$K$30,10,0),"neoceňuje se") -> 0 | AG10: 0 | AH10: 0
A11: 4 | B11: 133100 | C11: 1.03.1PP.004 | D11: sklad | E11: 18.7 | H11: =IF(ISBLANK(I11)," ",VLOOKUP(I11,'[6]Příloha_8_Ceník pravid_úklidu'!$A$9:$B$30,2,0)) -> SKLA | I11: 17 | J11: 1xměsíčně | K11: 1 | L11: 0.05 | M11: 0 | N11: 0 | O11: =IF(ISBLANK($K11),"",'[6]Pracovní dny'!$F$2) -> 252 | P11: =IF(ISBLANK($M11),"",'[6]Pracovní dny'!$F$3) -> 114 | Q11: =IF(ISBLANK($K11),"",'[6]Pracovní dny'!$F$4) -> 365 | R11: 12.6 | S11: 0 | T11: 0 | U11: X | V11: 3.6 | W11: 1 | X11: 0 | Y11: 1.2 | Z11: 1 | AA11: 2.4 | AB11: PL | AC11: 0 | AD11: OM | AF11: =IF(ISBLANK($AE11),VLOOKUP($I11,'Příloha_8_Ceník pravid_úklidu'!$A$9:$K$30,8,0)+VLOOKUP($I11,'Příloha_8_Ceník pravid_úklidu'!$A$9:$K$30,10,0),"neoceňuje se") -> 0 | AG11: 0 | AH11: 0
A12: 5 | B12: 133100 | C12: 1.03.1PP.005 | D12: sociální zařízení | E12: 3.25 | H12: =IF(ISBLANK(I12)," ",VLOOKUP(I12,'[6]Příloha_8_Ceník pravid_úklidu'!$A$9:$B$30,2,0)) -> TOAL | I12: 7 | J12: 2x;po-pá | K12: 1 | L12: 0.4 | M12: 0 | N12: 0 | O12: =IF(ISBLANK($K12),"",'[6]Pracovní dny'!$F$2) -> 252 | P12: =IF(ISBLANK($M12),"",'[6]Pracovní dny'!$F$3) -> 114 | Q12: =IF(ISBLANK($K12),"",'[6]Pracovní dny'!$F$4) -> 365 | R12: 100.8 | S12: 0 | T12: 0 | U12: 0 | V12: 3.2 | W12: 1 | X12: 0 | Y12: 0 | Z12: 0 | AA12: 0 | AB12: 0 | AC12: 0 | AD12: OM | AF12: =IF(ISBLANK($AE12),VLOOKUP($I12,'Příloha_8_Ceník pravid_úklidu'!$A$9:$K$30,8,0)+VLOOKUP($I12,'Příloha_8_Ceník pravid_úklidu'!$A$9:$K$30,10,0),"neoceňuje se") -> 0 | AG12: 0 | AH12: 0
A13: 6 | B13: 133100 | C13: 1.03.1PP.006 | D13: sociální zařízení | E13: 3.25 | H13: =IF(ISBLANK(I13)," ",VLOOKUP(I13,'[6]Příloha_8_Ceník pravid_úklidu'!$A$9:$B$30,2,0)) -> TOAL | I13: 7 | J13: 2x;po-pá | K13: 1 | L13: 0.4 | M13: 0 | N13: 0 | O13: =IF(ISBLANK($K13),"",'[6]Pracovní dny'!$F$2) -> 252 | P13: =IF(ISBLANK($M13),"",'[6]Pracovní dny'!$F$3) -> 114 | Q13: =IF(ISBLANK($K13),"",'[6]Pracovní dny'!$F$4) -> 365 | R13: 100.8 | S13: 13.2 | T13: 0 | U13: 0 | V13: 2.4 | W13: 1 | X13: 3 | Y13: 0 | Z13: 0 | AA13: 0 | AB13: 0 | AC13: 0 | AD13: OM | AF13: =IF(ISBLANK($AE13),VLOOKUP($I13,'Příloha_8_Ceník pravid_úklidu'!$A$9:$K$30,8,0)+VLOOKUP($I13,'Příloha_8_Ceník pravid_úklidu'!$A$9:$K$30,10,0),"neoceňuje se") -> 0 | AG13: 0 | AH13: 0
A14: 7 | B14: 133100 | C14: 1.03.1PP.007 | D14: sanitáři | E14: 11.7 | H14: =IF(ISBLANK(I14)," ",VLOOKUP(I14,'[6]Příloha_8_Ceník pravid_úklidu'!$A$9:$B$30,2,0)) -> KANC | I14: 4 | J14: 2x;po-pá | K14: 1 | L14: 0.4 | M14: 0 | N14: 0 | O14: =IF(ISBLANK($K14),"",'[6]Pracovní dny'!$F$2) -> 252 | P14: =IF(ISBLANK($M14),"",'[6]Pracovní dny'!$F$3) -> 114 | Q14: =IF(ISBLANK($K14),"",'[6]Pracovní dny'!$F$4) -> 365 | R14: 100.8 | S14: 1 | T14: 0 | U14: N | V14: 3.2 | W14: 1 | X14: 1 | Y14: 2.7 | Z14: 1 | AA14: 5.4 | AB14: PL | AC14: 0 | AD14: OM | AF14: =IF(ISBLANK($AE14),VLOOKUP($I14,'Příloha_8_Ceník pravid_úklidu'!$A$9:$K$30,8,0)+VLOOKUP($I14,'Příloha_8_Ceník pravid_úklidu'!$A$9:$K$30,10,0),"neoceňuje se") -> 0 | AG14: 0 | AH14: 0
A15: 8 | B15: 138100 | C15: 1.03.1PP.008 | D15: ambulance PG | E15: 18.7 | H15: =IF(ISBLANK(I15)," ",VLOOKUP(I15,'[6]Příloha_8_Ceník pravid_úklidu'!$A$9:$B$30,2,0)) -> ZDR1 | I15: 2 | J15: 3x;po-pá | K15: 1 | L15: 0.6 | M15: 0 | N15: 0 | O15: =IF(ISBLANK($K15),"",'[6]Pracovní dny'!$F$2) -> 252 | P15: =IF(ISBLANK($M15),"",'[6]Pracovní dny'!$F$3) -> 114 | Q15: =IF(ISBLANK($K15),"",'[6]Pracovní dny'!$F$4) -> 365 | R15: 151.2 | S15: 29.5 | T15: 0 | U15: LN | V15: 7.6 | W15: 2 | X15: 2 | Y15: 2.7 | Z15: 1 | AA15: 5.4 | AB15: PL | AC15: 0 | AD15: OM | AF15: =IF(ISBLANK($AE15),VLOOKUP($I15,'Příloha_8_Ceník pravid_úklidu'!$A$9:$K$30,8,0)+VLOOKUP($I15,'Příloha_8_Ceník pravid_úklidu'!$A$9:$K$30,10,0),"neoceňuje se") -> 0 | AG15: 0 | AH15: 0
A16: 9 | B16: 138100 | C16: 1.03.1PP.009 | D16: ambulance PG | E16: 18.7 | H16: =IF(ISBLANK(I16)," ",VLOOKUP(I16,'[6]Příloha_8_Ceník pravid_úklidu'!$A$9:$B$30,2,0)) -> ZDR1 | I16: 2 | J16: 3x;po-pá | K16: 1 | L16: 0.6 | M16: 0 | N16: 0 | O16: =IF(ISBLANK($K16),"",'[6]Pracovní dny'!$F$2) -> 252 | P16: =IF(ISBLANK($M16),"",'[6]Pracovní dny'!$F$3) -> 114 | Q16: =IF(ISBLANK($K16),"",'[6]Pracovní dny'!$F$4) -> 365 | R16: 151.2 | S16: 29.5 | T16: 0 | U16: LN | V16: 4.4 | W16: 1 | X16: 3 | Y16: 2.7 | Z16: 1 | AA16: 5.4 | AB16: PL | AC16: 0 | AD16: OM | AF16: =IF(ISBLANK($AE16),VLOOKUP($I16,'Příloha_8_Ceník pravid_úklidu'!$A$9:$K$30,8,0)+VLOOKUP($I16,'Příloha_8_Ceník pravid_úklidu'!$A$9:$K$30,10,0),"neoceňuje se") -> 0 | AG16: 0 | AH16: 0
A17: 10 | B17: 138100 | C17: 1.03.1PP.010 | D17: lékařský pokoj PG | E17: 16.8 | H17: =IF(ISBLANK(I17)," ",VLOOKUP(I17,'[6]Příloha_8_Ceník pravid_úklidu'!$A$9:$B$30,2,0)) -> KANC | I17: 4 | J17: 2x;po-pá | K17: 1 | L17: 0.4 | M17: 0 | N17: 0 | O17: =IF(ISBLANK($K17),"",'[6]Pracovní dny'!$F$2) -> 252 | P17: =IF(ISBLANK($M17),"",'[6]Pracovní dny'!$F$3) -> 114 | Q17: =IF(ISBLANK($K17),"",'[6]Pracovní dny'!$F$4) -> 365 | R17: 100.8 | S17: 1.5 | T17: 0 | U17: N | V17: 3.2 | W17: 1 | X17: 2 | Y17: 2.7 | Z17: 1 | AA17: 5.4 | AB17: PL | AC17: 0 | AD17: OM | AF17: =IF(ISBLANK($AE17),VLOOKUP($I17,'Příloha_8_Ceník pravid_úklidu'!$A$9:$K$30,8,0)+VLOOKUP($I17,'Příloha_8_Ceník pravid_úklidu'!$A$9:$K$30,10,0),"neoceňuje se") -> 0 | AG17: 0 | AH17: 0
A18: 11 | B18: 138100 | C18: 1.03.1PP.011 | D18: zasedací místnost | E18: 57.4 | H18: =IF(ISBLANK(I18)," ",VLOOKUP(I18,'[6]Příloha_8_Ceník pravid_úklidu'!$A$9:$B$30,2,0)) -> KANC | I18: 4 | J18: 1x(5xpo-pá) | K18: 1 | L18: 1 | M18: 0 | N18: 0 | O18: =IF(ISBLANK($K18),"",'[6]Pracovní dny'!$F$2) -> 252 | P18: =IF(ISBLANK($M18),"",'[6]Pracovní dny'!$F$3) -> 114 | Q18: =IF(ISBLANK($K18),"",'[6]Pracovní dny'!$F$4) -> 365 | R18: 252 | S18: 0 | T18: X | U18: N | V18: 3.2 | W18: 1 | X18: 0 | Y18: 2.7 | Z18: 3 | AA18: 16.2 | AB18: PL | AC18: 0 | AD18: OM | AF18: =IF(ISBLANK($AE18),VLOOKUP($I18,'Příloha_8_Ceník pravid_úklidu'!$A$9:$K$30,8,0)+VLOOKUP($I18,'Příloha_8_Ceník pravid_úklidu'!$A$9:$K$30,10,0),"neoceňuje se") -> 0 | AG18: 0 | AH18: 0
A19: 12 | B19: 138100 | C19: 1.03.1PP.012 | D19: kabinet | E19: 18.6 | H19: =IF(ISBLANK(I19)," ",VLOOKUP(I19,'[6]Příloha_8_Ceník pravid_úklidu'!$A$9:$B$30,2,0)) -> KANC | I19: 4 | J19: 1x(5xpo-pá) | K19: 1 | L19: 1 | M19: 0 | N19: 0 | O19: =IF(ISBLANK($K19),"",'[6]Pracovní dny'!$F$2) -> 252 | P19: =IF(ISBLANK($M19),"",'[6]Pracovní dny'!$F$3) -> 114 | Q19: =IF(ISBLANK($K19),"",'[6]Pracovní dny'!$F$4) -> 365 | R19: 252 | S19: 1.5 | T19: X | U19: N | V19: 3.2 | W19: 1 | X19: 2 | Y19: 2.7 | Z19: 1 | AA19: 5.4 | AB19: PL | AC19: 0 | AD19: OM | AF19: =IF(ISBLANK($AE19),VLOOKUP($I19,'Příloha_8_Ceník pravid_úklidu'!$A$9:$K$30,8,0)+VLOOKUP($I19,'Příloha_8_Ceník pravid_úklidu'!$A$9:$K$30,10,0),"neoceňuje se") -> 0 | AG19: 0 | AH19: 0
A20: 13 | B20: 138100 | C20: 1.03.1PP.013 | D20: lékařský pokoj | E20: 11.6 | H20: =IF(ISBLANK(I20)," ",VLOOKUP(I20,'[6]Příloha_8_Ceník pravid_úklidu'!$A$9:$B$30,2,0)) -> KANC | I20: 4 | J20: 2x;po-pá | K20: 1 | L20: 0.4 | M20: 0 | N20: 0 | O20: =IF(ISBLANK($K20),"",'[6]Pracovní dny'!$F$2) -> 252 | P20: =IF(ISBLANK($M20),"",'[6]Pracovní dny'!$F$3) -> 114 | Q20: =IF(ISBLANK($K20),"",'[6]Pracovní dny'!$F$4) -> 365 | R20: 100.8 | S20: 0 | T20: 0 | U20: N | V20: 3.2 | W20: 1 | X20: 0 | Y20: 2.7 | Z20: 1 | AA20: 5.4 | AB20: PL | AC20: 0 | AD20: OM | AF20: =IF(ISBLANK($AE20),VLOOKUP($I20,'Příloha_8_Ceník pravid_úklidu'!$A$9:$K$30,8,0)+VLOOKUP($I20,'Příloha_8_Ceník pravid_úklidu'!$A$9:$K$30,10,0),"neoceňuje se") -> 0 | AG20: 0 | AH20: 0
A21: 14 | B21: 138100 | C21: 1.03.1PP.014 | D21: předsíň | E21: 3.2 | H21: =IF(ISBLANK(I21)," ",VLOOKUP(I21,'[6]Příloha_8_Ceník pravid_úklidu'!$A$9:$B$30,2,0)) -> CHOD | I21: 6 | J21: 2x;po-pá | K21: 1 | L21: 0.4 | M21: 0 | N21: 0 | O21: =IF(ISBLANK($K21),"",'[6]Pracovní dny'!$F$2) -> 252 | P21: =IF(ISBLANK($M21),"",'[6]Pracovní dny'!$F$3) -> 114 | Q21: =IF(ISBLANK($K21),"",'[6]Pracovní dny'!$F$4) -> 365 | R21: 100.8 | S21: 0 | T21: X | U21: 0 | V21: 3.2 | W21: 1 | X21: 0 | Y21: 0 | Z21: 0 | AA21: 0 | AB21: 0 | AC21: 0 | AD21: OM | AF21: =IF(ISBLANK($AE21),VLOOKUP($I21,'Příloha_8_Ceník pravid_úklidu'!$A$9:$K$30,8,0)+VLOOKUP($I21,'Příloha_8_Ceník pravid_úklidu'!$A$9:$K$30,10,0),"neoceňuje se") -> 0 | AG21: 0 | AH21: 0
A22: 15 | B22: 138100 | C22: 1.03.1PP.015 | D22: sociální zařízení | E22: 3.25 | H22: =IF(ISBLANK(I22)," ",VLOOKUP(I22,'[6]Příloha_8_Ceník pravid_úklidu'!$A$9:$B$30,2,0)) -> TOAL | I22: 7 | J22: 2x;po-pá | K22: 1 | L22: 0.4 | M22: 0 | N22: 0 | O22: =IF(ISBLANK($K22),"",'[6]Pracovní dny'!$F$2) -> 252 | P22: =IF(ISBLANK($M22),"",'[6]Pracovní dny'!$F$3) -> 114 | Q22: =IF(ISBLANK($K22),"",'[6]Pracovní dny'!$F$4) -> 365 | R22: 100.8 | S22: 13.2 | T22: 0 | U22: 0 | V22: 2.4 | W22: 1 | X22: 3 | Y22: 0 | Z22: 0 | AA22: 0 | AB22: 0 | AC22: 0 | AD22: OM | AF22: =IF(ISBLANK($AE22),VLOOKUP($I22,'Příloha_8_Ceník pravid_úklidu'!$A$9:$K$30,8,0)+VLOOKUP($I22,'Příloha_8_Ceník pravid_úklidu'!$A$9:$K$30,10,0),"neoceňuje se") -> 0 | AG22: 0 | AH22: 0
A23: 16 | B23: 138100 | C23: 1.03.1PP.016 | D23: lékařský pokoj | E23: 11.6 | H23: =IF(ISBLANK(I23)," ",VLOOKUP(I23,'[6]Příloha_8_Ceník pravid_úklidu'!$A$9:$B$30,2,0)) -> KANC | I23: 4 | J23: 2x;po-pá | K23: 1 | L23: 0.4 | M23: 0 | N23: 0 | O23: =IF(ISBLANK($K23),"",'[6]Pracovní dny'!$F$2) -> 252 | P23: =IF(ISBLANK($M23),"",'[6]Pracovní dny'!$F$3) -> 114 | Q23: =IF(ISBLANK($K23),"",'[6]Pracovní dny'!$F$4) -> 365 | R23: 100.8 | S23: 0 | T23: X | U23: N | V23: 3.2 | W23: 1 | X23: 0 | Y23: 2.7 | Z23: 1 | AA23: 5.4 | AB23: PL | AC23: 0 | AD23: OM | AF23: =IF(ISBLANK($AE23),VLOOKUP($I23,'Příloha_8_Ceník pravid_úklidu'!$A$9:$K$30,8,0)+VLOOKUP($I23,'Příloha_8_Ceník pravid_úklidu'!$A$9:$K$30,10,0),"neoceňuje se") -> 0 | AG23: 0 | AH23: 0
A24: 17 | B24: 138100 | C24: 1.03.1PP.017 | D24: sociální zařízení | E24: 3.25 | H24: =IF(ISBLANK(I24)," ",VLOOKUP(I24,'[6]Příloha_8_Ceník pravid_úklidu'!$A$9:$B$30,2,0)) -> TOAL | I24: 7 | J24: 2x;po-pá | K24: 1 | L24: 0.4 | M24: 0 | N24: 0 | O24: =IF(ISBLANK($K24),"",'[6]Pracovní dny'!$F$2) -> 252 | P24: =IF(ISBLANK($M24),"",'[6]Pracovní dny'!$F$3) -> 114 | Q24: =IF(ISBLANK($K24),"",'[6]Pracovní dny'!$F$4) -> 365 | R24: 100.8 | S24: 13.2 | T24: 0 | U24: 0 | V24: 2.4 | W24: 1 | X24: 3 | Y24: 0 | Z24: 0 | AA24: 0 | AB24: 0 | AC24: 0 | AD24: OM | AF24: =IF(ISBLANK($AE24),VLOOKUP($I24,'Příloha_8_Ceník pravid_úklidu'!$A$9:$K$30,8,0)+VLOOKUP($I24,'Příloha_8_Ceník pravid_úklidu'!$A$9:$K$30,10,0),"neoceňuje se") -> 0 | AG24: 0 | AH24: 0
A25: 18 | B25: 138100 | C25: 1.03.1PP.018 | D25: předsíň | E25: 3.4 | H25: =IF(ISBLANK(I25)," ",VLOOKUP(I25,'[6]Příloha_8_Ceník pravid_úklidu'!$A$9:$B$30,2,0)) -> CHOD | I25: 6 | J25: 2x;po-pá | K25: 1 | L25: 0.4 | M25: 0 | N25: 0 | O25: =IF(ISBLANK($K25),"",'[6]Pracovní dny'!$F$2) -> 252 | P25: =IF(ISBLANK($M25),"",'[6]Pracovní dny'!$F$3) -> 114 | Q25: =IF(ISBLANK($K25),"",'[6]Pracovní dny'!$F$4) -> 365 | R25: 100.8 | S25: 0 | T25: X | U25: 0 | V25: 3.2 | W25: 1 | X25: 0 | Y25: 0 | Z25: 0 | AA25: 0 | AB25: 0 | AC25: 0 | AD25: OM | AF25: =IF(ISBLANK($AE25),VLOOKUP($I25,'Příloha_8_Ceník pravid_úklidu'!$A$9:$K$30,8,0)+VLOOKUP($I25,'Příloha_8_Ceník pravid_úklidu'!$A$9:$K$30,10,0),"neoceňuje se") -> 0 | AG25: 0 | AH25: 0
A26: 19 | B26: 138100 | C26: 1.03.1PP.019 | D26: lékařský pokoj | E26: 11.65 | H26: =IF(ISBLANK(I26)," ",VLOOKUP(I26,'[6]Příloha_8_Ceník pravid_úklidu'!$A$9:$B$30,2,0)) -> KANC | I26: 4 | J26: 2x;po-pá | K26: 1 | L26: 0.4 | M26: 0 | N26: 0 | O26: =IF(ISBLANK($K26),"",'[6]Pracovní dny'!$F$2) -> 252 | P26: =IF(ISBLANK($M26),"",'[6]Pracovní dny'!$F$3) -> 114 | Q26: =IF(ISBLANK($K26),"",'[6]Pracovní dny'!$F$4) -> 365 | R26: 100.8 | S26: 0 | T26: X | U26: N | V26: 3.2 | W26: 1 | X26: 0 | Y26: 2.7 | Z26: 1 | AA26: 5.4 | AB26: PL | AC26: 0 | AD26: OM | AF26: =IF(ISBLANK($AE26),VLOOKUP($I26,'Příloha_8_Ceník pravid_úklidu'!$A$9:$K$30,8,0)+VLOOKUP($I26,'Příloha_8_Ceník pravid_úklidu'!$A$9:$K$30,10,0),"neoceňuje se") -> 0 | AG26: 0 | AH26: 0
A27: 20 | B27: 138100 | C27: 1.03.1PP.020 | D27: předsíň | E27: 3.2 | H27: =IF(ISBLANK(I27)," ",VLOOKUP(I27,'[6]Příloha_8_Ceník pravid_úklidu'!$A$9:$B$30,2,0)) -> CHOD | I27: 6 | J27: 2x;po-pá | K27: 1 | L27: 0.4 | M27: 0 | N27: 0 | O27: =IF(ISBLANK($K27),"",'[6]Pracovní dny'!$F$2) -> 252 | P27: =IF(ISBLANK($M27),"",'[6]Pracovní dny'!$F$3) -> 114 | Q27: =IF(ISBLANK($K27),"",'[6]Pracovní dny'!$F$4) -> 365 | R27: 100.8 | S27: 0 | T27: X | U27: 0 | V27: 3.2 | W27: 1 | X27: 0 | Y27: 0 | Z27: 0 | AA27: 0 | AB27: 0 | AC27: 0 | AD27: OM | AF27: =IF(ISBLANK($AE27),VLOOKUP($I27,'Příloha_8_Ceník pravid_úklidu'!$A$9:$K$30,8,0)+VLOOKUP($I27,'Příloha_8_Ceník pravid_úklidu'!$A$9:$K$30,10,0),"neoceňuje se") -> 0 | AG27: 0 | AH27: 0
A28: 21 | B28: 138100 | C28: 1.03.1PP.021 | D28: sociální zařízení | E28: 3.25 | H28: =IF(ISBLANK(I28)," ",VLOOKUP(I28,'[6]Příloha_8_Ceník pravid_úklidu'!$A$9:$B$30,2,0)) -> TOAL | I28: 7 | J28: 2x;po-pá | K28: 1 | L28: 0.4 | M28: 0 | N28: 0 | O28: =IF(ISBLANK($K28),"",'[6]Pracovní dny'!$F$2) -> 252 | P28: =IF(ISBLANK($M28),"",'[6]Pracovní dny'!$F$3) -> 114 | Q28: =IF(ISBLANK($K28),"",'[6]Pracovní dny'!$F$4) -> 365 | R28: 100.8 | S28: 13.2 | T28: 0 | U28: 0 | V28: 2.4 | W28: 1 | X28: 3 | Y28: 0 | Z28: 0 | AA28: 0 | AB28: 0 | AC28: 0 | AD28: OM | AF28: =IF(ISBLANK($AE28),VLOOKUP($I28,'Příloha_8_Ceník pravid_úklidu'!$A$9:$K$30,8,0)+VLOOKUP($I28,'Příloha_8_Ceník pravid_úklidu'!$A$9:$K$30,10,0),"neoceňuje se") -> 0 | AG28: 0 | AH28: 0
A29: 22 | B29: 138100 | C29: 1.03.1PP.022 | D29: lékařský pokoj | E29: 11.75 | H29: =IF(ISBLANK(I29)," ",VLOOKUP(I29,'[6]Příloha_8_Ceník pravid_úklidu'!$A$9:$B$30,2,0)) -> KANC | I29: 4 | J29: 2x;po-pá | K29: 1 | L29: 0.4 | M29: 0 | N29: 0 | O29: =IF(ISBLANK($K29),"",'[6]Pracovní dny'!$F$2) -> 252 | P29: =IF(ISBLANK($M29),"",'[6]Pracovní dny'!$F$3) -> 114 | Q29: =IF(ISBLANK($K29),"",'[6]Pracovní dny'!$F$4) -> 365 | R29: 100.8 | S29: 0 | T29: X | U29: N | V29: 3.2 | W29: 1 | X29: 0 | Y29: 2.7 | Z29: 1 | AA29: 5.4 | AB29: PL | AC29: 0 | AD29: OM | AF29: =IF(ISBLANK($AE29),VLOOKUP($I29,'Příloha_8_Ceník pravid_úklidu'!$A$9:$K$30,8,0)+VLOOKUP($I29,'Příloha_8_Ceník pravid_úklidu'!$A$9:$K$30,10,0),"neoceňuje se") -> 0 | AG29: 0 | AH29: 0
A30: 23 | B30: 138100 | C30: 1.03.1PP.023 | D30: sociální zařízení | E30: 3.25 | H30: =IF(ISBLANK(I30)," ",VLOOKUP(I30,'[6]Příloha_8_Ceník pravid_úklidu'!$A$9:$B$30,2,0)) -> TOAL | I30: 7 | J30: 2x;po-pá | K30: 1 | L30: 0.4 | M30: 0 | N30: 0 | O30: =IF(ISBLANK($K30),"",'[6]Pracovní dny'!$F$2) -> 252 | P30: =IF(ISBLANK($M30),"",'[6]Pracovní dny'!$F$3) -> 114 | Q30: =IF(ISBLANK($K30),"",'[6]Pracovní dny'!$F$4) -> 365 | R30: 100.8 | S30: 13.2 | T30: 0 | U30: 0 | V30: 2.4 | W30: 1 | X30: 3 | Y30: 0 | Z30: 0 | AA30: 0 | AB30: 0 | AC30: 0 | AD30: OM | AF30: =IF(ISBLANK($AE30),VLOOKUP($I30,'Příloha_8_Ceník pravid_úklidu'!$A$9:$K$30,8,0)+VLOOKUP($I30,'Příloha_8_Ceník pravid_úklidu'!$A$9:$K$30,10,0),"neoceňuje se") -> 0 | AG30: 0 | AH30: 0
A31: 24 | B31: 138100 | C31: 1.03.1PP.024 | D31: předsíň | E31: 3.3 | H31: =IF(ISBLANK(I31)," ",VLOOKUP(I31,'[6]Příloha_8_Ceník pravid_úklidu'!$A$9:$B$30,2,0)) -> CHOD | I31: 6 | J31: 2x;po-pá | K31: 1 | L31: 0.4 | M31: 0 | N31: 0 | O31: =IF(ISBLANK($K31),"",'[6]Pracovní dny'!$F$2) -> 252 | P31: =IF(ISBLANK($M31),"",'[6]Pracovní dny'!$F$3) -> 114 | Q31: =IF(ISBLANK($K31),"",'[6]Pracovní dny'!$F$4) -> 365 | R31: 100.8 | S31: 0 | T31: X | U31: 0 | V31: 3.2 | W31: 1 | X31: 0 | Y31: 0 | Z31: 0 | AA31: 0 | AB31: 0 | AC31: 0 | AD31: OM | AF31: =IF(ISBLANK($AE31),VLOOKUP($I31,'Příloha_8_Ceník pravid_úklidu'!$A$9:$K$30,8,0)+VLOOKUP($I31,'Příloha_8_Ceník pravid_úklidu'!$A$9:$K$30,10,0),"neoceňuje se") -> 0 | AG31: 0 | AH31: 0
A32: 25 | B32: 138100 | C32: 1.03.1PP.025 | D32: lékařský pokoj | E32: 11.7 | H32: =IF(ISBLANK(I32)," ",VLOOKUP(I32,'[6]Příloha_8_Ceník pravid_úklidu'!$A$9:$B$30,2,0)) -> KANC | I32: 4 | J32: 2x;po-pá | K32: 1 | L32: 0.4 | M32: 0 | N32: 0 | O32: =IF(ISBLANK($K32),"",'[6]Pracovní dny'!$F$2) -> 252 | P32: =IF(ISBLANK($M32),"",'[6]Pracovní dny'!$F$3) -> 114 | Q32: =IF(ISBLANK($K32),"",'[6]Pracovní dny'!$F$4) -> 365 | R32: 100.8 | S32: 0 | T32: X | U32: N | V32: 3.2 | W32: 1 | X32: 0 | Y32: 2.7 | Z32: 1 | AA32: 5.4 | AB32: PL | AC32: 0 | AD32: OM | AF32: =IF(ISBLANK($AE32),VLOOKUP($I32,'Příloha_8_Ceník pravid_úklidu'!$A$9:$K$30,8,0)+VLOOKUP($I32,'Příloha_8_Ceník pravid_úklidu'!$A$9:$K$30,10,0),"neoceňuje se") -> 0 | AG32: 0 | AH32: 0
A33: 26 | B33: 138100 | C33: 1.03.1PP.026 | D33: předsíň | E33: 3.25 | H33: =IF(ISBLANK(I33)," ",VLOOKUP(I33,'[6]Příloha_8_Ceník pravid_úklidu'!$A$9:$B$30,2,0)) -> CHOD | I33: 6 | J33: 2x;po-pá | K33: 1 | L33: 0.4 | M33: 0 | N33: 0 | O33: =IF(ISBLANK($K33),"",'[6]Pracovní dny'!$F$2) -> 252 | P33: =IF(ISBLANK($M33),"",'[6]Pracovní dny'!$F$3) -> 114 | Q33: =IF(ISBLANK($K33),"",'[6]Pracovní dny'!$F$4) -> 365 | R33: 100.8 | S33: 0 | T33: X | U33: 0 | V33: 3.2 | W33: 1 | X33: 0 | Y33: 0 | Z33: 0 | AA33: 0 | AB33: 0 | AC33: 0 | AD33: OM | AF33: =IF(ISBLANK($AE33),VLOOKUP($I33,'Příloha_8_Ceník pravid_úklidu'!$A$9:$K$30,8,0)+VLOOKUP($I33,'Příloha_8_Ceník pravid_úklidu'!$A$9:$K$30,10,0),"neoceňuje se") -> 0 | AG33: 0 | AH33: 0
A34: 27 | B34: 138100 | C34: 1.03.1PP.027 | D34: sociální zařízení | E34: 3.25 | H34: =IF(ISBLANK(I34)," ",VLOOKUP(I34,'[6]Příloha_8_Ceník pravid_úklidu'!$A$9:$B$30,2,0)) -> TOAL | I34: 7 | J34: 2x;po-pá | K34: 1 | L34: 0.4 | M34: 0 | N34: 0 | O34: =IF(ISBLANK($K34),"",'[6]Pracovní dny'!$F$2) -> 252 | P34: =IF(ISBLANK($M34),"",'[6]Pracovní dny'!$F$3) -> 114 | Q34: =IF(ISBLANK($K34),"",'[6]Pracovní dny'!$F$4) -> 365 | R34: 100.8 | S34: 13.2 | T34: 0 | U34: 0 | V34: 2.4 | W34: 1 | X34: 3 | Y34: 0 | Z34: 0 | AA34: 0 | AB34: 0 | AC34: 0 | AD34: OM | AF34: =IF(ISBLANK($AE34),VLOOKUP($I34,'Příloha_8_Ceník pravid_úklidu'!$A$9:$K$30,8,0)+VLOOKUP($I34,'Příloha_8_Ceník pravid_úklidu'!$A$9:$K$30,10,0),"neoceňuje se") -> 0 | AG34: 0 | AH34: 0
A35: 28 | B35: 138100 | C35: 1.03.1PP.028 | D35: umývárna | E35: 22.9 | H35: =IF(ISBLANK(I35)," ",VLOOKUP(I35,'[6]Příloha_8_Ceník pravid_úklidu'!$A$9:$B$30,2,0)) -> TOAL | I35: 7 | J35: 2x;po-pá | K35: 1 | L35: 0.4 | M35: 0 | N35: 0 | O35: =IF(ISBLANK($K35),"",'[6]Pracovní dny'!$F$2) -> 252 | P35: =IF(ISBLANK($M35),"",'[6]Pracovní dny'!$F$3) -> 114 | Q35: =IF(ISBLANK($K35),"",'[6]Pracovní dny'!$F$4) -> 365 | R35: 100.8 | S35: 46 | T35: 0 | U35: 0 | V35: 2.8 | W35: 1 | X35: 11 | Y35: 1.2 | Z35: 1 | AA35: 2.4 | AB35: PL | AC35: 0 | AD35: OM | AF35: =IF(ISBLANK($AE35),VLOOKUP($I35,'Příloha_8_Ceník pravid_úklidu'!$A$9:$K$30,8,0)+VLOOKUP($I35,'Příloha_8_Ceník pravid_úklidu'!$A$9:$K$30,10,0),"neoceňuje se") -> 0 | AG35: 0 | AH35: 0
A36: 29 | B36: 138100 | C36: 1.03.1PP.029 | D36: šatna | E36: 139.25 | H36: =IF(ISBLANK(I36)," ",VLOOKUP(I36,'[6]Příloha_8_Ceník pravid_úklidu'!$A$9:$B$30,2,0)) -> SATN | I36: 10 | J36: 2x;po-pá | K36: 1 | L36: 0.4 | M36: 0 | N36: 0 | O36: =IF(ISBLANK($K36),"",'[6]Pracovní dny'!$F$2) -> 252 | P36: =IF(ISBLANK($M36),"",'[6]Pracovní dny'!$F$3) -> 114 | Q36: =IF(ISBLANK($K36),"",'[6]Pracovní dny'!$F$4) -> 365 | R36: 100.8 | S36: 0 | T36: X | U36: N | V36: 6.4 | W36: 2 | X36: 0 | Y36: 1.2 | Z36: 6 | AA36: 14.4 | AB36: PL | AC36: 0 | AD36: OM | AF36: =IF(ISBLANK($AE36),VLOOKUP($I36,'Příloha_8_Ceník pravid_úklidu'!$A$9:$K$30,8,0)+VLOOKUP($I36,'Příloha_8_Ceník pravid_úklidu'!$A$9:$K$30,10,0),"neoceňuje se") -> 0 | AG36: 0 | AH36: 0
A37: 30 | B37: 138100 | C37: 1.03.1PP.030 | D37: schodiště zadní | E37: 27.7 | H37: =IF(ISBLANK(I37)," ",VLOOKUP(I37,'[6]Příloha_8_Ceník pravid_úklidu'!$A$9:$B$30,2,0)) -> SCHO | I37: 8 | J37: 1x;po-pá | K37: 1 | L37: 0.2 | M37: 0 | N37: 0 | O37: =IF(ISBLANK($K37),"",'[6]Pracovní dny'!$F$2) -> 252 | P37: =IF(ISBLANK($M37),"",'[6]Pracovní dny'!$F$3) -> 114 | Q37: =IF(ISBLANK($K37),"",'[6]Pracovní dny'!$F$4) -> 365 | R37: 50.4 | S37: 0 | T37: 0 | U37: X | V37: 21 | W37: 2 | X37: 0 | Y37: 0 | Z37: 0 | AA37: 0 | AB37: 0 | AC37: 0 | AD37: OM | AF37: =IF(ISBLANK($AE37),VLOOKUP($I37,'Příloha_8_Ceník pravid_úklidu'!$A$9:$K$30,8,0)+VLOOKUP($I37,'Příloha_8_Ceník pravid_úklidu'!$A$9:$K$30,10,0),"neoceňuje se") -> 0 | AG37: 0 | AH37: 0
A38: 32 | B38: 138100 | C38: 1.03.1PP.032 | D38: zádveří | E38: 3.15 | H38: =IF(ISBLANK(I38)," ",VLOOKUP(I38,'[6]Příloha_8_Ceník pravid_úklidu'!$A$9:$B$30,2,0)) -> CHOD | I38: 6 | J38: 1xměsíčně | K38: 1 | L38: 0.05 | M38: 0 | N38: 0 | O38: =IF(ISBLANK($K38),"",'[6]Pracovní dny'!$F$2) -> 252 | P38: =IF(ISBLANK($M38),"",'[6]Pracovní dny'!$F$3) -> 114 | Q38: =IF(ISBLANK($K38),"",'[6]Pracovní dny'!$F$4) -> 365 | R38: 12.6 | S38: 0 | T38: 0 | U38: 2.2 | V38: 3.6 | W38: 1 | X38: 0 | Y38: 0 | Z38: 0 | AA38: 0 | AB38: 0 | AC38: 0 | AD38: OM | AF38: =IF(ISBLANK($AE38),VLOOKUP($I38,'Příloha_8_Ceník pravid_úklidu'!$A$9:$K$30,8,0)+VLOOKUP($I38,'Příloha_8_Ceník pravid_úklidu'!$A$9:$K$30,10,0),"neoceňuje se") -> 0 | AG38: 0 | AH38: 0
A39: 33 | B39: 138100/133100/103102 | D39: výtah | E39: 4 | H39: =IF(ISBLANK(I39)," ",VLOOKUP(I39,'[6]Příloha_8_Ceník pravid_úklidu'!$A$9:$B$30,2,0)) -> VYTA | I39: 11 | J39: 2x (7x;Po-Ne) | K39: 2 | L39: 1 | M39: 2 | N39: 1 | O39: =IF(ISBLANK($K39),"",'[6]Pracovní dny'!$F$2) -> 252 | P39: =IF(ISBLANK($M39),"",'[6]Pracovní dny'!$F$3) -> 114 | Q39: =IF(ISBLANK($K39),"",'[6]Pracovní dny'!$F$4) -> 365 | R39: 732 | S39: 0 | T39: 0 | U39: 12 | V39: 2.2 | W39: 1 | X39: 0 | Y39: 0 | Z39: 0 | AA39: 0 | AB39: 0 | AC39: 0 | AD39: VÝT | AF39: =IF(ISBLANK($AE39),VLOOKUP($I39,'Příloha_8_Ceník pravid_úklidu'!$A$9:$K$30,8,0)+VLOOKUP($I39,'Příloha_8_Ceník pravid_úklidu'!$A$9:$K$30,10,0),"neoceňuje se") -> 0 | AG39: 0 | AH39: 0
A40: 34 | B40: 138100/133100/103102 | D40: výtah | E40: 8.8 | H40: =IF(ISBLANK(I40)," ",VLOOKUP(I40,'[6]Příloha_8_Ceník pravid_úklidu'!$A$9:$B$30,2,0)) -> VYTA | I40: 11 | J40: 2x (7x;Po-Ne) | K40: 2 | L40: 1 | M40: 2 | N40: 1 | O40: =IF(ISBLANK($K40),"",'[6]Pracovní dny'!$F$2) -> 252 | P40: =IF(ISBLANK($M40),"",'[6]Pracovní dny'!$F$3) -> 114 | Q40: =IF(ISBLANK($K40),"",'[6]Pracovní dny'!$F$4) -> 365 | R40: 732 | S40: 0 | T40: 0 | U40: 19.5 | V40: 12.4 | W40: 2 | X40: 0 | Y40: 0 | Z40: 0 | AA40: 0 | AB40: 0 | AC40: 0 | AD40: VÝT | AF40: =IF(ISBLANK($AE40),VLOOKUP($I40,'Příloha_8_Ceník pravid_úklidu'!$A$9:$K$30,8,0)+VLOOKUP($I40,'Příloha_8_Ceník pravid_úklidu'!$A$9:$K$30,10,0),"neoceňuje se") -> 0 | AG40: 0 | AH40: 0
A41: 35 | B41: 138100 | C41: 1.03.1PP.035 | D41: hygienická kabina | E41: 8.3 | H41: =IF(ISBLANK(I41)," ",VLOOKUP(I41,'[6]Příloha_8_Ceník pravid_úklidu'!$A$9:$B$30,2,0)) -> TOAL | I41: 7 | J41: 2x;po-pá | K41: 1 | L41: 0.4 | M41: 0 | N41: 0 | O41: =IF(ISBLANK($K41),"",'[6]Pracovní dny'!$F$2) -> 252 | P41: =IF(ISBLANK($M41),"",'[6]Pracovní dny'!$F$3) -> 114 | Q41: =IF(ISBLANK($K41),"",'[6]Pracovní dny'!$F$4) -> 365 | R41: 100.8 | S41: 22 | T41: 0 | U41: 0 | V41: 2.4 | W41: 1 | X41: 3 | Y41: 0 | Z41: 0 | AA41: 0 | AB41: 0 | AC41: 0 | AD41: OM | AF41: =IF(ISBLANK($AE41),VLOOKUP($I41,'Příloha_8_Ceník pravid_úklidu'!$A$9:$K$30,8,0)+VLOOKUP($I41,'Příloha_8_Ceník pravid_úklidu'!$A$9:$K$30,10,0),"neoceňuje se") -> 0 | AG41: 0 | AH41: 0
A42: 36 | B42: 138100 | C42: 1.03.1PP.036 | D42: předsíň | E42: 7.6 | H42: =IF(ISBLANK(I42)," ",VLOOKUP(I42,'[6]Příloha_8_Ceník pravid_úklidu'!$A$9:$B$30,2,0)) -> CHOD | I42: 6 | J42: 2x;po-pá | K42: 1 | L42: 0.4 | M42: 0 | N42: 0 | O42: =IF(ISBLANK($K42),"",'[6]Pracovní dny'!$F$2) -> 252 | P42: =IF(ISBLANK($M42),"",'[6]Pracovní dny'!$F$3) -> 114 | Q42: =IF(ISBLANK($K42),"",'[6]Pracovní dny'!$F$4) -> 365 | R42: 100.8 | S42: 16.5 | T42: 0 | U42: 0 | V42: 2.8 | W42: 1 | X42: 4 | Y42: 0 | Z42: 0 | AA42: 0 | AB42: 0 | AC42: 0 | AD42: OM | AF42: =IF(ISBLANK($AE42),VLOOKUP($I42,'Příloha_8_Ceník pravid_úklidu'!$A$9:$K$30,8,0)+VLOOKUP($I42,'Příloha_8_Ceník pravid_úklidu'!$A$9:$K$30,10,0),"neoceňuje se") -> 0 | AG42: 0 | AH42: 0
A43: 37 | B43: 138100 | C43: 1.03.1PP.037 | D43: WC | E43: 1.65 | H43: =IF(ISBLANK(I43)," ",VLOOKUP(I43,'[6]Příloha_8_Ceník pravid_úklidu'!$A$9:$B$30,2,0)) -> TOAL | I43: 7 | J43: 2x;po-pá | K43: 1 | L43: 0.4 | M43: 0 | N43: 0 | O43: =IF(ISBLANK($K43),"",'[6]Pracovní dny'!$F$2) -> 252 | P43: =IF(ISBLANK($M43),"",'[6]Pracovní dny'!$F$3) -> 114 | Q43: =IF(ISBLANK($K43),"",'[6]Pracovní dny'!$F$4) -> 365 | R43: 100.8 | S43: 9.6 | T43: 0 | U43: 0 | V43: 2.4 | W43: 1 | X43: 1 | Y43: 0 | Z43: 0 | AA43: 0 | AB43: 0 | AC43: 0 | AD43: OM | AF43: =IF(ISBLANK($AE43),VLOOKUP($I43,'Příloha_8_Ceník pravid_úklidu'!$A$9:$K$30,8,0)+VLOOKUP($I43,'Příloha_8_Ceník pravid_úklidu'!$A$9:$K$30,10,0),"neoceňuje se") -> 0 | AG43: 0 | AH43: 0
A44: 38 | B44: 138100 | C44: 1.03.1PP.038 | D44: WC | E44: 1.65 | H44: =IF(ISBLANK(I44)," ",VLOOKUP(I44,'[6]Příloha_8_Ceník pravid_úklidu'!$A$9:$B$30,2,0)) -> TOAL | I44: 7 | J44: 2x;po-pá | K44: 1 | L44: 0.4 | M44: 0 | N44: 0 | O44: =IF(ISBLANK($K44),"",'[6]Pracovní dny'!$F$2) -> 252 | P44: =IF(ISBLANK($M44),"",'[6]Pracovní dny'!$F$3) -> 114 | Q44: =IF(ISBLANK($K44),"",'[6]Pracovní dny'!$F$4) -> 365 | R44: 100.8 | S44: 9.6 | T44: 0 | U44: 0 | V44: 2.4 | W44: 1 | X44: 1 | Y44: 0 | Z44: 0 | AA44: 0 | AB44: 0 | AC44: 0 | AD44: OM | AF44: =IF(ISBLANK($AE44),VLOOKUP($I44,'Příloha_8_Ceník pravid_úklidu'!$A$9:$K$30,8,0)+VLOOKUP($I44,'Příloha_8_Ceník pravid_úklidu'!$A$9:$K$30,10,0),"neoceňuje se") -> 0 | AG44: 0 | AH44: 0
A45: 39 | B45: 138100 | C45: 1.03.1PP.039 | D45: WC | E45: 1.65 | H45: =IF(ISBLANK(I45)," ",VLOOKUP(I45,'[6]Příloha_8_Ceník pravid_úklidu'!$A$9:$B$30,2,0)) -> TOAL | I45: 7 | J45: 2x;po-pá | K45: 1 | L45: 0.4 | M45: 0 | N45: 0 | O45: =IF(ISBLANK($K45),"",'[6]Pracovní dny'!$F$2) -> 252 | P45: =IF(ISBLANK($M45),"",'[6]Pracovní dny'!$F$3) -> 114 | Q45: =IF(ISBLANK($K45),"",'[6]Pracovní dny'!$F$4) -> 365 | R45: 100.8 | S45: 9.6 | T45: 0 | U45: 0 | V45: 2.4 | W45: 1 | X45: 1 | Y45: 0 | Z45: 0 | AA45: 0 | AB45: 0 | AC45: 0 | AD45: OM | AF45: =IF(ISBLANK($AE45),VLOOKUP($I45,'Příloha_8_Ceník pravid_úklidu'!$A$9:$K$30,8,0)+VLOOKUP($I45,'Příloha_8_Ceník pravid_úklidu'!$A$9:$K$30,10,0),"neoceňuje se") -> 0 | AG45: 0 | AH45: 0
A46: 40 | B46: 138100 | C46: 1.03.1PP.040 | D46: WC | E46: 1.65 | H46: =IF(ISBLANK(I46)," ",VLOOKUP(I46,'[6]Příloha_8_Ceník pravid_úklidu'!$A$9:$B$30,2,0)) -> TOAL | I46: 7 | J46: 2x;po-pá | K46: 1 | L46: 0.4 | M46: 0 | N46: 0 | O46: =IF(ISBLANK($K46),"",'[6]Pracovní dny'!$F$2) -> 252 | P46: =IF(ISBLANK($M46),"",'[6]Pracovní dny'!$F$3) -> 114 | Q46: =IF(ISBLANK($K46),"",'[6]Pracovní dny'!$F$4) -> 365 | R46: 100.8 | S46: 9.6 | T46: 0 | U46: 0 | V46: 2.4 | W46: 1 | X46: 1 | Y46: 0 | Z46: 0 | AA46: 0 | AB46: 0 | AC46: 0 | AD46: OM | AF46: =IF(ISBLANK($AE46),VLOOKUP($I46,'Příloha_8_Ceník pravid_úklidu'!$A$9:$K$30,8,0)+VLOOKUP($I46,'Příloha_8_Ceník pravid_úklidu'!$A$9:$K$30,10,0),"neoceňuje se") -> 0 | AG46: 0 | AH46: 0
A47: 41 | B47: 138100 | C47: 1.03.1PP.041 | D47: nečistý sklad | E47: 10.15 | H47: =IF(ISBLANK(I47)," ",VLOOKUP(I47,'[6]Příloha_8_Ceník pravid_úklidu'!$A$9:$B$30,2,0)) -> SKLA | I47: 17 | J47: 2x;po-pá | K47: 1 | L47: 0.4 | M47: 1 | N47: 1 | O47: =IF(ISBLANK($K47),"",'[6]Pracovní dny'!$F$2) -> 252 | P47: =IF(ISBLANK($M47),"",'[6]Pracovní dny'!$F$3) -> 114 | Q47: =IF(ISBLANK($K47),"",'[6]Pracovní dny'!$F$4) -> 365 | R47: 214.8 | S47: 32 | T47: 0 | U47: 0 | V47: 5.2 | W47: 2 | X47: 0 | Y47: 0 | Z47: 0 | AA47: 0 | AB47: 0 | AC47: 0 | AD47: OM | AF47: =IF(ISBLANK($AE47),VLOOKUP($I47,'Příloha_8_Ceník pravid_úklidu'!$A$9:$K$30,8,0)+VLOOKUP($I47,'Příloha_8_Ceník pravid_úklidu'!$A$9:$K$30,10,0),"neoceňuje se") -> 0 | AG47: 0 | AH47: 0
A48: 42 | B48: 103102 | C48: 1.03.1PP.042 | D48: WC | E48: 1.65 | H48: =IF(ISBLANK(I48)," ",VLOOKUP(I48,'[6]Příloha_8_Ceník pravid_úklidu'!$A$9:$B$30,2,0)) -> TOAL | I48: 7 | J48: 2x;po-pá | K48: 1 | L48: 0.4 | M48: 1 | N48: 1 | O48: =IF(ISBLANK($K48),"",'[6]Pracovní dny'!$F$2) -> 252 | P48: =IF(ISBLANK($M48),"",'[6]Pracovní dny'!$F$3) -> 114 | Q48: =IF(ISBLANK($K48),"",'[6]Pracovní dny'!$F$4) -> 365 | R48: 214.8 | S48: 9.4 | T48: 0 | U48: 0 | V48: 2.4 | W48: 1 | X48: 1 | Y48: 0 | Z48: 0 | AA48: 0 | AB48: 0 | AC48: 0 | AD48: OM | AF48: =IF(ISBLANK($AE48),VLOOKUP($I48,'Příloha_8_Ceník pravid_úklidu'!$A$9:$K$30,8,0)+VLOOKUP($I48,'Příloha_8_Ceník pravid_úklidu'!$A$9:$K$30,10,0),"neoceňuje se") -> 0 | AG48: 0 | AH48: 0
A49: 43 | B49: 103102 | C49: 1.03.1PP.043 | D49: předsíň | E49: 1.7 | H49: =IF(ISBLANK(I49)," ",VLOOKUP(I49,'[6]Příloha_8_Ceník pravid_úklidu'!$A$9:$B$30,2,0)) -> CHOD | I49: 6 | J49: 1x(5xpo-pa) | K49: 1 | L49: 1 | M49: 0 | N49: 0 | O49: =IF(ISBLANK($K49),"",'[6]Pracovní dny'!$F$2) -> 252 | P49: =IF(ISBLANK($M49),"",'[6]Pracovní dny'!$F$3) -> 114 | Q49: =IF(ISBLANK($K49),"",'[6]Pracovní dny'!$F$4) -> 365 | R49: 252 | S49: 8.4 | T49: 0 | U49: 0 | V49: 2.4 | W49: 1 | X49: 1 | Y49: 0 | Z49: 0 | AA49: 0 | AB49: 0 | AC49: 0 | AD49: OM | AF49: =IF(ISBLANK($AE49),VLOOKUP($I49,'Příloha_8_Ceník pravid_úklidu'!$A$9:$K$30,8,0)+VLOOKUP($I49,'Příloha_8_Ceník pravid_úklidu'!$A$9:$K$30,10,0),"neoceňuje se") -> 0 | AG49: 0 | AH49: 0
A50: 44 | B50: 103102 | C50: 1.03.1PP.044 | D50: WC | E50: 1.65 | H50: =IF(ISBLANK(I50)," ",VLOOKUP(I50,'[6]Příloha_8_Ceník pravid_úklidu'!$A$9:$B$30,2,0)) -> TOAL | I50: 7 | J50: 1x(5xpo-pa) | K50: 1 | L50: 1 | M50: 0 | N50: 0 | O50: =IF(ISBLANK($K50),"",'[6]Pracovní dny'!$F$2) -> 252 | P50: =IF(ISBLANK($M50),"",'[6]Pracovní dny'!$F$3) -> 114 | Q50: =IF(ISBLANK($K50),"",'[6]Pracovní dny'!$F$4) -> 365 | R50: 252 | S50: 10 | T50: 0 | U50: 0 | V50: 2.4 | W50: 1 | X50: 1 | Y50: 0.6 | Z50: 1 | AA50: 1.2 | AB50: PL | AC50: 0 | AD50: OM | AF50: =IF(ISBLANK($AE50),VLOOKUP($I50,'Příloha_8_Ceník pravid_úklidu'!$A$9:$K$30,8,0)+VLOOKUP($I50,'Příloha_8_Ceník pravid_úklidu'!$A$9:$K$30,10,0),"neoceňuje se") -> 0 | AG50: 0 | AH50: 0
A51: 45 | B51: 103102 | C51: 1.03.1PP.045 | D51: předsíň | E51: 1.7 | H51: =IF(ISBLANK(I51)," ",VLOOKUP(I51,'[6]Příloha_8_Ceník pravid_úklidu'!$A$9:$B$30,2,0)) -> CHOD | I51: 6 | J51: 1x(5xpo-pa) | K51: 1 | L51: 1 | M51: 0 | N51: 0 | O51: =IF(ISBLANK($K51),"",'[6]Pracovní dny'!$F$2) -> 252 | P51: =IF(ISBLANK($M51),"",'[6]Pracovní dny'!$F$3) -> 114 | Q51: =IF(ISBLANK($K51),"",'[6]Pracovní dny'!$F$4) -> 365 | R51: 252 | S51: 8.4 | T51: 0 | U51: 0 | V51: 2.4 | W51: 1 | X51: 1 | Y51: 0 | Z51: 0 | AA51: 0 | AB51: 0 | AC51: 0 | AD51: OM | AF51: =IF(ISBLANK($AE51),VLOOKUP($I51,'Příloha_8_Ceník pravid_úklidu'!$A$9:$K$30,8,0)+VLOOKUP($I51,'Příloha_8_Ceník pravid_úklidu'!$A$9:$K$30,10,0),"neoceňuje se") -> 0 | AG51: 0 | AH51: 0
A52: 46 | B52: 103102 | C52: 1.03.1PP.046 | D52: čekárna novorozenci | E52: 15.9 | H52: =IF(ISBLANK(I52)," ",VLOOKUP(I52,'[6]Příloha_8_Ceník pravid_úklidu'!$A$9:$B$30,2,0)) -> CHOD | I52: 6 | J52: 1x(5xpo-pa) | K52: 1 | L52: 1 | M52: 0 | N52: 0 | O52: =IF(ISBLANK($K52),"",'[6]Pracovní dny'!$F$2) -> 252 | P52: =IF(ISBLANK($M52),"",'[6]Pracovní dny'!$F$3) -> 114 | Q52: =IF(ISBLANK($K52),"",'[6]Pracovní dny'!$F$4) -> 365 | R52: 252 | S52: 0 | T52: X | U52: 9.6 | V52: 6.6 | W52: 1 | X52: 0 | Y52: 0 | Z52: 0 | AA52: 0 | AB52: 0 | AC52: 0 | AD52: OM | AF52: =IF(ISBLANK($AE52),VLOOKUP($I52,'Příloha_8_Ceník pravid_úklidu'!$A$9:$K$30,8,0)+VLOOKUP($I52,'Příloha_8_Ceník pravid_úklidu'!$A$9:$K$30,10,0),"neoceňuje se") -> 0 | AG52: 0 | AH52: 0
A53: 47 | B53: 103102 | C53: 1.03.1PP.047 | D53: novorozenci - příjem | E53: 14.25 | H53: =IF(ISBLANK(I53)," ",VLOOKUP(I53,'[6]Příloha_8_Ceník pravid_úklidu'!$A$9:$B$30,2,0)) -> ZDR1 | I53: 2 | J53: 1x(5xpo-pa) | K53: 1 | L53: 1 | M53: 0 | N53: 0 | O53: =IF(ISBLANK($K53),"",'[6]Pracovní dny'!$F$2) -> 252 | P53: =IF(ISBLANK($M53),"",'[6]Pracovní dny'!$F$3) -> 114 | Q53: =IF(ISBLANK($K53),"",'[6]Pracovní dny'!$F$4) -> 365 | R53: 252 | S53: 6.6 | T53: X | U53: N | V53: 3.2 | W53: 1 | X53: 2 | Y53: 2.1 | Z53: 1 | AA53: 4.2 | AB53: PL | AC53: 0 | AD53: OM | AF53: =IF(ISBLANK($AE53),VLOOKUP($I53,'Příloha_8_Ceník pravid_úklidu'!$A$9:$K$30,8,0)+VLOOKUP($I53,'Příloha_8_Ceník pravid_úklidu'!$A$9:$K$30,10,0),"neoceňuje se") -> 0 | AG53: 0 | AH53: 0
A54: 48 | C54: 1.03.1PP.048 | D54: úklid | G54: 3.3 | H54: =IF(ISBLANK(I54)," ",VLOOKUP(I54,'[6]Příloha_8_Ceník pravid_úklidu'!$A$9:$B$30,2,0)) -> TOAL | I54: 7 | J54: provádí zhotovitel na své náklady | O54: =IF(ISBLANK($K54),"",'[6]Pracovní dny'!$F$2) ->  | P54: =IF(ISBLANK($M54),"",'[6]Pracovní dny'!$F$3) ->  | Q54: =IF(ISBLANK($K54),"",'[6]Pracovní dny'!$F$4) ->  | S54: 12.8 | T54: 0 | U54: 0 | V54: 2.4 | W54: 1 | X54: 1 | Y54: 0 | Z54: 0 | AA54: 0 | AB54: 0 | AC54: 0 | AD54: OM | AE54: X | AF54: =IF(ISBLANK($AE54),VLOOKUP($I54,'Příloha_8_Ceník pravid_úklidu'!$A$9:$K$30,8,0)+VLOOKUP($I54,'Příloha_8_Ceník pravid_úklidu'!$A$9:$K$30,10,0),"neoceňuje se") -> neoceňuje se | AG54: 0 | AH54: 0
A55: 49 | C55: 1.03.1PP.049 | D55: předsíň | G55: 1.7 | H55: =IF(ISBLANK(I55)," ",VLOOKUP(I55,'[6]Příloha_8_Ceník pravid_úklidu'!$A$9:$B$30,2,0)) -> CHOD | I55: 6 | J55: není předmětem | K55: 0 | L55: 0 | M55: 0 | N55: 0 | O55: =IF(ISBLANK($K55),"",'[6]Pracovní dny'!$F$2) -> 252 | P55: =IF(ISBLANK($M55),"",'[6]Pracovní dny'!$F$3) -> 114 | Q55: =IF(ISBLANK($K55),"",'[6]Pracovní dny'!$F$4) -> 365 | R55: 0 | S55: 8.4 | T55: 0 | U55: 0 | V55: 2.4 | W55: 1 | X55: 1 | Y55: 1.35 | Z55: 1 | AA55: 0 | AB55: PL | AC55: 0 | AD55: OM | AE55: X | AF55: =IF(ISBLANK($AE55),VLOOKUP($I55,'Příloha_8_Ceník pravid_úklidu'!$A$9:$K$30,8,0)+VLOOKUP($I55,'Příloha_8_Ceník pravid_úklidu'!$A$9:$K$30,10,0),"neoceňuje se") -> neoceňuje se | AG55: 0 | AH55: 0
A56: 50 | C56: 1.03.1PP.050 | D56: WC | G56: 1.7 | H56: =IF(ISBLANK(I56)," ",VLOOKUP(I56,'[6]Příloha_8_Ceník pravid_úklidu'!$A$9:$B$30,2,0)) -> TOAL | I56: 7 | J56: není předmětem | K56: 0 | L56: 0 | M56: 0 | N56: 0 | O56: =IF(ISBLANK($K56),"",'[6]Pracovní dny'!$F$2) -> 252 | P56: =IF(ISBLANK($M56),"",'[6]Pracovní dny'!$F$3) -> 114 | Q56: =IF(ISBLANK($K56),"",'[6]Pracovní dny'!$F$4) -> 365 | R56: 0 | S56: 9.6 | T56: 0 | U56: 0 | V56: 2.4 | W56: 1 | X56: 1 | Y56: 1.5 | Z56: 1 | AA56: 0 | AB56: PL | AC56: 0 | AD56: OM | AE56: X | AF56: =IF(ISBLANK($AE56),VLOOKUP($I56,'Příloha_8_Ceník pravid_úklidu'!$A$9:$K$30,8,0)+VLOOKUP($I56,'Příloha_8_Ceník pravid_úklidu'!$A$9:$K$30,10,0),"neoceňuje se") -> neoceňuje se | AG56: 0 | AH56: 0
A57: 51 | B57: 138100 | C57: 1.03.1PP.051 | D57: sklad | E57: 10.9 | H57: =IF(ISBLANK(I57)," ",VLOOKUP(I57,'[6]Příloha_8_Ceník pravid_úklidu'!$A$9:$B$30,2,0)) -> SKLA | I57: 17 | J57: 1xměsíčně | K57: 1 | L57: 0.05 | M57: 0 | N57: 0 | O57: =IF(ISBLANK($K57),"",'[6]Pracovní dny'!$F$2) -> 252 | P57: =IF(ISBLANK($M57),"",'[6]Pracovní dny'!$F$3) -> 114 | Q57: =IF(ISBLANK($K57),"",'[6]Pracovní dny'!$F$4) -> 365 | R57: 12.6 | S57: 0 | T57: X | U57: X | V57: 3.2 | W57: 1 | X57: 0 | Y57: 2.7 | Z57: 1 | AA57: 5.4 | AB57: PL | AC57: 0 | AD57: OM | AF57: =IF(ISBLANK($AE57),VLOOKUP($I57,'Příloha_8_Ceník pravid_úklidu'!$A$9:$K$30,8,0)+VLOOKUP($I57,'Příloha_8_Ceník pravid_úklidu'!$A$9:$K$30,10,0),"neoceňuje se") -> 0 | AG57: 0 | AH57: 0
A58: 52 | B58: 138100 | C58: 1.03.1PP.052 | D58: šatna mediků, sanitáři | E58: 6.55 | H58: =IF(ISBLANK(I58)," ",VLOOKUP(I58,'[6]Příloha_8_Ceník pravid_úklidu'!$A$9:$B$30,2,0)) -> SATN | I58: 10 | J58: 2x;po-pá | K58: 1 | L58: 0.4 | M58: 0 | N58: 0 | O58: =IF(ISBLANK($K58),"",'[6]Pracovní dny'!$F$2) -> 252 | P58: =IF(ISBLANK($M58),"",'[6]Pracovní dny'!$F$3) -> 114 | Q58: =IF(ISBLANK($K58),"",'[6]Pracovní dny'!$F$4) -> 365 | R58: 100.8 | S58: 0 | T58: X | U58: 0 | V58: 3.2 | W58: 1 | X58: 0 | Y58: 2.1 | Z58: 1 | AA58: 4.2 | AB58: PL | AC58: 0 | AD58: OM | AF58: =IF(ISBLANK($AE58),VLOOKUP($I58,'Příloha_8_Ceník pravid_úklidu'!$A$9:$K$30,8,0)+VLOOKUP($I58,'Příloha_8_Ceník pravid_úklidu'!$A$9:$K$30,10,0),"neoceňuje se") -> 0 | AG58: 0 | AH58: 0
A59: 53 | B59: 138100/133100/103102 | D59: výtah | E59: 9.5 | H59: =IF(ISBLANK(I59)," ",VLOOKUP(I59,'[6]Příloha_8_Ceník pravid_úklidu'!$A$9:$B$30,2,0)) -> VYTA | I59: 11 | J59: 2x (7x;Po-Ne) | K59: 2 | L59: 1 | M59: 2 | N59: 1 | O59: =IF(ISBLANK($K59),"",'[6]Pracovní dny'!$F$2) -> 252 | P59: =IF(ISBLANK($M59),"",'[6]Pracovní dny'!$F$3) -> 114 | Q59: =IF(ISBLANK($K59),"",'[6]Pracovní dny'!$F$4) -> 365 | R59: 732 | S59: 0 | T59: 0 | U59: 18 | V59: 12.4 | W59: 2 | X59: 0 | Y59: 0 | Z59: 0 | AA59: 0 | AB59: 0 | AC59: 0 | AD59: VÝT | AF59: =IF(ISBLANK($AE59),VLOOKUP($I59,'Příloha_8_Ceník pravid_úklidu'!$A$9:$K$30,8,0)+VLOOKUP($I59,'Příloha_8_Ceník pravid_úklidu'!$A$9:$K$30,10,0),"neoceňuje se") -> 0 | AG59: 0 | AH59: 0
A60: 54 | B60: 138100/133100/103102 | D60: výtah | E60: 6.4 | H60: =IF(ISBLANK(I60)," ",VLOOKUP(I60,'[6]Příloha_8_Ceník pravid_úklidu'!$A$9:$B$30,2,0)) -> VYTA | I60: 11 | J60: 2x (7x;Po-Ne) | K60: 2 | L60: 1 | M60: 2 | N60: 1 | O60: =IF(ISBLANK($K60),"",'[6]Pracovní dny'!$F$2) -> 252 | P60: =IF(ISBLANK($M60),"",'[6]Pracovní dny'!$F$3) -> 114 | Q60: =IF(ISBLANK($K60),"",'[6]Pracovní dny'!$F$4) -> 365 | R60: 732 | S60: 0 | T60: 0 | U60: 16 | V60: 5.2 | W60: 1 | X60: 0 | Y60: 0 | Z60: 0 | AA60: 0 | AB60: 0 | AC60: 0 | AD60: VÝT | AF60: =IF(ISBLANK($AE60),VLOOKUP($I60,'Příloha_8_Ceník pravid_úklidu'!$A$9:$K$30,8,0)+VLOOKUP($I60,'Příloha_8_Ceník pravid_úklidu'!$A$9:$K$30,10,0),"neoceňuje se") -> 0 | AG60: 0 | AH60: 0
A61: 55 | B61: 138100/133100/103102 | C61: 1.03.1PP.055 | D61: sklad - odpad | E61: 8.55 | H61: =IF(ISBLANK(I61)," ",VLOOKUP(I61,'[6]Příloha_8_Ceník pravid_úklidu'!$A$9:$B$30,2,0)) -> SKLA | I61: 17 | J61: 1x(7xpo-ne) | K61: 1 | L61: 1 | M61: 1 | N61: 1 | O61: =IF(ISBLANK($K61),"",'[6]Pracovní dny'!$F$2) -> 252 | P61: =IF(ISBLANK($M61),"",'[6]Pracovní dny'!$F$3) -> 114 | Q61: =IF(ISBLANK($K61),"",'[6]Pracovní dny'!$F$4) -> 365 | R61: 366 | S61: 25 | T61: 0 | U61: X | V61: 8.6 | W61: 2 | X61: 0 | Y61: 0 | Z61: 0 | AA61: 0 | AB61: 0 | AC61: 0 | AD61: OM | AF61: =IF(ISBLANK($AE61),VLOOKUP($I61,'Příloha_8_Ceník pravid_úklidu'!$A$9:$K$30,8,0)+VLOOKUP($I61,'Příloha_8_Ceník pravid_úklidu'!$A$9:$K$30,10,0),"neoceňuje se") -> 0 | AG61: 0 | AH61: 0
A62: 56 | B62: 138100 | C62: 1.03.1PP.056 | D62: předsíň | E62: 2.5 | H62: =IF(ISBLANK(I62)," ",VLOOKUP(I62,'[6]Příloha_8_Ceník pravid_úklidu'!$A$9:$B$30,2,0)) -> CHOD | I62: 6 | J62: 1x(5xpo-pá) | K62: 1 | L62: 1 | M62: 0 | N62: 0 | O62: =IF(ISBLANK($K62),"",'[6]Pracovní dny'!$F$2) -> 252 | P62: =IF(ISBLANK($M62),"",'[6]Pracovní dny'!$F$3) -> 114 | Q62: =IF(ISBLANK($K62),"",'[6]Pracovní dny'!$F$4) -> 365 | R62: 252 | S62: 10.5 | T62: 0 | U62: 0 | V62: 2.4 | W62: 1 | X62: 1 | Y62: 0 | Z62: 0 | AA62: 0 | AB62: 0 | AC62: 0 | AD62: OM | AF62: =IF(ISBLANK($AE62),VLOOKUP($I62,'Příloha_8_Ceník pravid_úklidu'!$A$9:$K$30,8,0)+VLOOKUP($I62,'Příloha_8_Ceník pravid_úklidu'!$A$9:$K$30,10,0),"neoceňuje se") -> 0 | AG62: 0 | AH62: 0
A63: 57 | B63: 138100 | C63: 1.03.1PP.057 | D63: WC | E63: 1.8 | H63: =IF(ISBLANK(I63)," ",VLOOKUP(I63,'[6]Příloha_8_Ceník pravid_úklidu'!$A$9:$B$30,2,0)) -> TOAL | I63: 7 | J63: 1x(5xpo-pá) | K63: 1 | L63: 1 | M63: 0 | N63: 0 | O63: =IF(ISBLANK($K63),"",'[6]Pracovní dny'!$F$2) -> 252 | P63: =IF(ISBLANK($M63),"",'[6]Pracovní dny'!$F$3) -> 114 | Q63: =IF(ISBLANK($K63),"",'[6]Pracovní dny'!$F$4) -> 365 | R63: 252 | S63: 10 | T63: 0 | U63: 0 | V63: 2.4 | W63: 1 | X63: 1 | Y63: 0 | Z63: 0 | AA63: 0 | AB63: 0 | AC63: 0 | AD63: OM | AF63: =IF(ISBLANK($AE63),VLOOKUP($I63,'Příloha_8_Ceník pravid_úklidu'!$A$9:$K$30,8,0)+VLOOKUP($I63,'Příloha_8_Ceník pravid_úklidu'!$A$9:$K$30,10,0),"neoceňuje se") -> 0 | AG63: 0 | AH63: 0
A64: 58 | B64: 138100 | C64: 1.03.1PP.058 | D64: tělocvična | E64: 8.55 | H64: =IF(ISBLANK(I64)," ",VLOOKUP(I64,'[6]Příloha_8_Ceník pravid_úklidu'!$A$9:$B$30,2,0)) -> ZDR1 | I64: 2 | J64: 2x;út-čt | K64: 1 | L64: 0.4 | M64: 0 | N64: 0 | O64: =IF(ISBLANK($K64),"",'[6]Pracovní dny'!$F$2) -> 252 | P64: =IF(ISBLANK($M64),"",'[6]Pracovní dny'!$F$3) -> 114 | Q64: =IF(ISBLANK($K64),"",'[6]Pracovní dny'!$F$4) -> 365 | R64: 100.8 | S64: 3 | T64: 0 | U64: 0 | V64: 0 | W64: 0 | X64: 0 | Y64: 0 | Z64: 0 | AA64: 0 | AB64: 0 | AC64: 0 | AD64: OM | AF64: =IF(ISBLANK($AE64),VLOOKUP($I64,'Příloha_8_Ceník pravid_úklidu'!$A$9:$K$30,8,0)+VLOOKUP($I64,'Příloha_8_Ceník pravid_úklidu'!$A$9:$K$30,10,0),"neoceňuje se") -> 0 | AG64: 0 | AH64: 0
A65: 59 | B65: 138100 | C65: 1.03.1PP.059 | D65: tělocvična | E65: 12 | H65: =IF(ISBLANK(I65)," ",VLOOKUP(I65,'[6]Příloha_8_Ceník pravid_úklidu'!$A$9:$B$30,2,0)) -> ZDR1 | I65: 2 | J65: 2x;út-čt | K65: 1 | L65: 0.4 | M65: 0 | N65: 0 | O65: =IF(ISBLANK($K65),"",'[6]Pracovní dny'!$F$2) -> 252 | P65: =IF(ISBLANK($M65),"",'[6]Pracovní dny'!$F$3) -> 114 | Q65: =IF(ISBLANK($K65),"",'[6]Pracovní dny'!$F$4) -> 365 | R65: 100.8 | S65: 4 | T65: 0 | U65: 0 | V65: 3.2 | W65: 1 | X65: 0 | Y65: 0 | Z65: 0 | AA65: 0 | AB65: 0 | AC65: 0 | AD65: OM | AF65: =IF(ISBLANK($AE65),VLOOKUP($I65,'Příloha_8_Ceník pravid_úklidu'!$A$9:$K$30,8,0)+VLOOKUP($I65,'Příloha_8_Ceník pravid_úklidu'!$A$9:$K$30,10,0),"neoceňuje se") -> 0 | AG65: 0 | AH65: 0
A66: 60 | B66: 138100 | C66: 1.03.1PP.060 | D66: denní místnost | E66: 15.2 | H66: =IF(ISBLANK(I66)," ",VLOOKUP(I66,'[6]Příloha_8_Ceník pravid_úklidu'!$A$9:$B$30,2,0)) -> KANC | I66: 4 | J66: 2x;po-pá | K66: 1 | L66: 0.4 | M66: 0 | N66: 0 | O66: =IF(ISBLANK($K66),"",'[6]Pracovní dny'!$F$2) -> 252 | P66: =IF(ISBLANK($M66),"",'[6]Pracovní dny'!$F$3) -> 114 | Q66: =IF(ISBLANK($K66),"",'[6]Pracovní dny'!$F$4) -> 365 | R66: 100.8 | S66: 0 | T66: 0 | U66: X | V66: 3.2 | W66: 1 | X66: 0 | Y66: 0.4 | Z66: 3 | AA66: 2.4 | AB66: PL | AC66: 0 | AD66: OM | AF66: =IF(ISBLANK($AE66),VLOOKUP($I66,'Příloha_8_Ceník pravid_úklidu'!$A$9:$K$30,8,0)+VLOOKUP($I66,'Příloha_8_Ceník pravid_úklidu'!$A$9:$K$30,10,0),"neoceňuje se") -> 0 | AG66: 0 | AH66: 0
A67: 62 | B67: 138100 | C67: 1.03.1PP.062 | D67: sklad | E67: 18.6 | H67: =IF(ISBLANK(I67)," ",VLOOKUP(I67,'[6]Příloha_8_Ceník pravid_úklidu'!$A$9:$B$30,2,0)) -> SKLA | I67: 17 | J67: 1xměsíčně | K67: 1 | L67: 0.05 | M67: 0 | N67: 0 | O67: =IF(ISBLANK($K67),"",'[6]Pracovní dny'!$F$2) -> 252 | P67: =IF(ISBLANK($M67),"",'[6]Pracovní dny'!$F$3) -> 114 | Q67: =IF(ISBLANK($K67),"",'[6]Pracovní dny'!$F$4) -> 365 | R67: 12.6 | S67: 0 | T67: 0 | U67: X | V67: 3.2 | W67: 1 | X67: 0 | Y67: 0.9 | Z67: 1 | AA67: 1.8 | AB67: PL | AC67: 0 | AD67: OM | AF67: =IF(ISBLANK($AE67),VLOOKUP($I67,'Příloha_8_Ceník pravid_úklidu'!$A$9:$K$30,8,0)+VLOOKUP($I67,'Příloha_8_Ceník pravid_úklidu'!$A$9:$K$30,10,0),"neoceňuje se") -> 0 | AG67: 0 | AH67: 0
A68: 63 | B68: 138100 | C68: 1.03.1PP.063 | D68: sklad | E68: 15.6 | H68: =IF(ISBLANK(I68)," ",VLOOKUP(I68,'[6]Příloha_8_Ceník pravid_úklidu'!$A$9:$B$30,2,0)) -> SKLA | I68: 17 | J68: 1xměsíčně | K68: 1 | L68: 0.05 | M68: 0 | N68: 0 | O68: =IF(ISBLANK($K68),"",'[6]Pracovní dny'!$F$2) -> 252 | P68: =IF(ISBLANK($M68),"",'[6]Pracovní dny'!$F$3) -> 114 | Q68: =IF(ISBLANK($K68),"",'[6]Pracovní dny'!$F$4) -> 365 | R68: 12.6 | S68: 0 | T68: 0 | U68: X | V68: 3.2 | W68: 1 | X68: 0 | Y68: 0.9 | Z68: 1 | AA68: 1.8 | AB68: PL | AC68: 0 | AD68: OM | AF68: =IF(ISBLANK($AE68),VLOOKUP($I68,'Příloha_8_Ceník pravid_úklidu'!$A$9:$K$30,8,0)+VLOOKUP($I68,'Příloha_8_Ceník pravid_úklidu'!$A$9:$K$30,10,0),"neoceňuje se") -> 0 | AG68: 0 | AH68: 0
A69: 64 | B69: 138100 | C69: 1.03.1PP.064 | D69: sklad | E69: 13.6 | H69: =IF(ISBLANK(I69)," ",VLOOKUP(I69,'[6]Příloha_8_Ceník pravid_úklidu'!$A$9:$B$30,2,0)) -> SKLA | I69: 17 | J69: 1xpo-pá | K69: 1 | L69: 0.2 | M69: 0 | N69: 0 | O69: =IF(ISBLANK($K69),"",'[6]Pracovní dny'!$F$2) -> 252 | P69: =IF(ISBLANK($M69),"",'[6]Pracovní dny'!$F$3) -> 114 | Q69: =IF(ISBLANK($K69),"",'[6]Pracovní dny'!$F$4) -> 365 | R69: 50.4 | S69: 0 | T69: 0 | U69: X | V69: 3.2 | W69: 1 | X69: 0 | Y69: 0.9 | Z69: 1 | AA69: 1.8 | AB69: PL | AC69: 0 | AD69: OM | AF69: =IF(ISBLANK($AE69),VLOOKUP($I69,'Příloha_8_Ceník pravid_úklidu'!$A$9:$K$30,8,0)+VLOOKUP($I69,'Příloha_8_Ceník pravid_úklidu'!$A$9:$K$30,10,0),"neoceňuje se") -> 0 | AG69: 0 | AH69: 0
A70: 66 | B70: 138100 | C70: 1.03.1PP.066 | D70: sklad | E70: 13.2 | H70: =IF(ISBLANK(I70)," ",VLOOKUP(I70,'[6]Příloha_8_Ceník pravid_úklidu'!$A$9:$B$30,2,0)) -> SKLA | I70: 17 | J70: 2x;po-pá | K70: 1 | L70: 0.4 | M70: 0 | N70: 0 | O70: =IF(ISBLANK($K70),"",'[6]Pracovní dny'!$F$2) -> 252 | P70: =IF(ISBLANK($M70),"",'[6]Pracovní dny'!$F$3) -> 114 | Q70: =IF(ISBLANK($K70),"",'[6]Pracovní dny'!$F$4) -> 365 | R70: 100.8 | S70: 0 | T70: 0 | U70: x | V70: 4 | W70: 1 | X70: 0 | Y70: 0 | Z70: 0 | AA70: 0 | AB70: 0 | AC70: 0 | AD70: OM | AF70: =IF(ISBLANK($AE70),VLOOKUP($I70,'Příloha_8_Ceník pravid_úklidu'!$A$9:$K$30,8,0)+VLOOKUP($I70,'Příloha_8_Ceník pravid_úklidu'!$A$9:$K$30,10,0),"neoceňuje se") -> 0 | AG70: 0 | AH70: 0
A71: 68 | B71: 138100 | C71: 1.03.1PP.068 | D71: sklad | E71: 14.7 | H71: =IF(ISBLANK(I71)," ",VLOOKUP(I71,'[6]Příloha_8_Ceník pravid_úklidu'!$A$9:$B$30,2,0)) -> SKLA | I71: 17 | J71: 1xměsíčně | K71: 1 | L71: 0.05 | M71: 0 | N71: 0 | O71: =IF(ISBLANK($K71),"",'[6]Pracovní dny'!$F$2) -> 252 | P71: =IF(ISBLANK($M71),"",'[6]Pracovní dny'!$F$3) -> 114 | Q71: =IF(ISBLANK($K71),"",'[6]Pracovní dny'!$F$4) -> 365 | R71: 12.6 | S71: 0 | T71: 0 | U71: x | V71: 2.7 | W71: 1 | X71: 0 | Y71: 0 | Z71: 0 | AA71: 0 | AB71: 0 | AC71: 0 | AD71: OM | AF71: =IF(ISBLANK($AE71),VLOOKUP($I71,'Příloha_8_Ceník pravid_úklidu'!$A$9:$K$30,8,0)+VLOOKUP($I71,'Příloha_8_Ceník pravid_úklidu'!$A$9:$K$30,10,0),"neoceňuje se") -> 0 | AG71: 0 | AH71: 0
A72: 69 | B72: 138100 | C72: 1.03.1PP.069 | D72: archiv | E72: 17.1 | H72: =IF(ISBLANK(I72)," ",VLOOKUP(I72,'[6]Příloha_8_Ceník pravid_úklidu'!$A$9:$B$30,2,0)) -> SKLA | I72: 17 | J72: 1xměsíčně | K72: 1 | L72: 0.05 | M72: 0 | N72: 0 | O72: =IF(ISBLANK($K72),"",'[6]Pracovní dny'!$F$2) -> 252 | P72: =IF(ISBLANK($M72),"",'[6]Pracovní dny'!$F$3) -> 114 | Q72: =IF(ISBLANK($K72),"",'[6]Pracovní dny'!$F$4) -> 365 | R72: =IF(AND(ISBLANK($K72),ISBLANK($M72)),"",$K72*$L72*$O72+$M72*$N72*$P72) -> 12.6 | S72: 0 | T72: 0 | U72: R | V72: 3.6 | W72: 1 | X72: 0 | Y72: 0 | Z72: 0 | AA72: 0 | AB72: 0 | AC72: 0 | AD72: OM | AF72: =IF(ISBLANK($AE72),VLOOKUP($I72,'Příloha_8_Ceník pravid_úklidu'!$A$9:$K$30,8,0)+VLOOKUP($I72,'Příloha_8_Ceník pravid_úklidu'!$A$9:$K$30,10,0),"neoceňuje se") -> 0 | AG72: =IF(AF72="neoceňuje se",0,$E72*$R72*$AF72) -> 0 | AH72: =$AG72*1.21 -> 0
A73: 70 | B73: 138100 | C73: 1.03.1PP.070 | D73: denní místnost sanitáři | E73: 12.7 | H73: =IF(ISBLANK(I73)," ",VLOOKUP(I73,'[6]Příloha_8_Ceník pravid_úklidu'!$A$9:$B$30,2,0)) -> KANC | I73: 4 | J73: 2x;po-pá | K73: 1 | L73: 0.4 | M73: 0 | N73: 0 | O73: =IF(ISBLANK($K73),"",'[6]Pracovní dny'!$F$2) -> 252 | P73: =IF(ISBLANK($M73),"",'[6]Pracovní dny'!$F$3) -> 114 | Q73: =IF(ISBLANK($K73),"",'[6]Pracovní dny'!$F$4) -> 365 | R73: 100.8 | S73: 1.1 | T73: 0 | U73: N | V73: 3.2 | W73: 1 | X73: 1 | Y73: 2.7 | Z73: 1 | AA73: 5.4 | AB73: PL | AC73: 0 | AD73: OM | AF73: =IF(ISBLANK($AE73),VLOOKUP($I73,'Příloha_8_Ceník pravid_úklidu'!$A$9:$K$30,8,0)+VLOOKUP($I73,'Příloha_8_Ceník pravid_úklidu'!$A$9:$K$30,10,0),"neoceňuje se") -> 0 | AG73: 0 | AH73: 0
A74: 71 | B74: 138100 | C74: 1.03.1PP.071 | D74: sociální zařízení | E74: 3.35 | H74: =IF(ISBLANK(I74)," ",VLOOKUP(I74,'[6]Příloha_8_Ceník pravid_úklidu'!$A$9:$B$30,2,0)) -> TOAL | I74: 7 | J74: 2x;po-pá | K74: 1 | L74: 0.4 | M74: 0 | N74: 0 | O74: =IF(ISBLANK($K74),"",'[6]Pracovní dny'!$F$2) -> 252 | P74: =IF(ISBLANK($M74),"",'[6]Pracovní dny'!$F$3) -> 114 | Q74: =IF(ISBLANK($K74),"",'[6]Pracovní dny'!$F$4) -> 365 | R74: 100.8 | S74: 13.5 | T74: 0 | U74: 0 | V74: 2.4 | W74: 1 | X74: 3 | Y74: 0 | Z74: 0 | AA74: 0 | AB74: 0 | AC74: 0 | AD74: OM | AF74: =IF(ISBLANK($AE74),VLOOKUP($I74,'Příloha_8_Ceník pravid_úklidu'!$A$9:$K$30,8,0)+VLOOKUP($I74,'Příloha_8_Ceník pravid_úklidu'!$A$9:$K$30,10,0),"neoceňuje se") -> 0 | AG74: 0 | AH74: 0
A75: 72 | B75: 138100 | C75: 1.03.1PP.072 | D75: předsíň | E75: 3.7 | H75: =IF(ISBLANK(I75)," ",VLOOKUP(I75,'[6]Příloha_8_Ceník pravid_úklidu'!$A$9:$B$30,2,0)) -> CHOD | I75: 6 | J75: 2x;po-pá | K75: 1 | L75: 0.4 | M75: 0 | N75: 0 | O75: =IF(ISBLANK($K75),"",'[6]Pracovní dny'!$F$2) -> 252 | P75: =IF(ISBLANK($M75),"",'[6]Pracovní dny'!$F$3) -> 114 | Q75: =IF(ISBLANK($K75),"",'[6]Pracovní dny'!$F$4) -> 365 | R75: 100.8 | S75: 0 | T75: 0 | U75: X | V75: 3.2 | W75: 1 | X75: 0 | Y75: 0 | Z75: 0 | AA75: 0 | AB75: 0 | AC75: 0 | AD75: OM | AF75: =IF(ISBLANK($AE75),VLOOKUP($I75,'Příloha_8_Ceník pravid_úklidu'!$A$9:$K$30,8,0)+VLOOKUP($I75,'Příloha_8_Ceník pravid_úklidu'!$A$9:$K$30,10,0),"neoceňuje se") -> 0 | AG75: 0 | AH75: 0
A76: 73 | B76: 138100 | C76: 1.03.1PP.073 | D76: lékařský pokoj | E76: 12.7 | H76: =IF(ISBLANK(I76)," ",VLOOKUP(I76,'[6]Příloha_8_Ceník pravid_úklidu'!$A$9:$B$30,2,0)) -> KANC | I76: 4 | J76: 2x;po-pá | K76: 1 | L76: 0.4 | M76: 0 | N76: 0 | O76: =IF(ISBLANK($K76),"",'[6]Pracovní dny'!$F$2) -> 252 | P76: =IF(ISBLANK($M76),"",'[6]Pracovní dny'!$F$3) -> 114 | Q76: =IF(ISBLANK($K76),"",'[6]Pracovní dny'!$F$4) -> 365 | R76: 100.8 | S76: 0 | T76: 0 | U76: N | V76: 3.2 | W76: 1 | X76: 0 | Y76: 2.7 | Z76: 1 | AA76: 5.4 | AB76: PL | AC76: 0 | AD76: OM | AF76: =IF(ISBLANK($AE76),VLOOKUP($I76,'Příloha_8_Ceník pravid_úklidu'!$A$9:$K$30,8,0)+VLOOKUP($I76,'Příloha_8_Ceník pravid_úklidu'!$A$9:$K$30,10,0),"neoceňuje se") -> 0 | AG76: 0 | AH76: 0
A77: 74 | B77: 138100 | C77: 1.03.1PP.074 | D77: sociální zařízení | E77: 3.35 | H77: =IF(ISBLANK(I77)," ",VLOOKUP(I77,'[6]Příloha_8_Ceník pravid_úklidu'!$A$9:$B$30,2,0)) -> TOAL | I77: 7 | J77: 2x;po-pá | K77: 1 | L77: 0.4 | M77: 0 | N77: 0 | O77: =IF(ISBLANK($K77),"",'[6]Pracovní dny'!$F$2) -> 252 | P77: =IF(ISBLANK($M77),"",'[6]Pracovní dny'!$F$3) -> 114 | Q77: =IF(ISBLANK($K77),"",'[6]Pracovní dny'!$F$4) -> 365 | R77: 100.8 | S77: 13.5 | T77: 0 | U77: 0 | V77: 2.4 | W77: 1 | X77: 3 | Y77: 0 | Z77: 0 | AA77: 0 | AB77: 0 | AC77: 0 | AD77: OM | AF77: =IF(ISBLANK($AE77),VLOOKUP($I77,'Příloha_8_Ceník pravid_úklidu'!$A$9:$K$30,8,0)+VLOOKUP($I77,'Příloha_8_Ceník pravid_úklidu'!$A$9:$K$30,10,0),"neoceňuje se") -> 0 | AG77: 0 | AH77: 0
A78: 75 | B78: 138100 | C78: 1.03.1PP.075 | D78: předsíň | E78: 3.7 | H78: =IF(ISBLANK(I78)," ",VLOOKUP(I78,'[6]Příloha_8_Ceník pravid_úklidu'!$A$9:$B$30,2,0)) -> CHOD | I78: 6 | J78: 2x;po-pá | K78: 1 | L78: 0.4 | M78: 0 | N78: 0 | O78: =IF(ISBLANK($K78),"",'[6]Pracovní dny'!$F$2) -> 252 | P78: =IF(ISBLANK($M78),"",'[6]Pracovní dny'!$F$3) -> 114 | Q78: =IF(ISBLANK($K78),"",'[6]Pracovní dny'!$F$4) -> 365 | R78: 100.8 | S78: 0 | T78: 0 | U78: X | V78: 3.2 | W78: 1 | X78: 0 | Y78: 0 | Z78: 0 | AA78: 0 | AB78: 0 | AC78: 0 | AD78: OM | AF78: =IF(ISBLANK($AE78),VLOOKUP($I78,'Příloha_8_Ceník pravid_úklidu'!$A$9:$K$30,8,0)+VLOOKUP($I78,'Příloha_8_Ceník pravid_úklidu'!$A$9:$K$30,10,0),"neoceňuje se") -> 0 | AG78: 0 | AH78: 0
A79: 76 | B79: 138100 | C79: 1.03.1PP.076 | D79: lékařský pokoj | E79: 12.3 | H79: =IF(ISBLANK(I79)," ",VLOOKUP(I79,'[6]Příloha_8_Ceník pravid_úklidu'!$A$9:$B$30,2,0)) -> KANC | I79: 4 | J79: 2x;po-pá | K79: 1 | L79: 0.4 | M79: 0 | N79: 0 | O79: =IF(ISBLANK($K79),"",'[6]Pracovní dny'!$F$2) -> 252 | P79: =IF(ISBLANK($M79),"",'[6]Pracovní dny'!$F$3) -> 114 | Q79: =IF(ISBLANK($K79),"",'[6]Pracovní dny'!$F$4) -> 365 | R79: 100.8 | S79: 0 | T79: 0 | U79: N | V79: 3.2 | W79: 1 | X79: 0 | Y79: 2.7 | Z79: 1 | AA79: 5.4 | AB79: PL | AC79: 0 | AD79: OM | AF79: =IF(ISBLANK($AE79),VLOOKUP($I79,'Příloha_8_Ceník pravid_úklidu'!$A$9:$K$30,8,0)+VLOOKUP($I79,'Příloha_8_Ceník pravid_úklidu'!$A$9:$K$30,10,0),"neoceňuje se") -> 0 | AG79: 0 | AH79: 0
A80: 77 | B80: 138100 | C80: 1.03.1PP.077 | D80: sociální zařízení | E80: 3.35 | H80: =IF(ISBLANK(I80)," ",VLOOKUP(I80,'[6]Příloha_8_Ceník pravid_úklidu'!$A$9:$B$30,2,0)) -> TOAL | I80: 7 | J80: 2x;po-pá | K80: 1 | L80: 0.4 | M80: 0 | N80: 0 | O80: =IF(ISBLANK($K80),"",'[6]Pracovní dny'!$F$2) -> 252 | P80: =IF(ISBLANK($M80),"",'[6]Pracovní dny'!$F$3) -> 114 | Q80: =IF(ISBLANK($K80),"",'[6]Pracovní dny'!$F$4) -> 365 | R80: 100.8 | S80: 13.5 | T80: 0 | U80: 0 | V80: 2.4 | W80: 1 | X80: 3 | Y80: 0 | Z80: 0 | AA80: 0 | AB80: 0 | AC80: 0 | AD80: OM | AF80: =IF(ISBLANK($AE80),VLOOKUP($I80,'Příloha_8_Ceník pravid_úklidu'!$A$9:$K$30,8,0)+VLOOKUP($I80,'Příloha_8_Ceník pravid_úklidu'!$A$9:$K$30,10,0),"neoceňuje se") -> 0 | AG80: 0 | AH80: 0
A81: 78 | B81: 138100 | C81: 1.03.1PP.078 | D81: předsíň | E81: 3.5 | H81: =IF(ISBLANK(I81)," ",VLOOKUP(I81,'[6]Příloha_8_Ceník pravid_úklidu'!$A$9:$B$30,2,0)) -> CHOD | I81: 6 | J81: 2x;po-pá | K81: 1 | L81: 0.4 | M81: 0 | N81: 0 | O81: =IF(ISBLANK($K81),"",'[6]Pracovní dny'!$F$2) -> 252 | P81: =IF(ISBLANK($M81),"",'[6]Pracovní dny'!$F$3) -> 114 | Q81: =IF(ISBLANK($K81),"",'[6]Pracovní dny'!$F$4) -> 365 | R81: 100.8 | S81: 0 | T81: 0 | U81: X | V81: 3.2 | W81: 1 | X81: 0 | Y81: 0 | Z81: 0 | AA81: 0 | AB81: 0 | AC81: 0 | AD81: OM | AF81: =IF(ISBLANK($AE81),VLOOKUP($I81,'Příloha_8_Ceník pravid_úklidu'!$A$9:$K$30,8,0)+VLOOKUP($I81,'Příloha_8_Ceník pravid_úklidu'!$A$9:$K$30,10,0),"neoceňuje se") -> 0 | AG81: 0 | AH81: 0
A82: 79 | B82: 138100 | C82: 1.03.1PP.079 | D82: AMB monitorovna | E82: 20.4 | H82: =IF(ISBLANK(I82)," ",VLOOKUP(I82,'[6]Příloha_8_Ceník pravid_úklidu'!$A$9:$B$30,2,0)) -> ZDR1 | I82: 2 | J82: 1x(5xpo-pá) | K82: 1 | L82: 1 | M82: 0 | N82: 0 | O82: =IF(ISBLANK($K82),"",'[6]Pracovní dny'!$F$2) -> 252 | P82: =IF(ISBLANK($M82),"",'[6]Pracovní dny'!$F$3) -> 114 | Q82: =IF(ISBLANK($K82),"",'[6]Pracovní dny'!$F$4) -> 365 | R82: 252 | S82: 6.6 | T82: 0 | U82: 0 | V82: 4.4 | W82: 1 | X82: 2 | Y82: 2.7 | Z82: 1 | AA82: 5.4 | AB82: PL | AC82: 0 | AD82: OM | AF82: =IF(ISBLANK($AE82),VLOOKUP($I82,'Příloha_8_Ceník pravid_úklidu'!$A$9:$K$30,8,0)+VLOOKUP($I82,'Příloha_8_Ceník pravid_úklidu'!$A$9:$K$30,10,0),"neoceňuje se") -> 0 | AG82: 0 | AH82: 0
A83: 81 | B83: 138100 | D83: výtah | E83: 5.9 | H83: =IF(ISBLANK(I83)," ",VLOOKUP(I83,'[6]Příloha_8_Ceník pravid_úklidu'!$A$9:$B$30,2,0)) -> VYTA | I83: 11 | J83: 2x (7x;Po-Ne) | K83: 2 | L83: 1 | M83: 2 | N83: 1 | O83: =IF(ISBLANK($K83),"",'[6]Pracovní dny'!$F$2) -> 252 | P83: =IF(ISBLANK($M83),"",'[6]Pracovní dny'!$F$3) -> 114 | Q83: =IF(ISBLANK($K83),"",'[6]Pracovní dny'!$F$4) -> 365 | R83: 732 | S83: 0 | T83: 0 | U83: 3.1 | V83: 5.2 | W83: 1 | X83: 0 | Y83: 0 | Z83: 0 | AA83: 0 | AB83: 0 | AC83: 0 | AD83: VÝT | AF83: =IF(ISBLANK($AE83),VLOOKUP($I83,'Příloha_8_Ceník pravid_úklidu'!$A$9:$K$30,8,0)+VLOOKUP($I83,'Příloha_8_Ceník pravid_úklidu'!$A$9:$K$30,10,0),"neoceňuje se") -> 0 | AG83: 0 | AH83: 0
A84: 82 | C84: 1.03.1PP.082 | D84: sklad | H84: =IF(ISBLANK(I84)," ",VLOOKUP(I84,'[6]Příloha_8_Ceník pravid_úklidu'!$A$9:$B$30,2,0)) -> SKLA | I84: 17 | J84: není předmětem | O84: =IF(ISBLANK($K84),"",'[6]Pracovní dny'!$F$2) ->  | P84: =IF(ISBLANK($M84),"",'[6]Pracovní dny'!$F$3) ->  | Q84: =IF(ISBLANK($K84),"",'[6]Pracovní dny'!$F$4) ->  | S84: 0 | T84: 0 | U84: 0 | V84: 0 | W84: 0 | X84: 0 | Y84: 0 | Z84: 0 | AA84: 0 | AB84: 0 | AC84: 0 | AD84: 0 | AE84: X | AF84: =IF(ISBLANK($AE84),VLOOKUP($I84,'Příloha_8_Ceník pravid_úklidu'!$A$9:$K$30,8,0)+VLOOKUP($I84,'Příloha_8_Ceník pravid_úklidu'!$A$9:$K$30,10,0),"neoceňuje se") -> neoceňuje se | AG84: 0 | AH84: 0
A85: 83 | C85: 1.03.1PP.083 | D85: předsíň | H85: =IF(ISBLANK(I85)," ",VLOOKUP(I85,'[6]Příloha_8_Ceník pravid_úklidu'!$A$9:$B$30,2,0)) -> CHOD | I85: 6 | J85: není předmětem | O85: =IF(ISBLANK($K85),"",'[6]Pracovní dny'!$F$2) ->  | P85: =IF(ISBLANK($M85),"",'[6]Pracovní dny'!$F$3) ->  | Q85: =IF(ISBLANK($K85),"",'[6]Pracovní dny'!$F$4) ->  | S85: 0 | T85: 0 | U85: 0 | V85: 0 | W85: 0 | X85: 0 | Y85: 0 | Z85: 0 | AA85: 0 | AB85: 0 | AC85: 0 | AD85: 0 | AE85: X | AF85: =IF(ISBLANK($AE85),VLOOKUP($I85,'Příloha_8_Ceník pravid_úklidu'!$A$9:$K$30,8,0)+VLOOKUP($I85,'Příloha_8_Ceník pravid_úklidu'!$A$9:$K$30,10,0),"neoceňuje se") -> neoceňuje se | AG85: 0 | AH85: 0
A86: 84 | B86: 138100 | C86: 1.03.1PP.084 | D86: schodiště | E86: 19.4 | H86: =IF(ISBLANK(I86)," ",VLOOKUP(I86,'[6]Příloha_8_Ceník pravid_úklidu'!$A$9:$B$30,2,0)) -> SCHO | I86: 8 | J86: 1x(5xpo-pá) | K86: 1 | L86: 1 | M86: 0 | N86: 0 | O86: =IF(ISBLANK($K86),"",'[6]Pracovní dny'!$F$2) -> 252 | P86: =IF(ISBLANK($M86),"",'[6]Pracovní dny'!$F$3) -> 114 | Q86: =IF(ISBLANK($K86),"",'[6]Pracovní dny'!$F$4) -> 365 | R86: 252 | S86: 0 | T86: 0 | U86: 0 | V86: 3.2 | W86: 1 | X86: 0 | Y86: 0 | Z86: 0 | AA86: 0 | AB86: 0 | AC86: 0 | AD86: OM | AF86: =IF(ISBLANK($AE86),VLOOKUP($I86,'Příloha_8_Ceník pravid_úklidu'!$A$9:$K$30,8,0)+VLOOKUP($I86,'Příloha_8_Ceník pravid_úklidu'!$A$9:$K$30,10,0),"neoceňuje se") -> 0 | AG86: 0 | AH86: 0
A87: 85 | B87: 133100 | C87: 1.03.1PP.085 | D87: WC | E87: 1.65 | H87: =IF(ISBLANK(I87)," ",VLOOKUP(I87,'[6]Příloha_8_Ceník pravid_úklidu'!$A$9:$B$30,2,0)) -> TOAL | I87: 7 | J87: 1x(5xpo-pá) | K87: 1 | L87: 1 | M87: 0 | N87: 0 | O87: =IF(ISBLANK($K87),"",'[6]Pracovní dny'!$F$2) -> 252 | P87: =IF(ISBLANK($M87),"",'[6]Pracovní dny'!$F$3) -> 114 | Q87: =IF(ISBLANK($K87),"",'[6]Pracovní dny'!$F$4) -> 365 | R87: 252 | S87: 9.6 | T87: 0 | U87: 0 | V87: 2.4 | W87: 1 | X87: 1 | Y87: 0 | Z87: 0 | AA87: 0 | AB87: 0 | AC87: 0 | AD87: OM | AF87: =IF(ISBLANK($AE87),VLOOKUP($I87,'Příloha_8_Ceník pravid_úklidu'!$A$9:$K$30,8,0)+VLOOKUP($I87,'Příloha_8_Ceník pravid_úklidu'!$A$9:$K$30,10,0),"neoceňuje se") -> 0 | AG87: 0 | AH87: 0
A88: 86 | B88: 133100 | C88: 1.03.1PP.086 | D88: WC | E88: 1.65 | H88: =IF(ISBLANK(I88)," ",VLOOKUP(I88,'[6]Příloha_8_Ceník pravid_úklidu'!$A$9:$B$30,2,0)) -> TOAL | I88: 7 | J88: 1x(5xpo-pá) | K88: 1 | L88: 1 | M88: 0 | N88: 0 | O88: =IF(ISBLANK($K88),"",'[6]Pracovní dny'!$F$2) -> 252 | P88: =IF(ISBLANK($M88),"",'[6]Pracovní dny'!$F$3) -> 114 | Q88: =IF(ISBLANK($K88),"",'[6]Pracovní dny'!$F$4) -> 365 | R88: 252 | S88: 9.6 | T88: 0 | U88: 0 | V88: 2.4 | W88: 1 | X88: 1 | Y88: 0 | Z88: 0 | AA88: 0 | AB88: 0 | AC88: 0 | AD88: OM | AF88: =IF(ISBLANK($AE88),VLOOKUP($I88,'Příloha_8_Ceník pravid_úklidu'!$A$9:$K$30,8,0)+VLOOKUP($I88,'Příloha_8_Ceník pravid_úklidu'!$A$9:$K$30,10,0),"neoceňuje se") -> 0 | AG88: 0 | AH88: 0
A89: 87 | B89: 133100 | C89: 1.03.1PP.087 | D89: předsíň | E89: 1.39 | H89: =IF(ISBLANK(I89)," ",VLOOKUP(I89,'[6]Příloha_8_Ceník pravid_úklidu'!$A$9:$B$30,2,0)) -> CHOD | I89: 6 | J89: 1x(5xpo-pá) | K89: 1 | L89: 1 | M89: 0 | N89: 0 | O89: =IF(ISBLANK($K89),"",'[6]Pracovní dny'!$F$2) -> 252 | P89: =IF(ISBLANK($M89),"",'[6]Pracovní dny'!$F$3) -> 114 | Q89: =IF(ISBLANK($K89),"",'[6]Pracovní dny'!$F$4) -> 365 | R89: 252 | S89: 8 | T89: 0 | U89: 0 | V89: 2.4 | W89: 1 | X89: 0 | Y89: 0 | Z89: 0 | AA89: 0 | AB89: 0 | AC89: 0 | AD89: OM | AF89: =IF(ISBLANK($AE89),VLOOKUP($I89,'Příloha_8_Ceník pravid_úklidu'!$A$9:$K$30,8,0)+VLOOKUP($I89,'Příloha_8_Ceník pravid_úklidu'!$A$9:$K$30,10,0),"neoceňuje se") -> 0 | AG89: 0 | AH89: 0
A90: 88 | B90: 133100 | C90: 1.03.1PP.088 | D90: předsíň | E90: 4.35 | H90: =IF(ISBLANK(I90)," ",VLOOKUP(I90,'[6]Příloha_8_Ceník pravid_úklidu'!$A$9:$B$30,2,0)) -> CHOD | I90: 6 | J90: 1x(5xpo-pá) | K90: 1 | L90: 1 | M90: 0 | N90: 0 | O90: =IF(ISBLANK($K90),"",'[6]Pracovní dny'!$F$2) -> 252 | P90: =IF(ISBLANK($M90),"",'[6]Pracovní dny'!$F$3) -> 114 | Q90: =IF(ISBLANK($K90),"",'[6]Pracovní dny'!$F$4) -> 365 | R90: 252 | S90: 15.9 | T90: 0 | U90: 0 | V90: 2.4 | W90: 1 | X90: 2 | Y90: 0 | Z90: 0 | AA90: 0 | AB90: 0 | AC90: 0 | AD90: OM | AF90: =IF(ISBLANK($AE90),VLOOKUP($I90,'Příloha_8_Ceník pravid_úklidu'!$A$9:$K$30,8,0)+VLOOKUP($I90,'Příloha_8_Ceník pravid_úklidu'!$A$9:$K$30,10,0),"neoceňuje se") -> 0 | AG90: 0 | AH90: 0
A91: 89 | B91: 133100 | C91: 1.03.1PP.089 | D91: šatna | E91: 32.75 | H91: =IF(ISBLANK(I91)," ",VLOOKUP(I91,'[6]Příloha_8_Ceník pravid_úklidu'!$A$9:$B$30,2,0)) -> SATN | I91: 10 | J91: 2x;po-pá | K91: 1 | L91: 0.4 | M91: 0 | N91: 0 | O91: =IF(ISBLANK($K91),"",'[6]Pracovní dny'!$F$2) -> 252 | P91: =IF(ISBLANK($M91),"",'[6]Pracovní dny'!$F$3) -> 114 | Q91: =IF(ISBLANK($K91),"",'[6]Pracovní dny'!$F$4) -> 365 | R91: 100.8 | S91: 0 | T91: X | U91: N | V91: 8.8 | W91: 3 | X91: 0 | Y91: 0.9 | Z91: 2 | AA91: 3.6 | AB91: PL | AC91: 0 | AD91: OM | AF91: =IF(ISBLANK($AE91),VLOOKUP($I91,'Příloha_8_Ceník pravid_úklidu'!$A$9:$K$30,8,0)+VLOOKUP($I91,'Příloha_8_Ceník pravid_úklidu'!$A$9:$K$30,10,0),"neoceňuje se") -> 0 | AG91: 0 | AH91: 0
A92: 90 | B92: 133100 | C92: 1.03.1PP.090 | D92: umývárna, WC | E92: 10.8 | H92: =IF(ISBLANK(I92)," ",VLOOKUP(I92,'[6]Příloha_8_Ceník pravid_úklidu'!$A$9:$B$30,2,0)) -> TOAL | I92: 7 | J92: 1x(5xpo-pá) | K92: 1 | L92: 1 | M92: 0 | N92: 0 | O92: =IF(ISBLANK($K92),"",'[6]Pracovní dny'!$F$2) -> 252 | P92: =IF(ISBLANK($M92),"",'[6]Pracovní dny'!$F$3) -> 114 | Q92: =IF(ISBLANK($K92),"",'[6]Pracovní dny'!$F$4) -> 365 | R92: 252 | S92: 35.5 | T92: 0 | U92: 0 | V92: 2.8 | W92: 1 | X92: 6 | Y92: 1 | Z92: 1 | AA92: 2 | AB92: PL | AC92: 0 | AD92: OM | AF92: =IF(ISBLANK($AE92),VLOOKUP($I92,'Příloha_8_Ceník pravid_úklidu'!$A$9:$K$30,8,0)+VLOOKUP($I92,'Příloha_8_Ceník pravid_úklidu'!$A$9:$K$30,10,0),"neoceňuje se") -> 0 | AG92: 0 | AH92: 0
A93: 92 | B93: 133100/138100/103102 | C93: 1.03.1PP.092 | D93: chodba | E93: 176.05 | H93: =IF(ISBLANK(I93)," ",VLOOKUP(I93,'[6]Příloha_8_Ceník pravid_úklidu'!$A$9:$B$30,2,0)) -> CHOD | I93: 6 | J93: 1x(5x;po-pá) | K93: 1 | L93: 1 | M93: 0 | N93: 0 | O93: =IF(ISBLANK($K93),"",'[6]Pracovní dny'!$F$2) -> 252 | P93: =IF(ISBLANK($M93),"",'[6]Pracovní dny'!$F$3) -> 114 | Q93: =IF(ISBLANK($K93),"",'[6]Pracovní dny'!$F$4) -> 365 | R93: 252 | S93: 0 | T93: X | U93: 7.6 | V93: 24.2 | W93: 4 | X93: 0 | Y93: 0 | Z93: 0 | AA93: 0 | AB93: 0 | AC93: 0 | AD93: MIN | AF93: =IF(ISBLANK($AE93),VLOOKUP($I93,'Příloha_8_Ceník pravid_úklidu'!$A$9:$K$30,8,0)+VLOOKUP($I93,'Příloha_8_Ceník pravid_úklidu'!$A$9:$K$30,10,0),"neoceňuje se") -> 0 | AG93: 0 | AH93: 0
A94: 93 | B94: 133100/138100/103102 | C94: 1.03.1PP.093 | D94: chodba | E94: 40.7 | H94: =IF(ISBLANK(I94)," ",VLOOKUP(I94,'[6]Příloha_8_Ceník pravid_úklidu'!$A$9:$B$30,2,0)) -> CHOD | I94: 6 | J94: 1x(5x;po-pá) | K94: 1 | L94: 1 | M94: 0 | N94: 0 | O94: =IF(ISBLANK($K94),"",'[6]Pracovní dny'!$F$2) -> 252 | P94: =IF(ISBLANK($M94),"",'[6]Pracovní dny'!$F$3) -> 114 | Q94: =IF(ISBLANK($K94),"",'[6]Pracovní dny'!$F$4) -> 365 | R94: 252 | S94: 0 | T94: X | U94: 6.5 | V94: 5.8 | W94: 1 | X94: 0 | Y94: 0 | Z94: 0 | AA94: 0 | AB94: 0 | AC94: 0 | AD94: MIN | AF94: =IF(ISBLANK($AE94),VLOOKUP($I94,'Příloha_8_Ceník pravid_úklidu'!$A$9:$K$30,8,0)+VLOOKUP($I94,'Příloha_8_Ceník pravid_úklidu'!$A$9:$K$30,10,0),"neoceňuje se") -> 0 | AG94: 0 | AH94: 0
A95: 94 | B95: 133100/138100/103102 | C95: 1.03.1PP.094 | D95: chodba | E95: 45.75 | H95: =IF(ISBLANK(I95)," ",VLOOKUP(I95,'[6]Příloha_8_Ceník pravid_úklidu'!$A$9:$B$30,2,0)) -> CHOD | I95: 6 | J95: 1x(5x;po-pá) | K95: 1 | L95: 1 | M95: 0 | N95: 0 | O95: =IF(ISBLANK($K95),"",'[6]Pracovní dny'!$F$2) -> 252 | P95: =IF(ISBLANK($M95),"",'[6]Pracovní dny'!$F$3) -> 114 | Q95: =IF(ISBLANK($K95),"",'[6]Pracovní dny'!$F$4) -> 365 | R95: 252 | S95: 0 | T95: X | U95: 5.3 | V95: 5.8 | W95: 1 | X95: 0 | Y95: 0 | Z95: 0 | AA95: 0 | AB95: 0 | AC95: 0 | AD95: MIN | AF95: =IF(ISBLANK($AE95),VLOOKUP($I95,'Příloha_8_Ceník pravid_úklidu'!$A$9:$K$30,8,0)+VLOOKUP($I95,'Příloha_8_Ceník pravid_úklidu'!$A$9:$K$30,10,0),"neoceňuje se") -> 0 | AG95: 0 | AH95: 0
A96: 95 | B96: 133100/138100/103102 | C96: 1.03.1PP.095 | D96: chodba | E96: 10.1 | H96: =IF(ISBLANK(I96)," ",VLOOKUP(I96,'[6]Příloha_8_Ceník pravid_úklidu'!$A$9:$B$30,2,0)) -> CHOD | I96: 6 | J96: 1x;měsíčně | K96: 1 | L96: 0.05 | M96: 0 | N96: 0 | O96: =IF(ISBLANK($K96),"",'[6]Pracovní dny'!$F$2) -> 252 | P96: =IF(ISBLANK($M96),"",'[6]Pracovní dny'!$F$3) -> 114 | Q96: =IF(ISBLANK($K96),"",'[6]Pracovní dny'!$F$4) -> 365 | R96: 12.6 | S96: 0 | T96: 0 | U96: 0 | V96: 4.4 | W96: 1 | X96: 0 | Y96: 0 | Z96: 0 | AA96: 0 | AB96: 0 | AC96: 0 | AD96: OM | AF96: =IF(ISBLANK($AE96),VLOOKUP($I96,'Příloha_8_Ceník pravid_úklidu'!$A$9:$K$30,8,0)+VLOOKUP($I96,'Příloha_8_Ceník pravid_úklidu'!$A$9:$K$30,10,0),"neoceňuje se") -> 0 | AG96: 0 | AH96: 0
A97: 97 | B97: 138600 | C97: 1.03.1PP.097 | D97: sklad OS PG | E97: 8.8 | H97: =IF(ISBLANK(I97)," ",VLOOKUP(I97,'[6]Příloha_8_Ceník pravid_úklidu'!$A$9:$B$30,2,0)) -> SKLA | I97: 17 | J97: 1x;po-pá | K97: 1 | L97: 0.2 | M97: 0 | N97: 0 | O97: =IF(ISBLANK($K97),"",'[6]Pracovní dny'!$F$2) -> 252 | P97: =IF(ISBLANK($M97),"",'[6]Pracovní dny'!$F$3) -> 114 | Q97: =IF(ISBLANK($K97),"",'[6]Pracovní dny'!$F$4) -> 365 | R97: 50.4 | S97: 32.5 | T97: 0 | U97: X | V97: 4.4 | W97: 1 | X97: 0 | Y97: 0 | Z97: 0 | AA97: 0 | AB97: 0 | AC97: 0 | AD97: OM | AF97: =IF(ISBLANK($AE97),VLOOKUP($I97,'Příloha_8_Ceník pravid_úklidu'!$A$9:$K$30,8,0)+VLOOKUP($I97,'Příloha_8_Ceník pravid_úklidu'!$A$9:$K$30,10,0),"neoceňuje se") -> 0 | AG97: 0 | AH97: 0
A98: 100 | B98: 133100 | C98: 1.03.1PP.100 | D98: předsíň | E98: 1.4 | H98: =IF(ISBLANK(I98)," ",VLOOKUP(I98,'[6]Příloha_8_Ceník pravid_úklidu'!$A$9:$B$30,2,0)) -> CHOD | I98: 6 | J98: 1x(5xpo-pá) | K98: 1 | L98: 1 | M98: 0 | N98: 0 | O98: =IF(ISBLANK($K98),"",'[6]Pracovní dny'!$F$2) -> 252 | P98: =IF(ISBLANK($M98),"",'[6]Pracovní dny'!$F$3) -> 114 | Q98: =IF(ISBLANK($K98),"",'[6]Pracovní dny'!$F$4) -> 365 | R98: 252 | S98: 5.2 | T98: 0 | U98: 0 | V98: 3.2 | W98: 1 | X98: 0 | Y98: 0 | Z98: 0 | AA98: 0 | AB98: 0 | AC98: 0 | AD98: OM | AF98: =IF(ISBLANK($AE98),VLOOKUP($I98,'Příloha_8_Ceník pravid_úklidu'!$A$9:$K$30,8,0)+VLOOKUP($I98,'Příloha_8_Ceník pravid_úklidu'!$A$9:$K$30,10,0),"neoceňuje se") -> 0 | AG98: 0 | AH98: 0
A99: 101 | B99: 133100 | C99: 1.03.1PP.101 | D99: wc | E99: 2.35 | H99: =IF(ISBLANK(I99)," ",VLOOKUP(I99,'[6]Příloha_8_Ceník pravid_úklidu'!$A$9:$B$30,2,0)) -> TOAL | I99: 7 | J99: 1x(5xpo-pá) | K99: 1 | L99: 1 | M99: 0 | N99: 0 | O99: =IF(ISBLANK($K99),"",'[6]Pracovní dny'!$F$2) -> 252 | P99: =IF(ISBLANK($M99),"",'[6]Pracovní dny'!$F$3) -> 114 | Q99: =IF(ISBLANK($K99),"",'[6]Pracovní dny'!$F$4) -> 365 | R99: 252 | S99: 11.2 | T99: 0 | U99: 0 | V99: 2.4 | W99: 1 | X99: 2 | Y99: 0 | Z99: 0 | AA99: 0 | AB99: 0 | AC99: 0 | AD99: OM | AF99: =IF(ISBLANK($AE99),VLOOKUP($I99,'Příloha_8_Ceník pravid_úklidu'!$A$9:$K$30,8,0)+VLOOKUP($I99,'Příloha_8_Ceník pravid_úklidu'!$A$9:$K$30,10,0),"neoceňuje se") -> 0 | AG99: 0 | AH99: 0
A100: 1.NADZEMNÍ PODLAŽÍ | H100: =IF(ISBLANK(I100)," ",VLOOKUP(I100,'[6]Příloha_8_Ceník pravid_úklidu'!$A$9:$B$30,2,0)) ->  | O100: =IF(ISBLANK($K100),"",'[6]Pracovní dny'!$F$2) ->  | P100: =IF(ISBLANK($M100),"",'[6]Pracovní dny'!$F$3) ->  | Q100: =IF(ISBLANK($K100),"",'[6]Pracovní dny'!$F$4) -> 
A101: 101 | B101: 138400/133100/138100/133400 | C101: 1.03.1NP.001 | D101: vstup+schodiště | E101: 47.3 | H101: =IF(ISBLANK(I101)," ",VLOOKUP(I101,'[6]Příloha_8_Ceník pravid_úklidu'!$A$9:$B$30,2,0)) -> SCHO | I101: 8 | J101: 1x(7xpo-ne) | K101: 1 | L101: 1 | M101: 1 | N101: 1 | O101: =IF(ISBLANK($K101),"",'[6]Pracovní dny'!$F$2) -> 252 | P101: =IF(ISBLANK($M101),"",'[6]Pracovní dny'!$F$3) -> 114 | Q101: =IF(ISBLANK($K101),"",'[6]Pracovní dny'!$F$4) -> 365 | R101: 366 | S101: 0 | T101: 0 | U101: 0 | V101: 8.2 | W101: 1 | X101: 0 | Y101: 3.8 | Z101: 2 | AA101: 15.2 | AB101: PN | AC101: 0 | AD101: OM | AF101: =IF(ISBLANK($AE101),VLOOKUP($I101,'Příloha_8_Ceník pravid_úklidu'!$A$9:$K$30,8,0)+VLOOKUP($I101,'Příloha_8_Ceník pravid_úklidu'!$A$9:$K$30,10,0),"neoceňuje se") -> 0 | AG101: =IF(AF101="neoceňuje se",0,$E101*$R101*$AF101) -> 0 | AH101: =$AG101*1.21 -> 0
A102: 102 | D102: výtah | G102: 3.1 | H102: =IF(ISBLANK(I102)," ",VLOOKUP(I102,'[6]Příloha_8_Ceník pravid_úklidu'!$A$9:$B$30,2,0)) -> VYTA | I102: 11 | J102: započítat v 1.PP | O102: =IF(ISBLANK($K102),"",'[6]Pracovní dny'!$F$2) ->  | P102: =IF(ISBLANK($M102),"",'[6]Pracovní dny'!$F$3) ->  | Q102: =IF(ISBLANK($K102),"",'[6]Pracovní dny'!$F$4) ->  | S102: 0 | T102: 0 | U102: 16 | V102: 2.7 | W102: 1 | X102: 0 | Y102: 0 | Z102: 0 | AA102: 0 | AB102: 0 | AC102: 0 | AD102: VÝT | AE102: X | AF102: =IF(ISBLANK($AE102),VLOOKUP($I102,'Příloha_8_Ceník pravid_úklidu'!$A$9:$K$30,8,0)+VLOOKUP($I102,'Příloha_8_Ceník pravid_úklidu'!$A$9:$K$30,10,0),"neoceňuje se") -> neoceňuje se | AG102: 0 | AH102: 0
A103: 103 | B103: 138400 | C103: 1.03.1NP.003 | D103: vstupní hala | E103: 63.5 | H103: =IF(ISBLANK(I103)," ",VLOOKUP(I103,'[6]Příloha_8_Ceník pravid_úklidu'!$A$9:$B$30,2,0)) -> CHOD | I103: 6 | J103: 1x(7xpo-ne) | K103: 1 | L103: 1 | M103: 1 | N103: 1 | O103: =IF(ISBLANK($K103),"",'[6]Pracovní dny'!$F$2) -> 252 | P103: =IF(ISBLANK($M103),"",'[6]Pracovní dny'!$F$3) -> 114 | Q103: =IF(ISBLANK($K103),"",'[6]Pracovní dny'!$F$4) -> 365 | R103: 366 | S103: 0 | T103: X | U103: 23.5 | V103: 6.4 | W103: 1 | X103: 0 | Y103: 5.3 | Z103: 2 | AA103: 21.2 | AB103: PN | AC103: 0 | AD103: MIN | AF103: =IF(ISBLANK($AE103),VLOOKUP($I103,'Příloha_8_Ceník pravid_úklidu'!$A$9:$K$30,8,0)+VLOOKUP($I103,'Příloha_8_Ceník pravid_úklidu'!$A$9:$K$30,10,0),"neoceňuje se") -> 0 | AG103: 0 | AH103: 0
A104: 104 | D104: výtah | G104: 4.2 | H104: =IF(ISBLANK(I104)," ",VLOOKUP(I104,'[6]Příloha_8_Ceník pravid_úklidu'!$A$9:$B$30,2,0)) -> VYTA | I104: 11 | J104: započítat v 1.PP | O104: =IF(ISBLANK($K104),"",'[6]Pracovní dny'!$F$2) ->  | P104: =IF(ISBLANK($M104),"",'[6]Pracovní dny'!$F$3) ->  | Q104: =IF(ISBLANK($K104),"",'[6]Pracovní dny'!$F$4) ->  | S104: 0 | T104: 0 | U104: 18 | V104: 3 | W104: 1 | X104: 0 | Y104: 0 | Z104: 0 | AA104: 0 | AB104: 0 | AC104: 0 | AD104: VÝT | AE104: X | AF104: =IF(ISBLANK($AE104),VLOOKUP($I104,'Příloha_8_Ceník pravid_úklidu'!$A$9:$K$30,8,0)+VLOOKUP($I104,'Příloha_8_Ceník pravid_úklidu'!$A$9:$K$30,10,0),"neoceňuje se") -> neoceňuje se | AG104: 0 | AH104: 0
A105: 105 | B105: 138400 | C105: 1.03.1NP.005 | D105: sociální zařízení | E105: 1.2 | H105: =IF(ISBLANK(I105)," ",VLOOKUP(I105,'[6]Příloha_8_Ceník pravid_úklidu'!$A$9:$B$30,2,0)) -> TOAL | I105: 7 | J105: 2x;po-pá | K105: 1 | L105: 0.4 | M105: 0 | N105: 0 | O105: =IF(ISBLANK($K105),"",'[6]Pracovní dny'!$F$2) -> 252 | P105: =IF(ISBLANK($M105),"",'[6]Pracovní dny'!$F$3) -> 114 | Q105: =IF(ISBLANK($K105),"",'[6]Pracovní dny'!$F$4) -> 365 | R105: 100.8 | S105: 6.2 | T105: 0 | U105: 0 | V105: 2.4 | W105: 1 | X105: 1 | Y105: 0 | Z105: 0 | AA105: 0 | AB105: 0 | AC105: 0 | AD105: OM | AF105: =IF(ISBLANK($AE105),VLOOKUP($I105,'Příloha_8_Ceník pravid_úklidu'!$A$9:$K$30,8,0)+VLOOKUP($I105,'Příloha_8_Ceník pravid_úklidu'!$A$9:$K$30,10,0),"neoceňuje se") -> 0 | AG105: 0 | AH105: 0
A106: 106 | B106: 138400 | C106: 1.03.1NP.006 | D106: chodba | E106: 140.8 | H106: =IF(ISBLANK(I106)," ",VLOOKUP(I106,'[6]Příloha_8_Ceník pravid_úklidu'!$A$9:$B$30,2,0)) -> CHOD | I106: 6 | J106: 2x(7xpo-ne) | K106: 2 | L106: 1 | M106: 0 | N106: 0 | O106: =IF(ISBLANK($K106),"",'[6]Pracovní dny'!$F$2) -> 252 | P106: =IF(ISBLANK($M106),"",'[6]Pracovní dny'!$F$3) -> 114 | Q106: =IF(ISBLANK($K106),"",'[6]Pracovní dny'!$F$4) -> 365 | R106: 504 | S106: 12 | T106: X | U106: 4.8 | V106: 14.8 | W106: 3 | X106: 0 | Y106: 3.4 | Z106: 2 | AA106: 13.6 | AB106: PN | AC106: 0 | AD106: MIN | AF106: =IF(ISBLANK($AE106),VLOOKUP($I106,'Příloha_8_Ceník pravid_úklidu'!$A$9:$K$30,8,0)+VLOOKUP($I106,'Příloha_8_Ceník pravid_úklidu'!$A$9:$K$30,10,0),"neoceňuje se") -> 0 | AG106: 0 | AH106: 0
A107: 107 | B107: 138400 | C107: 1.03.1NP.007 | D107: kancelář | E107: 15.6 | H107: =IF(ISBLANK(I107)," ",VLOOKUP(I107,'[6]Příloha_8_Ceník pravid_úklidu'!$A$9:$B$30,2,0)) -> KANC | I107: 4 | J107: 2x;po-pá | K107: 1 | L107: 0.4 | M107: 0 | N107: 0 | O107: =IF(ISBLANK($K107),"",'[6]Pracovní dny'!$F$2) -> 252 | P107: =IF(ISBLANK($M107),"",'[6]Pracovní dny'!$F$3) -> 114 | Q107: =IF(ISBLANK($K107),"",'[6]Pracovní dny'!$F$4) -> 365 | R107: 100.8 | S107: 2.4 | T107: 0 | U107: N | V107: 3.2 | W107: 1 | X107: 1 | Y107: 2.8 | Z107: 1 | AA107: 5.6 | AB107: PL | AC107: VNI-H | AD107: OM | AF107: =IF(ISBLANK($AE107),VLOOKUP($I107,'Příloha_8_Ceník pravid_úklidu'!$A$9:$K$30,8,0)+VLOOKUP($I107,'Příloha_8_Ceník pravid_úklidu'!$A$9:$K$30,10,0),"neoceňuje se") -> 0 | AG107: 0 | AH107: 0
A108: 1116 | B108: 138400 | C108: 1.03.1NP.008 | D108: kancelář přednost | E108: 21.6 | H108: =IF(ISBLANK(I108)," ",VLOOKUP(I108,'[6]Příloha_8_Ceník pravid_úklidu'!$A$9:$B$30,2,0)) -> KANC | I108: 4 | J108: 2x;po-pá | K108: 1 | L108: 0.4 | M108: 0 | N108: 0 | O108: =IF(ISBLANK($K108),"",'[6]Pracovní dny'!$F$2) -> 252 | P108: =IF(ISBLANK($M108),"",'[6]Pracovní dny'!$F$3) -> 114 | Q108: =IF(ISBLANK($K108),"",'[6]Pracovní dny'!$F$4) -> 365 | R108: 100.8 | S108: 0 | T108: 0 | U108: N | V108: 3.2 | W108: 1 | X108: 0 | Y108: 3.6 | Z108: 2 | AA108: 14.4 | AB108: PL | AC108: VNI-H | AD108: OM | AF108: =IF(ISBLANK($AE108),VLOOKUP($I108,'Příloha_8_Ceník pravid_úklidu'!$A$9:$K$30,8,0)+VLOOKUP($I108,'Příloha_8_Ceník pravid_úklidu'!$A$9:$K$30,10,0),"neoceňuje se") -> 0 | AG108: 0 | AH108: 0
A109: 109 | B109: 138400 | C109: 1.03.1NP.009 | D109: sociální zařízení | E109: 3.3 | H109: =IF(ISBLANK(I109)," ",VLOOKUP(I109,'[6]Příloha_8_Ceník pravid_úklidu'!$A$9:$B$30,2,0)) -> TOAL | I109: 7 | J109: 2x;po-pá | K109: 1 | L109: 0.4 | M109: 0 | N109: 0 | O109: =IF(ISBLANK($K109),"",'[6]Pracovní dny'!$F$2) -> 252 | P109: =IF(ISBLANK($M109),"",'[6]Pracovní dny'!$F$3) -> 114 | Q109: =IF(ISBLANK($K109),"",'[6]Pracovní dny'!$F$4) -> 365 | R109: 100.8 | S109: 13.2 | T109: 0 | U109: 0 | V109: 2.4 | W109: 1 | X109: 3 | Y109: 0 | Z109: 0 | AA109: 0 | AB109: 0 | AC109: 0 | AD109: OM | AF109: =IF(ISBLANK($AE109),VLOOKUP($I109,'Příloha_8_Ceník pravid_úklidu'!$A$9:$K$30,8,0)+VLOOKUP($I109,'Příloha_8_Ceník pravid_úklidu'!$A$9:$K$30,10,0),"neoceňuje se") -> 0 | AG109: 0 | AH109: 0
A110: 110 | B110: 138400 | C110: 1.03.1NP.010 | D110: kancelář primaře | E110: 26.9 | H110: =IF(ISBLANK(I110)," ",VLOOKUP(I110,'[6]Příloha_8_Ceník pravid_úklidu'!$A$9:$B$30,2,0)) -> KANC | I110: 4 | J110: 2x;po-pá | K110: 1 | L110: 0.4 | M110: 0 | N110: 0 | O110: =IF(ISBLANK($K110),"",'[6]Pracovní dny'!$F$2) -> 252 | P110: =IF(ISBLANK($M110),"",'[6]Pracovní dny'!$F$3) -> 114 | Q110: =IF(ISBLANK($K110),"",'[6]Pracovní dny'!$F$4) -> 365 | R110: 100.8 | S110: 2.8 | T110: 0 | U110: N | V110: 3.2 | W110: 1 | X110: 1 | Y110: 3.6 | Z110: 1 | AA110: 7.2 | AB110: PL | AC110: VNI-H | AD110: OM | AF110: =IF(ISBLANK($AE110),VLOOKUP($I110,'Příloha_8_Ceník pravid_úklidu'!$A$9:$K$30,8,0)+VLOOKUP($I110,'Příloha_8_Ceník pravid_úklidu'!$A$9:$K$30,10,0),"neoceňuje se") -> 0 | AG110: 0 | AH110: 0
A111: 111 | B111: 138400 | C111: 1.03.1NP.011 | D111: sociální zařízení | E111: 3.3 | H111: =IF(ISBLANK(I111)," ",VLOOKUP(I111,'[6]Příloha_8_Ceník pravid_úklidu'!$A$9:$B$30,2,0)) -> TOAL | I111: 7 | J111: 2x;po-pá | K111: 1 | L111: 0.4 | M111: 0 | N111: 0 | O111: =IF(ISBLANK($K111),"",'[6]Pracovní dny'!$F$2) -> 252 | P111: =IF(ISBLANK($M111),"",'[6]Pracovní dny'!$F$3) -> 114 | Q111: =IF(ISBLANK($K111),"",'[6]Pracovní dny'!$F$4) -> 365 | R111: 100.8 | S111: 13.2 | T111: 0 | U111: 0 | V111: 2.4 | W111: 1 | X111: 3 | Y111: 0 | Z111: 0 | AA111: 0 | AB111: 0 | AC111: 0 | AD111: OM | AF111: =IF(ISBLANK($AE111),VLOOKUP($I111,'Příloha_8_Ceník pravid_úklidu'!$A$9:$K$30,8,0)+VLOOKUP($I111,'Příloha_8_Ceník pravid_úklidu'!$A$9:$K$30,10,0),"neoceňuje se") -> 0 | AG111: 0 | AH111: 0
A112: 112 | B112: 138400 | C112: 1.03.1NP.012 | D112: sociální zařízení | E112: 3.3 | H112: =IF(ISBLANK(I112)," ",VLOOKUP(I112,'[6]Příloha_8_Ceník pravid_úklidu'!$A$9:$B$30,2,0)) -> TOAL | I112: 7 | J112: 2x;po-pá | K112: 1 | L112: 0.4 | M112: 0 | N112: 0 | O112: =IF(ISBLANK($K112),"",'[6]Pracovní dny'!$F$2) -> 252 | P112: =IF(ISBLANK($M112),"",'[6]Pracovní dny'!$F$3) -> 114 | Q112: =IF(ISBLANK($K112),"",'[6]Pracovní dny'!$F$4) -> 365 | R112: 100.8 | S112: 13.2 | T112: 0 | U112: 0 | V112: 2.4 | W112: 1 | X112: 3 | Y112: 0 | Z112: 0 | AA112: 0 | AB112: 0 | AC112: 0 | AD112: OM | AF112: =IF(ISBLANK($AE112),VLOOKUP($I112,'Příloha_8_Ceník pravid_úklidu'!$A$9:$K$30,8,0)+VLOOKUP($I112,'Příloha_8_Ceník pravid_úklidu'!$A$9:$K$30,10,0),"neoceňuje se") -> 0 | AG112: 0 | AH112: 0
A113: 113 | B113: 138400 | C113: 1.03.1NP.013 | D113: sklad | E113: 3.4 | H113: =IF(ISBLANK(I113)," ",VLOOKUP(I113,'[6]Příloha_8_Ceník pravid_úklidu'!$A$9:$B$30,2,0)) -> SKLA | I113: 17 | J113: 2x;po-pá | K113: 1 | L113: 0.4 | M113: 0 | N113: 0 | O113: =IF(ISBLANK($K113),"",'[6]Pracovní dny'!$F$2) -> 252 | P113: =IF(ISBLANK($M113),"",'[6]Pracovní dny'!$F$3) -> 114 | Q113: =IF(ISBLANK($K113),"",'[6]Pracovní dny'!$F$4) -> 365 | R113: 100.8 | S113: 0 | T113: 0 | U113: X | V113: 2.4 | W113: 1 | X113: 0 | Y113: 3.6 | Z113: 1 | AA113: 7.2 | AB113: PL | AC113: VNI-H | AD113: OM | AF113: =IF(ISBLANK($AE113),VLOOKUP($I113,'Příloha_8_Ceník pravid_úklidu'!$A$9:$K$30,8,0)+VLOOKUP($I113,'Příloha_8_Ceník pravid_úklidu'!$A$9:$K$30,10,0),"neoceňuje se") -> 0 | AG113: 0 | AH113: 0
A114: 114 | B114: 138400 | C114: 1.03.1NP.014 | D114: vrchní sestra | E114: 22.5 | H114: =IF(ISBLANK(I114)," ",VLOOKUP(I114,'[6]Příloha_8_Ceník pravid_úklidu'!$A$9:$B$30,2,0)) -> KANC | I114: 4 | J114: 2x;po-pá | K114: 1 | L114: 0.4 | M114: 0 | N114: 0 | O114: =IF(ISBLANK($K114),"",'[6]Pracovní dny'!$F$2) -> 252 | P114: =IF(ISBLANK($M114),"",'[6]Pracovní dny'!$F$3) -> 114 | Q114: =IF(ISBLANK($K114),"",'[6]Pracovní dny'!$F$4) -> 365 | R114: 100.8 | S114: 1.5 | T114: 0 | U114: N | V114: 3.2 | W114: 1 | X114: 1 | Y114: 3.6 | Z114: 1 | AA114: 7.2 | AB114: PL | AC114: VNI-H | AD114: OM | AF114: =IF(ISBLANK($AE114),VLOOKUP($I114,'Příloha_8_Ceník pravid_úklidu'!$A$9:$K$30,8,0)+VLOOKUP($I114,'Příloha_8_Ceník pravid_úklidu'!$A$9:$K$30,10,0),"neoceňuje se") -> 0 | AG114: 0 | AH114: 0
A115: 115 | B115: 138400 | C115: 1.03.1NP.015 | D115: pokoj | E115: 23.3 | H115: =IF(ISBLANK(I115)," ",VLOOKUP(I115,'[6]Příloha_8_Ceník pravid_úklidu'!$A$9:$B$30,2,0)) -> ZDR0 | I115: 1 | J115: 2x(7xpo-ne) | K115: 2 | L115: 1 | M115: 2 | N115: 1 | O115: =IF(ISBLANK($K115),"",'[6]Pracovní dny'!$F$2) -> 252 | P115: =IF(ISBLANK($M115),"",'[6]Pracovní dny'!$F$3) -> 114 | Q115: =IF(ISBLANK($K115),"",'[6]Pracovní dny'!$F$4) -> 365 | R115: 732 | S115: 0 | T115: X | U115: ZN | V115: 4.4 | W115: 1 | X115: 0 | Y115: 3.6 | Z115: 1 | AA115: 7.2 | AB115: PL | AC115: VNI-H | AD115: OM | AF115: =IF(ISBLANK($AE115),VLOOKUP($I115,'Příloha_8_Ceník pravid_úklidu'!$A$9:$K$30,8,0)+VLOOKUP($I115,'Příloha_8_Ceník pravid_úklidu'!$A$9:$K$30,10,0),"neoceňuje se") -> 0 | AG115: 0 | AH115: 0
A116: 116 | D116: neobsazeno | H116: =IF(ISBLANK(I116)," ",VLOOKUP(I116,'[6]Příloha_8_Ceník pravid_úklidu'!$A$9:$B$30,2,0)) ->  | J116: není předmětem | O116: =IF(ISBLANK($K116),"",'[6]Pracovní dny'!$F$2) ->  | P116: =IF(ISBLANK($M116),"",'[6]Pracovní dny'!$F$3) ->  | Q116: =IF(ISBLANK($K116),"",'[6]Pracovní dny'!$F$4) ->  | V116: 0 | W116: 0 | X116: 0 | Y116: 0 | Z116: 0 | AA116: 0 | AB116: 0 | AC116: 0 | AD116: OM | AE116: X | AF116: =IF(ISBLANK($AE116),VLOOKUP($I116,'Příloha_8_Ceník pravid_úklidu'!$A$9:$K$30,8,0)+VLOOKUP($I116,'Příloha_8_Ceník pravid_úklidu'!$A$9:$K$30,10,0),"neoceňuje se") -> neoceňuje se | AG116: 0 | AH116: 0
A117: 117 | B117: 138400 | C117: 1.03.1NP.017 | D117: sociální zařízení | E117: 4.8 | H117: =IF(ISBLANK(I117)," ",VLOOKUP(I117,'[6]Příloha_8_Ceník pravid_úklidu'!$A$9:$B$30,2,0)) -> TOAL | I117: 7 | J117: 2x(7xpo-ne) | K117: 2 | L117: 1 | M117: 2 | N117: 1 | O117: =IF(ISBLANK($K117),"",'[6]Pracovní dny'!$F$2) -> 252 | P117: =IF(ISBLANK($M117),"",'[6]Pracovní dny'!$F$3) -> 114 | Q117: =IF(ISBLANK($K117),"",'[6]Pracovní dny'!$F$4) -> 365 | R117: 732 | S117: 16.8 | T117: 0 | U117: 0 | V117: 3.2 | W117: 1 | X117: 3 | Y117: 0 | Z117: 0 | AA117: 0 | AB117: 0 | AC117: 0 | AD117: OM | AF117: =IF(ISBLANK($AE117),VLOOKUP($I117,'Příloha_8_Ceník pravid_úklidu'!$A$9:$K$30,8,0)+VLOOKUP($I117,'Příloha_8_Ceník pravid_úklidu'!$A$9:$K$30,10,0),"neoceňuje se") -> 0 | AG117: 0 | AH117: 0
A118: 118 | B118: 138400 | C118: 1.03.1NP.018 | D118: sociální zařízení | E118: 4.8 | H118: =IF(ISBLANK(I118)," ",VLOOKUP(I118,'[6]Příloha_8_Ceník pravid_úklidu'!$A$9:$B$30,2,0)) -> TOAL | I118: 7 | J118: 2x(7xpo-ne) | K118: 2 | L118: 1 | M118: 2 | N118: 1 | O118: =IF(ISBLANK($K118),"",'[6]Pracovní dny'!$F$2) -> 252 | P118: =IF(ISBLANK($M118),"",'[6]Pracovní dny'!$F$3) -> 114 | Q118: =IF(ISBLANK($K118),"",'[6]Pracovní dny'!$F$4) -> 365 | R118: 732 | S118: 16.4 | T118: 0 | U118: 0 | V118: 3.2 | W118: 1 | X118: 3 | Y118: 3.6 | Z118: 1 | AA118: 7.2 | AB118: PL | AC118: VNI-H | AD118: OM | AF118: =IF(ISBLANK($AE118),VLOOKUP($I118,'Příloha_8_Ceník pravid_úklidu'!$A$9:$K$30,8,0)+VLOOKUP($I118,'Příloha_8_Ceník pravid_úklidu'!$A$9:$K$30,10,0),"neoceňuje se") -> 0 | AG118: 0 | AH118: 0
A119: 119 | B119: 138400 | C119: 1.03.1NP.019 | D119: pokoj | E119: 22.5 | H119: =IF(ISBLANK(I119)," ",VLOOKUP(I119,'[6]Příloha_8_Ceník pravid_úklidu'!$A$9:$B$30,2,0)) -> ZDR0 | I119: 1 | J119: 2x(7xpo-ne) | K119: 2 | L119: 1 | M119: 2 | N119: 1 | O119: =IF(ISBLANK($K119),"",'[6]Pracovní dny'!$F$2) -> 252 | P119: =IF(ISBLANK($M119),"",'[6]Pracovní dny'!$F$3) -> 114 | Q119: =IF(ISBLANK($K119),"",'[6]Pracovní dny'!$F$4) -> 365 | R119: 732 | S119: 0 | T119: X | U119: ZN | V119: 4.4 | W119: 1 | X119: 0 | Y119: 3.6 | Z119: 1 | AA119: 7.2 | AB119: PL | AC119: VNI-H | AD119: OM | AF119: =IF(ISBLANK($AE119),VLOOKUP($I119,'Příloha_8_Ceník pravid_úklidu'!$A$9:$K$30,8,0)+VLOOKUP($I119,'Příloha_8_Ceník pravid_úklidu'!$A$9:$K$30,10,0),"neoceňuje se") -> 0 | AG119: 0 | AH119: 0
A120: 120 | B120: 138400 | C120: 1.03.1NP.020 | D120: pokoj | E120: 23.3 | H120: =IF(ISBLANK(I120)," ",VLOOKUP(I120,'[6]Příloha_8_Ceník pravid_úklidu'!$A$9:$B$30,2,0)) -> ZDR0 | I120: 1 | J120: 2x(7xpo-ne) | K120: 2 | L120: 1 | M120: 2 | N120: 1 | O120: =IF(ISBLANK($K120),"",'[6]Pracovní dny'!$F$2) -> 252 | P120: =IF(ISBLANK($M120),"",'[6]Pracovní dny'!$F$3) -> 114 | Q120: =IF(ISBLANK($K120),"",'[6]Pracovní dny'!$F$4) -> 365 | R120: 732 | S120: 0 | T120: X | U120: ZN | V120: 4.4 | W120: 1 | X120: 0 | Y120: 3.6 | Z120: 1 | AA120: 7.2 | AB120: PL | AC120: VNI-H | AD120: OM | AF120: =IF(ISBLANK($AE120),VLOOKUP($I120,'Příloha_8_Ceník pravid_úklidu'!$A$9:$K$30,8,0)+VLOOKUP($I120,'Příloha_8_Ceník pravid_úklidu'!$A$9:$K$30,10,0),"neoceňuje se") -> 0 | AG120: 0 | AH120: 0
A121: 121 | B121: 138400 | C121: 1.03.1NP.021 | D121: sklad | E121: 6.5 | H121: =IF(ISBLANK(I121)," ",VLOOKUP(I121,'[6]Příloha_8_Ceník pravid_úklidu'!$A$9:$B$30,2,0)) -> SKLA | I121: 17 | J121: 1x;po-pá | K121: 1 | L121: 0.2 | M121: 0 | N121: 0 | O121: =IF(ISBLANK($K121),"",'[6]Pracovní dny'!$F$2) -> 252 | P121: =IF(ISBLANK($M121),"",'[6]Pracovní dny'!$F$3) -> 114 | Q121: =IF(ISBLANK($K121),"",'[6]Pracovní dny'!$F$4) -> 365 | R121: 50.4 | S121: 6 | T121: 0 | U121: 0 | V121: 3.2 | W121: 1 | X121: 0 | Y121: 3.6 | Z121: 1 | AA121: 7.2 | AB121: PL | AC121: 0 | AD121: OM | AF121: =IF(ISBLANK($AE121),VLOOKUP($I121,'Příloha_8_Ceník pravid_úklidu'!$A$9:$K$30,8,0)+VLOOKUP($I121,'Příloha_8_Ceník pravid_úklidu'!$A$9:$K$30,10,0),"neoceňuje se") -> 0 | AG121: 0 | AH121: 0
A122: 122 | B122: 138400 | C122: 1.03.1NP.022 | D122: sociální zařízení | E122: 6.9 | H122: =IF(ISBLANK(I122)," ",VLOOKUP(I122,'[6]Příloha_8_Ceník pravid_úklidu'!$A$9:$B$30,2,0)) -> TOAL | I122: 7 | J122: 2x(7xpo-ne) | K122: 2 | L122: 1 | M122: 2 | N122: 1 | O122: =IF(ISBLANK($K122),"",'[6]Pracovní dny'!$F$2) -> 252 | P122: =IF(ISBLANK($M122),"",'[6]Pracovní dny'!$F$3) -> 114 | Q122: =IF(ISBLANK($K122),"",'[6]Pracovní dny'!$F$4) -> 365 | R122: 732 | S122: 19.5 | T122: 0 | U122: 0 | V122: 3.2 | W122: 1 | X122: 3 | Y122: 0 | Z122: 0 | AA122: 0 | AB122: 0 | AC122: 0 | AD122: OM | AF122: =IF(ISBLANK($AE122),VLOOKUP($I122,'Příloha_8_Ceník pravid_úklidu'!$A$9:$K$30,8,0)+VLOOKUP($I122,'Příloha_8_Ceník pravid_úklidu'!$A$9:$K$30,10,0),"neoceňuje se") -> 0 | AG122: 0 | AH122: 0
A123: 123 | B123: 138400 | C123: 1.03.1NP.023 | D123: sociální zařízení | E123: 6.9 | H123: =IF(ISBLANK(I123)," ",VLOOKUP(I123,'[6]Příloha_8_Ceník pravid_úklidu'!$A$9:$B$30,2,0)) -> TOAL | I123: 7 | J123: 2x(7xpo-ne) | K123: 2 | L123: 1 | M123: 2 | N123: 1 | O123: =IF(ISBLANK($K123),"",'[6]Pracovní dny'!$F$2) -> 252 | P123: =IF(ISBLANK($M123),"",'[6]Pracovní dny'!$F$3) -> 114 | Q123: =IF(ISBLANK($K123),"",'[6]Pracovní dny'!$F$4) -> 365 | R123: 732 | S123: 18.5 | T123: 0 | U123: 0 | V123: 3.2 | W123: 1 | X123: 3 | Y123: 3.6 | Z123: 1 | AA123: 7.2 | AB123: PL | AC123: VNI-H | AD123: OM | AF123: =IF(ISBLANK($AE123),VLOOKUP($I123,'Příloha_8_Ceník pravid_úklidu'!$A$9:$K$30,8,0)+VLOOKUP($I123,'Příloha_8_Ceník pravid_úklidu'!$A$9:$K$30,10,0),"neoceňuje se") -> 0 | AG123: 0 | AH123: 0
A124: 124 | B124: 138400 | C124: 1.03.1NP.024 | D124: pokoj | E124: 21.1 | H124: =IF(ISBLANK(I124)," ",VLOOKUP(I124,'[6]Příloha_8_Ceník pravid_úklidu'!$A$9:$B$30,2,0)) -> ZDR0 | I124: 1 | J124: 2x(7xpo-ne) | K124: 2 | L124: 1 | M124: 2 | N124: 1 | O124: =IF(ISBLANK($K124),"",'[6]Pracovní dny'!$F$2) -> 252 | P124: =IF(ISBLANK($M124),"",'[6]Pracovní dny'!$F$3) -> 114 | Q124: =IF(ISBLANK($K124),"",'[6]Pracovní dny'!$F$4) -> 365 | R124: 732 | S124: 0 | T124: X | U124: ZN | V124: 4.4 | W124: 1 | X124: 0 | Y124: 3.6 | Z124: 1 | AA124: 7.2 | AB124: PL | AC124: VNI-H | AD124: OM | AF124: =IF(ISBLANK($AE124),VLOOKUP($I124,'Příloha_8_Ceník pravid_úklidu'!$A$9:$K$30,8,0)+VLOOKUP($I124,'Příloha_8_Ceník pravid_úklidu'!$A$9:$K$30,10,0),"neoceňuje se") -> 0 | AG124: 0 | AH124: 0
A125: 125 | B125: 138400 | C125: 1.03.1NP.025 | D125: pokoj | E125: 12.1 | H125: =IF(ISBLANK(I125)," ",VLOOKUP(I125,'[6]Příloha_8_Ceník pravid_úklidu'!$A$9:$B$30,2,0)) -> ZDR0 | I125: 1 | J125: 2x(7xpo-ne) | K125: 2 | L125: 1 | M125: 2 | N125: 1 | O125: =IF(ISBLANK($K125),"",'[6]Pracovní dny'!$F$2) -> 252 | P125: =IF(ISBLANK($M125),"",'[6]Pracovní dny'!$F$3) -> 114 | Q125: =IF(ISBLANK($K125),"",'[6]Pracovní dny'!$F$4) -> 365 | R125: 732 | S125: 0 | T125: X | U125: ZN | V125: 4.4 | W125: 1 | X125: 0 | Y125: 3.6 | Z125: 1 | AA125: 7.2 | AB125: PL | AC125: VNI-H | AD125: OM | AF125: =IF(ISBLANK($AE125),VLOOKUP($I125,'Příloha_8_Ceník pravid_úklidu'!$A$9:$K$30,8,0)+VLOOKUP($I125,'Příloha_8_Ceník pravid_úklidu'!$A$9:$K$30,10,0),"neoceňuje se") -> 0 | AG125: 0 | AH125: 0
A126: 126 | B126: 138400 | C126: 1.03.1NP.026 | D126: sociální zařízení | E126: 3.9 | H126: =IF(ISBLANK(I126)," ",VLOOKUP(I126,'[6]Příloha_8_Ceník pravid_úklidu'!$A$9:$B$30,2,0)) -> TOAL | I126: 7 | J126: 2x(7xpo-ne) | K126: 2 | L126: 1 | M126: 2 | N126: 1 | O126: =IF(ISBLANK($K126),"",'[6]Pracovní dny'!$F$2) -> 252 | P126: =IF(ISBLANK($M126),"",'[6]Pracovní dny'!$F$3) -> 114 | Q126: =IF(ISBLANK($K126),"",'[6]Pracovní dny'!$F$4) -> 365 | R126: 732 | S126: 15.8 | T126: 0 | U126: 0 | V126: 2.8 | W126: 1 | X126: 3 | Y126: 0 | Z126: 0 | AA126: 0 | AB126: 0 | AC126: 0 | AD126: OM | AF126: =IF(ISBLANK($AE126),VLOOKUP($I126,'Příloha_8_Ceník pravid_úklidu'!$A$9:$K$30,8,0)+VLOOKUP($I126,'Příloha_8_Ceník pravid_úklidu'!$A$9:$K$30,10,0),"neoceňuje se") -> 0 | AG126: 0 | AH126: 0
A127: 127 | B127: 138400 | C127: 1.03.1NP.027 | D127: pokoj | E127: 19.2 | H127: =IF(ISBLANK(I127)," ",VLOOKUP(I127,'[6]Příloha_8_Ceník pravid_úklidu'!$A$9:$B$30,2,0)) -> ZDR0 | I127: 1 | J127: 2x(7xpo-ne) | K127: 2 | L127: 1 | M127: 2 | N127: 1 | O127: =IF(ISBLANK($K127),"",'[6]Pracovní dny'!$F$2) -> 252 | P127: =IF(ISBLANK($M127),"",'[6]Pracovní dny'!$F$3) -> 114 | Q127: =IF(ISBLANK($K127),"",'[6]Pracovní dny'!$F$4) -> 365 | R127: 732 | S127: 0 | T127: X | U127: ZN | V127: 4.4 | W127: 1 | X127: 0 | Y127: 3.6 | Z127: 1 | AA127: 7.2 | AB127: PL | AC127: VNI-H | AD127: OM | AF127: =IF(ISBLANK($AE127),VLOOKUP($I127,'Příloha_8_Ceník pravid_úklidu'!$A$9:$K$30,8,0)+VLOOKUP($I127,'Příloha_8_Ceník pravid_úklidu'!$A$9:$K$30,10,0),"neoceňuje se") -> 0 | AG127: 0 | AH127: 0
A128: 128 | B128: 138400 | C128: 1.03.1NP.028 | D128: sociální zařízení | E128: 5.1 | H128: =IF(ISBLANK(I128)," ",VLOOKUP(I128,'[6]Příloha_8_Ceník pravid_úklidu'!$A$9:$B$30,2,0)) -> TOAL | I128: 7 | J128: 2x(7xpo-ne) | K128: 2 | L128: 1 | M128: 2 | N128: 1 | O128: =IF(ISBLANK($K128),"",'[6]Pracovní dny'!$F$2) -> 252 | P128: =IF(ISBLANK($M128),"",'[6]Pracovní dny'!$F$3) -> 114 | Q128: =IF(ISBLANK($K128),"",'[6]Pracovní dny'!$F$4) -> 365 | R128: 732 | S128: 15.6 | T128: 0 | U128: 0 | V128: 6.4 | W128: 2 | X128: 2 | Y128: 0 | Z128: 0 | AA128: 0 | AB128: 0 | AC128: 0 | AD128: OM | AF128: =IF(ISBLANK($AE128),VLOOKUP($I128,'Příloha_8_Ceník pravid_úklidu'!$A$9:$K$30,8,0)+VLOOKUP($I128,'Příloha_8_Ceník pravid_úklidu'!$A$9:$K$30,10,0),"neoceňuje se") -> 0 | AG128: 0 | AH128: 0
A129: 129 | B129: 138400 | C129: 1.03.1NP.029 | D129: wc | E129: 1.2 | H129: =IF(ISBLANK(I129)," ",VLOOKUP(I129,'[6]Příloha_8_Ceník pravid_úklidu'!$A$9:$B$30,2,0)) -> TOAL | I129: 7 | J129: 2x(7xpo-ne) | K129: 2 | L129: 1 | M129: 2 | N129: 1 | O129: =IF(ISBLANK($K129),"",'[6]Pracovní dny'!$F$2) -> 252 | P129: =IF(ISBLANK($M129),"",'[6]Pracovní dny'!$F$3) -> 114 | Q129: =IF(ISBLANK($K129),"",'[6]Pracovní dny'!$F$4) -> 365 | R129: 732 | S129: 6.4 | T129: 0 | U129: 0 | V129: 3.2 | W129: 1 | X129: 1 | Y129: 0 | Z129: 0 | AA129: 0 | AB129: 0 | AC129: 0 | AD129: OM | AF129: =IF(ISBLANK($AE129),VLOOKUP($I129,'Příloha_8_Ceník pravid_úklidu'!$A$9:$K$30,8,0)+VLOOKUP($I129,'Příloha_8_Ceník pravid_úklidu'!$A$9:$K$30,10,0),"neoceňuje se") -> 0 | AG129: 0 | AH129: 0
A130: 130 | B130: 138400 | C130: 1.03.1NP.030 | D130: pokoj | E130: 19.2 | H130: =IF(ISBLANK(I130)," ",VLOOKUP(I130,'[6]Příloha_8_Ceník pravid_úklidu'!$A$9:$B$30,2,0)) -> ZDR0 | I130: 1 | J130: 2x(7xpo-ne) | K130: 2 | L130: 1 | M130: 2 | N130: 1 | O130: =IF(ISBLANK($K130),"",'[6]Pracovní dny'!$F$2) -> 252 | P130: =IF(ISBLANK($M130),"",'[6]Pracovní dny'!$F$3) -> 114 | Q130: =IF(ISBLANK($K130),"",'[6]Pracovní dny'!$F$4) -> 365 | R130: 732 | S130: 0 | T130: X | U130: ZN | V130: 4.4 | W130: 1 | X130: 0 | Y130: 3.6 | Z130: 1 | AA130: 7.2 | AB130: PL | AC130: VNI-H | AD130: OM | AF130: =IF(ISBLANK($AE130),VLOOKUP($I130,'Příloha_8_Ceník pravid_úklidu'!$A$9:$K$30,8,0)+VLOOKUP($I130,'Příloha_8_Ceník pravid_úklidu'!$A$9:$K$30,10,0),"neoceňuje se") -> 0 | AG130: 0 | AH130: 0
A131: 131 | B131: 138400 | C131: 1.03.1NP.031 | D131: pokoj | E131: 15.9 | H131: =IF(ISBLANK(I131)," ",VLOOKUP(I131,'[6]Příloha_8_Ceník pravid_úklidu'!$A$9:$B$30,2,0)) -> ZDR0 | I131: 1 | J131: 2x(7xpo-ne) | K131: 2 | L131: 1 | M131: 2 | N131: 1 | O131: =IF(ISBLANK($K131),"",'[6]Pracovní dny'!$F$2) -> 252 | P131: =IF(ISBLANK($M131),"",'[6]Pracovní dny'!$F$3) -> 114 | Q131: =IF(ISBLANK($K131),"",'[6]Pracovní dny'!$F$4) -> 365 | R131: 732 | S131: 0 | T131: X | U131: ZN | V131: 4.4 | W131: 1 | X131: 0 | Y131: 3.6 | Z131: 1 | AA131: 7.2 | AB131: PL | AC131: VNI-H | AD131: OM | AF131: =IF(ISBLANK($AE131),VLOOKUP($I131,'Příloha_8_Ceník pravid_úklidu'!$A$9:$K$30,8,0)+VLOOKUP($I131,'Příloha_8_Ceník pravid_úklidu'!$A$9:$K$30,10,0),"neoceňuje se") -> 0 | AG131: 0 | AH131: 0
A132: 132 | B132: 138400 | C132: 1.03.1NP.032 | D132: sociální zařízení | E132: 3.3 | H132: =IF(ISBLANK(I132)," ",VLOOKUP(I132,'[6]Příloha_8_Ceník pravid_úklidu'!$A$9:$B$30,2,0)) -> TOAL | I132: 7 | J132: 2x(7xpo-ne) | K132: 2 | L132: 1 | M132: 2 | N132: 1 | O132: =IF(ISBLANK($K132),"",'[6]Pracovní dny'!$F$2) -> 252 | P132: =IF(ISBLANK($M132),"",'[6]Pracovní dny'!$F$3) -> 114 | Q132: =IF(ISBLANK($K132),"",'[6]Pracovní dny'!$F$4) -> 365 | R132: 732 | S132: 12.8 | T132: 0 | U132: 0 | V132: 3.2 | W132: 1 | X132: 3 | Y132: 0 | Z132: 0 | AA132: 0 | AB132: 0 | AC132: 0 | AD132: OM | AF132: =IF(ISBLANK($AE132),VLOOKUP($I132,'Příloha_8_Ceník pravid_úklidu'!$A$9:$K$30,8,0)+VLOOKUP($I132,'Příloha_8_Ceník pravid_úklidu'!$A$9:$K$30,10,0),"neoceňuje se") -> 0 | AG132: 0 | AH132: 0
A133: 133 | B133: 138400 | C133: 1.03.1NP.033 | D133: sociální zařízení | E133: 3.3 | H133: =IF(ISBLANK(I133)," ",VLOOKUP(I133,'[6]Příloha_8_Ceník pravid_úklidu'!$A$9:$B$30,2,0)) -> TOAL | I133: 7 | J133: 2x(7xpo-ne) | K133: 2 | L133: 1 | M133: 2 | N133: 1 | O133: =IF(ISBLANK($K133),"",'[6]Pracovní dny'!$F$2) -> 252 | P133: =IF(ISBLANK($M133),"",'[6]Pracovní dny'!$F$3) -> 114 | Q133: =IF(ISBLANK($K133),"",'[6]Pracovní dny'!$F$4) -> 365 | R133: 732 | S133: 12.8 | T133: 0 | U133: 0 | V133: 3.2 | W133: 1 | X133: 3 | Y133: 0 | Z133: 0 | AA133: 0 | AB133: 0 | AC133: 0 | AD133: OM | AF133: =IF(ISBLANK($AE133),VLOOKUP($I133,'Příloha_8_Ceník pravid_úklidu'!$A$9:$K$30,8,0)+VLOOKUP($I133,'Příloha_8_Ceník pravid_úklidu'!$A$9:$K$30,10,0),"neoceňuje se") -> 0 | AG133: 0 | AH133: 0
A134: 134 | B134: 138400 | C134: 1.03.1NP.034 | D134: pokoj | E134: 15.6 | H134: =IF(ISBLANK(I134)," ",VLOOKUP(I134,'[6]Příloha_8_Ceník pravid_úklidu'!$A$9:$B$30,2,0)) -> ZDR0 | I134: 1 | J134: 2x(7xpo-ne) | K134: 2 | L134: 1 | M134: 2 | N134: 1 | O134: =IF(ISBLANK($K134),"",'[6]Pracovní dny'!$F$2) -> 252 | P134: =IF(ISBLANK($M134),"",'[6]Pracovní dny'!$F$3) -> 114 | Q134: =IF(ISBLANK($K134),"",'[6]Pracovní dny'!$F$4) -> 365 | R134: 732 | S134: 0 | T134: X | U134: ZN | V134: 4.4 | W134: 1 | X134: 0 | Y134: 3.6 | Z134: 2 | AA134: 14.4 | AB134: PL | AC134: VNI-H | AD134: OM | AF134: =IF(ISBLANK($AE134),VLOOKUP($I134,'Příloha_8_Ceník pravid_úklidu'!$A$9:$K$30,8,0)+VLOOKUP($I134,'Příloha_8_Ceník pravid_úklidu'!$A$9:$K$30,10,0),"neoceňuje se") -> 0 | AG134: 0 | AH134: 0
A135: 135 | B135: 138400 | C135: 1.03.1NP.035 | D135: vyšetřovna | E135: 18.8 | H135: =IF(ISBLANK(I135)," ",VLOOKUP(I135,'[6]Příloha_8_Ceník pravid_úklidu'!$A$9:$B$30,2,0)) -> ZDR1 | I135: 2 | J135: 2x(7xpo-ne) | K135: 2 | L135: 1 | M135: 2 | N135: 1 | O135: =IF(ISBLANK($K135),"",'[6]Pracovní dny'!$F$2) -> 252 | P135: =IF(ISBLANK($M135),"",'[6]Pracovní dny'!$F$3) -> 114 | Q135: =IF(ISBLANK($K135),"",'[6]Pracovní dny'!$F$4) -> 365 | R135: 732 | S135: 1.8 | T135: X | U135: ZN | V135: 4.4 | W135: 1 | X135: 2 | Y135: 3.2 | Z135: 1 | AA135: 7.2 | AB135: PN | AC135: 0 | AD135: OM | AF135: =IF(ISBLANK($AE135),VLOOKUP($I135,'Příloha_8_Ceník pravid_úklidu'!$A$9:$K$30,8,0)+VLOOKUP($I135,'Příloha_8_Ceník pravid_úklidu'!$A$9:$K$30,10,0),"neoceňuje se") -> 0 | AG135: 0 | AH135: 0
A136: 136 | B136: 138400 | C136: 1.03.1NP.036 | D136: schodiště zadní | E136: 26.7 | H136: =IF(ISBLANK(I136)," ",VLOOKUP(I136,'[6]Příloha_8_Ceník pravid_úklidu'!$A$9:$B$30,2,0)) -> SCHO | I136: 8 | J136: 1x;po-pá | K136: 1 | L136: 0.2 | M136: 0 | N136: 0 | O136: =IF(ISBLANK($K136),"",'[6]Pracovní dny'!$F$2) -> 252 | P136: =IF(ISBLANK($M136),"",'[6]Pracovní dny'!$F$3) -> 114 | Q136: =IF(ISBLANK($K136),"",'[6]Pracovní dny'!$F$4) -> 365 | R136: =IF(AND(ISBLANK($K136),ISBLANK($M136)),"",$K136*$L136*$O136+$M136*$N136*$P136) -> 50.4 | S136: 0 | T136: 0 | U136: N | V136: 5.8 | W136: 1 | X136: 0 | Y136: 3,6/9,9 | Z136: 2 | AA136: 27 | AB136: PN | AC136: 0 | AD136: OM | AF136: =IF(ISBLANK($AE136),VLOOKUP($I136,'Příloha_8_Ceník pravid_úklidu'!$A$9:$K$30,8,0)+VLOOKUP($I136,'Příloha_8_Ceník pravid_úklidu'!$A$9:$K$30,10,0),"neoceňuje se") -> 0 | AG136: 0 | AH136: 0
A137: 137 | B137: 138400 | C137: 1.03.1NP.037 | D137: sklad | E137: 4.5 | H137: =IF(ISBLANK(I137)," ",VLOOKUP(I137,'[6]Příloha_8_Ceník pravid_úklidu'!$A$9:$B$30,2,0)) -> SKLA | I137: 17 | J137: 1x(7xpo-ne) | K137: 1 | L137: 1 | M137: 1 | N137: 1 | O137: =IF(ISBLANK($K137),"",'[6]Pracovní dny'!$F$2) -> 252 | P137: =IF(ISBLANK($M137),"",'[6]Pracovní dny'!$F$3) -> 114 | Q137: =IF(ISBLANK($K137),"",'[6]Pracovní dny'!$F$4) -> 365 | R137: 366 | S137: 15.4 | T137: 0 | U137: X | V137: 3.2 | W137: 0 | X137: 0 | Y137: 0 | Z137: 0 | AA137: 0 | AB137: 0 | AC137: 0 | AD137: OM | AF137: =IF(ISBLANK($AE137),VLOOKUP($I137,'Příloha_8_Ceník pravid_úklidu'!$A$9:$K$30,8,0)+VLOOKUP($I137,'Příloha_8_Ceník pravid_úklidu'!$A$9:$K$30,10,0),"neoceňuje se") -> 0 | AG137: 0 | AH137: 0
A138: 138 | D138: výtah | G138: 1.8 | H138: =IF(ISBLANK(I138)," ",VLOOKUP(I138,'[6]Příloha_8_Ceník pravid_úklidu'!$A$9:$B$30,2,0)) -> VYTA | I138: 11 | J138: započítat v 1.PP | O138: =IF(ISBLANK($K138),"",'[6]Pracovní dny'!$F$2) ->  | P138: =IF(ISBLANK($M138),"",'[6]Pracovní dny'!$F$3) ->  | Q138: =IF(ISBLANK($K138),"",'[6]Pracovní dny'!$F$4) ->  | S138: 0 | T138: 0 | U138: 12 | V138: 2.2 | W138: 1 | X138: 0 | Y138: 0 | Z138: 0 | AA138: 0 | AB138: 0 | AC138: 0 | AD138: VÝT | AE138: X | AF138: =IF(ISBLANK($AE138),VLOOKUP($I138,'Příloha_8_Ceník pravid_úklidu'!$A$9:$K$30,8,0)+VLOOKUP($I138,'Příloha_8_Ceník pravid_úklidu'!$A$9:$K$30,10,0),"neoceňuje se") -> neoceňuje se | AG138: 0 | AH138: 0
A139: 139 | D139: výtah | G139: 4.7 | H139: =IF(ISBLANK(I139)," ",VLOOKUP(I139,'[6]Příloha_8_Ceník pravid_úklidu'!$A$9:$B$30,2,0)) -> VYTA | I139: 11 | J139: započítat v 1.PP | O139: =IF(ISBLANK($K139),"",'[6]Pracovní dny'!$F$2) ->  | P139: =IF(ISBLANK($M139),"",'[6]Pracovní dny'!$F$3) ->  | Q139: =IF(ISBLANK($K139),"",'[6]Pracovní dny'!$F$4) ->  | S139: 0 | T139: 0 | U139: 19.5 | V139: 3.1 | W139: 1 | X139: 0 | Y139: 0 | Z139: 0 | AA139: 0 | AB139: 0 | AC139: 0 | AD139: VÝT | AE139: X | AF139: =IF(ISBLANK($AE139),VLOOKUP($I139,'Příloha_8_Ceník pravid_úklidu'!$A$9:$K$30,8,0)+VLOOKUP($I139,'Příloha_8_Ceník pravid_úklidu'!$A$9:$K$30,10,0),"neoceňuje se") -> neoceňuje se | AG139: 0 | AH139: 0
A140: 140 | B140: 138400 | C140: 1.03.1NP.040 | D140: čistící místnost | E140: 9.6 | H140: =IF(ISBLANK(I140)," ",VLOOKUP(I140,'[6]Příloha_8_Ceník pravid_úklidu'!$A$9:$B$30,2,0)) -> TOAL | I140: 7 | J140: 1x(7xpo-ne) | K140: 1 | L140: 1 | M140: 1 | N140: 1 | O140: =IF(ISBLANK($K140),"",'[6]Pracovní dny'!$F$2) -> 252 | P140: =IF(ISBLANK($M140),"",'[6]Pracovní dny'!$F$3) -> 114 | Q140: =IF(ISBLANK($K140),"",'[6]Pracovní dny'!$F$4) -> 365 | R140: 366 | S140: 24 | T140: 0 | U140: X | V140: 3.2 | W140: 2 | X140: 2 | Y140: 2.8 | Z140: 1 | AA140: 5.6 | AB140: PL | AC140: 0 | AD140: OM | AF140: =IF(ISBLANK($AE140),VLOOKUP($I140,'Příloha_8_Ceník pravid_úklidu'!$A$9:$K$30,8,0)+VLOOKUP($I140,'Příloha_8_Ceník pravid_úklidu'!$A$9:$K$30,10,0),"neoceňuje se") -> 0 | AG140: 0 | AH140: 0
A141: 141 | B141: 138400 | C141: 1.03.1NP.041 | D141: WC | E141: 3.3 | H141: =IF(ISBLANK(I141)," ",VLOOKUP(I141,'[6]Příloha_8_Ceník pravid_úklidu'!$A$9:$B$30,2,0)) -> TOAL | I141: 7 | J141: 2x (7x;Po-Ne) | K141: 2 | L141: 1 | M141: 2 | N141: 1 | O141: =IF(ISBLANK($K141),"",'[6]Pracovní dny'!$F$2) -> 252 | P141: =IF(ISBLANK($M141),"",'[6]Pracovní dny'!$F$3) -> 114 | Q141: =IF(ISBLANK($K141),"",'[6]Pracovní dny'!$F$4) -> 365 | R141: 732 | S141: 12.6 | T141: 0 | U141: 0 | V141: 3.6 | W141: 1 | X141: 2 | Y141: 0 | Z141: 0 | AA141: 0 | AB141: 0 | AC141: 0 | AD141: OM | AF141: =IF(ISBLANK($AE141),VLOOKUP($I141,'Příloha_8_Ceník pravid_úklidu'!$A$9:$K$30,8,0)+VLOOKUP($I141,'Příloha_8_Ceník pravid_úklidu'!$A$9:$K$30,10,0),"neoceňuje se") -> 0 | AG141: 0 | AH141: 0
A142: 142 | B142: 138400 | C142: 1.03.1NP.042 | D142: koupelna | E142: 9.6 | H142: =IF(ISBLANK(I142)," ",VLOOKUP(I142,'[6]Příloha_8_Ceník pravid_úklidu'!$A$9:$B$30,2,0)) -> TOAL | I142: 7 | J142: 1x(7xpo-ne) | K142: 1 | L142: 1 | M142: 1 | N142: 1 | O142: =IF(ISBLANK($K142),"",'[6]Pracovní dny'!$F$2) -> 252 | P142: =IF(ISBLANK($M142),"",'[6]Pracovní dny'!$F$3) -> 114 | Q142: =IF(ISBLANK($K142),"",'[6]Pracovní dny'!$F$4) -> 365 | R142: 366 | S142: 25 | T142: 0 | U142: 0 | V142: 4.4 | W142: 1 | X142: 3 | Y142: 2.8 | Z142: 1 | AA142: 5.6 | AB142: PL | AC142: 0 | AD142: OM | AF142: =IF(ISBLANK($AE142),VLOOKUP($I142,'Příloha_8_Ceník pravid_úklidu'!$A$9:$K$30,8,0)+VLOOKUP($I142,'Příloha_8_Ceník pravid_úklidu'!$A$9:$K$30,10,0),"neoceňuje se") -> 0 | AG142: 0 | AH142: 0
A143: 143 | B143: 138400 | C143: 1.03.1NP.043 | D143: kuchyňka | E143: 12.5 | H143: =IF(ISBLANK(I143)," ",VLOOKUP(I143,'[6]Příloha_8_Ceník pravid_úklidu'!$A$9:$B$30,2,0)) -> KUCH | I143: 16 | J143: 2x (7x;Po-Ne) | K143: 2 | L143: 1 | M143: 2 | N143: 1 | O143: =IF(ISBLANK($K143),"",'[6]Pracovní dny'!$F$2) -> 252 | P143: =IF(ISBLANK($M143),"",'[6]Pracovní dny'!$F$3) -> 114 | Q143: =IF(ISBLANK($K143),"",'[6]Pracovní dny'!$F$4) -> 365 | R143: 732 | S143: 25.6 | T143: 0 | U143: N | V143: 3.2 | W143: 1 | X143: 2 | Y143: 2.8 | Z143: 1 | AA143: 5.6 | AB143: PL | AC143: 0 | AD143: OM | AF143: =IF(ISBLANK($AE143),VLOOKUP($I143,'Příloha_8_Ceník pravid_úklidu'!$A$9:$K$30,8,0)+VLOOKUP($I143,'Příloha_8_Ceník pravid_úklidu'!$A$9:$K$30,10,0),"neoceňuje se") -> 0 | AG143: 0 | AH143: 0
A144: 144 | B144: 138400 | C144: 1.03.1NP.044 | D144: jídelna | E144: 20.7 | H144: =IF(ISBLANK(I144)," ",VLOOKUP(I144,'[6]Příloha_8_Ceník pravid_úklidu'!$A$9:$B$30,2,0)) -> KUCH | I144: 16 | J144: 2x (7x;Po-Ne) | K144: 2 | L144: 1 | M144: 2 | N144: 1 | O144: =IF(ISBLANK($K144),"",'[6]Pracovní dny'!$F$2) -> 252 | P144: =IF(ISBLANK($M144),"",'[6]Pracovní dny'!$F$3) -> 114 | Q144: =IF(ISBLANK($K144),"",'[6]Pracovní dny'!$F$4) -> 365 | R144: 732 | S144: 18 | T144: 0 | U144: N | V144: 0 | W144: 0 | X144: 0 | Y144: 2.8 | Z144: 2 | AA144: 11.2 | AB144: PL | AC144: 0 | AD144: MIN | AF144: =IF(ISBLANK($AE144),VLOOKUP($I144,'Příloha_8_Ceník pravid_úklidu'!$A$9:$K$30,8,0)+VLOOKUP($I144,'Příloha_8_Ceník pravid_úklidu'!$A$9:$K$30,10,0),"neoceňuje se") -> 0 | AG144: 0 | AH144: 0
A145: 145 | B145: 138400 | C145: 1.03.1NP.045 | D145: sklad | E145: 8.6 | H145: =IF(ISBLANK(I145)," ",VLOOKUP(I145,'[6]Příloha_8_Ceník pravid_úklidu'!$A$9:$B$30,2,0)) -> SKLA | I145: 17 | J145: 2x;po-pá | K145: 1 | L145: 0.4 | M145: 0 | N145: 0 | O145: =IF(ISBLANK($K145),"",'[6]Pracovní dny'!$F$2) -> 252 | P145: =IF(ISBLANK($M145),"",'[6]Pracovní dny'!$F$3) -> 114 | Q145: =IF(ISBLANK($K145),"",'[6]Pracovní dny'!$F$4) -> 365 | R145: 100.8 | S145: 0 | T145: 0 | U145: X | V145: 3.2 | W145: 1 | X145: 0 | Y145: 2.8 | Z145: 1 | AA145: 5.6 | AB145: PL | AC145: 0 | AD145: OM | AF145: =IF(ISBLANK($AE145),VLOOKUP($I145,'Příloha_8_Ceník pravid_úklidu'!$A$9:$K$30,8,0)+VLOOKUP($I145,'Příloha_8_Ceník pravid_úklidu'!$A$9:$K$30,10,0),"neoceňuje se") -> 0 | AG145: 0 | AH145: 0
A146: 146 | B146: 138400 | C146: 1.03.1NP.046 | D146: sestra recepce | E146: 11.9 | H146: =IF(ISBLANK(I146)," ",VLOOKUP(I146,'[6]Příloha_8_Ceník pravid_úklidu'!$A$9:$B$30,2,0)) -> ZDR1 | I146: 2 | J146: 2x (7x;Po-Ne) | K146: 2 | L146: 1 | M146: 2 | N146: 1 | O146: =IF(ISBLANK($K146),"",'[6]Pracovní dny'!$F$2) -> 252 | P146: =IF(ISBLANK($M146),"",'[6]Pracovní dny'!$F$3) -> 114 | Q146: =IF(ISBLANK($K146),"",'[6]Pracovní dny'!$F$4) -> 365 | R146: 732 | S146: 1.5 | T146: 0 | U146: N | V146: 0 | W146: 0 | X146: 2 | Y146: 3.6 | Z146: 1 | AA146: 7.2 | AB146: PL | AC146: 0 | AD146: MIN | AF146: =IF(ISBLANK($AE146),VLOOKUP($I146,'Příloha_8_Ceník pravid_úklidu'!$A$9:$K$30,8,0)+VLOOKUP($I146,'Příloha_8_Ceník pravid_úklidu'!$A$9:$K$30,10,0),"neoceňuje se") -> 0 | AG146: 0 | AH146: 0
A147: 147 | B147: 138400 | C147: 1.03.1NP.047 | D147: denní místnost sester | E147: 10.3 | H147: =IF(ISBLANK(I147)," ",VLOOKUP(I147,'[6]Příloha_8_Ceník pravid_úklidu'!$A$9:$B$30,2,0)) -> KANC | I147: 4 | J147: 2x;po-pá | K147: 1 | L147: 0.4 | M147: 0 | N147: 0 | O147: =IF(ISBLANK($K147),"",'[6]Pracovní dny'!$F$2) -> 252 | P147: =IF(ISBLANK($M147),"",'[6]Pracovní dny'!$F$3) -> 114 | Q147: =IF(ISBLANK($K147),"",'[6]Pracovní dny'!$F$4) -> 365 | R147: 100.8 | S147: 1 | T147: 0 | U147: N | V147: 6.4 | W147: 2 | X147: 0 | Y147: 3.6 | Z147: 1 | AA147: 7.2 | AB147: PL | AC147: 0 | AD147: OM | AF147: =IF(ISBLANK($AE147),VLOOKUP($I147,'Příloha_8_Ceník pravid_úklidu'!$A$9:$K$30,8,0)+VLOOKUP($I147,'Příloha_8_Ceník pravid_úklidu'!$A$9:$K$30,10,0),"neoceňuje se") -> 0 | AG147: 0 | AH147: 0
A148: 148 | B148: 138400 | C148: 1.03.1NP.048 | D148: sociální zařízení | E148: 3.4 | H148: =IF(ISBLANK(I148)," ",VLOOKUP(I148,'[6]Příloha_8_Ceník pravid_úklidu'!$A$9:$B$30,2,0)) -> TOAL | I148: 7 | J148: 1x(7xpo-ne) | K148: 1 | L148: 1 | M148: 1 | N148: 1 | O148: =IF(ISBLANK($K148),"",'[6]Pracovní dny'!$F$2) -> 252 | P148: =IF(ISBLANK($M148),"",'[6]Pracovní dny'!$F$3) -> 114 | Q148: =IF(ISBLANK($K148),"",'[6]Pracovní dny'!$F$4) -> 365 | R148: 366 | S148: 12 | T148: 0 | U148: 0 | V148: 2.4 | W148: 1 | X148: 3 | Y148: 2.8 | Z148: 1 | AA148: 5.6 | AB148: PL | AC148: 0 | AD148: OM | AF148: =IF(ISBLANK($AE148),VLOOKUP($I148,'Příloha_8_Ceník pravid_úklidu'!$A$9:$K$30,8,0)+VLOOKUP($I148,'Příloha_8_Ceník pravid_úklidu'!$A$9:$K$30,10,0),"neoceňuje se") -> 0 | AG148: 0 | AH148: 0
A149: 149 | C149: 1.03.1NP.049 | D149: úklidová komora | G149: 2.8 | H149: =IF(ISBLANK(I149)," ",VLOOKUP(I149,'[6]Příloha_8_Ceník pravid_úklidu'!$A$9:$B$30,2,0)) -> TOAL | I149: 7 | J149: provádí zhotovitel na své náklady | O149: =IF(ISBLANK($K149),"",'[6]Pracovní dny'!$F$2) ->  | P149: =IF(ISBLANK($M149),"",'[6]Pracovní dny'!$F$3) ->  | Q149: =IF(ISBLANK($K149),"",'[6]Pracovní dny'!$F$4) ->  | S149: 13.2 | T149: 0 | U149: 0 | V149: 2.4 | W149: 1 | X149: 1 | Y149: 0 | Z149: 0 | AA149: 0 | AB149: 0 | AC149: 0 | AD149: OM | AE149: X | AF149: =IF(ISBLANK($AE149),VLOOKUP($I149,'Příloha_8_Ceník pravid_úklidu'!$A$9:$K$30,8,0)+VLOOKUP($I149,'Příloha_8_Ceník pravid_úklidu'!$A$9:$K$30,10,0),"neoceňuje se") -> neoceňuje se | AG149: 0 | AH149: 0
A150: 150 | B150: 138400 | C150: 1.03.1NP.050 | D150: předsíň | E150: 2.2 | H150: =IF(ISBLANK(I150)," ",VLOOKUP(I150,'[6]Příloha_8_Ceník pravid_úklidu'!$A$9:$B$30,2,0)) -> CHOD | I150: 6 | J150: 1x;po-pá | K150: 1 | L150: 0.2 | M150: 0 | N150: 0 | O150: =IF(ISBLANK($K150),"",'[6]Pracovní dny'!$F$2) -> 252 | P150: =IF(ISBLANK($M150),"",'[6]Pracovní dny'!$F$3) -> 114 | Q150: =IF(ISBLANK($K150),"",'[6]Pracovní dny'!$F$4) -> 365 | R150: 50.4 | S150: 10.5 | T150: 0 | U150: 0 | V150: 2.4 | W150: 1 | X150: 1 | Y150: 0 | Z150: 0 | AA150: 0 | AB150: 0 | AC150: 0 | AD150: OM | AF150: =IF(ISBLANK($AE150),VLOOKUP($I150,'Příloha_8_Ceník pravid_úklidu'!$A$9:$K$30,8,0)+VLOOKUP($I150,'Příloha_8_Ceník pravid_úklidu'!$A$9:$K$30,10,0),"neoceňuje se") -> 0 | AG150: 0 | AH150: 0
A151: 151 | B151: 138400 | C151: 1.03.1NP.051 | D151: WC | E151: 1.7 | H151: =IF(ISBLANK(I151)," ",VLOOKUP(I151,'[6]Příloha_8_Ceník pravid_úklidu'!$A$9:$B$30,2,0)) -> TOAL | I151: 7 | J151: 1x;po-pá | K151: 1 | L151: 0.2 | M151: 0 | N151: 0 | O151: =IF(ISBLANK($K151),"",'[6]Pracovní dny'!$F$2) -> 252 | P151: =IF(ISBLANK($M151),"",'[6]Pracovní dny'!$F$3) -> 114 | Q151: =IF(ISBLANK($K151),"",'[6]Pracovní dny'!$F$4) -> 365 | R151: 50.4 | S151: 9.6 | T151: 0 | U151: 0 | V151: 2.4 | W151: 1 | X151: 1 | Y151: 0 | Z151: 0 | AA151: 0 | AB151: 0 | AC151: 0 | AD151: OM | AF151: =IF(ISBLANK($AE151),VLOOKUP($I151,'Příloha_8_Ceník pravid_úklidu'!$A$9:$K$30,8,0)+VLOOKUP($I151,'Příloha_8_Ceník pravid_úklidu'!$A$9:$K$30,10,0),"neoceňuje se") -> 0 | AG151: 0 | AH151: 0
A152: 152 | B152: 138400 | C152: 1.03.1NP.052 | D152: chodba | E152: 13.1 | H152: =IF(ISBLANK(I152)," ",VLOOKUP(I152,'[6]Příloha_8_Ceník pravid_úklidu'!$A$9:$B$30,2,0)) -> CHOD | I152: 6 | J152: 2x (7x;Po-Ne) | K152: 2 | L152: 1 | M152: 2 | N152: 1 | O152: =IF(ISBLANK($K152),"",'[6]Pracovní dny'!$F$2) -> 252 | P152: =IF(ISBLANK($M152),"",'[6]Pracovní dny'!$F$3) -> 114 | Q152: =IF(ISBLANK($K152),"",'[6]Pracovní dny'!$F$4) -> 365 | R152: 732 | S152: 0 | T152: X | U152: 0 | V152: 10.6 | W152: 2 | X152: 0 | Y152: 0 | Z152: 0 | AA152: 0 | AB152: 0 | AC152: 0 | AD152: OM | AF152: =IF(ISBLANK($AE152),VLOOKUP($I152,'Příloha_8_Ceník pravid_úklidu'!$A$9:$K$30,8,0)+VLOOKUP($I152,'Příloha_8_Ceník pravid_úklidu'!$A$9:$K$30,10,0),"neoceňuje se") -> 0 | AG152: 0 | AH152: 0
A153: 153 | D153: výtah | G153: 3.6 | H153: =IF(ISBLANK(I153)," ",VLOOKUP(I153,'[6]Příloha_8_Ceník pravid_úklidu'!$A$9:$B$30,2,0)) -> VYTA | I153: 11 | J153: započítat v 1.PP | O153: =IF(ISBLANK($K153),"",'[6]Pracovní dny'!$F$2) ->  | P153: =IF(ISBLANK($M153),"",'[6]Pracovní dny'!$F$3) ->  | Q153: =IF(ISBLANK($K153),"",'[6]Pracovní dny'!$F$4) ->  | S153: 0 | T153: 0 | U153: 16 | V153: 2.6 | W153: 1 | X153: 0 | Y153: 0 | Z153: 0 | AA153: 0 | AB153: 0 | AC153: 0 | AD153: VÝT | AE153: X | AF153: =IF(ISBLANK($AE153),VLOOKUP($I153,'Příloha_8_Ceník pravid_úklidu'!$A$9:$K$30,8,0)+VLOOKUP($I153,'Příloha_8_Ceník pravid_úklidu'!$A$9:$K$30,10,0),"neoceňuje se") -> neoceňuje se | AG153: 0 | AH153: 0
A154: 154 | B154: 138400 | C154: 1.03.1NP.054 | D154: sklad | E154: 4.8 | H154: =IF(ISBLANK(I154)," ",VLOOKUP(I154,'[6]Příloha_8_Ceník pravid_úklidu'!$A$9:$B$30,2,0)) -> SKLA | I154: 17 | J154: 2x;Po-Pá | K154: 1 | L154: 0.4 | M154: 0 | N154: 0 | O154: =IF(ISBLANK($K154),"",'[6]Pracovní dny'!$F$2) -> 252 | P154: =IF(ISBLANK($M154),"",'[6]Pracovní dny'!$F$3) -> 114 | Q154: =IF(ISBLANK($K154),"",'[6]Pracovní dny'!$F$4) -> 365 | R154: 100.8 | S154: 0 | T154: 0 | U154: X | V154: 3.2 | W154: 1 | X154: 0 | Y154: 3 | Z154: 1 | AA154: 6 | AB154: PL | AC154: 0 | AD154: OM | AF154: =IF(ISBLANK($AE154),VLOOKUP($I154,'Příloha_8_Ceník pravid_úklidu'!$A$9:$K$30,8,0)+VLOOKUP($I154,'Příloha_8_Ceník pravid_úklidu'!$A$9:$K$30,10,0),"neoceňuje se") -> 0 | AG154: 0 | AH154: 0
A155: 155 | B155: 138400 | C155: 1.03.1NP.055 | D155: chodba | E155: 112 | H155: =IF(ISBLANK(I155)," ",VLOOKUP(I155,'[6]Příloha_8_Ceník pravid_úklidu'!$A$9:$B$30,2,0)) -> CHOD | I155: 6 | J155: 2x (7x;Po-Ne) | K155: 2 | L155: 1 | M155: 2 | N155: 1 | O155: =IF(ISBLANK($K155),"",'[6]Pracovní dny'!$F$2) -> 252 | P155: =IF(ISBLANK($M155),"",'[6]Pracovní dny'!$F$3) -> 114 | Q155: =IF(ISBLANK($K155),"",'[6]Pracovní dny'!$F$4) -> 365 | R155: 732 | S155: 0 | T155: X | U155: N | V155: 19.6 | W155: 3 | X155: 0 | Y155: 3,4/3,6 | Z155: 3 | AA155: 20.8 | AB155: PN | AC155: 0 | AD155: MIN | AF155: =IF(ISBLANK($AE155),VLOOKUP($I155,'Příloha_8_Ceník pravid_úklidu'!$A$9:$K$30,8,0)+VLOOKUP($I155,'Příloha_8_Ceník pravid_úklidu'!$A$9:$K$30,10,0),"neoceňuje se") -> 0 | AG155: 0 | AH155: 0
A156: 156 | B156: 138400 | C156: 1.03.1NP.056 | D156: WC | E156: 3.4 | H156: =IF(ISBLANK(I156)," ",VLOOKUP(I156,'[6]Příloha_8_Ceník pravid_úklidu'!$A$9:$B$30,2,0)) -> TOAL | I156: 7 | J156: 1x(7xpo-ne) | K156: 1 | L156: 1 | M156: 1 | N156: 1 | O156: =IF(ISBLANK($K156),"",'[6]Pracovní dny'!$F$2) -> 252 | P156: =IF(ISBLANK($M156),"",'[6]Pracovní dny'!$F$3) -> 114 | Q156: =IF(ISBLANK($K156),"",'[6]Pracovní dny'!$F$4) -> 365 | R156: 366 | S156: 12.8 | T156: 0 | U156: 0 | V156: 3.6 | W156: 1 | X156: 2 | Y156: 0 | Z156: 0 | AA156: 0 | AB156: 0 | AC156: 0 | AD156: OM | AF156: =IF(ISBLANK($AE156),VLOOKUP($I156,'Příloha_8_Ceník pravid_úklidu'!$A$9:$K$30,8,0)+VLOOKUP($I156,'Příloha_8_Ceník pravid_úklidu'!$A$9:$K$30,10,0),"neoceňuje se") -> 0 | AG156: 0 | AH156: 0
A157: 157 | B157: 138400 | C157: 1.03.1NP.057 | D157: předsíň | E157: 3 | H157: =IF(ISBLANK(I157)," ",VLOOKUP(I157,'[6]Příloha_8_Ceník pravid_úklidu'!$A$9:$B$30,2,0)) -> CHOD | I157: 6 | J157: 1x(7xpo-ne) | K157: 1 | L157: 1 | M157: 1 | N157: 1 | O157: =IF(ISBLANK($K157),"",'[6]Pracovní dny'!$F$2) -> 252 | P157: =IF(ISBLANK($M157),"",'[6]Pracovní dny'!$F$3) -> 114 | Q157: =IF(ISBLANK($K157),"",'[6]Pracovní dny'!$F$4) -> 365 | R157: 366 | S157: 11.5 | T157: 0 | U157: 0 | V157: 2.4 | W157: 1 | X157: 1 | Y157: 1.1 | Z157: 1 | AA157: 2.2 | AB157: PL | AC157: 0 | AD157: OM | AF157: =IF(ISBLANK($AE157),VLOOKUP($I157,'Příloha_8_Ceník pravid_úklidu'!$A$9:$K$30,8,0)+VLOOKUP($I157,'Příloha_8_Ceník pravid_úklidu'!$A$9:$K$30,10,0),"neoceňuje se") -> 0 | AG157: 0 | AH157: 0
A158: 158 | B158: 138400 | C158: 1.03.1NP.058 | D158: WC | E158: 1.7 | H158: =IF(ISBLANK(I158)," ",VLOOKUP(I158,'[6]Příloha_8_Ceník pravid_úklidu'!$A$9:$B$30,2,0)) -> TOAL | I158: 7 | J158: 1x(7xpo-ne) | K158: 1 | L158: 1 | M158: 1 | N158: 1 | O158: =IF(ISBLANK($K158),"",'[6]Pracovní dny'!$F$2) -> 252 | P158: =IF(ISBLANK($M158),"",'[6]Pracovní dny'!$F$3) -> 114 | Q158: =IF(ISBLANK($K158),"",'[6]Pracovní dny'!$F$4) -> 365 | R158: 366 | S158: 9.2 | T158: 0 | U158: 0 | V158: 2.4 | W158: 1 | X158: 2 | Y158: 1.1 | Z158: 1 | AA158: 2.2 | AB158: PL | AC158: 0 | AD158: OM | AF158: =IF(ISBLANK($AE158),VLOOKUP($I158,'Příloha_8_Ceník pravid_úklidu'!$A$9:$K$30,8,0)+VLOOKUP($I158,'Příloha_8_Ceník pravid_úklidu'!$A$9:$K$30,10,0),"neoceňuje se") -> 0 | AG158: 0 | AH158: 0
A159: 159 | C159: 1.03.1NP.059 | D159: úklidová komora | G159: 2.2 | H159: =IF(ISBLANK(I159)," ",VLOOKUP(I159,'[6]Příloha_8_Ceník pravid_úklidu'!$A$9:$B$30,2,0)) -> TOAL | I159: 7 | J159: není předmětem | O159: =IF(ISBLANK($K159),"",'[6]Pracovní dny'!$F$2) ->  | P159: =IF(ISBLANK($M159),"",'[6]Pracovní dny'!$F$3) ->  | Q159: =IF(ISBLANK($K159),"",'[6]Pracovní dny'!$F$4) ->  | S159: 9.6 | T159: 0 | U159: 0 | V159: 2.4 | W159: 1 | X159: 1 | Y159: 1.1 | Z159: 1 | AA159: 0 | AB159: PL | AC159: 0 | AD159: OM | AE159: X | AF159: =IF(ISBLANK($AE159),VLOOKUP($I159,'Příloha_8_Ceník pravid_úklidu'!$A$9:$K$30,8,0)+VLOOKUP($I159,'Příloha_8_Ceník pravid_úklidu'!$A$9:$K$30,10,0),"neoceňuje se") -> neoceňuje se | AG159: 0 | AH159: 0
A160: 160 | B160: 138400 | C160: 1.03.1NP.060 | D160: předsíň | E160: 3.4 | H160: =IF(ISBLANK(I160)," ",VLOOKUP(I160,'[6]Příloha_8_Ceník pravid_úklidu'!$A$9:$B$30,2,0)) -> CHOD | I160: 6 | J160: 1x(7xpo-ne) | K160: 1 | L160: 1 | M160: 1 | N160: 1 | O160: =IF(ISBLANK($K160),"",'[6]Pracovní dny'!$F$2) -> 252 | P160: =IF(ISBLANK($M160),"",'[6]Pracovní dny'!$F$3) -> 114 | Q160: =IF(ISBLANK($K160),"",'[6]Pracovní dny'!$F$4) -> 365 | R160: 366 | S160: 10.2 | T160: 0 | U160: 0 | V160: 2.4 | W160: 1 | X160: 1 | Y160: 0 | Z160: 0 | AA160: 0 | AB160: 0 | AC160: 0 | AD160: OM | AF160: =IF(ISBLANK($AE160),VLOOKUP($I160,'Příloha_8_Ceník pravid_úklidu'!$A$9:$K$30,8,0)+VLOOKUP($I160,'Příloha_8_Ceník pravid_úklidu'!$A$9:$K$30,10,0),"neoceňuje se") -> 0 | AG160: 0 | AH160: 0
A161: 161 | B161: 138400 | C161: 1.03.1NP.061 | D161: WC | E161: 1.7 | H161: =IF(ISBLANK(I161)," ",VLOOKUP(I161,'[6]Příloha_8_Ceník pravid_úklidu'!$A$9:$B$30,2,0)) -> TOAL | I161: 7 | J161: 1x(7xpo-ne) | K161: 1 | L161: 1 | M161: 1 | N161: 1 | O161: =IF(ISBLANK($K161),"",'[6]Pracovní dny'!$F$2) -> 252 | P161: =IF(ISBLANK($M161),"",'[6]Pracovní dny'!$F$3) -> 114 | Q161: =IF(ISBLANK($K161),"",'[6]Pracovní dny'!$F$4) -> 365 | R161: 366 | S161: 10 | T161: 0 | U161: 0 | V161: 2.4 | W161: 1 | X161: 1 | Y161: 1.1 | Z161: 1 | AA161: 2.2 | AB161: PL | AC161: 0 | AD161: OM | AF161: =IF(ISBLANK($AE161),VLOOKUP($I161,'Příloha_8_Ceník pravid_úklidu'!$A$9:$K$30,8,0)+VLOOKUP($I161,'Příloha_8_Ceník pravid_úklidu'!$A$9:$K$30,10,0),"neoceňuje se") -> 0 | AG161: 0 | AH161: 0
A162: 162 | B162: 138400 | C162: 1.03.1NP.062 | D162: WC | E162: 1.7 | H162: =IF(ISBLANK(I162)," ",VLOOKUP(I162,'[6]Příloha_8_Ceník pravid_úklidu'!$A$9:$B$30,2,0)) -> TOAL | I162: 7 | J162: 2x (7x;Po-Ne) | K162: 2 | L162: 1 | M162: 2 | N162: 1 | O162: =IF(ISBLANK($K162),"",'[6]Pracovní dny'!$F$2) -> 252 | P162: =IF(ISBLANK($M162),"",'[6]Pracovní dny'!$F$3) -> 114 | Q162: =IF(ISBLANK($K162),"",'[6]Pracovní dny'!$F$4) -> 365 | R162: 732 | S162: 10 | T162: 0 | U162: 0 | V162: 2.4 | W162: 1 | X162: 1 | Y162: 1.1 | Z162: 1 | AA162: 2.2 | AB162: PL | AC162: 0 | AD162: OM | AF162: =IF(ISBLANK($AE162),VLOOKUP($I162,'Příloha_8_Ceník pravid_úklidu'!$A$9:$K$30,8,0)+VLOOKUP($I162,'Příloha_8_Ceník pravid_úklidu'!$A$9:$K$30,10,0),"neoceňuje se") -> 0 | AG162: 0 | AH162: 0
A163: 163 | B163: 138400 | C163: 1.03.1NP.063 | D163: předsíň | E163: 4.3 | H163: =IF(ISBLANK(I163)," ",VLOOKUP(I163,'[6]Příloha_8_Ceník pravid_úklidu'!$A$9:$B$30,2,0)) -> CHOD | I163: 6 | J163: 1x(7xpo-ne) | K163: 1 | L163: 1 | M163: 1 | N163: 1 | O163: =IF(ISBLANK($K163),"",'[6]Pracovní dny'!$F$2) -> 252 | P163: =IF(ISBLANK($M163),"",'[6]Pracovní dny'!$F$3) -> 114 | Q163: =IF(ISBLANK($K163),"",'[6]Pracovní dny'!$F$4) -> 365 | R163: 366 | S163: 15.3 | T163: 0 | U163: 0 | V163: 2.4 | W163: 1 | X163: 1 | Y163: 0 | Z163: 0 | AA163: 0 | AB163: 0 | AC163: 0 | AD163: OM | AF163: =IF(ISBLANK($AE163),VLOOKUP($I163,'Příloha_8_Ceník pravid_úklidu'!$A$9:$K$30,8,0)+VLOOKUP($I163,'Příloha_8_Ceník pravid_úklidu'!$A$9:$K$30,10,0),"neoceňuje se") -> 0 | AG163: 0 | AH163: 0
A164: 164 | B164: 138400 | C164: 1.03.1NP.064 | D164: WC | E164: 1.7 | H164: =IF(ISBLANK(I164)," ",VLOOKUP(I164,'[6]Příloha_8_Ceník pravid_úklidu'!$A$9:$B$30,2,0)) -> TOAL | I164: 7 | J164: 1x(7xpo-ne) | K164: 1 | L164: 1 | M164: 1 | N164: 1 | O164: =IF(ISBLANK($K164),"",'[6]Pracovní dny'!$F$2) -> 252 | P164: =IF(ISBLANK($M164),"",'[6]Pracovní dny'!$F$3) -> 114 | Q164: =IF(ISBLANK($K164),"",'[6]Pracovní dny'!$F$4) -> 365 | R164: 366 | S164: 9.8 | T164: 0 | U164: 0 | V164: 2.4 | W164: 1 | X164: 1 | Y164: 1.1 | Z164: 1 | AA164: 2.2 | AB164: 0 | AC164: 0 | AD164: OM | AF164: =IF(ISBLANK($AE164),VLOOKUP($I164,'Příloha_8_Ceník pravid_úklidu'!$A$9:$K$30,8,0)+VLOOKUP($I164,'Příloha_8_Ceník pravid_úklidu'!$A$9:$K$30,10,0),"neoceňuje se") -> 0 | AG164: 0 | AH164: 0
A165: 165 | B165: 138400 | C165: 1.03.1NP.065 | D165: hygienická kabina | E165: 2.3 | H165: =IF(ISBLANK(I165)," ",VLOOKUP(I165,'[6]Příloha_8_Ceník pravid_úklidu'!$A$9:$B$30,2,0)) -> TOAL | I165: 7 | J165: 1x(7xpo-ne) | K165: 1 | L165: 1 | M165: 1 | N165: 1 | O165: =IF(ISBLANK($K165),"",'[6]Pracovní dny'!$F$2) -> 252 | P165: =IF(ISBLANK($M165),"",'[6]Pracovní dny'!$F$3) -> 114 | Q165: =IF(ISBLANK($K165),"",'[6]Pracovní dny'!$F$4) -> 365 | R165: 366 | S165: 11.2 | T165: 0 | U165: 0 | V165: 2.4 | W165: 1 | X165: 2 | Y165: 0 | Z165: 0 | AA165: 0 | AB165: 0 | AC165: 0 | AD165: OM | AF165: =IF(ISBLANK($AE165),VLOOKUP($I165,'Příloha_8_Ceník pravid_úklidu'!$A$9:$K$30,8,0)+VLOOKUP($I165,'Příloha_8_Ceník pravid_úklidu'!$A$9:$K$30,10,0),"neoceňuje se") -> 0 | AG165: =IF(AF165="neoceňuje se",0,$E165*$R165*$AF165) -> 0 | AH165: =$AG165*1.21 -> 0
A166: 166 | B166: 138400 | C166: 1.03.1NP.066 | D166: sociální zařízení | E166: 3.3 | H166: =IF(ISBLANK(I166)," ",VLOOKUP(I166,'[6]Příloha_8_Ceník pravid_úklidu'!$A$9:$B$30,2,0)) -> TOAL | I166: 7 | J166: 1x(5xpo-pá) | K166: 1 | L166: 1 | M166: 0 | N166: 0 | O166: =IF(ISBLANK($K166),"",'[6]Pracovní dny'!$F$2) -> 252 | P166: =IF(ISBLANK($M166),"",'[6]Pracovní dny'!$F$3) -> 114 | Q166: =IF(ISBLANK($K166),"",'[6]Pracovní dny'!$F$4) -> 365 | R166: 252 | S166: 13.2 | T166: 0 | U166: 0 | V166: 2.4 | W166: 1 | X166: 3 | Y166: 0 | Z166: 0 | AA166: 0 | AB166: 0 | AC166: 0 | AD166: OM | AF166: =IF(ISBLANK($AE166),VLOOKUP($I166,'Příloha_8_Ceník pravid_úklidu'!$A$9:$K$30,8,0)+VLOOKUP($I166,'Příloha_8_Ceník pravid_úklidu'!$A$9:$K$30,10,0),"neoceňuje se") -> 0 | AG166: 0 | AH166: 0
A167: 167 | B167: 138400 | C167: 1.03.1NP.067 | D167: denní místnost sester | E167: 10.3 | H167: =IF(ISBLANK(I167)," ",VLOOKUP(I167,'[6]Příloha_8_Ceník pravid_úklidu'!$A$9:$B$30,2,0)) -> KANC | I167: 4 | J167: 2x;Po-Pá | K167: 1 | L167: 0.4 | M167: 0 | N167: 0 | O167: =IF(ISBLANK($K167),"",'[6]Pracovní dny'!$F$2) -> 252 | P167: =IF(ISBLANK($M167),"",'[6]Pracovní dny'!$F$3) -> 114 | Q167: =IF(ISBLANK($K167),"",'[6]Pracovní dny'!$F$4) -> 365 | R167: 100.8 | S167: 1.6 | T167: 0 | U167: N | V167: 3.2 | W167: 1 | X167: 1 | Y167: 3.6 | Z167: 1 | AA167: 7.2 | AB167: PL | AC167: 0 | AD167: OM | AF167: =IF(ISBLANK($AE167),VLOOKUP($I167,'Příloha_8_Ceník pravid_úklidu'!$A$9:$K$30,8,0)+VLOOKUP($I167,'Příloha_8_Ceník pravid_úklidu'!$A$9:$K$30,10,0),"neoceňuje se") -> 0 | AG167: 0 | AH167: 0
A168: 168 | B168: 138400 | C168: 1.03.1NP.068 | D168: vyšetřovna | E168: 33.6 | H168: =IF(ISBLANK(I168)," ",VLOOKUP(I168,'[6]Příloha_8_Ceník pravid_úklidu'!$A$9:$B$30,2,0)) -> ZDR1 | I168: 2 | J168: 1x(5xpo-pá) | K168: 1 | L168: 1 | M168: 0 | N168: 0 | O168: =IF(ISBLANK($K168),"",'[6]Pracovní dny'!$F$2) -> 252 | P168: =IF(ISBLANK($M168),"",'[6]Pracovní dny'!$F$3) -> 114 | Q168: =IF(ISBLANK($K168),"",'[6]Pracovní dny'!$F$4) -> 365 | R168: 252 | S168: 7.4 | T168: 0 | U168: ZN | V168: 7.6 | W168: 2 | X168: 1 | Y168: 3.6 | Z168: 2 | AA168: 7.2 | AB168: PL | AC168: 0 | AD168: OM | AF168: =IF(ISBLANK($AE168),VLOOKUP($I168,'Příloha_8_Ceník pravid_úklidu'!$A$9:$K$30,8,0)+VLOOKUP($I168,'Příloha_8_Ceník pravid_úklidu'!$A$9:$K$30,10,0),"neoceňuje se") -> 0 | AG168: 0 | AH168: 0
A169: 169 | B169: 138400 | C169: 1.03.1NP.069 | D169: předsíň | E169: 1.5 | H169: =IF(ISBLANK(I169)," ",VLOOKUP(I169,'[6]Příloha_8_Ceník pravid_úklidu'!$A$9:$B$30,2,0)) -> CHOD | I169: 6 | J169: 1x(5xpo-pá) | K169: 1 | L169: 1 | M169: 0 | N169: 0 | O169: =IF(ISBLANK($K169),"",'[6]Pracovní dny'!$F$2) -> 252 | P169: =IF(ISBLANK($M169),"",'[6]Pracovní dny'!$F$3) -> 114 | Q169: =IF(ISBLANK($K169),"",'[6]Pracovní dny'!$F$4) -> 365 | R169: 252 | S169: 8.6 | T169: 0 | U169: 0 | V169: 2.8 | W169: 1 | X169: 1 | Y169: 0 | Z169: 0 | AA169: 0 | AB169: 0 | AC169: 0 | AD169: OM | AF169: =IF(ISBLANK($AE169),VLOOKUP($I169,'Příloha_8_Ceník pravid_úklidu'!$A$9:$K$30,8,0)+VLOOKUP($I169,'Příloha_8_Ceník pravid_úklidu'!$A$9:$K$30,10,0),"neoceňuje se") -> 0 | AG169: 0 | AH169: 0
A170: 170 | B170: 138400 | C170: 1.03.1NP.070 | D170: hygienická kabina | E170: 3 | H170: =IF(ISBLANK(I170)," ",VLOOKUP(I170,'[6]Příloha_8_Ceník pravid_úklidu'!$A$9:$B$30,2,0)) -> TOAL | I170: 7 | J170: 1x(5xpo-pá) | K170: 1 | L170: 1 | M170: 0 | N170: 0 | O170: =IF(ISBLANK($K170),"",'[6]Pracovní dny'!$F$2) -> 252 | P170: =IF(ISBLANK($M170),"",'[6]Pracovní dny'!$F$3) -> 114 | Q170: =IF(ISBLANK($K170),"",'[6]Pracovní dny'!$F$4) -> 365 | R170: 252 | S170: 12.4 | T170: 0 | U170: 0 | V170: 2.8 | W170: 1 | X170: 2 | Y170: 0 | Z170: 0 | AA170: 0 | AB170: 0 | AC170: 0 | AD170: OM | AF170: =IF(ISBLANK($AE170),VLOOKUP($I170,'Příloha_8_Ceník pravid_úklidu'!$A$9:$K$30,8,0)+VLOOKUP($I170,'Příloha_8_Ceník pravid_úklidu'!$A$9:$K$30,10,0),"neoceňuje se") -> 0 | AG170: 0 | AH170: 0
A171: 171 | B171: 138400 | C171: 1.03.1NP.071 | D171: svlékací kabina | E171: 2.4 | H171: =IF(ISBLANK(I171)," ",VLOOKUP(I171,'[6]Příloha_8_Ceník pravid_úklidu'!$A$9:$B$30,2,0)) -> CHOD | I171: 6 | J171: 1x(5xpo-pá) | K171: 1 | L171: 1 | M171: 0 | N171: 0 | O171: =IF(ISBLANK($K171),"",'[6]Pracovní dny'!$F$2) -> 252 | P171: =IF(ISBLANK($M171),"",'[6]Pracovní dny'!$F$3) -> 114 | Q171: =IF(ISBLANK($K171),"",'[6]Pracovní dny'!$F$4) -> 365 | R171: 252 | S171: 0 | T171: 0 | U171: 0 | V171: 6 | W171: 2 | X171: 0 | Y171: 0 | Z171: 0 | AA171: 0 | AB171: 0 | AC171: 0 | AD171: OM | AF171: =IF(ISBLANK($AE171),VLOOKUP($I171,'Příloha_8_Ceník pravid_úklidu'!$A$9:$K$30,8,0)+VLOOKUP($I171,'Příloha_8_Ceník pravid_úklidu'!$A$9:$K$30,10,0),"neoceňuje se") -> 0 | AG171: 0 | AH171: 0
A172: 172 | B172: 138400 | C172: 1.03.1NP.072 | D172: svlékací kabina | E172: 1.9 | H172: =IF(ISBLANK(I172)," ",VLOOKUP(I172,'[6]Příloha_8_Ceník pravid_úklidu'!$A$9:$B$30,2,0)) -> CHOD | I172: 6 | J172: 1x(5xpo-pá) | K172: 1 | L172: 1 | M172: 0 | N172: 0 | O172: =IF(ISBLANK($K172),"",'[6]Pracovní dny'!$F$2) -> 252 | P172: =IF(ISBLANK($M172),"",'[6]Pracovní dny'!$F$3) -> 114 | Q172: =IF(ISBLANK($K172),"",'[6]Pracovní dny'!$F$4) -> 365 | R172: 252 | S172: 0 | T172: 0 | U172: 0 | V172: 6 | W172: 2 | X172: 0 | Y172: 0 | Z172: 0 | AA172: 0 | AB172: 0 | AC172: 0 | AD172: OM | AF172: =IF(ISBLANK($AE172),VLOOKUP($I172,'Příloha_8_Ceník pravid_úklidu'!$A$9:$K$30,8,0)+VLOOKUP($I172,'Příloha_8_Ceník pravid_úklidu'!$A$9:$K$30,10,0),"neoceňuje se") -> 0 | AG172: 0 | AH172: 0
A173: 173 | B173: 138400 | C173: 1.03.1NP.073 | D173: přípravna | E173: 18 | H173: =IF(ISBLANK(I173)," ",VLOOKUP(I173,'[6]Příloha_8_Ceník pravid_úklidu'!$A$9:$B$30,2,0)) -> ZDR1 | I173: 2 | J173: 1x(5xpo-pá) | K173: 1 | L173: 1 | M173: 0 | N173: 0 | O173: =IF(ISBLANK($K173),"",'[6]Pracovní dny'!$F$2) -> 252 | P173: =IF(ISBLANK($M173),"",'[6]Pracovní dny'!$F$3) -> 114 | Q173: =IF(ISBLANK($K173),"",'[6]Pracovní dny'!$F$4) -> 365 | R173: 252 | S173: 2.6 | T173: X | U173: ZN | V173: 7.6 | W173: 2 | X173: 2 | Y173: 3.6 | Z173: 1 | AA173: 7.2 | AB173: PL | AC173: 0 | AD173: OM | AF173: =IF(ISBLANK($AE173),VLOOKUP($I173,'Příloha_8_Ceník pravid_úklidu'!$A$9:$K$30,8,0)+VLOOKUP($I173,'Příloha_8_Ceník pravid_úklidu'!$A$9:$K$30,10,0),"neoceňuje se") -> 0 | AG173: 0 | AH173: 0
A174: 174 | B174: 138400 | C174: 1.03.1NP.074 | D174: ambulance | E174: 19 | H174: =IF(ISBLANK(I174)," ",VLOOKUP(I174,'[6]Příloha_8_Ceník pravid_úklidu'!$A$9:$B$30,2,0)) -> ZDR1 | I174: 2 | J174: 1x(5xpo-pá) | K174: 1 | L174: 1 | M174: 0 | N174: 0 | O174: =IF(ISBLANK($K174),"",'[6]Pracovní dny'!$F$2) -> 252 | P174: =IF(ISBLANK($M174),"",'[6]Pracovní dny'!$F$3) -> 114 | Q174: =IF(ISBLANK($K174),"",'[6]Pracovní dny'!$F$4) -> 365 | R174: 252 | S174: 0 | T174: X | U174: N | V174: 0 | W174: 0 | X174: 0 | Y174: 0 | Z174: 0 | AA174: 0 | AB174: 0 | AC174: 0 | AD174: OM | AF174: =IF(ISBLANK($AE174),VLOOKUP($I174,'Příloha_8_Ceník pravid_úklidu'!$A$9:$K$30,8,0)+VLOOKUP($I174,'Příloha_8_Ceník pravid_úklidu'!$A$9:$K$30,10,0),"neoceňuje se") -> 0 | AG174: 0 | AH174: 0
A175: 175 | B175: 138400 | C175: 1.03.1NP.075 | D175: přípravna | E175: 20.2 | H175: =IF(ISBLANK(I175)," ",VLOOKUP(I175,'[6]Příloha_8_Ceník pravid_úklidu'!$A$9:$B$30,2,0)) -> ZDR1 | I175: 2 | J175: 2x (7x;Po-Ne) | K175: 2 | L175: 1 | M175: 2 | N175: 1 | O175: =IF(ISBLANK($K175),"",'[6]Pracovní dny'!$F$2) -> 252 | P175: =IF(ISBLANK($M175),"",'[6]Pracovní dny'!$F$3) -> 114 | Q175: =IF(ISBLANK($K175),"",'[6]Pracovní dny'!$F$4) -> 365 | R175: 732 | S175: 1.8 | T175: X | U175: ZN | V175: 7.6 | W175: 2 | X175: 2 | Y175: 3.6 | Z175: 1 | AA175: 7.2 | AB175: PL | AC175: 0 | AD175: OM | AF175: =IF(ISBLANK($AE175),VLOOKUP($I175,'Příloha_8_Ceník pravid_úklidu'!$A$9:$K$30,8,0)+VLOOKUP($I175,'Příloha_8_Ceník pravid_úklidu'!$A$9:$K$30,10,0),"neoceňuje se") -> 0 | AG175: 0 | AH175: 0
A176: 176 | B176: 138400 | C176: 1.03.1NP.076 | D176: předsíň | E176: 1.6 | H176: =IF(ISBLANK(I176)," ",VLOOKUP(I176,'[6]Příloha_8_Ceník pravid_úklidu'!$A$9:$B$30,2,0)) -> CHOD | I176: 6 | J176: 2x (7x;Po-Ne) | K176: 2 | L176: 1 | M176: 2 | N176: 1 | O176: =IF(ISBLANK($K176),"",'[6]Pracovní dny'!$F$2) -> 252 | P176: =IF(ISBLANK($M176),"",'[6]Pracovní dny'!$F$3) -> 114 | Q176: =IF(ISBLANK($K176),"",'[6]Pracovní dny'!$F$4) -> 365 | R176: 732 | S176: 8 | T176: 0 | U176: 0 | V176: 2.8 | W176: 1 | X176: 1 | Y176: 0 | Z176: 0 | AA176: 0 | AB176: 0 | AC176: 0 | AD176: OM | AF176: =IF(ISBLANK($AE176),VLOOKUP($I176,'Příloha_8_Ceník pravid_úklidu'!$A$9:$K$30,8,0)+VLOOKUP($I176,'Příloha_8_Ceník pravid_úklidu'!$A$9:$K$30,10,0),"neoceňuje se") -> 0 | AG176: 0 | AH176: 0
A177: 177 | B177: 138400 | C177: 1.03.1NP.077 | D177: hygienická kabina | E177: 2.9 | H177: =IF(ISBLANK(I177)," ",VLOOKUP(I177,'[6]Příloha_8_Ceník pravid_úklidu'!$A$9:$B$30,2,0)) -> ZDR1 | I177: 2 | J177: 2x (7x;Po-Ne) | K177: 2 | L177: 1 | M177: 2 | N177: 1 | O177: =IF(ISBLANK($K177),"",'[6]Pracovní dny'!$F$2) -> 252 | P177: =IF(ISBLANK($M177),"",'[6]Pracovní dny'!$F$3) -> 114 | Q177: =IF(ISBLANK($K177),"",'[6]Pracovní dny'!$F$4) -> 365 | R177: 732 | S177: 12.2 | T177: 0 | U177: 0 | V177: 2.8 | W177: 1 | X177: 2 | Y177: 0 | Z177: 0 | AA177: 0 | AB177: 0 | AC177: 0 | AD177: OM | AF177: =IF(ISBLANK($AE177),VLOOKUP($I177,'Příloha_8_Ceník pravid_úklidu'!$A$9:$K$30,8,0)+VLOOKUP($I177,'Příloha_8_Ceník pravid_úklidu'!$A$9:$K$30,10,0),"neoceňuje se") -> 0 | AG177: 0 | AH177: 0
A178: 178 | B178: 138400 | C178: 1.03.1NP.078 | D178: svlékací kabina | E178: 1.9 | H178: =IF(ISBLANK(I178)," ",VLOOKUP(I178,'[6]Příloha_8_Ceník pravid_úklidu'!$A$9:$B$30,2,0)) -> ZDR1 | I178: 2 | J178: 2x (7x;Po-Ne) | K178: 2 | L178: 1 | M178: 2 | N178: 1 | O178: =IF(ISBLANK($K178),"",'[6]Pracovní dny'!$F$2) -> 252 | P178: =IF(ISBLANK($M178),"",'[6]Pracovní dny'!$F$3) -> 114 | Q178: =IF(ISBLANK($K178),"",'[6]Pracovní dny'!$F$4) -> 365 | R178: 732 | S178: 0 | T178: 0 | U178: 0 | V178: 6 | W178: 2 | X178: 0 | Y178: 0 | Z178: 0 | AA178: 0 | AB178: 0 | AC178: 0 | AD178: OM | AF178: =IF(ISBLANK($AE178),VLOOKUP($I178,'Příloha_8_Ceník pravid_úklidu'!$A$9:$K$30,8,0)+VLOOKUP($I178,'Příloha_8_Ceník pravid_úklidu'!$A$9:$K$30,10,0),"neoceňuje se") -> 0 | AG178: 0 | AH178: 0
A179: 179 | B179: 138400 | C179: 1.03.1NP.079 | D179: svlékací kabina | E179: 1.9 | H179: =IF(ISBLANK(I179)," ",VLOOKUP(I179,'[6]Příloha_8_Ceník pravid_úklidu'!$A$9:$B$30,2,0)) -> ZDR1 | I179: 2 | J179: 2x (7x;Po-Ne) | K179: 2 | L179: 1 | M179: 2 | N179: 1 | O179: =IF(ISBLANK($K179),"",'[6]Pracovní dny'!$F$2) -> 252 | P179: =IF(ISBLANK($M179),"",'[6]Pracovní dny'!$F$3) -> 114 | Q179: =IF(ISBLANK($K179),"",'[6]Pracovní dny'!$F$4) -> 365 | R179: 732 | S179: 0 | T179: 0 | U179: 0 | V179: 6 | W179: 2 | X179: 0 | Y179: 0 | Z179: 0 | AA179: 0 | AB179: 0 | AC179: 0 | AD179: OM | AF179: =IF(ISBLANK($AE179),VLOOKUP($I179,'Příloha_8_Ceník pravid_úklidu'!$A$9:$K$30,8,0)+VLOOKUP($I179,'Příloha_8_Ceník pravid_úklidu'!$A$9:$K$30,10,0),"neoceňuje se") -> 0 | AG179: 0 | AH179: 0
A180: 180 | B180: 138400 | C180: 1.03.1NP.080 | D180: vyšetřovna | E180: 38.8 | H180: =IF(ISBLANK(I180)," ",VLOOKUP(I180,'[6]Příloha_8_Ceník pravid_úklidu'!$A$9:$B$30,2,0)) -> ZDR1 | I180: 2 | J180: 2x (7x;Po-Ne) | K180: 2 | L180: 1 | M180: 2 | N180: 1 | O180: =IF(ISBLANK($K180),"",'[6]Pracovní dny'!$F$2) -> 252 | P180: =IF(ISBLANK($M180),"",'[6]Pracovní dny'!$F$3) -> 114 | Q180: =IF(ISBLANK($K180),"",'[6]Pracovní dny'!$F$4) -> 365 | R180: 732 | S180: 7.4 | T180: X | U180: ZN | V180: 7.6 | W180: 1 | X180: 1 | Y180: 3.6 | Z180: 2 | AA180: 14.4 | AB180: PL | AC180: VNI-H | AD180: OM | AF180: =IF(ISBLANK($AE180),VLOOKUP($I180,'Příloha_8_Ceník pravid_úklidu'!$A$9:$K$30,8,0)+VLOOKUP($I180,'Příloha_8_Ceník pravid_úklidu'!$A$9:$K$30,10,0),"neoceňuje se") -> 0 | AG180: 0 | AH180: 0
A181: 181 | B181: 138400 | D181: recepce | E181: 6.75 | H181: =IF(ISBLANK(I181)," ",VLOOKUP(I181,'[6]Příloha_8_Ceník pravid_úklidu'!$A$9:$B$30,2,0)) -> KANC | I181: 4 | J181: 1x(5xpo-pá) | K181: 1 | L181: 1 | M181: 0 | N181: 0 | O181: =IF(ISBLANK($K181),"",'[6]Pracovní dny'!$F$2) -> 252 | P181: =IF(ISBLANK($M181),"",'[6]Pracovní dny'!$F$3) -> 114 | Q181: =IF(ISBLANK($K181),"",'[6]Pracovní dny'!$F$4) -> 365 | R181: 252 | S181: 0 | T181: X | U181: N | V181: 0 | W181: 0 | X181: 0 | Y181: 0 | Z181: 0 | AA181: 0 | AB181: 0 | AC181: 0 | AD181: OM | AF181: =IF(ISBLANK($AE181),VLOOKUP($I181,'Příloha_8_Ceník pravid_úklidu'!$A$9:$K$30,8,0)+VLOOKUP($I181,'Příloha_8_Ceník pravid_úklidu'!$A$9:$K$30,10,0),"neoceňuje se") -> 0 | AG181: 0 | AH181: 0
A182: 182 | B182: 138400 | C182: 1.03.1NP.082 | D182: kartotéka | E182: 16.4 | H182: =IF(ISBLANK(I182)," ",VLOOKUP(I182,'[6]Příloha_8_Ceník pravid_úklidu'!$A$9:$B$30,2,0)) -> KANC | I182: 4 | J182: 1x(5xpo-pá) | K182: 1 | L182: 1 | M182: 0 | N182: 0 | O182: =IF(ISBLANK($K182),"",'[6]Pracovní dny'!$F$2) -> 252 | P182: =IF(ISBLANK($M182),"",'[6]Pracovní dny'!$F$3) -> 114 | Q182: =IF(ISBLANK($K182),"",'[6]Pracovní dny'!$F$4) -> 365 | R182: 252 | S182: 2.4 | T182: X | U182: N | V182: 3.4 | W182: 1 | X182: 1 | Y182: 3.6 | Z182: 1 | AA182: 7.2 | AB182: PL | AC182: VNI-H | AD182: OM | AF182: =IF(ISBLANK($AE182),VLOOKUP($I182,'Příloha_8_Ceník pravid_úklidu'!$A$9:$K$30,8,0)+VLOOKUP($I182,'Příloha_8_Ceník pravid_úklidu'!$A$9:$K$30,10,0),"neoceňuje se") -> 0 | AG182: 0 | AH182: 0
A183: 183 | B183: 138400 | C183: 1.03.1NP.083 | D183: vyšetřovna | E183: 19.5 | H183: =IF(ISBLANK(I183)," ",VLOOKUP(I183,'[6]Příloha_8_Ceník pravid_úklidu'!$A$9:$B$30,2,0)) -> ZDR1 | I183: 2 | J183: 1x(5xpo-pá) | K183: 1 | L183: 1 | M183: 0 | N183: 0 | O183: =IF(ISBLANK($K183),"",'[6]Pracovní dny'!$F$2) -> 252 | P183: =IF(ISBLANK($M183),"",'[6]Pracovní dny'!$F$3) -> 114 | Q183: =IF(ISBLANK($K183),"",'[6]Pracovní dny'!$F$4) -> 365 | R183: 252 | S183: 3.2 | T183: X | U183: ZN | V183: 7.6 | W183: 2 | X183: 1 | Y183: 3.6 | Z183: 1 | AA183: 7.2 | AB183: PL | AC183: VNI-H | AD183: OM | AF183: =IF(ISBLANK($AE183),VLOOKUP($I183,'Příloha_8_Ceník pravid_úklidu'!$A$9:$K$30,8,0)+VLOOKUP($I183,'Příloha_8_Ceník pravid_úklidu'!$A$9:$K$30,10,0),"neoceňuje se") -> 0 | AG183: 0 | AH183: 0
A184: 184 | B184: 138400 | C184: 1.03.1NP.084 | D184: svlékací kabina | E184: 1.9 | H184: =IF(ISBLANK(I184)," ",VLOOKUP(I184,'[6]Příloha_8_Ceník pravid_úklidu'!$A$9:$B$30,2,0)) -> ZDR1 | I184: 2 | J184: 1x(5xpo-pá) | K184: 1 | L184: 1 | M184: 0 | N184: 0 | O184: =IF(ISBLANK($K184),"",'[6]Pracovní dny'!$F$2) -> 252 | P184: =IF(ISBLANK($M184),"",'[6]Pracovní dny'!$F$3) -> 114 | Q184: =IF(ISBLANK($K184),"",'[6]Pracovní dny'!$F$4) -> 365 | R184: 252 | S184: 0 | T184: 0 | U184: 0 | V184: 6 | W184: 2 | X184: 0 | Y184: 0 | Z184: 0 | AA184: 0 | AB184: 0 | AC184: 0 | AD184: OM | AF184: =IF(ISBLANK($AE184),VLOOKUP($I184,'Příloha_8_Ceník pravid_úklidu'!$A$9:$K$30,8,0)+VLOOKUP($I184,'Příloha_8_Ceník pravid_úklidu'!$A$9:$K$30,10,0),"neoceňuje se") -> 0 | AG184: 0 | AH184: 0
A185: 185 | B185: 138400 | C185: 1.03.1NP.085 | D185: svlékací kabina | E185: 1.9 | H185: =IF(ISBLANK(I185)," ",VLOOKUP(I185,'[6]Příloha_8_Ceník pravid_úklidu'!$A$9:$B$30,2,0)) -> ZDR1 | I185: 2 | J185: 1x(5xpo-pá) | K185: 1 | L185: 1 | M185: 0 | N185: 0 | O185: =IF(ISBLANK($K185),"",'[6]Pracovní dny'!$F$2) -> 252 | P185: =IF(ISBLANK($M185),"",'[6]Pracovní dny'!$F$3) -> 114 | Q185: =IF(ISBLANK($K185),"",'[6]Pracovní dny'!$F$4) -> 365 | R185: 252 | S185: 0 | T185: 0 | U185: 0 | V185: 6 | W185: 2 | X185: 0 | Y185: 0 | Z185: 0 | AA185: 0 | AB185: 0 | AC185: 0 | AD185: OM | AF185: =IF(ISBLANK($AE185),VLOOKUP($I185,'Příloha_8_Ceník pravid_úklidu'!$A$9:$K$30,8,0)+VLOOKUP($I185,'Příloha_8_Ceník pravid_úklidu'!$A$9:$K$30,10,0),"neoceňuje se") -> 0 | AG185: 0 | AH185: 0
A186: 186 | B186: 138400 | C186: 1.03.1NP.086 | D186: přípravna | E186: 18.5 | H186: =IF(ISBLANK(I186)," ",VLOOKUP(I186,'[6]Příloha_8_Ceník pravid_úklidu'!$A$9:$B$30,2,0)) -> ZDR1 | I186: 2 | J186: 1x(5xpo-pá) | K186: 1 | L186: 1 | M186: 0 | N186: 0 | O186: =IF(ISBLANK($K186),"",'[6]Pracovní dny'!$F$2) -> 252 | P186: =IF(ISBLANK($M186),"",'[6]Pracovní dny'!$F$3) -> 114 | Q186: =IF(ISBLANK($K186),"",'[6]Pracovní dny'!$F$4) -> 365 | R186: 252 | S186: 3 | T186: X | U186: ZN | V186: 4.4 | W186: 1 | X186: 2 | Y186: 3.6 | Z186: 1 | AA186: 7.2 | AB186: PL | AC186: 0 | AD186: OM | AF186: =IF(ISBLANK($AE186),VLOOKUP($I186,'Příloha_8_Ceník pravid_úklidu'!$A$9:$K$30,8,0)+VLOOKUP($I186,'Příloha_8_Ceník pravid_úklidu'!$A$9:$K$30,10,0),"neoceňuje se") -> 0 | AG186: 0 | AH186: 0
A187: 187 | B187: 138400 | C187: 1.03.1NP.087 | D187: ultrazvuk | E187: 18.4 | H187: =IF(ISBLANK(I187)," ",VLOOKUP(I187,'[6]Příloha_8_Ceník pravid_úklidu'!$A$9:$B$30,2,0)) -> ZDR1 | I187: 2 | J187: 1x(5xpo-pá) | K187: 1 | L187: 1 | M187: 0 | N187: 0 | O187: =IF(ISBLANK($K187),"",'[6]Pracovní dny'!$F$2) -> 252 | P187: =IF(ISBLANK($M187),"",'[6]Pracovní dny'!$F$3) -> 114 | Q187: =IF(ISBLANK($K187),"",'[6]Pracovní dny'!$F$4) -> 365 | R187: 252 | S187: 1.8 | T187: X | U187: ZN | V187: 4.4 | W187: 1 | X187: 1 | Y187: 3.6 | Z187: 1 | AA187: 7.2 | AB187: PL | AC187: 0 | AD187: OM | AF187: =IF(ISBLANK($AE187),VLOOKUP($I187,'Příloha_8_Ceník pravid_úklidu'!$A$9:$K$30,8,0)+VLOOKUP($I187,'Příloha_8_Ceník pravid_úklidu'!$A$9:$K$30,10,0),"neoceňuje se") -> 0 | AG187: 0 | AH187: 0
A188: 188 | B188: 138400 | C188: 1.03.1NP.088 | D188: svlékací kabina | E188: 1.9 | H188: =IF(ISBLANK(I188)," ",VLOOKUP(I188,'[6]Příloha_8_Ceník pravid_úklidu'!$A$9:$B$30,2,0)) -> CHOD | I188: 6 | J188: 1x(5xpo-pá) | K188: 1 | L188: 1 | M188: 0 | N188: 0 | O188: =IF(ISBLANK($K188),"",'[6]Pracovní dny'!$F$2) -> 252 | P188: =IF(ISBLANK($M188),"",'[6]Pracovní dny'!$F$3) -> 114 | Q188: =IF(ISBLANK($K188),"",'[6]Pracovní dny'!$F$4) -> 365 | R188: 252 | S188: 0 | T188: 0 | U188: 0 | V188: 5.6 | W188: 2 | X188: 0 | Y188: 0 | Z188: 0 | AA188: 0 | AB188: 0 | AC188: 0 | AD188: OM | AF188: =IF(ISBLANK($AE188),VLOOKUP($I188,'Příloha_8_Ceník pravid_úklidu'!$A$9:$K$30,8,0)+VLOOKUP($I188,'Příloha_8_Ceník pravid_úklidu'!$A$9:$K$30,10,0),"neoceňuje se") -> 0 | AG188: 0 | AH188: 0
A189: 189 | B189: 138400 | C189: 1.03.1NP.089 | D189: svlékací kabina | E189: 1.8 | H189: =IF(ISBLANK(I189)," ",VLOOKUP(I189,'[6]Příloha_8_Ceník pravid_úklidu'!$A$9:$B$30,2,0)) -> CHOD | I189: 6 | J189: 1x(5xpo-pá) | K189: 1 | L189: 1 | M189: 0 | N189: 0 | O189: =IF(ISBLANK($K189),"",'[6]Pracovní dny'!$F$2) -> 252 | P189: =IF(ISBLANK($M189),"",'[6]Pracovní dny'!$F$3) -> 114 | Q189: =IF(ISBLANK($K189),"",'[6]Pracovní dny'!$F$4) -> 365 | R189: 252 | S189: 0 | T189: 0 | U189: 0 | V189: 5.6 | W189: 2 | X189: 0 | Y189: 0 | Z189: 0 | AA189: 0 | AB189: 0 | AC189: 0 | AD189: OM | AF189: =IF(ISBLANK($AE189),VLOOKUP($I189,'Příloha_8_Ceník pravid_úklidu'!$A$9:$K$30,8,0)+VLOOKUP($I189,'Příloha_8_Ceník pravid_úklidu'!$A$9:$K$30,10,0),"neoceňuje se") -> 0 | AG189: 0 | AH189: 0
A190: 190 | B190: 133400 | D190: čekárna | E190: 12.8 | H190: =IF(ISBLANK(I190)," ",VLOOKUP(I190,'[6]Příloha_8_Ceník pravid_úklidu'!$A$9:$B$30,2,0)) -> CHOD | I190: 6 | J190: 1x(5xpo-pá) | K190: 1 | L190: 1 | M190: 0 | N190: 0 | O190: =IF(ISBLANK($K190),"",'[6]Pracovní dny'!$F$2) -> 252 | P190: =IF(ISBLANK($M190),"",'[6]Pracovní dny'!$F$3) -> 114 | Q190: =IF(ISBLANK($K190),"",'[6]Pracovní dny'!$F$4) -> 365 | R190: 252 | S190: 2.3 | T190: 0 | U190: 0 | V190: 3.2 | W190: 1 | X190: 0 | Y190: 2.8 | Z190: 1 | AA190: 5.6 | AB190: PL | AC190: 0 | AD190: OM | AF190: =IF(ISBLANK($AE190),VLOOKUP($I190,'Příloha_8_Ceník pravid_úklidu'!$A$9:$K$30,8,0)+VLOOKUP($I190,'Příloha_8_Ceník pravid_úklidu'!$A$9:$K$30,10,0),"neoceňuje se") -> 0 | AG190: 0 | AH190: 0
A191: 191 | B191: 133400 | D191: čekárna | E191: 13.2 | H191: =IF(ISBLANK(I191)," ",VLOOKUP(I191,'[6]Příloha_8_Ceník pravid_úklidu'!$A$9:$B$30,2,0)) -> CHOD | I191: 6 | J191: 1x;Po-Pá | K191: 1 | L191: 0.2 | M191: 0 | N191: 0 | O191: =IF(ISBLANK($K191),"",'[6]Pracovní dny'!$F$2) -> 252 | P191: =IF(ISBLANK($M191),"",'[6]Pracovní dny'!$F$3) -> 114 | Q191: =IF(ISBLANK($K191),"",'[6]Pracovní dny'!$F$4) -> 365 | R191: 50.4 | S191: 0 | T191: 0 | U191: 0 | V191: 3.2 | W191: 1 | X191: 0 | Y191: 0 | Z191: 1 | AA191: 0 | AB191: PL | AC191: VNI-H | AD191: OM | AF191: =IF(ISBLANK($AE191),VLOOKUP($I191,'Příloha_8_Ceník pravid_úklidu'!$A$9:$K$30,8,0)+VLOOKUP($I191,'Příloha_8_Ceník pravid_úklidu'!$A$9:$K$30,10,0),"neoceňuje se") -> 0 | AG191: 0 | AH191: 0
A192: 192 | B192: 133400 | C192: 1.03.1NP.092 | D192: sociální zařízení | E192: 3.3 | H192: =IF(ISBLANK(I192)," ",VLOOKUP(I192,'[6]Příloha_8_Ceník pravid_úklidu'!$A$9:$B$30,2,0)) -> TOAL | I192: 7 | J192: 2x (5x;Po-Pá) | K192: 2 | L192: 1 | M192: 0 | N192: 0 | O192: =IF(ISBLANK($K192),"",'[6]Pracovní dny'!$F$2) -> 252 | P192: =IF(ISBLANK($M192),"",'[6]Pracovní dny'!$F$3) -> 114 | Q192: =IF(ISBLANK($K192),"",'[6]Pracovní dny'!$F$4) -> 365 | R192: 504 | S192: 13.2 | T192: 0 | U192: 0 | V192: 2.4 | W192: 1 | X192: 3 | Y192: 0 | Z192: 0 | AA192: 0 | AB192: 0 | AC192: 0 | AD192: OM | AF192: =IF(ISBLANK($AE192),VLOOKUP($I192,'Příloha_8_Ceník pravid_úklidu'!$A$9:$K$30,8,0)+VLOOKUP($I192,'Příloha_8_Ceník pravid_úklidu'!$A$9:$K$30,10,0),"neoceňuje se") -> 0 | AG192: 0 | AH192: 0
A193: 193 | B193: 133400 | C193: 1.03.1NP.093 | D193: wc | E193: 3.7 | H193: =IF(ISBLANK(I193)," ",VLOOKUP(I193,'[6]Příloha_8_Ceník pravid_úklidu'!$A$9:$B$30,2,0)) -> TOAL | I193: 7 | J193: 2x (5x;Po-Pá) | K193: 2 | L193: 1 | M193: 0 | N193: 0 | O193: =IF(ISBLANK($K193),"",'[6]Pracovní dny'!$F$2) -> 252 | P193: =IF(ISBLANK($M193),"",'[6]Pracovní dny'!$F$3) -> 114 | Q193: =IF(ISBLANK($K193),"",'[6]Pracovní dny'!$F$4) -> 365 | R193: 504 | S193: 12.8 | T193: 0 | U193: 0 | V193: 3.6 | W193: 1 | X193: 2 | Y193: 0 | Z193: 0 | AA193: 0 | AB193: 0 | AC193: 0 | AD193: OM | AF193: =IF(ISBLANK($AE193),VLOOKUP($I193,'Příloha_8_Ceník pravid_úklidu'!$A$9:$K$30,8,0)+VLOOKUP($I193,'Příloha_8_Ceník pravid_úklidu'!$A$9:$K$30,10,0),"neoceňuje se") -> 0 | AG193: 0 | AH193: 0
A194: 194 | C194: 1.03.1NP.094 | D194: úklidová komora | G194: 1.6 | H194: =IF(ISBLANK(I194)," ",VLOOKUP(I194,'[6]Příloha_8_Ceník pravid_úklidu'!$A$9:$B$30,2,0)) -> TOAL | I194: 7 | J194: provádí zhotovitel na své náklady | O194: =IF(ISBLANK($K194),"",'[6]Pracovní dny'!$F$2) ->  | P194: =IF(ISBLANK($M194),"",'[6]Pracovní dny'!$F$3) ->  | Q194: =IF(ISBLANK($K194),"",'[6]Pracovní dny'!$F$4) ->  | S194: 9.6 | T194: 0 | U194: 0 | V194: 2.4 | W194: 1 | X194: 1 | Y194: 0 | Z194: 0 | AA194: 0 | AB194: 0 | AC194: 0 | AD194: OM | AE194: X | AF194: =IF(ISBLANK($AE194),VLOOKUP($I194,'Příloha_8_Ceník pravid_úklidu'!$A$9:$K$30,8,0)+VLOOKUP($I194,'Příloha_8_Ceník pravid_úklidu'!$A$9:$K$30,10,0),"neoceňuje se") -> neoceňuje se | AG194: 0 | AH194: 0
A195: 195 | B195: 133400 | C195: 1.03.1NP.095 | D195: ultrazvuk | E195: 7.15 | H195: =IF(ISBLANK(I195)," ",VLOOKUP(I195,'[6]Příloha_8_Ceník pravid_úklidu'!$A$9:$B$30,2,0)) -> ZDR1 | I195: 2 | J195: 2x (5x;Po-Pá) | K195: 2 | L195: 1 | M195: 0 | N195: 0 | O195: =IF(ISBLANK($K195),"",'[6]Pracovní dny'!$F$2) -> 252 | P195: =IF(ISBLANK($M195),"",'[6]Pracovní dny'!$F$3) -> 114 | Q195: =IF(ISBLANK($K195),"",'[6]Pracovní dny'!$F$4) -> 365 | R195: 504 | S195: 3 | T195: X | U195: ZN | V195: 4.4 | W195: 1 | X195: 1 | Y195: 2.8 | Z195: 1 | AA195: 5.6 | AB195: PL | AC195: 0 | AD195: OM | AF195: =IF(ISBLANK($AE195),VLOOKUP($I195,'Příloha_8_Ceník pravid_úklidu'!$A$9:$K$30,8,0)+VLOOKUP($I195,'Příloha_8_Ceník pravid_úklidu'!$A$9:$K$30,10,0),"neoceňuje se") -> 0 | AG195: 0 | AH195: 0
A196: 196 | B196: 133400 | C196: 1.03.1NP.096 | D196: WC | E196: 3.8 | H196: =IF(ISBLANK(I196)," ",VLOOKUP(I196,'[6]Příloha_8_Ceník pravid_úklidu'!$A$9:$B$30,2,0)) -> TOAL | I196: 7 | J196: 2x (5x;Po-Pá) | K196: 2 | L196: 1 | M196: 0 | N196: 0 | O196: =IF(ISBLANK($K196),"",'[6]Pracovní dny'!$F$2) -> 252 | P196: =IF(ISBLANK($M196),"",'[6]Pracovní dny'!$F$3) -> 114 | Q196: =IF(ISBLANK($K196),"",'[6]Pracovní dny'!$F$4) -> 365 | R196: 504 | S196: 11 | T196: 0 | U196: 0 | V196: 2.8 | W196: 1 | X196: 2 | Y196: 2.8 | Z196: 1 | AA196: 5.6 | AB196: PL | AC196: 0 | AD196: OM | AF196: =IF(ISBLANK($AE196),VLOOKUP($I196,'Příloha_8_Ceník pravid_úklidu'!$A$9:$K$30,8,0)+VLOOKUP($I196,'Příloha_8_Ceník pravid_úklidu'!$A$9:$K$30,10,0),"neoceňuje se") -> 0 | AG196: 0 | AH196: 0
A197: 197 | B197: 133400 | C197: 1.03.1NP.097 | D197: WC | E197: 1.65 | H197: =IF(ISBLANK(I197)," ",VLOOKUP(I197,'[6]Příloha_8_Ceník pravid_úklidu'!$A$9:$B$30,2,0)) -> TOAL | I197: 7 | J197: 2x (5x;Po-Pá) | K197: 2 | L197: 1 | M197: 0 | N197: 0 | O197: =IF(ISBLANK($K197),"",'[6]Pracovní dny'!$F$2) -> 252 | P197: =IF(ISBLANK($M197),"",'[6]Pracovní dny'!$F$3) -> 114 | Q197: =IF(ISBLANK($K197),"",'[6]Pracovní dny'!$F$4) -> 365 | R197: 504 | S197: 9.4 | T197: 0 | U197: 0 | V197: 2.8 | W197: 1 | X197: 1 | Y197: 0 | Z197: 0 | AA197: 0 | AB197: 0 | AC197: 0 | AD197: OM | AF197: =IF(ISBLANK($AE197),VLOOKUP($I197,'Příloha_8_Ceník pravid_úklidu'!$A$9:$K$30,8,0)+VLOOKUP($I197,'Příloha_8_Ceník pravid_úklidu'!$A$9:$K$30,10,0),"neoceňuje se") -> 0 | AG197: 0 | AH197: 0
A198: 198 | B198: 133400 | C198: 1.03.1NP.098 | D198: předsíň | E198: 4.55 | H198: =IF(ISBLANK(I198)," ",VLOOKUP(I198,'[6]Příloha_8_Ceník pravid_úklidu'!$A$9:$B$30,2,0)) -> CHOD | I198: 6 | J198: 2x (5x;Po-Pá) | K198: 2 | L198: 1 | M198: 0 | N198: 0 | O198: =IF(ISBLANK($K198),"",'[6]Pracovní dny'!$F$2) -> 252 | P198: =IF(ISBLANK($M198),"",'[6]Pracovní dny'!$F$3) -> 114 | Q198: =IF(ISBLANK($K198),"",'[6]Pracovní dny'!$F$4) -> 365 | R198: 504 | S198: 11 | T198: 0 | U198: 0 | V198: 2.8 | W198: 1 | X198: 2 | Y198: 0 | Z198: 0 | AA198: 0 | AB198: 0 | AC198: 0 | AD198: OM | AF198: =IF(ISBLANK($AE198),VLOOKUP($I198,'Příloha_8_Ceník pravid_úklidu'!$A$9:$K$30,8,0)+VLOOKUP($I198,'Příloha_8_Ceník pravid_úklidu'!$A$9:$K$30,10,0),"neoceňuje se") -> 0 | AG198: 0 | AH198: 0
A199: 199 | B199: 133400 | C199: 1.03.1NP.099 | D199: WC | E199: 1.65 | H199: =IF(ISBLANK(I199)," ",VLOOKUP(I199,'[6]Příloha_8_Ceník pravid_úklidu'!$A$9:$B$30,2,0)) -> TOAL | I199: 7 | J199: 2x (5x;Po-Pá) | K199: 2 | L199: 1 | M199: 0 | N199: 0 | O199: =IF(ISBLANK($K199),"",'[6]Pracovní dny'!$F$2) -> 252 | P199: =IF(ISBLANK($M199),"",'[6]Pracovní dny'!$F$3) -> 114 | Q199: =IF(ISBLANK($K199),"",'[6]Pracovní dny'!$F$4) -> 365 | R199: 504 | S199: 10.2 | T199: 0 | U199: 0 | V199: 2.8 | W199: 1 | X199: 1 | Y199: 1.4 | Z199: 1 | AA199: 2.8 | AB199: PL | AC199: 0 | AD199: OM | AF199: =IF(ISBLANK($AE199),VLOOKUP($I199,'Příloha_8_Ceník pravid_úklidu'!$A$9:$K$30,8,0)+VLOOKUP($I199,'Příloha_8_Ceník pravid_úklidu'!$A$9:$K$30,10,0),"neoceňuje se") -> 0 | AG199: 0 | AH199: 0
A200: 1101 | B200: 133400 | C200: 1.03.1NP.101 | D200: WC | E200: 1.65 | H200: =IF(ISBLANK(I200)," ",VLOOKUP(I200,'[6]Příloha_8_Ceník pravid_úklidu'!$A$9:$B$30,2,0)) -> TOAL | I200: 7 | J200: 2x (5x;Po-Pá) | K200: 2 | L200: 1 | M200: 0 | N200: 0 | O200: =IF(ISBLANK($K200),"",'[6]Pracovní dny'!$F$2) -> 252 | P200: =IF(ISBLANK($M200),"",'[6]Pracovní dny'!$F$3) -> 114 | Q200: =IF(ISBLANK($K200),"",'[6]Pracovní dny'!$F$4) -> 365 | R200: =IF(AND(ISBLANK($K200),ISBLANK($M200)),"",$K200*$L200*$O200+$M200*$N200*$P200) -> 504 | S200: 10 | T200: 0 | U200: 0 | V200: 2.8 | W200: 1 | X200: 1 | Y200: 1.4 | Z200: 1 | AA200: 2.8 | AB200: PL | AC200: 0 | AD200: OM | AF200: =IF(ISBLANK($AE200),VLOOKUP($I200,'Příloha_8_Ceník pravid_úklidu'!$A$9:$K$30,8,0)+VLOOKUP($I200,'Příloha_8_Ceník pravid_úklidu'!$A$9:$K$30,10,0),"neoceňuje se") -> 0 | AG200: 0 | AH200: 0
A201: 1102 | B201: 133400 | C201: 1.03.1NP.102 | D201: předsíň | E201: 4.6 | H201: =IF(ISBLANK(I201)," ",VLOOKUP(I201,'[6]Příloha_8_Ceník pravid_úklidu'!$A$9:$B$30,2,0)) -> CHOD | I201: 6 | J201: 2x (5x;Po-Pá) | K201: 2 | L201: 1 | M201: 0 | N201: 0 | O201: =IF(ISBLANK($K201),"",'[6]Pracovní dny'!$F$2) -> 252 | P201: =IF(ISBLANK($M201),"",'[6]Pracovní dny'!$F$3) -> 114 | Q201: =IF(ISBLANK($K201),"",'[6]Pracovní dny'!$F$4) -> 365 | R201: 504 | S201: 13.5 | T201: 0 | U201: 0 | V201: 2.8 | W201: 1 | X201: 2 | Y201: 0 | Z201: 0 | AA201: 0 | AB201: 0 | AC201: 0 | AD201: OM | AF201: =IF(ISBLANK($AE201),VLOOKUP($I201,'Příloha_8_Ceník pravid_úklidu'!$A$9:$K$30,8,0)+VLOOKUP($I201,'Příloha_8_Ceník pravid_úklidu'!$A$9:$K$30,10,0),"neoceňuje se") -> 0 | AG201: 0 | AH201: 0
... 352 more rows

Sheet Budova č.4
A1: BUDOVA Č.4 KARDIOLOGIE | AH1: Příloha č. | AI1: 6_4
A2: Číslo místnosti dle PD | B2: NS | C2: čárový kód místnosti | D2: Název místnosti | E2: Podlaha | H2: Kód místnosti | I2: Číslo kódu místnosti | J2: Četnost úklidu | K2: Počet stěrů v pracovní den | L2: Frekvence úklidu v pracovních dnech v týdnu (Po-Pá) | M2: Počet stěrů v den pracovního volna | N2: Frekvence úklidu ve dnech pracovního klidu (So, Ne) | O2: Počet pracovních dnů v roce | P2: Počet dnů pracovního volna, svátků | Q2: Počet dnů v roce | R2: Počet stěrů v roce | S2: Stěny | V2: Dveře | X2: San. Zař. Počet | Y2: Okna | AD2: Strop typ | AE2: Neoceňuje se | AF2: Sazba za m2 nebo za hodinu | AG2: Celkem v Kč za rok bez DPH | AH2: Celkem v Kč za rok s DPH | AI2: Cena úklidu po malování a stavebních úpravách za den úklidu v Kč bez DPH
E3: Plocha celkem | F3: Úklidová plocha | S3: Omyvatelná plocha | Y3: Plocha 1 okna | Z3: Počet | AA3: Úklid. plocha | AB3: typ | AC3: Žaluzie typ
F4: Koberec | G4: Omyv.plocha | S4: Obklad | T4: Nátěr | U4: Jiné | V4: Plocha | W4: Počet
D5: Měrná jednotka: | E5: m2 | F5: m2 | G5: m2 | I5: ---- | J5: ---- | S5: m2 | T5: m2 | U5: m2 | V5: m2 | W5: ks | X5: ks | Y5: m2 | Z5: ks | AA5: m2 | AB5: ---- | AC5: ---- | AD5: ----
A7: 1.PODZEMNÍ PODLAŽÍ | H7: =IF(ISBLANK(I7)," ",VLOOKUP(I7,'[6]Příloha_8_Ceník pravid_úklidu'!$A$9:$B$30,2,0)) ->  | O7: =IF(ISBLANK($K7),"",'[6]Pracovní dny'!$F$2) ->  | P7: =IF(ISBLANK($M7),"",'[6]Pracovní dny'!$F$3) ->  | Q7: =IF(ISBLANK($K7),"",'[6]Pracovní dny'!$F$4) ->  | R7: =IF(AND(ISBLANK($K7),ISBLANK($M7)),"",$K7*$L7*$O7+$M7*$N7*$P7) -> 
A8: .001 | B8: 112100 | C8: 1.04.1PP.001 | D8: chodba | E8: 152.1 | H8: =IF(ISBLANK(I8)," ",VLOOKUP(I8,'[6]Příloha_8_Ceník pravid_úklidu'!$A$9:$B$30,2,0)) -> CHOD | I8: 6 | J8: 1x(5xPo-Pá) | K8: 1 | L8: 1 | M8: 0 | N8: 0 | O8: =IF(ISBLANK($K8),"",'[6]Pracovní dny'!$F$2) -> 252 | P8: =IF(ISBLANK($M8),"",'[6]Pracovní dny'!$F$3) -> 114 | Q8: =IF(ISBLANK($K8),"",'[6]Pracovní dny'!$F$4) -> 365 | R8: 252 | S8: 95 | T8: X | U8: X | V8: 7.8 | W8: 1 | X8: 0 | Y8: 0.6 | Z8: 5 | AA8: 6 | AB8: PL | AC8: 0 | AD8: OM | AF8: =IF(ISBLANK($AE8),VLOOKUP($I8,'Příloha_8_Ceník pravid_úklidu'!$A$9:$K$30,8,0)+VLOOKUP($I8,'Příloha_8_Ceník pravid_úklidu'!$A$9:$K$30,10,0),"neoceňuje se") -> 0 | AG8: =IF(AF8="neoceňuje se",0,$E8*$R8*$AF8) -> 0 | AH8: =$AG8*1.21 -> 0
A9: .002 | B9: 112100 | C9: 1.04.1PP.002 | D9: technické zázemí | G9: 42 | H9: =IF(ISBLANK(I9)," ",VLOOKUP(I9,'[6]Příloha_8_Ceník pravid_úklidu'!$A$9:$B$30,2,0)) ->  | J9: není předmětem | O9: =IF(ISBLANK($K9),"",'[6]Pracovní dny'!$F$2) ->  | P9: =IF(ISBLANK($M9),"",'[6]Pracovní dny'!$F$3) ->  | Q9: =IF(ISBLANK($K9),"",'[6]Pracovní dny'!$F$4) ->  | S9: 0 | T9: 0 | U9: X | V9: 3.2 | W9: 1 | X9: 0 | Y9: 0 | Z9: 0 | AA9: 0 | AB9: 0 | AC9: 0 | AD9: OM | AE9: X | AF9: =IF(ISBLANK($AE9),VLOOKUP($I9,'Příloha_8_Ceník pravid_úklidu'!$A$9:$K$30,8,0)+VLOOKUP($I9,'Příloha_8_Ceník pravid_úklidu'!$A$9:$K$30,10,0),"neoceňuje se") -> neoceňuje se | AG9: 0 | AH9: 0
A10: .003 | B10: 112100 | C10: 1.04.1PP.003 | D10: technické zázemí | G10: 18 | H10: =IF(ISBLANK(I10)," ",VLOOKUP(I10,'[6]Příloha_8_Ceník pravid_úklidu'!$A$9:$B$30,2,0)) ->  | J10: není předmětem | O10: =IF(ISBLANK($K10),"",'[6]Pracovní dny'!$F$2) ->  | P10: =IF(ISBLANK($M10),"",'[6]Pracovní dny'!$F$3) ->  | Q10: =IF(ISBLANK($K10),"",'[6]Pracovní dny'!$F$4) ->  | S10: 0 | T10: 0 | U10: X | V10: 5 | W10: 1 | X10: 0 | Y10: 1.6 | Z10: 1 | AA10: 0 | AB10: PL | AC10: 0 | AD10: OM | AE10: X | AF10: =IF(ISBLANK($AE10),VLOOKUP($I10,'Příloha_8_Ceník pravid_úklidu'!$A$9:$K$30,8,0)+VLOOKUP($I10,'Příloha_8_Ceník pravid_úklidu'!$A$9:$K$30,10,0),"neoceňuje se") -> neoceňuje se | AG10: 0 | AH10: 0
A11: .004 | B11: 112100 | C11: 1.04.1PP.004 | D11: šatna sester | E11: 35.3 | H11: =IF(ISBLANK(I11)," ",VLOOKUP(I11,'[6]Příloha_8_Ceník pravid_úklidu'!$A$9:$B$30,2,0)) -> SATN | I11: 10 | J11: 2x;Po-Pá | K11: 1 | L11: 0.4 | M11: 0 | N11: 0 | O11: =IF(ISBLANK($K11),"",'[6]Pracovní dny'!$F$2) -> 252 | P11: =IF(ISBLANK($M11),"",'[6]Pracovní dny'!$F$3) -> 114 | Q11: =IF(ISBLANK($K11),"",'[6]Pracovní dny'!$F$4) -> 365 | R11: 100.8 | S11: 0 | T11: X | U11: N | V11: 3.2 | W11: 1 | X11: 0 | Y11: 1.6 | Z11: 2 | AA11: 6.4 | AB11: PL | AC11: 0 | AD11: OM | AF11: =IF(ISBLANK($AE11),VLOOKUP($I11,'Příloha_8_Ceník pravid_úklidu'!$A$9:$K$30,8,0)+VLOOKUP($I11,'Příloha_8_Ceník pravid_úklidu'!$A$9:$K$30,10,0),"neoceňuje se") -> 0 | AG11: 0 | AH11: 0
A12: .005 | B12: 112100 | C12: 1.04.1PP.005 | D12: umývárna sester | E12: 9.8 | H12: =IF(ISBLANK(I12)," ",VLOOKUP(I12,'[6]Příloha_8_Ceník pravid_úklidu'!$A$9:$B$30,2,0)) -> TOAL | I12: 7 | J12: 2x;Po-Pá | K12: 1 | L12: 0.4 | M12: 0 | N12: 0 | O12: =IF(ISBLANK($K12),"",'[6]Pracovní dny'!$F$2) -> 252 | P12: =IF(ISBLANK($M12),"",'[6]Pracovní dny'!$F$3) -> 114 | Q12: =IF(ISBLANK($K12),"",'[6]Pracovní dny'!$F$4) -> 365 | R12: 100.8 | S12: 24 | T12: 0 | U12: 0 | V12: 6.4 | W12: 2 | X12: 3 | Y12: 0.6 | Z12: 1 | AA12: 1.2 | AB12: PL | AC12: 0 | AD12: OM | AF12: =IF(ISBLANK($AE12),VLOOKUP($I12,'Příloha_8_Ceník pravid_úklidu'!$A$9:$K$30,8,0)+VLOOKUP($I12,'Příloha_8_Ceník pravid_úklidu'!$A$9:$K$30,10,0),"neoceňuje se") -> 0 | AG12: 0 | AH12: 0
A13: .006 | B13: 112100 | C13: 1.04.1PP.006 | D13: šatna sester | E13: 16.7 | H13: =IF(ISBLANK(I13)," ",VLOOKUP(I13,'[6]Příloha_8_Ceník pravid_úklidu'!$A$9:$B$30,2,0)) -> SATN | I13: 10 | J13: 2x;Po-Pá | K13: 1 | L13: 0.4 | M13: 0 | N13: 0 | O13: =IF(ISBLANK($K13),"",'[6]Pracovní dny'!$F$2) -> 252 | P13: =IF(ISBLANK($M13),"",'[6]Pracovní dny'!$F$3) -> 114 | Q13: =IF(ISBLANK($K13),"",'[6]Pracovní dny'!$F$4) -> 365 | R13: 100.8 | S13: 0 | T13: X | U13: N | V13: 3.2 | W13: 1 | X13: 0 | Y13: 1.6 | Z13: 1 | AA13: 3.2 | AB13: PL | AC13: 0 | AD13: OM | AF13: =IF(ISBLANK($AE13),VLOOKUP($I13,'Příloha_8_Ceník pravid_úklidu'!$A$9:$K$30,8,0)+VLOOKUP($I13,'Příloha_8_Ceník pravid_úklidu'!$A$9:$K$30,10,0),"neoceňuje se") -> 0 | AG13: 0 | AH13: 0
A14: .007 | B14: 112100 | C14: 1.04.1PP.007 | D14: šatna žákyň | E14: 13.3 | H14: =IF(ISBLANK(I14)," ",VLOOKUP(I14,'[6]Příloha_8_Ceník pravid_úklidu'!$A$9:$B$30,2,0)) -> SATN | I14: 10 | J14: 2x;Po-Pá | K14: 1 | L14: 0.4 | M14: 0 | N14: 0 | O14: =IF(ISBLANK($K14),"",'[6]Pracovní dny'!$F$2) -> 252 | P14: =IF(ISBLANK($M14),"",'[6]Pracovní dny'!$F$3) -> 114 | Q14: =IF(ISBLANK($K14),"",'[6]Pracovní dny'!$F$4) -> 365 | R14: 100.8 | S14: 0 | T14: X | U14: N | V14: 3.2 | W14: 1 | X14: 0 | Y14: 0 | Z14: 0 | AA14: 0 | AB14: 0 | AC14: 0 | AD14: OM | AF14: =IF(ISBLANK($AE14),VLOOKUP($I14,'Příloha_8_Ceník pravid_úklidu'!$A$9:$K$30,8,0)+VLOOKUP($I14,'Příloha_8_Ceník pravid_úklidu'!$A$9:$K$30,10,0),"neoceňuje se") -> 0 | AG14: 0 | AH14: 0
A15: .008 | B15: 112100 | C15: 1.04.1PP.008 | D15: umývárna | E15: 7.3 | H15: =IF(ISBLANK(I15)," ",VLOOKUP(I15,'[6]Příloha_8_Ceník pravid_úklidu'!$A$9:$B$30,2,0)) -> TOAL | I15: 7 | J15: 2x;Po-Pá | K15: 1 | L15: 0.4 | M15: 0 | N15: 0 | O15: =IF(ISBLANK($K15),"",'[6]Pracovní dny'!$F$2) -> 252 | P15: =IF(ISBLANK($M15),"",'[6]Pracovní dny'!$F$3) -> 114 | Q15: =IF(ISBLANK($K15),"",'[6]Pracovní dny'!$F$4) -> 365 | R15: 100.8 | S15: 26 | T15: 0 | U15: 0 | V15: 0 | W15: 0 | X15: 3 | Y15: 0.6 | Z15: 1 | AA15: 1.2 | AB15: PL | AC15: 0 | AD15: OM | AF15: =IF(ISBLANK($AE15),VLOOKUP($I15,'Příloha_8_Ceník pravid_úklidu'!$A$9:$K$30,8,0)+VLOOKUP($I15,'Příloha_8_Ceník pravid_úklidu'!$A$9:$K$30,10,0),"neoceňuje se") -> 0 | AG15: 0 | AH15: 0
A16: .009 | B16: 112100 | C16: 1.04.1PP.009 | D16: šatna pomoc.personálu | E16: 7.5 | H16: =IF(ISBLANK(I16)," ",VLOOKUP(I16,'[6]Příloha_8_Ceník pravid_úklidu'!$A$9:$B$30,2,0)) -> SATN | I16: 10 | J16: 2x;Po-Pá | K16: 1 | L16: 0.4 | M16: 0 | N16: 0 | O16: =IF(ISBLANK($K16),"",'[6]Pracovní dny'!$F$2) -> 252 | P16: =IF(ISBLANK($M16),"",'[6]Pracovní dny'!$F$3) -> 114 | Q16: =IF(ISBLANK($K16),"",'[6]Pracovní dny'!$F$4) -> 365 | R16: 100.8 | S16: 0 | T16: X | U16: N | V16: 3.2 | W16: 1 | X16: 0 | Y16: 0 | Z16: 0 | AA16: 0 | AB16: 0 | AC16: 0 | AD16: OM | AF16: =IF(ISBLANK($AE16),VLOOKUP($I16,'Příloha_8_Ceník pravid_úklidu'!$A$9:$K$30,8,0)+VLOOKUP($I16,'Příloha_8_Ceník pravid_úklidu'!$A$9:$K$30,10,0),"neoceňuje se") -> 0 | AG16: 0 | AH16: 0
A17: .010 | B17: 112100 | C17: 1.04.1PP.010 | D17: umývárna | E17: 4.4 | H17: =IF(ISBLANK(I17)," ",VLOOKUP(I17,'[6]Příloha_8_Ceník pravid_úklidu'!$A$9:$B$30,2,0)) -> TOAL | I17: 7 | J17: 2x;Po-Pá | K17: 1 | L17: 0.4 | M17: 0 | N17: 0 | O17: =IF(ISBLANK($K17),"",'[6]Pracovní dny'!$F$2) -> 252 | P17: =IF(ISBLANK($M17),"",'[6]Pracovní dny'!$F$3) -> 114 | Q17: =IF(ISBLANK($K17),"",'[6]Pracovní dny'!$F$4) -> 365 | R17: 100.8 | S17: 19 | T17: 0 | U17: 0 | V17: 0 | W17: 0 | X17: 2 | Y17: 0.6 | Z17: 1 | AA17: 1.2 | AB17: PL | AC17: 0 | AD17: OM | AF17: =IF(ISBLANK($AE17),VLOOKUP($I17,'Příloha_8_Ceník pravid_úklidu'!$A$9:$K$30,8,0)+VLOOKUP($I17,'Příloha_8_Ceník pravid_úklidu'!$A$9:$K$30,10,0),"neoceňuje se") -> 0 | AG17: 0 | AH17: 0
A18: .011 | B18: 112100 | C18: 1.04.1PP.011 | D18: předn.místnost, knihovna | E18: 35.2 | H18: =IF(ISBLANK(I18)," ",VLOOKUP(I18,'[6]Příloha_8_Ceník pravid_úklidu'!$A$9:$B$30,2,0)) -> KANC | I18: 4 | J18: 1x(5xpo-pá) | K18: 1 | L18: 1 | M18: 0 | N18: 0 | O18: =IF(ISBLANK($K18),"",'[6]Pracovní dny'!$F$2) -> 252 | P18: =IF(ISBLANK($M18),"",'[6]Pracovní dny'!$F$3) -> 114 | Q18: =IF(ISBLANK($K18),"",'[6]Pracovní dny'!$F$4) -> 365 | R18: 252 | S18: 1.5 | T18: X | U18: N | V18: 3.2 | W18: 1 | X18: 0 | Y18: 1.6 | Z18: 2 | AA18: 6.4 | AB18: PL | AC18: 0 | AD18: OM | AF18: =IF(ISBLANK($AE18),VLOOKUP($I18,'Příloha_8_Ceník pravid_úklidu'!$A$9:$K$30,8,0)+VLOOKUP($I18,'Příloha_8_Ceník pravid_úklidu'!$A$9:$K$30,10,0),"neoceňuje se") -> 0 | AG18: 0 | AH18: 0
A19: .012 | C19: 1.04.1PP.012 | D19: centrální rozvod počítačů | G19: 7 | H19: =IF(ISBLANK(I19)," ",VLOOKUP(I19,'[6]Příloha_8_Ceník pravid_úklidu'!$A$9:$B$30,2,0)) ->  | J19: není předmětem | O19: =IF(ISBLANK($K19),"",'[6]Pracovní dny'!$F$2) ->  | P19: =IF(ISBLANK($M19),"",'[6]Pracovní dny'!$F$3) ->  | Q19: =IF(ISBLANK($K19),"",'[6]Pracovní dny'!$F$4) ->  | S19: 0 | T19: 0 | U19: X | V19: 3.2 | W19: 1 | X19: 0 | Y19: 1.6 | Z19: 1 | AA19: 0 | AB19: PL | AC19: 0 | AD19: OM | AE19: X | AF19: =IF(ISBLANK($AE19),VLOOKUP($I19,'Příloha_8_Ceník pravid_úklidu'!$A$9:$K$30,8,0)+VLOOKUP($I19,'Příloha_8_Ceník pravid_úklidu'!$A$9:$K$30,10,0),"neoceňuje se") -> neoceňuje se | AG19: 0 | AH19: 0
A20: .013 | B20: 112100 | C20: 1.04.1PP.013 | D20: lékařský pokoj | E20: 20.1 | H20: =IF(ISBLANK(I20)," ",VLOOKUP(I20,'[6]Příloha_8_Ceník pravid_úklidu'!$A$9:$B$30,2,0)) -> KANC | I20: 4 | J20: 2x;Po-Pá | K20: 1 | L20: 0.4 | M20: 0 | N20: 0 | O20: =IF(ISBLANK($K20),"",'[6]Pracovní dny'!$F$2) -> 252 | P20: =IF(ISBLANK($M20),"",'[6]Pracovní dny'!$F$3) -> 114 | Q20: =IF(ISBLANK($K20),"",'[6]Pracovní dny'!$F$4) -> 365 | R20: 100.8 | S20: 0 | T20: 0 | U20: N | V20: 3.2 | W20: 1 | X20: 0 | Y20: 1.6 | Z20: 1 | AA20: 3.2 | AB20: PL | AC20: 0 | AD20: OM | AF20: =IF(ISBLANK($AE20),VLOOKUP($I20,'Příloha_8_Ceník pravid_úklidu'!$A$9:$K$30,8,0)+VLOOKUP($I20,'Příloha_8_Ceník pravid_úklidu'!$A$9:$K$30,10,0),"neoceňuje se") -> 0 | AG20: 0 | AH20: 0
A21: .014 | B21: 112100 | C21: 1.04.1PP.014 | D21: šatna | E21: 4.3 | H21: =IF(ISBLANK(I21)," ",VLOOKUP(I21,'[6]Příloha_8_Ceník pravid_úklidu'!$A$9:$B$30,2,0)) -> KANC | I21: 4 | J21: 2x;Po-Pá | K21: 1 | L21: 0.4 | M21: 0 | N21: 0 | O21: =IF(ISBLANK($K21),"",'[6]Pracovní dny'!$F$2) -> 252 | P21: =IF(ISBLANK($M21),"",'[6]Pracovní dny'!$F$3) -> 114 | Q21: =IF(ISBLANK($K21),"",'[6]Pracovní dny'!$F$4) -> 365 | R21: 100.8 | S21: 11 | T21: X | U21: N | V21: 6.4 | W21: 2 | X21: 0 | Y21: 0 | Z21: 0 | AA21: 0 | AB21: 0 | AC21: 0 | AD21: OM | AF21: =IF(ISBLANK($AE21),VLOOKUP($I21,'Příloha_8_Ceník pravid_úklidu'!$A$9:$K$30,8,0)+VLOOKUP($I21,'Příloha_8_Ceník pravid_úklidu'!$A$9:$K$30,10,0),"neoceňuje se") -> 0 | AG21: 0 | AH21: 0
A22: .015 | B22: 112100 | C22: 1.04.1PP.015 | D22: umývárna | E22: 3.9 | H22: =IF(ISBLANK(I22)," ",VLOOKUP(I22,'[6]Příloha_8_Ceník pravid_úklidu'!$A$9:$B$30,2,0)) -> TOAL | I22: 7 | J22: 2x;Po-Pá | K22: 1 | L22: 0.4 | M22: 0 | N22: 0 | O22: =IF(ISBLANK($K22),"",'[6]Pracovní dny'!$F$2) -> 252 | P22: =IF(ISBLANK($M22),"",'[6]Pracovní dny'!$F$3) -> 114 | Q22: =IF(ISBLANK($K22),"",'[6]Pracovní dny'!$F$4) -> 365 | R22: 100.8 | S22: 16 | T22: 0 | U22: 0 | V22: 3.2 | W22: 1 | X22: 2 | Y22: 0 | Z22: 0 | AA22: 0 | AB22: 0 | AC22: 0 | AD22: OM | AF22: =IF(ISBLANK($AE22),VLOOKUP($I22,'Příloha_8_Ceník pravid_úklidu'!$A$9:$K$30,8,0)+VLOOKUP($I22,'Příloha_8_Ceník pravid_úklidu'!$A$9:$K$30,10,0),"neoceňuje se") -> 0 | AG22: 0 | AH22: 0
A23: .016 | B23: 112100 | C23: 1.04.1PP.016 | D23: WC | E23: 2.1 | H23: =IF(ISBLANK(I23)," ",VLOOKUP(I23,'[6]Příloha_8_Ceník pravid_úklidu'!$A$9:$B$30,2,0)) -> TOAL | I23: 7 | J23: 2x;Po-Pá | K23: 1 | L23: 0.4 | M23: 0 | N23: 0 | O23: =IF(ISBLANK($K23),"",'[6]Pracovní dny'!$F$2) -> 252 | P23: =IF(ISBLANK($M23),"",'[6]Pracovní dny'!$F$3) -> 114 | Q23: =IF(ISBLANK($K23),"",'[6]Pracovní dny'!$F$4) -> 365 | R23: 100.8 | S23: 6.5 | T23: 0 | U23: 0 | V23: 3.2 | W23: 1 | X23: 1 | Y23: 1.6 | Z23: 1 | AA23: 3.2 | AB23: PL | AC23: 0 | AD23: OM | AF23: =IF(ISBLANK($AE23),VLOOKUP($I23,'Příloha_8_Ceník pravid_úklidu'!$A$9:$K$30,8,0)+VLOOKUP($I23,'Příloha_8_Ceník pravid_úklidu'!$A$9:$K$30,10,0),"neoceňuje se") -> 0 | AG23: 0 | AH23: 0
A24: .017 | B24: 112100 | C24: 1.04.1PP.017 | D24: lékařský pokoj | E24: 20.5 | H24: =IF(ISBLANK(I24)," ",VLOOKUP(I24,'[6]Příloha_8_Ceník pravid_úklidu'!$A$9:$B$30,2,0)) -> KANC | I24: 4 | J24: 2x;Po-Pá | K24: 1 | L24: 0.4 | M24: 0 | N24: 0 | O24: =IF(ISBLANK($K24),"",'[6]Pracovní dny'!$F$2) -> 252 | P24: =IF(ISBLANK($M24),"",'[6]Pracovní dny'!$F$3) -> 114 | Q24: =IF(ISBLANK($K24),"",'[6]Pracovní dny'!$F$4) -> 365 | R24: 100.8 | S24: 0 | T24: 0 | U24: N | V24: 3.2 | W24: 1 | X24: 0 | Y24: 1.6 | Z24: 1 | AA24: 3.2 | AB24: PL | AC24: 0 | AD24: OM | AF24: =IF(ISBLANK($AE24),VLOOKUP($I24,'Příloha_8_Ceník pravid_úklidu'!$A$9:$K$30,8,0)+VLOOKUP($I24,'Příloha_8_Ceník pravid_úklidu'!$A$9:$K$30,10,0),"neoceňuje se") -> 0 | AG24: 0 | AH24: 0
A25: .018 | B25: 112100 | C25: 1.04.1PP.018 | D25: lékařský pokoj | E25: 9.9 | H25: =IF(ISBLANK(I25)," ",VLOOKUP(I25,'[6]Příloha_8_Ceník pravid_úklidu'!$A$9:$B$30,2,0)) -> KANC | I25: 4 | J25: 2x;Po-Pá | K25: 1 | L25: 0.4 | M25: 0 | N25: 0 | O25: =IF(ISBLANK($K25),"",'[6]Pracovní dny'!$F$2) -> 252 | P25: =IF(ISBLANK($M25),"",'[6]Pracovní dny'!$F$3) -> 114 | Q25: =IF(ISBLANK($K25),"",'[6]Pracovní dny'!$F$4) -> 365 | R25: 100.8 | S25: 0 | T25: 0 | U25: N | V25: 3.2 | W25: 1 | X25: 0 | Y25: 0 | Z25: 0 | AA25: 0 | AB25: 0 | AC25: 0 | AD25: OM | AF25: =IF(ISBLANK($AE25),VLOOKUP($I25,'Příloha_8_Ceník pravid_úklidu'!$A$9:$K$30,8,0)+VLOOKUP($I25,'Příloha_8_Ceník pravid_úklidu'!$A$9:$K$30,10,0),"neoceňuje se") -> 0 | AG25: 0 | AH25: 0
A26: .019 | B26: 112100 | C26: 1.04.1PP.019 | D26: umývárna | E26: 5.7 | H26: =IF(ISBLANK(I26)," ",VLOOKUP(I26,'[6]Příloha_8_Ceník pravid_úklidu'!$A$9:$B$30,2,0)) -> TOAL | I26: 7 | J26: 2x;Po-Pá | K26: 1 | L26: 0.4 | M26: 0 | N26: 0 | O26: =IF(ISBLANK($K26),"",'[6]Pracovní dny'!$F$2) -> 252 | P26: =IF(ISBLANK($M26),"",'[6]Pracovní dny'!$F$3) -> 114 | Q26: =IF(ISBLANK($K26),"",'[6]Pracovní dny'!$F$4) -> 365 | R26: 100.8 | S26: 17 | T26: 0 | U26: 0 | V26: 0 | W26: 0 | X26: 2 | Y26: 1.6 | Z26: 1 | AA26: 3.2 | AB26: PL | AC26: 0 | AD26: OM | AF26: =IF(ISBLANK($AE26),VLOOKUP($I26,'Příloha_8_Ceník pravid_úklidu'!$A$9:$K$30,8,0)+VLOOKUP($I26,'Příloha_8_Ceník pravid_úklidu'!$A$9:$K$30,10,0),"neoceňuje se") -> 0 | AG26: 0 | AH26: 0
A27: .020 | B27: 112100 | C27: 1.04.1PP.020 | D27: lékařský pokoj | E27: 9.8 | H27: =IF(ISBLANK(I27)," ",VLOOKUP(I27,'[6]Příloha_8_Ceník pravid_úklidu'!$A$9:$B$30,2,0)) -> KANC | I27: 4 | J27: 2x;Po-Pá | K27: 1 | L27: 0.4 | M27: 0 | N27: 0 | O27: =IF(ISBLANK($K27),"",'[6]Pracovní dny'!$F$2) -> 252 | P27: =IF(ISBLANK($M27),"",'[6]Pracovní dny'!$F$3) -> 114 | Q27: =IF(ISBLANK($K27),"",'[6]Pracovní dny'!$F$4) -> 365 | R27: 100.8 | S27: 0 | T27: 0 | U27: N | V27: 3.2 | W27: 1 | X27: 0 | Y27: 0 | Z27: 0 | AA27: 0 | AB27: 0 | AC27: 0 | AD27: OM | AF27: =IF(ISBLANK($AE27),VLOOKUP($I27,'Příloha_8_Ceník pravid_úklidu'!$A$9:$K$30,8,0)+VLOOKUP($I27,'Příloha_8_Ceník pravid_úklidu'!$A$9:$K$30,10,0),"neoceňuje se") -> 0 | AG27: 0 | AH27: 0
A28: .021 | B28: 112100 | C28: 1.04.1PP.021 | D28: umývárna | E28: 5.7 | H28: =IF(ISBLANK(I28)," ",VLOOKUP(I28,'[6]Příloha_8_Ceník pravid_úklidu'!$A$9:$B$30,2,0)) -> TOAL | I28: 7 | J28: 2x;Po-Pá | K28: 1 | L28: 0.4 | M28: 0 | N28: 0 | O28: =IF(ISBLANK($K28),"",'[6]Pracovní dny'!$F$2) -> 252 | P28: =IF(ISBLANK($M28),"",'[6]Pracovní dny'!$F$3) -> 114 | Q28: =IF(ISBLANK($K28),"",'[6]Pracovní dny'!$F$4) -> 365 | R28: 100.8 | S28: 17 | T28: 0 | U28: 0 | V28: 0 | W28: 0 | X28: 2 | Y28: 1.6 | Z28: 1 | AA28: 3.2 | AB28: PL | AC28: 0 | AD28: OM | AF28: =IF(ISBLANK($AE28),VLOOKUP($I28,'Příloha_8_Ceník pravid_úklidu'!$A$9:$K$30,8,0)+VLOOKUP($I28,'Příloha_8_Ceník pravid_úklidu'!$A$9:$K$30,10,0),"neoceňuje se") -> 0 | AG28: 0 | AH28: 0
A29: .022 | C29: 1.04.1PP.022 | D29: předsíň | G29: 14.7 | H29: =IF(ISBLANK(I29)," ",VLOOKUP(I29,'[6]Příloha_8_Ceník pravid_úklidu'!$A$9:$B$30,2,0)) -> CHOD | I29: 6 | J29: není předmětem | O29: =IF(ISBLANK($K29),"",'[6]Pracovní dny'!$F$2) ->  | P29: =IF(ISBLANK($M29),"",'[6]Pracovní dny'!$F$3) ->  | Q29: =IF(ISBLANK($K29),"",'[6]Pracovní dny'!$F$4) ->  | S29: 24 | T29: X | U29: X | V29: 3.6 | W29: 1 | X29: 1 | Y29: 0.6 | Z29: 1 | AA29: 0 | AB29: PL | AC29: 0 | AD29: OM | AE29: X | AF29: =IF(ISBLANK($AE29),VLOOKUP($I29,'Příloha_8_Ceník pravid_úklidu'!$A$9:$K$30,8,0)+VLOOKUP($I29,'Příloha_8_Ceník pravid_úklidu'!$A$9:$K$30,10,0),"neoceňuje se") -> neoceňuje se | AG29: 0 | AH29: 0
A30: .023 | C30: 1.04.1PP.023 | D30: technické zázemí | G30: 46 | H30: =IF(ISBLANK(I30)," ",VLOOKUP(I30,'[6]Příloha_8_Ceník pravid_úklidu'!$A$9:$B$30,2,0)) ->  | J30: není předmětem | O30: =IF(ISBLANK($K30),"",'[6]Pracovní dny'!$F$2) ->  | P30: =IF(ISBLANK($M30),"",'[6]Pracovní dny'!$F$3) ->  | Q30: =IF(ISBLANK($K30),"",'[6]Pracovní dny'!$F$4) ->  | S30: 0 | T30: 0 | U30: X | V30: 3.6 | W30: 1 | Y30: 0 | Z30: 0.6 | AA30: 0 | AB30: PL | AD30: OM | AE30: X | AF30: =IF(ISBLANK($AE30),VLOOKUP($I30,'Příloha_8_Ceník pravid_úklidu'!$A$9:$K$30,8,0)+VLOOKUP($I30,'Příloha_8_Ceník pravid_úklidu'!$A$9:$K$30,10,0),"neoceňuje se") -> neoceňuje se | AG30: 0 | AH30: 0
A31: .024 | C31: 1.04.1PP.024 | D31: neobsazeno | G31: 0 | H31: =IF(ISBLANK(I31)," ",VLOOKUP(I31,'[6]Příloha_8_Ceník pravid_úklidu'!$A$9:$B$30,2,0)) ->  | J31: není předmětem | O31: =IF(ISBLANK($K31),"",'[6]Pracovní dny'!$F$2) ->  | P31: =IF(ISBLANK($M31),"",'[6]Pracovní dny'!$F$3) ->  | Q31: =IF(ISBLANK($K31),"",'[6]Pracovní dny'!$F$4) ->  | S31: 0 | T31: 0 | U31: 0 | V31: 0 | W31: 0 | X31: 0 | Y31: 0 | Z31: 0 | AA31: 0 | AB31: 0 | AC31: 0 | AD31: 0 | AE31: X | AF31: =IF(ISBLANK($AE31),VLOOKUP($I31,'Příloha_8_Ceník pravid_úklidu'!$A$9:$K$30,8,0)+VLOOKUP($I31,'Příloha_8_Ceník pravid_úklidu'!$A$9:$K$30,10,0),"neoceňuje se") -> neoceňuje se | AG31: 0 | AH31: 0
A32: .025 | B32: 112100 | C32: 1.04.1PP.025 | D32: sklad | E32: 31.9 | H32: =IF(ISBLANK(I32)," ",VLOOKUP(I32,'[6]Příloha_8_Ceník pravid_úklidu'!$A$9:$B$30,2,0)) -> SKLA | I32: 17 | J32: 1xměsíčně | K32: 1 | L32: 0.05 | M32: 0 | N32: 0 | O32: =IF(ISBLANK($K32),"",'[6]Pracovní dny'!$F$2) -> 252 | P32: =IF(ISBLANK($M32),"",'[6]Pracovní dny'!$F$3) -> 114 | Q32: =IF(ISBLANK($K32),"",'[6]Pracovní dny'!$F$4) -> 365 | R32: 12.6 | S32: 0 | T32: 0 | U32: X | V32: 4.4 | W32: 1 | X32: 0 | Y32: 0.6 | Z32: 3 | AA32: 3.6 | AB32: PL | AC32: 0 | AD32: OM | AF32: =IF(ISBLANK($AE32),VLOOKUP($I32,'Příloha_8_Ceník pravid_úklidu'!$A$9:$K$30,8,0)+VLOOKUP($I32,'Příloha_8_Ceník pravid_úklidu'!$A$9:$K$30,10,0),"neoceňuje se") -> 0 | AG32: 0 | AH32: 0
A33: .026 | B33: 112100 | C33: 1.04.1PP.026 | D33: místnost pro zemřelé | E33: 11.7 | H33: =IF(ISBLANK(I33)," ",VLOOKUP(I33,'[6]Příloha_8_Ceník pravid_úklidu'!$A$9:$B$30,2,0)) -> ZDR1 | I33: 2 | J33: 1x(5xPo-Pá);po každém úmrtí | K33: 1 | L33: 1 | M33: 0 | N33: 0 | O33: =IF(ISBLANK($K33),"",'[6]Pracovní dny'!$F$2) -> 252 | P33: =IF(ISBLANK($M33),"",'[6]Pracovní dny'!$F$3) -> 114 | Q33: =IF(ISBLANK($K33),"",'[6]Pracovní dny'!$F$4) -> 365 | R33: 252 | S33: 23 | T33: 0 | U33: X | V33: 4.4 | W33: 1 | X33: 0 | Y33: 0.6 | Z33: 1 | AA33: 1.2 | AB33: PL | AC33: 0 | AD33: OM | AF33: =IF(ISBLANK($AE33),VLOOKUP($I33,'Příloha_8_Ceník pravid_úklidu'!$A$9:$K$30,8,0)+VLOOKUP($I33,'Příloha_8_Ceník pravid_úklidu'!$A$9:$K$30,10,0),"neoceňuje se") -> 0 | AG33: 0 | AH33: 0
A34: .027 | C34: 1.04.1PP.027 | D34: úklidová komora | G34: 3.7 | H34: =IF(ISBLANK(I34)," ",VLOOKUP(I34,'[6]Příloha_8_Ceník pravid_úklidu'!$A$9:$B$30,2,0)) -> TOAL | I34: 7 | J34: provádí zhotovitel na své náklady | O34: =IF(ISBLANK($K34),"",'[6]Pracovní dny'!$F$2) ->  | P34: =IF(ISBLANK($M34),"",'[6]Pracovní dny'!$F$3) ->  | Q34: =IF(ISBLANK($K34),"",'[6]Pracovní dny'!$F$4) ->  | S34: 0 | T34: 0 | U34: 0 | V34: 2.4 | W34: 1 | X34: 1 | Y34: 0 | Z34: 0 | AA34: 0 | AB34: 0 | AC34: 0 | AD34: OM | AE34: X | AF34: =IF(ISBLANK($AE34),VLOOKUP($I34,'Příloha_8_Ceník pravid_úklidu'!$A$9:$K$30,8,0)+VLOOKUP($I34,'Příloha_8_Ceník pravid_úklidu'!$A$9:$K$30,10,0),"neoceňuje se") -> neoceňuje se | AG34: 0 | AH34: 0
A35: .028 | B35: 112100 | C35: 1.04.1PP.028 | D35: manipulační chodba | E35: 60.7 | H35: =IF(ISBLANK(I35)," ",VLOOKUP(I35,'[6]Příloha_8_Ceník pravid_úklidu'!$A$9:$B$30,2,0)) -> CHOD | I35: 6 | J35: 1x(5xPo-Pá) | K35: 1 | L35: 1 | M35: 0 | N35: 0 | O35: =IF(ISBLANK($K35),"",'[6]Pracovní dny'!$F$2) -> 252 | P35: =IF(ISBLANK($M35),"",'[6]Pracovní dny'!$F$3) -> 114 | Q35: =IF(ISBLANK($K35),"",'[6]Pracovní dny'!$F$4) -> 365 | R35: 252 | S35: 61 | T35: X | U35: X | V35: 0 | W35: 0 | X35: 0 | Y35: 0 | Z35: 0 | AA35: 0 | AB35: 0 | AC35: 0 | AD35: OM | AF35: =IF(ISBLANK($AE35),VLOOKUP($I35,'Příloha_8_Ceník pravid_úklidu'!$A$9:$K$30,8,0)+VLOOKUP($I35,'Příloha_8_Ceník pravid_úklidu'!$A$9:$K$30,10,0),"neoceňuje se") -> 0 | AG35: 0 | AH35: 0
A36: .029 | B36: 112100 | C36: 1.04.1PP.029 | D36: schodiště | E36: 7.5 | H36: =IF(ISBLANK(I36)," ",VLOOKUP(I36,'[6]Příloha_8_Ceník pravid_úklidu'!$A$9:$B$30,2,0)) -> SCHO | I36: 8 | J36: 1x(5xPo-Pá) | K36: 1 | L36: 1 | M36: 0 | N36: 0 | O36: =IF(ISBLANK($K36),"",'[6]Pracovní dny'!$F$2) -> 252 | P36: =IF(ISBLANK($M36),"",'[6]Pracovní dny'!$F$3) -> 114 | Q36: =IF(ISBLANK($K36),"",'[6]Pracovní dny'!$F$4) -> 365 | R36: 252 | S36: 18 | T36: X | U36: 0 | V36: 0 | W36: 0 | X36: 0 | Y36: 0 | Z36: 0 | AA36: 0 | AB36: 0 | AC36: 0 | AD36: OM | AF36: =IF(ISBLANK($AE36),VLOOKUP($I36,'Příloha_8_Ceník pravid_úklidu'!$A$9:$K$30,8,0)+VLOOKUP($I36,'Příloha_8_Ceník pravid_úklidu'!$A$9:$K$30,10,0),"neoceňuje se") -> 0 | AG36: 0 | AH36: 0
A37: .030 | D37: výtah | G37: 4.2 | H37: =IF(ISBLANK(I37)," ",VLOOKUP(I37,'[6]Příloha_8_Ceník pravid_úklidu'!$A$9:$B$30,2,0)) -> VYTA | I37: 11 | J37: započítat v 1.NP | O37: =IF(ISBLANK($K37),"",'[6]Pracovní dny'!$F$2) ->  | P37: =IF(ISBLANK($M37),"",'[6]Pracovní dny'!$F$3) ->  | Q37: =IF(ISBLANK($K37),"",'[6]Pracovní dny'!$F$4) ->  | S37: 0 | T37: 0 | U37: 18 | V37: 2.8 | W37: 1 | X37: 0 | Y37: 0 | Z37: 0 | AA37: 0 | AB37: 0 | AC37: 0 | AD37: VÝT | AE37: X | AF37: =IF(ISBLANK($AE37),VLOOKUP($I37,'Příloha_8_Ceník pravid_úklidu'!$A$9:$K$30,8,0)+VLOOKUP($I37,'Příloha_8_Ceník pravid_úklidu'!$A$9:$K$30,10,0),"neoceňuje se") -> neoceňuje se | AG37: 0 | AH37: 0
A38: .031 | D38: výtah | G38: 4.2 | H38: =IF(ISBLANK(I38)," ",VLOOKUP(I38,'[6]Příloha_8_Ceník pravid_úklidu'!$A$9:$B$30,2,0)) -> VYTA | I38: 11 | J38: započítat v 1.NP | O38: =IF(ISBLANK($K38),"",'[6]Pracovní dny'!$F$2) ->  | P38: =IF(ISBLANK($M38),"",'[6]Pracovní dny'!$F$3) ->  | Q38: =IF(ISBLANK($K38),"",'[6]Pracovní dny'!$F$4) ->  | S38: 0 | T38: 0 | U38: 18 | V38: 2.6 | W38: 1 | X38: 0 | Y38: 0 | Z38: 0 | AA38: 0 | AB38: 0 | AC38: 0 | AD38: VÝT | AE38: X | AF38: =IF(ISBLANK($AE38),VLOOKUP($I38,'Příloha_8_Ceník pravid_úklidu'!$A$9:$K$30,8,0)+VLOOKUP($I38,'Příloha_8_Ceník pravid_úklidu'!$A$9:$K$30,10,0),"neoceňuje se") -> neoceňuje se | AG38: 0 | AH38: 0
A39: .032 | B39: 112100 | C39: 1.04.1PP.032 | D39: předsíň | E39: 11.3 | H39: =IF(ISBLANK(I39)," ",VLOOKUP(I39,'[6]Příloha_8_Ceník pravid_úklidu'!$A$9:$B$30,2,0)) -> CHOD | I39: 6 | J39: 1x(5xPo-Pá) | K39: 1 | L39: 1 | M39: 0 | N39: 0 | O39: =IF(ISBLANK($K39),"",'[6]Pracovní dny'!$F$2) -> 252 | P39: =IF(ISBLANK($M39),"",'[6]Pracovní dny'!$F$3) -> 114 | Q39: =IF(ISBLANK($K39),"",'[6]Pracovní dny'!$F$4) -> 365 | R39: 252 | S39: 20.5 | T39: 0 | U39: 0 | V39: 3.2 | W39: 1 | X39: 2 | Y39: 0 | Z39: 0 | AA39: 0 | AB39: 0 | AC39: 0 | AD39: OM | AF39: =IF(ISBLANK($AE39),VLOOKUP($I39,'Příloha_8_Ceník pravid_úklidu'!$A$9:$K$30,8,0)+VLOOKUP($I39,'Příloha_8_Ceník pravid_úklidu'!$A$9:$K$30,10,0),"neoceňuje se") -> 0 | AG39: 0 | AH39: 0
A40: .033 | B40: 112100 | C40: 1.04.1PP.033 | D40: WC pacienti | E40: 1.5 | H40: =IF(ISBLANK(I40)," ",VLOOKUP(I40,'[6]Příloha_8_Ceník pravid_úklidu'!$A$9:$B$30,2,0)) -> TOAL | I40: 7 | J40: 1x(5xPo-Pá) | K40: 1 | L40: 1 | M40: 0 | N40: 0 | O40: =IF(ISBLANK($K40),"",'[6]Pracovní dny'!$F$2) -> 252 | P40: =IF(ISBLANK($M40),"",'[6]Pracovní dny'!$F$3) -> 114 | Q40: =IF(ISBLANK($K40),"",'[6]Pracovní dny'!$F$4) -> 365 | R40: 252 | S40: 8.2 | T40: 0 | U40: 0 | V40: 2.4 | W40: 1 | X40: 1 | Y40: 0 | Z40: 0 | AA40: 0 | AB40: 0 | AC40: 0 | AD40: OM | AF40: =IF(ISBLANK($AE40),VLOOKUP($I40,'Příloha_8_Ceník pravid_úklidu'!$A$9:$K$30,8,0)+VLOOKUP($I40,'Příloha_8_Ceník pravid_úklidu'!$A$9:$K$30,10,0),"neoceňuje se") -> 0 | AG40: 0 | AH40: 0
A41: .034 | B41: 112100 | C41: 1.04.1PP.034 | D41: WC pacienti | E41: 1.5 | H41: =IF(ISBLANK(I41)," ",VLOOKUP(I41,'[6]Příloha_8_Ceník pravid_úklidu'!$A$9:$B$30,2,0)) -> TOAL | I41: 7 | J41: 1x(5xPo-Pá) | K41: 1 | L41: 1 | M41: 0 | N41: 0 | O41: =IF(ISBLANK($K41),"",'[6]Pracovní dny'!$F$2) -> 252 | P41: =IF(ISBLANK($M41),"",'[6]Pracovní dny'!$F$3) -> 114 | Q41: =IF(ISBLANK($K41),"",'[6]Pracovní dny'!$F$4) -> 365 | R41: 252 | S41: 8.2 | T41: 0 | U41: 0 | V41: 2.4 | W41: 1 | X41: 1 | Y41: 0 | Z41: 0 | AA41: 0 | AB41: 0 | AC41: 0 | AD41: OM | AF41: =IF(ISBLANK($AE41),VLOOKUP($I41,'Příloha_8_Ceník pravid_úklidu'!$A$9:$K$30,8,0)+VLOOKUP($I41,'Příloha_8_Ceník pravid_úklidu'!$A$9:$K$30,10,0),"neoceňuje se") -> 0 | AG41: 0 | AH41: 0
A42: .035 | B42: 112100 | C42: 1.04.1PP.035 | D42: WC personál | E42: 1.5 | H42: =IF(ISBLANK(I42)," ",VLOOKUP(I42,'[6]Příloha_8_Ceník pravid_úklidu'!$A$9:$B$30,2,0)) -> TOAL | I42: 7 | J42: 1x(5xPo-Pá) | K42: 1 | L42: 1 | M42: 0 | N42: 0 | O42: =IF(ISBLANK($K42),"",'[6]Pracovní dny'!$F$2) -> 252 | P42: =IF(ISBLANK($M42),"",'[6]Pracovní dny'!$F$3) -> 114 | Q42: =IF(ISBLANK($K42),"",'[6]Pracovní dny'!$F$4) -> 365 | R42: 252 | S42: 8.2 | T42: 0 | U42: 0 | V42: 2.4 | W42: 1 | X42: 1 | Y42: 0 | Z42: 0 | AA42: 0 | AB42: 0 | AC42: 0 | AD42: OM | AF42: =IF(ISBLANK($AE42),VLOOKUP($I42,'Příloha_8_Ceník pravid_úklidu'!$A$9:$K$30,8,0)+VLOOKUP($I42,'Příloha_8_Ceník pravid_úklidu'!$A$9:$K$30,10,0),"neoceňuje se") -> 0 | AG42: 0 | AH42: 0
A43: .036 | C43: 1.04.1PP.036 | D43: úklidová komora | G43: 1.8 | H43: =IF(ISBLANK(I43)," ",VLOOKUP(I43,'[6]Příloha_8_Ceník pravid_úklidu'!$A$9:$B$30,2,0)) -> TOAL | I43: 7 | J43: provádí zhotovitel na své náklady | O43: =IF(ISBLANK($K43),"",'[6]Pracovní dny'!$F$2) ->  | P43: =IF(ISBLANK($M43),"",'[6]Pracovní dny'!$F$3) ->  | Q43: =IF(ISBLANK($K43),"",'[6]Pracovní dny'!$F$4) ->  | S43: 8.2 | T43: 0 | U43: 0 | V43: 2.4 | W43: 1 | X43: 1 | Y43: 0 | Z43: 0 | AA43: 0 | AB43: 0 | AC43: 0 | AD43: OM | AE43: X | AF43: =IF(ISBLANK($AE43),VLOOKUP($I43,'Příloha_8_Ceník pravid_úklidu'!$A$9:$K$30,8,0)+VLOOKUP($I43,'Příloha_8_Ceník pravid_úklidu'!$A$9:$K$30,10,0),"neoceňuje se") -> neoceňuje se | AG43: 0 | AH43: 0
A44: .037 | B44: 112100 | C44: 1.04.1PP.037 | D44: předsíň WC ženy personál | E44: 3.9 | H44: =IF(ISBLANK(I44)," ",VLOOKUP(I44,'[6]Příloha_8_Ceník pravid_úklidu'!$A$9:$B$30,2,0)) -> TOAL | I44: 7 | J44: 1x(5xPo-Pá) | K44: 1 | L44: 1 | M44: 0 | N44: 0 | O44: =IF(ISBLANK($K44),"",'[6]Pracovní dny'!$F$2) -> 252 | P44: =IF(ISBLANK($M44),"",'[6]Pracovní dny'!$F$3) -> 114 | Q44: =IF(ISBLANK($K44),"",'[6]Pracovní dny'!$F$4) -> 365 | R44: 252 | S44: 14 | T44: 0 | U44: 0 | V44: 2.4 | W44: 1 | X44: 1 | Y44: 0.6 | Z44: 1 | AA44: 1.2 | AB44: PL | AC44: 0 | AD44: OM | AF44: =IF(ISBLANK($AE44),VLOOKUP($I44,'Příloha_8_Ceník pravid_úklidu'!$A$9:$K$30,8,0)+VLOOKUP($I44,'Příloha_8_Ceník pravid_úklidu'!$A$9:$K$30,10,0),"neoceňuje se") -> 0 | AG44: 0 | AH44: 0
A45: .038 | B45: 112100 | C45: 1.04.1PP.038 | D45: předsíň WC ženy personál | E45: 2.5 | H45: =IF(ISBLANK(I45)," ",VLOOKUP(I45,'[6]Příloha_8_Ceník pravid_úklidu'!$A$9:$B$30,2,0)) -> TOAL | I45: 7 | J45: 1x(5xPo-Pá) | K45: 1 | L45: 1 | M45: 0 | N45: 0 | O45: =IF(ISBLANK($K45),"",'[6]Pracovní dny'!$F$2) -> 252 | P45: =IF(ISBLANK($M45),"",'[6]Pracovní dny'!$F$3) -> 114 | Q45: =IF(ISBLANK($K45),"",'[6]Pracovní dny'!$F$4) -> 365 | R45: 252 | S45: 0 | T45: 0 | U45: 0 | V45: 2.4 | W45: 1 | X45: 0 | Y45: 0 | Z45: 0 | AA45: 0 | AB45: 0 | AC45: 0 | AD45: OM | AF45: =IF(ISBLANK($AE45),VLOOKUP($I45,'Příloha_8_Ceník pravid_úklidu'!$A$9:$K$30,8,0)+VLOOKUP($I45,'Příloha_8_Ceník pravid_úklidu'!$A$9:$K$30,10,0),"neoceňuje se") -> 0 | AG45: 0 | AH45: 0
A46: .039 | B46: 112100 | C46: 1.04.1PP.039 | D46: WC ženy personál | E46: 1.1 | H46: =IF(ISBLANK(I46)," ",VLOOKUP(I46,'[6]Příloha_8_Ceník pravid_úklidu'!$A$9:$B$30,2,0)) -> TOAL | I46: 7 | J46: 1x(5xPo-Pá) | K46: 1 | L46: 1 | M46: 0 | N46: 0 | O46: =IF(ISBLANK($K46),"",'[6]Pracovní dny'!$F$2) -> 252 | P46: =IF(ISBLANK($M46),"",'[6]Pracovní dny'!$F$3) -> 114 | Q46: =IF(ISBLANK($K46),"",'[6]Pracovní dny'!$F$4) -> 365 | R46: 252 | S46: 7 | T46: 0 | U46: 0 | V46: 2.4 | W46: 1 | X46: 1 | Y46: 0 | Z46: 0 | AA46: 0 | AB46: 0 | AC46: 0 | AD46: OM | AF46: =IF(ISBLANK($AE46),VLOOKUP($I46,'Příloha_8_Ceník pravid_úklidu'!$A$9:$K$30,8,0)+VLOOKUP($I46,'Příloha_8_Ceník pravid_úklidu'!$A$9:$K$30,10,0),"neoceňuje se") -> 0 | AG46: 0 | AH46: 0
A47: .040 | B47: 112100 | C47: 1.04.1PP.040 | D47: WC ženy personál | E47: 1.1 | H47: =IF(ISBLANK(I47)," ",VLOOKUP(I47,'[6]Příloha_8_Ceník pravid_úklidu'!$A$9:$B$30,2,0)) -> TOAL | I47: 7 | J47: 1x(5xPo-Pá) | K47: 1 | L47: 1 | M47: 0 | N47: 0 | O47: =IF(ISBLANK($K47),"",'[6]Pracovní dny'!$F$2) -> 252 | P47: =IF(ISBLANK($M47),"",'[6]Pracovní dny'!$F$3) -> 114 | Q47: =IF(ISBLANK($K47),"",'[6]Pracovní dny'!$F$4) -> 365 | R47: 252 | S47: 7 | T47: 0 | U47: 0 | V47: 2.4 | W47: 1 | X47: 1 | Y47: 0 | Z47: 0 | AA47: 0 | AB47: 0 | AC47: 0 | AD47: OM | AF47: =IF(ISBLANK($AE47),VLOOKUP($I47,'Příloha_8_Ceník pravid_úklidu'!$A$9:$K$30,8,0)+VLOOKUP($I47,'Příloha_8_Ceník pravid_úklidu'!$A$9:$K$30,10,0),"neoceňuje se") -> 0 | AG47: 0 | AH47: 0
A48: .041 | B48: 112100 | C48: 1.04.1PP.041 | D48: předsíň WC muži personál | E48: 2.2 | H48: =IF(ISBLANK(I48)," ",VLOOKUP(I48,'[6]Příloha_8_Ceník pravid_úklidu'!$A$9:$B$30,2,0)) -> TOAL | I48: 7 | J48: 1x(5xPo-Pá) | K48: 1 | L48: 1 | M48: 0 | N48: 0 | O48: =IF(ISBLANK($K48),"",'[6]Pracovní dny'!$F$2) -> 252 | P48: =IF(ISBLANK($M48),"",'[6]Pracovní dny'!$F$3) -> 114 | Q48: =IF(ISBLANK($K48),"",'[6]Pracovní dny'!$F$4) -> 365 | R48: 252 | S48: 10.5 | T48: 0 | U48: 0 | V48: 2.4 | W48: 1 | X48: 1 | Y48: 0 | Z48: 0 | AA48: 0 | AB48: 0 | AC48: 0 | AD48: OM | AF48: =IF(ISBLANK($AE48),VLOOKUP($I48,'Příloha_8_Ceník pravid_úklidu'!$A$9:$K$30,8,0)+VLOOKUP($I48,'Příloha_8_Ceník pravid_úklidu'!$A$9:$K$30,10,0),"neoceňuje se") -> 0 | AG48: 0 | AH48: 0
A49: .042 | B49: 112100 | C49: 1.04.1PP.042 | D49: WC muži personál | E49: 1.5 | H49: =IF(ISBLANK(I49)," ",VLOOKUP(I49,'[6]Příloha_8_Ceník pravid_úklidu'!$A$9:$B$30,2,0)) -> TOAL | I49: 7 | J49: 1x(5xPo-Pá) | K49: 1 | L49: 1 | M49: 0 | N49: 0 | O49: =IF(ISBLANK($K49),"",'[6]Pracovní dny'!$F$2) -> 252 | P49: =IF(ISBLANK($M49),"",'[6]Pracovní dny'!$F$3) -> 114 | Q49: =IF(ISBLANK($K49),"",'[6]Pracovní dny'!$F$4) -> 365 | R49: 252 | S49: 8.2 | T49: 0 | U49: 0 | V49: 2.4 | W49: 1 | X49: 1 | Y49: 0.6 | Z49: 1 | AA49: 1.2 | AB49: PL | AC49: 0 | AD49: OM | AF49: =IF(ISBLANK($AE49),VLOOKUP($I49,'Příloha_8_Ceník pravid_úklidu'!$A$9:$K$30,8,0)+VLOOKUP($I49,'Příloha_8_Ceník pravid_úklidu'!$A$9:$K$30,10,0),"neoceňuje se") -> 0 | AG49: 0 | AH49: 0
